Workbook

Sheet FPE
A1: MINISTÉRIO DA FAZENDA - MF
A2: SECRETARIA DO TESOURO NACIONAL - STN
A3: COORDENAÇÃO-GERAL DE ANÁLISE E INFORMAÇÕES DAS TRANSFERÊNCIAS FINANCEIRAS INTERGOVERNAMENTAIS
A8: ESTADOS | B8: UF | C8: 1991-01-01 | D8: 1991-02-01 | E8: 1991-03-01 | F8: 1991-04-01 | G8: 1991-05-01 | H8: 1991-06-01 | I8: 1991-07-01 | J8: 1991-08-01 | K8: 1991-09-01 | L8: 1991-10-01 | M8: 1991-11-01 | N8: 1991-12-01 | O8: 1992-01-01 | P8: 1992-02-01 | Q8: 1992-03-01 | R8: 1992-04-01 | S8: 1992-05-01 | T8: 1992-06-01 | U8: 1992-07-01 | V8: 1992-08-01 | W8: 1992-09-01 | X8: 1992-10-01 | Y8: 1992-11-01 | Z8: 1992-12-01 | AA8: 1993-01-01 | AB8: 1993-02-01 | AC8: 1993-03-01 | AD8: 1993-04-01 | AE8: 1993-05-01 | AF8: 1993-06-01 | AG8: 1993-07-01 | AH8: 1993-08-01 | AI8: 1993-09-01 | AJ8: 1993-10-01 | AK8: 1993-11-01 | AL8: 1993-12-01 | AM8: 1994-01-01 | AN8: 1994-02-01 | AO8: 1994-03-01 | AP8: 1994-04-01 | AQ8: 1994-05-01 | AR8: 1994-06-01 | AS8: 1994-07-01 | AT8: 1994-08-01 | AU8: 1994-09-01 | AV8: 1994-10-01 | AW8: 1994-11-01 | AX8: 1994-12-01 | AY8: 1995-01-01 | AZ8: 1995-02-01 | BA8: 1995-03-01 | BB8: 1995-04-01 | BC8: 1995-05-01 | BD8: 1995-06-01 | BE8: 1995-07-01 | BF8: 1995-08-01 | BG8: 1995-09-01 | BH8: 1995-10-01 | BI8: 1995-11-01 | BJ8: 1995-12-01 | BK8: 1996-01-01 | BL8: 1996-02-01 | BM8: 1996-03-01 | BN8: 1996-04-01 | BO8: 1996-05-01 | BP8: 1996-06-01 | BQ8: 1996-07-01 | BR8: 1996-08-01 | BS8: 1996-09-01 | BT8: 1996-10-01 | BU8: 1996-11-01 | BV8: 1996-12-01 | BW8: 1997-01-01 | BX8: 1997-02-01 | BY8: 1997-03-01 | BZ8: 1997-04-01 | CA8: 1997-05-01 | CB8: 1997-06-01 | CC8: 1997-07-01 | CD8: 1997-08-01 | CE8: 1997-09-01 | CF8: 1997-10-01 | CG8: 1997-11-01 | CH8: 1997-12-01 | CI8: 1998-01-01 | CJ8: 1998-02-01 | CK8: 1998-03-01 | CL8: 1998-04-01 | CM8: 1998-05-01 | CN8: 1998-06-01 | CO8: 1998-07-01 | CP8: 1998-08-01 | CQ8: 1998-09-01 | CR8: 1998-10-01 | CS8: 1998-11-01 | CT8: 1998-12-01 | CU8: 1999-01-01 | CV8: 1999-02-01 | CW8: 1999-03-01 | CX8: 1999-04-01 | CY8: 1999-05-01 | CZ8: 1999-06-01 | DA8: 1999-07-01 | DB8: 1999-08-01 | DC8: 1999-09-01 | DD8: 1999-10-01 | DE8: 1999-11-01 | DF8: 1999-12-01 | DG8: 2000-01-01 | DH8: 2000-02-01 | DI8: 2000-03-01 | DJ8: 2000-04-01 | DK8: 2000-05-01 | DL8: 2000-06-01 | DM8: 2000-07-01 | DN8: 2000-08-01 | DO8: 2000-09-01 | DP8: 2000-10-01 | DQ8: 2000-11-01 | DR8: 2000-12-01 | DS8: 2001-01-01 | DT8: 2001-02-01 | DU8: 2001-03-01 | DV8: 2001-04-01 | DW8: 2001-05-01 | DX8: 2001-06-01 | DY8: 2001-07-01 | DZ8: 2001-08-01 | EA8: 2001-09-01 | EB8: 2001-10-01 | EC8: 2001-11-01 | ED8: 2001-12-01 | EE8: 2002-01-01 | EF8: 2002-02-01 | EG8: 2002-03-01 | EH8: 2002-04-01 | EI8: 2002-05-01 | EJ8: 2002-06-01 | EK8: 2002-07-01 | EL8: 2002-08-01 | EM8: 2002-09-01 | EN8: 2002-10-01 | EO8: 2002-11-01 | EP8: 2002-12-01 | EQ8: 2003-01-01 | ER8: 2003-02-01 | ES8: 2003-03-01 | ET8: 2003-04-01 | EU8: 2003-05-01 | EV8: 2003-06-01 | EW8: 2003-07-01 | EX8: 2003-08-01 | EY8: 2003-09-01 | EZ8: 2003-10-01 | FA8: 2003-11-01 | FB8: 2003-12-01 | FC8: 2004-01-01 | FD8: 2004-02-01 | FE8: 2004-03-01 | FF8: 2004-04-01 | FG8: 2004-05-01 | FH8: 2004-06-01 | FI8: 2004-07-01 | FJ8: 2004-08-01 | FK8: 2004-09-01 | FL8: 2004-10-01 | FM8: 2004-11-01 | FN8: 2004-12-01 | FO8: 2005-01-01 | FP8: 2005-02-01 | FQ8: 2005-03-01 | FR8: 2005-04-01 | FS8: 2005-05-01 | FT8: 2005-06-01 | FU8: 2005-07-01 | FV8: 2005-08-01 | FW8: 2005-09-01 | FX8: 2005-10-01 | FY8: 2005-11-01 | FZ8: 2005-12-01 | GA8: 2006-01-01 | GB8: 2006-02-01 | GC8: 2006-03-01 | GD8: 2006-04-01 | GE8: 2006-05-01 | GF8: 2006-06-01 | GG8: 2006-07-01 | GH8: 2006-08-01 | GI8: 2006-09-01 | GJ8: 2006-10-01 | GK8: 2006-11-01 | GL8: 2006-12-01 | GM8: 2007-01-01 | GN8: 2007-02-01 | GO8: 2007-03-01 | GP8: 2007-04-01 | GQ8: 2007-05-01 | GR8: 2007-06-01 | GS8: 2007-07-01 | GT8: 2007-08-01 | GU8: 2007-09-01 | GV8: 2007-10-01 | GW8: 2007-11-01 | GX8: 2007-12-01 | GY8: 2008-01-01 | GZ8: 2008-02-01 | HA8: 2008-03-01 | HB8: 2008-04-01 | HC8: 2008-05-01 | HD8: 2008-06-01 | HE8: 2008-07-01 | HF8: 2008-08-01 | HG8: 2008-09-01 | HH8: 2008-10-01 | HI8: 2008-11-01 | HJ8: 2008-12-01 | HK8: 2009-01-01 | HL8: 2009-02-01 | HM8: 2009-03-01 | HN8: 2009-04-01 | HO8: 2009-05-01 | HP8: 2009-06-01 | HQ8: 2009-07-01 | HR8: 2009-08-01 | HS8: 2009-09-01 | HT8: 2009-10-01 | HU8: 2009-11-01 | HV8: 2009-12-01 | HW8: 2010-01-01 | HX8: 2010-02-01 | HY8: 2010-03-01 | HZ8: 2010-04-01 | IA8: 2010-05-01 | IB8: 2010-06-01 | IC8: 2010-07-01 | ID8: 2010-08-01 | IE8: 2010-09-01 | IF8: 2010-10-01 | IG8: 2010-11-01 | IH8: 2010-12-01 | II8: 2011-01-01 | IJ8: 2011-02-01 | IK8: 2011-03-01 | IL8: 2011-04-01 | IM8: 2011-05-01 | IN8: 2011-06-01 | IO8: 2011-07-01 | IP8: 2011-08-01 | IQ8: 2011-09-01 | IR8: 2011-10-01 | IS8: 2011-11-01 | IT8: 2011-12-01 | IU8: 2012-01-01 | IV8: 2012-02-01 | IW8: 2012-03-01 | IX8: 2012-04-01 | IY8: 2012-05-01 | IZ8: 2012-06-01 | JA8: 2012-07-01 | JB8: 2012-08-01 | JC8: 2012-09-01 | JD8: 2012-10-01 | JE8: 2012-11-01 | JF8: 2012-12-01 | JG8: 2013-01-01 | JH8: 2013-02-01 | JI8: 2013-03-01 | JJ8: 2013-04-01 | JK8: 2013-05-01 | JL8: 2013-06-01 | JM8: 2013-07-01 | JN8: 2013-08-01 | JO8: 2013-09-01 | JP8: 2013-10-01 | JQ8: 2013-11-01 | JR8: 2013-12-01 | JS8: 2014-01-01 | JT8: 2014-02-01 | JU8: 2014-03-01 | JV8: 2014-04-01 | JW8: 2014-05-01 | JX8: 2014-06-01 | JY8: 2014-07-01 | JZ8: 2014-08-01 | KA8: 2014-09-01 | KB8: 2014-10-01 | KC8: 2014-11-01 | KD8: =DATE(IF(MONTH(KC8)=12,YEAR(KC8)+1,YEAR(KC8)),IF(MONTH(KC8)=12,1,MONTH(KC8)+1),1) -> 2014-12-01 | KE8: 2015-01-01 | KF8: =DATE(IF(MONTH(KE8)=12,YEAR(KE8)+1,YEAR(KE8)),IF(MONTH(KE8)=12,1,MONTH(KE8)+1),1) -> 2015-02-01 | KG8: =DATE(IF(MONTH(KF8)=12,YEAR(KF8)+1,YEAR(KF8)),IF(MONTH(KF8)=12,1,MONTH(KF8)+1),1) -> 2015-03-01 | KH8: =DATE(IF(MONTH(KG8)=12,YEAR(KG8)+1,YEAR(KG8)),IF(MONTH(KG8)=12,1,MONTH(KG8)+1),1) -> 2015-04-01 | KI8: =DATE(IF(MONTH(KH8)=12,YEAR(KH8)+1,YEAR(KH8)),IF(MONTH(KH8)=12,1,MONTH(KH8)+1),1) -> 2015-05-01 | KJ8: =DATE(IF(MONTH(KI8)=12,YEAR(KI8)+1,YEAR(KI8)),IF(MONTH(KI8)=12,1,MONTH(KI8)+1),1) -> 2015-06-01 | KK8: =DATE(IF(MONTH(KJ8)=12,YEAR(KJ8)+1,YEAR(KJ8)),IF(MONTH(KJ8)=12,1,MONTH(KJ8)+1),1) -> 2015-07-01 | KL8: =DATE(IF(MONTH(KK8)=12,YEAR(KK8)+1,YEAR(KK8)),IF(MONTH(KK8)=12,1,MONTH(KK8)+1),1) -> 2015-08-01 | KM8: =DATE(IF(MONTH(KL8)=12,YEAR(KL8)+1,YEAR(KL8)),IF(MONTH(KL8)=12,1,MONTH(KL8)+1),1) -> 2015-09-01 | KN8: =DATE(IF(MONTH(KM8)=12,YEAR(KM8)+1,YEAR(KM8)),IF(MONTH(KM8)=12,1,MONTH(KM8)+1),1) -> 2015-10-01 | KO8: =DATE(IF(MONTH(KN8)=12,YEAR(KN8)+1,YEAR(KN8)),IF(MONTH(KN8)=12,1,MONTH(KN8)+1),1) -> 2015-11-01 | KP8: =DATE(IF(MONTH(KO8)=12,YEAR(KO8)+1,YEAR(KO8)),IF(MONTH(KO8)=12,1,MONTH(KO8)+1),1) -> 2015-12-01 | KQ8: 2016-01-01 | KR8: =DATE(IF(MONTH(KQ8)=12,YEAR(KQ8)+1,YEAR(KQ8)),IF(MONTH(KQ8)=12,1,MONTH(KQ8)+1),1) -> 2016-02-01 | KS8: =DATE(IF(MONTH(KR8)=12,YEAR(KR8)+1,YEAR(KR8)),IF(MONTH(KR8)=12,1,MONTH(KR8)+1),1) -> 2016-03-01 | KT8: =DATE(IF(MONTH(KS8)=12,YEAR(KS8)+1,YEAR(KS8)),IF(MONTH(KS8)=12,1,MONTH(KS8)+1),1) -> 2016-04-01 | KU8: =DATE(IF(MONTH(KT8)=12,YEAR(KT8)+1,YEAR(KT8)),IF(MONTH(KT8)=12,1,MONTH(KT8)+1),1) -> 2016-05-01 | KV8: =DATE(IF(MONTH(KU8)=12,YEAR(KU8)+1,YEAR(KU8)),IF(MONTH(KU8)=12,1,MONTH(KU8)+1),1) -> 2016-06-01 | KW8: =DATE(IF(MONTH(KV8)=12,YEAR(KV8)+1,YEAR(KV8)),IF(MONTH(KV8)=12,1,MONTH(KV8)+1),1) -> 2016-07-01 | KX8: =DATE(IF(MONTH(KW8)=12,YEAR(KW8)+1,YEAR(KW8)),IF(MONTH(KW8)=12,1,MONTH(KW8)+1),1) -> 2016-08-01 | KY8: =DATE(IF(MONTH(KX8)=12,YEAR(KX8)+1,YEAR(KX8)),IF(MONTH(KX8)=12,1,MONTH(KX8)+1),1) -> 2016-09-01 | KZ8: =DATE(IF(MONTH(KY8)=12,YEAR(KY8)+1,YEAR(KY8)),IF(MONTH(KY8)=12,1,MONTH(KY8)+1),1) -> 2016-10-01 | LA8: =DATE(IF(MONTH(KZ8)=12,YEAR(KZ8)+1,YEAR(KZ8)),IF(MONTH(KZ8)=12,1,MONTH(KZ8)+1),1) -> 2016-11-01 | LB8: =DATE(IF(MONTH(LA8)=12,YEAR(LA8)+1,YEAR(LA8)),IF(MONTH(LA8)=12,1,MONTH(LA8)+1),1) -> 2016-12-01 | LC8: =DATE(IF(MONTH(LB8)=12,YEAR(LB8)+1,YEAR(LB8)),IF(MONTH(LB8)=12,1,MONTH(LB8)+1),1) -> 2017-01-01 | LD8: =DATE(IF(MONTH(LC8)=12,YEAR(LC8)+1,YEAR(LC8)),IF(MONTH(LC8)=12,1,MONTH(LC8)+1),1) -> 2017-02-01 | LE8: =DATE(IF(MONTH(LD8)=12,YEAR(LD8)+1,YEAR(LD8)),IF(MONTH(LD8)=12,1,MONTH(LD8)+1),1) -> 2017-03-01 | LF8: =DATE(IF(MONTH(LE8)=12,YEAR(LE8)+1,YEAR(LE8)),IF(MONTH(LE8)=12,1,MONTH(LE8)+1),1) -> 2017-04-01 | LG8: =DATE(IF(MONTH(LF8)=12,YEAR(LF8)+1,YEAR(LF8)),IF(MONTH(LF8)=12,1,MONTH(LF8)+1),1) -> 2017-05-01 | LH8: =DATE(IF(MONTH(LG8)=12,YEAR(LG8)+1,YEAR(LG8)),IF(MONTH(LG8)=12,1,MONTH(LG8)+1),1) -> 2017-06-01 | LI8: =DATE(IF(MONTH(LH8)=12,YEAR(LH8)+1,YEAR(LH8)),IF(MONTH(LH8)=12,1,MONTH(LH8)+1),1) -> 2017-07-01 | LJ8: =DATE(IF(MONTH(LI8)=12,YEAR(LI8)+1,YEAR(LI8)),IF(MONTH(LI8)=12,1,MONTH(LI8)+1),1) -> 2017-08-01 | LK8: =DATE(IF(MONTH(LJ8)=12,YEAR(LJ8)+1,YEAR(LJ8)),IF(MONTH(LJ8)=12,1,MONTH(LJ8)+1),1) -> 2017-09-01 | LL8: =DATE(IF(MONTH(LK8)=12,YEAR(LK8)+1,YEAR(LK8)),IF(MONTH(LK8)=12,1,MONTH(LK8)+1),1) -> 2017-10-01 | LM8: =DATE(IF(MONTH(LL8)=12,YEAR(LL8)+1,YEAR(LL8)),IF(MONTH(LL8)=12,1,MONTH(LL8)+1),1) -> 2017-11-01 | LN8: =DATE(IF(MONTH(LM8)=12,YEAR(LM8)+1,YEAR(LM8)),IF(MONTH(LM8)=12,1,MONTH(LM8)+1),1) -> 2017-12-01 | LO8: =DATE(IF(MONTH(LN8)=12,YEAR(LN8)+1,YEAR(LN8)),IF(MONTH(LN8)=12,1,MONTH(LN8)+1),1) -> 2018-01-01 | LP8: =DATE(IF(MONTH(LO8)=12,YEAR(LO8)+1,YEAR(LO8)),IF(MONTH(LO8)=12,1,MONTH(LO8)+1),1) -> 2018-02-01 | LQ8: =DATE(IF(MONTH(LP8)=12,YEAR(LP8)+1,YEAR(LP8)),IF(MONTH(LP8)=12,1,MONTH(LP8)+1),1) -> 2018-03-01 | LR8: =DATE(IF(MONTH(LQ8)=12,YEAR(LQ8)+1,YEAR(LQ8)),IF(MONTH(LQ8)=12,1,MONTH(LQ8)+1),1) -> 2018-04-01 | LS8: =DATE(IF(MONTH(LR8)=12,YEAR(LR8)+1,YEAR(LR8)),IF(MONTH(LR8)=12,1,MONTH(LR8)+1),1) -> 2018-05-01 | LT8: =DATE(IF(MONTH(LS8)=12,YEAR(LS8)+1,YEAR(LS8)),IF(MONTH(LS8)=12,1,MONTH(LS8)+1),1) -> 2018-06-01 | LU8: =DATE(IF(MONTH(LT8)=12,YEAR(LT8)+1,YEAR(LT8)),IF(MONTH(LT8)=12,1,MONTH(LT8)+1),1) -> 2018-07-01 | LV8: =DATE(IF(MONTH(LU8)=12,YEAR(LU8)+1,YEAR(LU8)),IF(MONTH(LU8)=12,1,MONTH(LU8)+1),1) -> 2018-08-01 | LW8: =DATE(IF(MONTH(LV8)=12,YEAR(LV8)+1,YEAR(LV8)),IF(MONTH(LV8)=12,1,MONTH(LV8)+1),1) -> 2018-09-01 | LX8: =DATE(IF(MONTH(LW8)=12,YEAR(LW8)+1,YEAR(LW8)),IF(MONTH(LW8)=12,1,MONTH(LW8)+1),1) -> 2018-10-01 | LY8: =DATE(IF(MONTH(LX8)=12,YEAR(LX8)+1,YEAR(LX8)),IF(MONTH(LX8)=12,1,MONTH(LX8)+1),1) -> 2018-11-01 | LZ8: =DATE(IF(MONTH(LY8)=12,YEAR(LY8)+1,YEAR(LY8)),IF(MONTH(LY8)=12,1,MONTH(LY8)+1),1) -> 2018-12-01 | MA8: =DATE(IF(MONTH(LZ8)=12,YEAR(LZ8)+1,YEAR(LZ8)),IF(MONTH(LZ8)=12,1,MONTH(LZ8)+1),1) -> 2019-01-01 | MB8: =DATE(IF(MONTH(MA8)=12,YEAR(MA8)+1,YEAR(MA8)),IF(MONTH(MA8)=12,1,MONTH(MA8)+1),1) -> 2019-02-01 | MC8: =DATE(IF(MONTH(MB8)=12,YEAR(MB8)+1,YEAR(MB8)),IF(MONTH(MB8)=12,1,MONTH(MB8)+1),1) -> 2019-03-01 | MD8: =DATE(IF(MONTH(MC8)=12,YEAR(MC8)+1,YEAR(MC8)),IF(MONTH(MC8)=12,1,MONTH(MC8)+1),1) -> 2019-04-01 | ME8: =DATE(IF(MONTH(MD8)=12,YEAR(MD8)+1,YEAR(MD8)),IF(MONTH(MD8)=12,1,MONTH(MD8)+1),1) -> 2019-05-01 | MF8: =DATE(IF(MONTH(ME8)=12,YEAR(ME8)+1,YEAR(ME8)),IF(MONTH(ME8)=12,1,MONTH(ME8)+1),1) -> 2019-06-01 | MG8: =DATE(IF(MONTH(MF8)=12,YEAR(MF8)+1,YEAR(MF8)),IF(MONTH(MF8)=12,1,MONTH(MF8)+1),1) -> 2019-07-01 | MH8: =DATE(IF(MONTH(MG8)=12,YEAR(MG8)+1,YEAR(MG8)),IF(MONTH(MG8)=12,1,MONTH(MG8)+1),1) -> 2019-08-01 | MI8: =DATE(IF(MONTH(MH8)=12,YEAR(MH8)+1,YEAR(MH8)),IF(MONTH(MH8)=12,1,MONTH(MH8)+1),1) -> 2019-09-01 | MJ8: =DATE(IF(MONTH(MI8)=12,YEAR(MI8)+1,YEAR(MI8)),IF(MONTH(MI8)=12,1,MONTH(MI8)+1),1) -> 2019-10-01 | MK8: =DATE(IF(MONTH(MJ8)=12,YEAR(MJ8)+1,YEAR(MJ8)),IF(MONTH(MJ8)=12,1,MONTH(MJ8)+1),1) -> 2019-11-01 | ML8: =DATE(IF(MONTH(MK8)=12,YEAR(MK8)+1,YEAR(MK8)),IF(MONTH(MK8)=12,1,MONTH(MK8)+1),1) -> 2019-12-01 | MM8: =DATE(IF(MONTH(ML8)=12,YEAR(ML8)+1,YEAR(ML8)),IF(MONTH(ML8)=12,1,MONTH(ML8)+1),1) -> 2020-01-01 | MN8: =DATE(IF(MONTH(MM8)=12,YEAR(MM8)+1,YEAR(MM8)),IF(MONTH(MM8)=12,1,MONTH(MM8)+1),1) -> 2020-02-01 | MO8: =DATE(IF(MONTH(MN8)=12,YEAR(MN8)+1,YEAR(MN8)),IF(MONTH(MN8)=12,1,MONTH(MN8)+1),1) -> 2020-03-01 | MP8: =DATE(IF(MONTH(MO8)=12,YEAR(MO8)+1,YEAR(MO8)),IF(MONTH(MO8)=12,1,MONTH(MO8)+1),1) -> 2020-04-01 | MQ8: =DATE(IF(MONTH(MP8)=12,YEAR(MP8)+1,YEAR(MP8)),IF(MONTH(MP8)=12,1,MONTH(MP8)+1),1) -> 2020-05-01 | MR8: =DATE(IF(MONTH(MQ8)=12,YEAR(MQ8)+1,YEAR(MQ8)),IF(MONTH(MQ8)=12,1,MONTH(MQ8)+1),1) -> 2020-06-01 | MS8: =DATE(IF(MONTH(MR8)=12,YEAR(MR8)+1,YEAR(MR8)),IF(MONTH(MR8)=12,1,MONTH(MR8)+1),1) -> 2020-07-01 | MT8: 2020-08-01 | MU8: 2020-09-01 | MV8: 2020-10-01 | MW8: 2020-11-01 | MX8: 2020-12-01 | MY8: =DATE(IF(MONTH(MX8)=12,YEAR(MX8)+1,YEAR(MX8)),IF(MONTH(MX8)=12,1,MONTH(MX8)+1),1) -> 2021-01-01 | MZ8: =DATE(IF(MONTH(MY8)=12,YEAR(MY8)+1,YEAR(MY8)),IF(MONTH(MY8)=12,1,MONTH(MY8)+1),1) -> 2021-02-01 | NA8: =DATE(IF(MONTH(MZ8)=12,YEAR(MZ8)+1,YEAR(MZ8)),IF(MONTH(MZ8)=12,1,MONTH(MZ8)+1),1) -> 2021-03-01 | NB8: =DATE(IF(MONTH(NA8)=12,YEAR(NA8)+1,YEAR(NA8)),IF(MONTH(NA8)=12,1,MONTH(NA8)+1),1) -> 2021-04-01 | NC8: =DATE(IF(MONTH(NB8)=12,YEAR(NB8)+1,YEAR(NB8)),IF(MONTH(NB8)=12,1,MONTH(NB8)+1),1) -> 2021-05-01 | ND8: =DATE(IF(MONTH(NC8)=12,YEAR(NC8)+1,YEAR(NC8)),IF(MONTH(NC8)=12,1,MONTH(NC8)+1),1) -> 2021-06-01 | NE8: =DATE(IF(MONTH(ND8)=12,YEAR(ND8)+1,YEAR(ND8)),IF(MONTH(ND8)=12,1,MONTH(ND8)+1),1) -> 2021-07-01 | NF8: =DATE(IF(MONTH(NE8)=12,YEAR(NE8)+1,YEAR(NE8)),IF(MONTH(NE8)=12,1,MONTH(NE8)+1),1) -> 2021-08-01 | NG8: =DATE(IF(MONTH(NF8)=12,YEAR(NF8)+1,YEAR(NF8)),IF(MONTH(NF8)=12,1,MONTH(NF8)+1),1) -> 2021-09-01 | NH8: =DATE(IF(MONTH(NG8)=12,YEAR(NG8)+1,YEAR(NG8)),IF(MONTH(NG8)=12,1,MONTH(NG8)+1),1) -> 2021-10-01 | NI8: =DATE(IF(MONTH(NH8)=12,YEAR(NH8)+1,YEAR(NH8)),IF(MONTH(NH8)=12,1,MONTH(NH8)+1),1) -> 2021-11-01 | NJ8: =DATE(IF(MONTH(NI8)=12,YEAR(NI8)+1,YEAR(NI8)),IF(MONTH(NI8)=12,1,MONTH(NI8)+1),1) -> 2021-12-01 | NK8: =DATE(IF(MONTH(NJ8)=12,YEAR(NJ8)+1,YEAR(NJ8)),IF(MONTH(NJ8)=12,1,MONTH(NJ8)+1),1) -> 2022-01-01 | NL8: =DATE(IF(MONTH(NK8)=12,YEAR(NK8)+1,YEAR(NK8)),IF(MONTH(NK8)=12,1,MONTH(NK8)+1),1) -> 2022-02-01 | NM8: =DATE(IF(MONTH(NL8)=12,YEAR(NL8)+1,YEAR(NL8)),IF(MONTH(NL8)=12,1,MONTH(NL8)+1),1) -> 2022-03-01 | NN8: =DATE(IF(MONTH(NM8)=12,YEAR(NM8)+1,YEAR(NM8)),IF(MONTH(NM8)=12,1,MONTH(NM8)+1),1) -> 2022-04-01 | NO8: =DATE(IF(MONTH(NN8)=12,YEAR(NN8)+1,YEAR(NN8)),IF(MONTH(NN8)=12,1,MONTH(NN8)+1),1) -> 2022-05-01 | NP8: =DATE(IF(MONTH(NO8)=12,YEAR(NO8)+1,YEAR(NO8)),IF(MONTH(NO8)=12,1,MONTH(NO8)+1),1) -> 2022-06-01 | NQ8: =DATE(IF(MONTH(NP8)=12,YEAR(NP8)+1,YEAR(NP8)),IF(MONTH(NP8)=12,1,MONTH(NP8)+1),1) -> 2022-07-01 | NR8: =DATE(IF(MONTH(NQ8)=12,YEAR(NQ8)+1,YEAR(NQ8)),IF(MONTH(NQ8)=12,1,MONTH(NQ8)+1),1) -> 2022-08-01 | NS8: =DATE(IF(MONTH(NR8)=12,YEAR(NR8)+1,YEAR(NR8)),IF(MONTH(NR8)=12,1,MONTH(NR8)+1),1) -> 2022-09-01 | NT8: =DATE(IF(MONTH(NS8)=12,YEAR(NS8)+1,YEAR(NS8)),IF(MONTH(NS8)=12,1,MONTH(NS8)+1),1) -> 2022-10-01 | NU8: =DATE(IF(MONTH(NT8)=12,YEAR(NT8)+1,YEAR(NT8)),IF(MONTH(NT8)=12,1,MONTH(NT8)+1),1) -> 2022-11-01 | NV8: =DATE(IF(MONTH(NU8)=12,YEAR(NU8)+1,YEAR(NU8)),IF(MONTH(NU8)=12,1,MONTH(NU8)+1),1) -> 2022-12-01 | NW8: =DATE(IF(MONTH(NV8)=12,YEAR(NV8)+1,YEAR(NV8)),IF(MONTH(NV8)=12,1,MONTH(NV8)+1),1) -> 2023-01-01 | NX8: =DATE(IF(MONTH(NW8)=12,YEAR(NW8)+1,YEAR(NW8)),IF(MONTH(NW8)=12,1,MONTH(NW8)+1),1) -> 2023-02-01 | NY8: =DATE(IF(MONTH(NX8)=12,YEAR(NX8)+1,YEAR(NX8)),IF(MONTH(NX8)=12,1,MONTH(NX8)+1),1) -> 2023-03-01 | NZ8: =DATE(IF(MONTH(NY8)=12,YEAR(NY8)+1,YEAR(NY8)),IF(MONTH(NY8)=12,1,MONTH(NY8)+1),1) -> 2023-04-01 | OA8: =DATE(IF(MONTH(NZ8)=12,YEAR(NZ8)+1,YEAR(NZ8)),IF(MONTH(NZ8)=12,1,MONTH(NZ8)+1),1) -> 2023-05-01 | OB8: =DATE(IF(MONTH(OA8)=12,YEAR(OA8)+1,YEAR(OA8)),IF(MONTH(OA8)=12,1,MONTH(OA8)+1),1) -> 2023-06-01 | OC8: =DATE(IF(MONTH(OB8)=12,YEAR(OB8)+1,YEAR(OB8)),IF(MONTH(OB8)=12,1,MONTH(OB8)+1),1) -> 2023-07-01 | OD8: =DATE(IF(MONTH(OC8)=12,YEAR(OC8)+1,YEAR(OC8)),IF(MONTH(OC8)=12,1,MONTH(OC8)+1),1) -> 2023-08-01 | OE8: =DATE(IF(MONTH(OD8)=12,YEAR(OD8)+1,YEAR(OD8)),IF(MONTH(OD8)=12,1,MONTH(OD8)+1),1) -> 2023-09-01 | OF8: 2023-10-01 | OG8: 2023-11-01 | OH8: 2023-12-01 | OI8: 2024-01-01 | OJ8: =DATE(IF(MONTH(OI8)=12,YEAR(OI8)+1,YEAR(OI8)),IF(MONTH(OI8)=12,1,MONTH(OI8)+1),1) -> 2024-02-01 | OK8: =DATE(IF(MONTH(OJ8)=12,YEAR(OJ8)+1,YEAR(OJ8)),IF(MONTH(OJ8)=12,1,MONTH(OJ8)+1),1) -> 2024-03-01 | OL8: =DATE(IF(MONTH(OK8)=12,YEAR(OK8)+1,YEAR(OK8)),IF(MONTH(OK8)=12,1,MONTH(OK8)+1),1) -> 2024-04-01 | OM8: =DATE(IF(MONTH(OL8)=12,YEAR(OL8)+1,YEAR(OL8)),IF(MONTH(OL8)=12,1,MONTH(OL8)+1),1) -> 2024-05-01 | ON8: =DATE(IF(MONTH(OM8)=12,YEAR(OM8)+1,YEAR(OM8)),IF(MONTH(OM8)=12,1,MONTH(OM8)+1),1) -> 2024-06-01 | OO8: =DATE(IF(MONTH(ON8)=12,YEAR(ON8)+1,YEAR(ON8)),IF(MONTH(ON8)=12,1,MONTH(ON8)+1),1) -> 2024-07-01 | OP8: =DATE(IF(MONTH(OO8)=12,YEAR(OO8)+1,YEAR(OO8)),IF(MONTH(OO8)=12,1,MONTH(OO8)+1),1) -> 2024-08-01 | OQ8: =DATE(IF(MONTH(OP8)=12,YEAR(OP8)+1,YEAR(OP8)),IF(MONTH(OP8)=12,1,MONTH(OP8)+1),1) -> 2024-09-01 | OR8: =DATE(IF(MONTH(OQ8)=12,YEAR(OQ8)+1,YEAR(OQ8)),IF(MONTH(OQ8)=12,1,MONTH(OQ8)+1),1) -> 2024-10-01 | OS8: =DATE(IF(MONTH(OR8)=12,YEAR(OR8)+1,YEAR(OR8)),IF(MONTH(OR8)=12,1,MONTH(OR8)+1),1) -> 2024-11-01 | OT8: 2024-12-01 | OU8: =DATE(IF(MONTH(OT8)=12,YEAR(OT8)+1,YEAR(OT8)),IF(MONTH(OT8)=12,1,MONTH(OT8)+1),1) -> 2025-01-01 | OV8: =DATE(IF(MONTH(OU8)=12,YEAR(OU8)+1,YEAR(OU8)),IF(MONTH(OU8)=12,1,MONTH(OU8)+1),1) -> 2025-02-01 | OW8: =DATE(IF(MONTH(OV8)=12,YEAR(OV8)+1,YEAR(OV8)),IF(MONTH(OV8)=12,1,MONTH(OV8)+1),1) -> 2025-03-01 | OX8: =DATE(IF(MONTH(OW8)=12,YEAR(OW8)+1,YEAR(OW8)),IF(MONTH(OW8)=12,1,MONTH(OW8)+1),1) -> 2025-04-01 | OY8: =DATE(IF(MONTH(OX8)=12,YEAR(OX8)+1,YEAR(OX8)),IF(MONTH(OX8)=12,1,MONTH(OX8)+1),1) -> 2025-05-01 | OZ8: =DATE(IF(MONTH(OY8)=12,YEAR(OY8)+1,YEAR(OY8)),IF(MONTH(OY8)=12,1,MONTH(OY8)+1),1) -> 2025-06-01 | PA8: =DATE(IF(MONTH(OZ8)=12,YEAR(OZ8)+1,YEAR(OZ8)),IF(MONTH(OZ8)=12,1,MONTH(OZ8)+1),1) -> 2025-07-01 | PB8: =DATE(IF(MONTH(PA8)=12,YEAR(PA8)+1,YEAR(PA8)),IF(MONTH(PA8)=12,1,MONTH(PA8)+1),1) -> 2025-08-01 | PC8: =DATE(IF(MONTH(PB8)=12,YEAR(PB8)+1,YEAR(PB8)),IF(MONTH(PB8)=12,1,MONTH(PB8)+1),1) -> 2025-09-01 | PD8: =DATE(IF(MONTH(PC8)=12,YEAR(PC8)+1,YEAR(PC8)),IF(MONTH(PC8)=12,1,MONTH(PC8)+1),1) -> 2025-10-01 | PE8: =DATE(IF(MONTH(PD8)=12,YEAR(PD8)+1,YEAR(PD8)),IF(MONTH(PD8)=12,1,MONTH(PD8)+1),1) -> 2025-11-01 | PF8: 2025-12-01 | PG8: =DATE(IF(MONTH(PF8)=12,YEAR(PF8)+1,YEAR(PF8)),IF(MONTH(PF8)=12,1,MONTH(PF8)+1),1) -> 2026-01-01 | PH8: =DATE(IF(MONTH(PG8)=12,YEAR(PG8)+1,YEAR(PG8)),IF(MONTH(PG8)=12,1,MONTH(PG8)+1),1) -> 2026-02-01 | PI8: =DATE(IF(MONTH(PH8)=12,YEAR(PH8)+1,YEAR(PH8)),IF(MONTH(PH8)=12,1,MONTH(PH8)+1),1) -> 2026-03-01 | PJ8: =DATE(IF(MONTH(PI8)=12,YEAR(PI8)+1,YEAR(PI8)),IF(MONTH(PI8)=12,1,MONTH(PI8)+1),1) -> 2026-04-01 | PK8: =DATE(IF(MONTH(PJ8)=12,YEAR(PJ8)+1,YEAR(PJ8)),IF(MONTH(PJ8)=12,1,MONTH(PJ8)+1),1) -> 2026-05-01 | PL8: =DATE(IF(MONTH(PK8)=12,YEAR(PK8)+1,YEAR(PK8)),IF(MONTH(PK8)=12,1,MONTH(PK8)+1),1) -> 2026-06-01 | PM8: =DATE(IF(MONTH(PL8)=12,YEAR(PL8)+1,YEAR(PL8)),IF(MONTH(PL8)=12,1,MONTH(PL8)+1),1) -> 2026-07-01 | PN8: =DATE(IF(MONTH(PM8)=12,YEAR(PM8)+1,YEAR(PM8)),IF(MONTH(PM8)=12,1,MONTH(PM8)+1),1) -> 2026-08-01 | PO8: =DATE(IF(MONTH(PN8)=12,YEAR(PN8)+1,YEAR(PN8)),IF(MONTH(PN8)=12,1,MONTH(PN8)+1),1) -> 2026-09-01 | PP8: =DATE(IF(MONTH(PO8)=12,YEAR(PO8)+1,YEAR(PO8)),IF(MONTH(PO8)=12,1,MONTH(PO8)+1),1) -> 2026-10-01 | PQ8: =DATE(IF(MONTH(PP8)=12,YEAR(PP8)+1,YEAR(PP8)),IF(MONTH(PP8)=12,1,MONTH(PP8)+1),1) -> 2026-11-01 | PR8: 2026-12-01
A10: Acre | B10: AC | C10: 1900781748 | D10: 2231615206 | E10: 2673146389 | F10: 2949613713 | G10: 4926595519 | H10: 4049942904 | I10: 4410793177 | J10: 4948363456 | K10: 5992865313 | L10: 4757359048 | M10: 7034562350 | N10: 1.167933683e+10 | O10: 9418795804 | P10: 1.142248109e+10 | Q10: 1.595723056e+10 | R10: 1.892811675e+10 | S10: 3.488372841e+10 | T10: 3.736918375e+10 | U10: 4.452167907e+10 | V10: 5.452026416e+10 | W10: 6.475839801e+10 | X10: 8.787466753e+10 | Y10: 1.066717136e+11 | Z10: 1.416500725e+11 | AA10: 194748473.6 | AB10: 243865305.2 | AC10: 287655022.9 | AD10: 366144856.4 | AE10: 480467484.6 | AF10: 861918424.9 | AG10: 867264243.2 | AH10: 1051098023 | AI10: 1284779224 | AJ10: 1884201009 | AK10: 3214553452 | AL10: 4627959104 | AM10: 2139076.74 | AN10: 2827180.06 | AO10: 3536193.44 | AP10: 4532803.89 | AQ10: 8281975.87 | AR10: 11130938.06 | AS10: 14307912.43 | AT10: 14482729.3 | AU10: 14972015.83 | AV10: 15686395.38 | AW10: 17620509.89 | AX10: 18657505.95 | AY10: 21467477.7 | AZ10: 23583578.31 | BA10: 18539836.26 | BB10: 20823857.46 | BC10: 21215981.22 | BD10: 28175739.67 | BE10: 23389669.4 | BF10: 20572903.97 | BG10: 20941309.29 | BH10: 21168637.7 | BI10: 21678953.54 | BJ10: 22605105.96 | BK10: 24154985.13 | BL10: 24548574.17 | BM10: 21330631.82 | BN10: 37579788.52 | BO10: 24175117.52 | BP10: 23102084.5 | BQ10: 23820352.98 | BR10: 21894869.32 | BS10: 23118455.13 | BT10: 21482109.74 | BU10: 22950709.01 | BV10: 30700164.46 | BW10: 34997362.96 | BX10: 26095915.26 | BY10: 23800644.26 | BZ10: 29846603.7 | CA10: 30459413.14 | CB10: 23657548.15 | CC10: 25404624.52 | CD10: 26707795.97 | CE10: 27511331.52 | CF10: 28118784.24 | CG10: 31278141.49 | CH10: 27530813.46 | CI10: 33353856.32 | CJ10: 27434371.94 | CK10: 25656766.87 | CL10: 30560801.36 | CM10: 29067700.64 | CN10: 20597203.8 | CO10: 21682570.66 | CP10: 28307085.32 | CQ10: 27394707.39 | CR10: 23308353.94 | CS10: 25071670.08 | CT10: 25112364.46 | CU10: 32542666.87 | CV10: 33039586.32 | CW10: 33778818.01 | CX10: 30666552.54 | CY10: 33117643.74 | CZ10: 22123753.43 | DA10: 22004647.18 | DB10: 27446437.42 | DC10: 25611070.42 | DD10: 30510933 | DE10: 28990983.44 | DF10: 31862340.58 | DG10: 35972144.82 | DH10: 34121829.44 | DI10: 37170720.64 | DJ10: 38553999.53 | DK10: 36876301.88 | DL10: 29911563.59 | DM10: 28457413.67 | DN10: 31728670.65 | DO10: 31993046.91 | DP10: 33826567.93 | DQ10: 36714790.95 | DR10: 41434856.52 | DS10: 48118329.89 | DT10: 39206501.56 | DU10: 34380058.39 | DV10: 40436418.24 | DW10: 45464813.59 | DX10: 39447554.75 | DY10: 35884424.73 | DZ10: 37780192.6 | EA10: 40863830.98 | EB10: 39052794.72 | EC10: 40589424.26 | ED10: 49227249.17 | EE10: 53286476.74 | EF10: 62257387.15 | EG10: 47644581.89 | EH10: 49761140.54 | EI10: 57031987.16 | EJ10: 40151882.84 | EK10: 43903151.52 | EL10: 41570615.66 | EM10: 45893733.3 | EN10: 60475785.87 | EO10: 53044541.31 | EP10: 51953730.02 | EQ10: 56599243.44 | ER10: 59596405.44 | ES10: 51691819.19 | ET10: 49217121.27 | EU10: 69033016.42 | EV10: 48479055.62 | EW10: 40647371.77 | EX10: 53325830.41 | EY10: 46269847.91 | EZ10: 47804236.7 | FA10: 53252165 | FB10: 55522094.45 | FC10: 60940543.62 | FD10: 66553221.7 | FE10: 53861317.53 | FF10: 59329681.07 | FG10: 69098567.48 | FH10: 44855188.6 | FI10: 46646757.62 | FJ10: 60686345.73 | FK10: 52551556.03 | FL10: 56238621.16 | FM10: 56063390.41 | FN10: 69196157.47 | FO10: 77804729.56 | FP10: 68109750.65 | FQ10: 65321142.37 | FR10: 70920323.97 | FS10: 80049568.82 | FT10: 77555258.63 | FU10: 63685621.8 | FV10: 65522357.49 | FW10: 54731551.1 | FX10: 63378992.04 | FY10: 76613902.74 | FZ10: 107413201.5 | GA10: 88171227.43 | GB10: 75833969.15 | GC10: 71644227.34 | GD10: 80659044.36 | GE10: 88521872.41 | GF10: 86147679.69 | GG10: 77192598.26 | GH10: 78100019.78 | GI10: 72563584.85 | GJ10: 65757179.05 | GK10: 80988577.15 | GL10: 98488968.85 | GM10: 87625887.96 | GN10: 94172792.07 | GO10: 76593078.37 | GP10: 91576325.81 | GQ10: 98181805.49 | GR10: 100299801.9 | GS10: 78001701.33 | GT10: 82304532.45 | GU10: 84759429.12 | GV10: 80202112.39 | GW10: 94035301.52 | GX10: 127298919 | GY10: 112202261.9 | GZ10: 123318907.9 | HA10: 97132603.44 | HB10: 112589259.5 | HC10: 118462398.3 | HD10: 102132750.5 | HE10: 92519833.82 | HF10: 113010849.2 | HG10: 99522824.61 | HH10: 94718808.57 | HI10: 120028677 | HJ10: 126331169.8 | HK10: 115265074.8 | HL10: 107456806.8 | HM10: 85902830.43 | HN10: 102243655.3 | HO10: 121770648.1 | HP10: 105102639.9 | HQ10: 80644823.79 | HR10: 93816511.2 | HS10: 83047858.39 | HT10: 95532575.92 | HU10: 119249725.6 | HV10: 128588183.5 | HW10: 99022968.8 | HX10: 120899911 | HY10: 89811240.39 | HZ10: 107607340.2 | IA10: 132486552.1 | IB10: 114981473.6 | IC10: 84550303.4 | ID10: 113314289.2 | IE10: 94591020.36 | IF10: 101826128.5 | IG10: 122065546.2 | IH10: 153857570.8 | II10: 149305708.8 | IJ10: 160855014.4 | IK10: 105009420.7 | IL10: 139189652.3 | IM10: 159760595.8 | IN10: 144195191.6 | IO10: 122663361.1 | IP10: 126529450 | IQ10: 101012458.3 | IR10: 132773743.2 | IS10: 140259677.6 | IT10: 162927011.4 | IU10: 148580065 | IV10: 179730160 | IW10: 122065481.2 | IX10: 153842542.2 | IY10: 172061998 | IZ10: 146828921.8 | JA10: 109646930.1 | JB10: 120993086.3 | JC10: 105867173.7 | JD10: 112382783.2 | JE10: 151903791.9 | JF10: 171698126.1 | JG10: 158750044.1 | JH10: 213581205.4 | JI10: 123006912.4 | JJ10: 131983643.7 | JK10: 189642556.4 | JL10: 158217374.1 | JM10: 112670961.4 | JN10: 147315483.8 | JO10: 121922891.9 | JP10: 121924764.9 | JQ10: 169594872 | JR10: 174924889.3 | JS10: 209066247.3 | JT10: 223252173.7 | JU10: 132432087.3 | JV10: 151148930.4 | JW10: 201424534.1 | JX10: 151055399 | JY10: 129737475.4 | JZ10: 157608959.4 | KA10: 138157430.9 | KB10: 130572999.6 | KC10: 172830062.6 | KD10: 189841162.5 | KE10: 212665163.5 | KF10: 217089930.3 | KG10: 158118127.4 | KH10: 170651358.5 | KI10: 209853568.3 | KJ10: 182593879.1 | KK10: 135205042.8 | KL10: 158131751.5 | KM10: 131835424.7 | KN10: 150050562.1 | KO10: 169418863.4 | KP10: 194812251.9 | KQ10: 185626162.7 | KR10: 232631777.8 | KS10: 141150185 | KT10: 167797256.2 | KU10: 223145756.4 | KV10: 184341402.9 | KW10: 133649679.6 | KX10: 165744128.1 | KY10: 134783089.6 | KZ10: 165293217.1 | LA10: 315525913.5 | LB10: 383663280.9 | LC10: 199216043.5 | LD10: 256429841.3 | LE10: 160036180.8 | LF10: 194199879.2 | LG10: 219114743.3 | LH10: 202233530.4 | LI10: 157361792.9 | LJ10: 177540640.4 | LK10: 149297653.6 | LL10: 170566970.9 | LM10: 173036622.2 | LN10: 233813937.3 | LO10: 211289423.4 | LP10: 280351275.5 | LQ10: 186979197.6 | LR10: 196513059.2 | LS10: 241083913.9 | LT10: 228292440.3 | LU10: 153506867.3 | LV10: 194019952.6 | LW10: 146067523.3 | LX10: 165064077.1 | LY10: 209220341 | LZ10: 261711724.3 | MA10: 260064870.2 | MB10: 284780292.1 | MC10: 215837915.2 | MD10: 207023570.2 | ME10: 267318516.9 | MF10: 208942787.3 | MG10: 173707576.3 | MH10: 212517262.8 | MI10: 191499071.4 | MJ10: 171058531.2 | MK10: 237377085.4 | ML10: 287637050.5 | MM10: 233493165.3 | MN10: 343016021.4 | MO10: 197364014.9 | MP10: 193687947.2 | MQ10: 202637720.7 | MR10: 164401567.5 | MS10: 169566834.8 | MT10: 180189869.7 | MU10: 145075112.1 | MV10: 196784913.7 | MW10: 264015284.8 | MX10: 277915210.5 | MY10: 282400384.6 | MZ10: 381176483.7 | NA10: 252387654.3 | NB10: 263852294.6 | NC10: 315046104.7 | ND10: 275333002.1 | NE10: 242749459.2 | NF10: 306255225.8 | NG10: 238899145.3 | NH10: 265804902.5 | NI10: 349665404.6 | NJ10: 362133522.4 | NK10: 350275063.3 | NL10: 503844792.8 | NM10: 300145003.1 | NN10: 359153325.2 | NO10: 395206382.2 | NP10: 372539407.6 | NQ10: 323867119.4 | NR10: 368684115.6 | NS10: 306496529.7 | NT10: 321289313.7 | NU10: 407739202.9 | NV10: 433935428.7 | NW10: 396247048.9 | NX10: 547607151 | NY10: 330014661.9 | NZ10: 379545509.2 | OA10: 417981101.2 | OB10: 393228800.3 | OC10: 293488987.2 | OD10: 336747349.4 | OE10: 294701465.3 | OF10: 318880279.8 | OG10: 418868478.6 | OH10: 459515438.1 | OI10: ='[1]EST - FPE'!C12 -> 450829532.9 | OJ10: ='[1]EST - FPE'!D12 -> 637599806.5 | OK10: ='[1]EST - FPE'!E12 -> 390586269.1 | OL10: ='[1]EST - FPE'!F12 -> 408141486.1 | OM10: ='[1]EST - FPE'!G12 -> 471561595.4 | ON10: ='[1]EST - FPE'!H12 -> 520650677 | OO10: ='[1]EST - FPE'!I12 -> 332082095.9 | OP10: ='[1]EST - FPE'!J12 -> 440651238.3 | OQ10: ='[1]EST - FPE'!K12 -> 359324719.6 | OR10: ='[1]EST - FPE'!L12 -> 380051306.4 | OS10: ='[1]EST - FPE'!M12 -> 493898160.3 | OT10: ='[1]EST - FPE'!N12 -> 553229759.2 | OU10: ='[2]EST - FPE'!C12 -> 489360890.4 | OV10: ='[2]EST - FPE'!D12 -> 691448427.3 | OW10: ='[2]EST - FPE'!E12 -> 448321791.3 | OX10: ='[2]EST - FPE'!F12 -> 450898858.6 | OY10: ='[2]EST - FPE'!G12 -> 579562207.9 | OZ10: ='[2]EST - FPE'!H12 -> 611900053.7 | PA10: ='[2]EST - FPE'!I12 -> 366104320.8 | PB10: ='[2]EST - FPE'!J12 -> 491268126.2 | PC10: ='[2]EST - FPE'!K12 -> 394872859.9 | PD10: ='[2]EST - FPE'!L12 -> 411015629.2 | PE10: ='[2]EST - FPE'!M12 -> 575662122.8 | PF10: ='[2]EST - FPE'!N12 -> 648934974 | PG10: ='[3]EST - FPE'!C12 -> 554516181.6 | PH10: ='[3]EST - FPE'!D12 -> 720247667.6 | PI10: ='[3]EST - FPE'!E12 -> 424863334.5 | PJ10: ='[3]EST - FPE'!F12 -> 507459006.9 | PK10: ='[3]EST - FPE'!G12 -> 612946048.5 | PL10: ='[3]EST - FPE'!H12 -> 662809107.2 | PM10: ='[3]EST - FPE'!I12 -> 0 | PN10: ='[3]EST - FPE'!J12 -> 0 | PO10: ='[3]EST - FPE'!K12 -> 0 | PP10: ='[3]EST - FPE'!L12 -> 0 | PQ10: ='[3]EST - FPE'!M12 -> 0 | PR10: ='[3]EST - FPE'!N12 -> 0
A11: Alagoas | B11: AL | C11: 2311441728 | D11: 2713751072 | E11: 3250674157 | F11: 3586871677 | G11: 5990976329 | H11: 4924924722 | I11: 5363735953 | J11: 6017447183 | K11: 7287611513 | L11: 5785176667 | M11: 8554365048 | N11: 1.420263348e+10 | O11: 1.145370723e+10 | P11: 1.389028459e+10 | Q11: 1.940475734e+10 | R11: 2.301749736e+10 | S11: 4.242028604e+10 | T11: 4.544271889e+10 | U11: 5.414049608e+10 | V11: 6.629925488e+10 | W11: 7.874931644e+10 | X11: 1.068598084e+11 | Y11: 1.297179175e+11 | Z11: 1.722532788e+11 | AA11: 236823479.9 | AB11: 296551901.8 | AC11: 349802297.8 | AD11: 445249698.1 | AE11: 584271494.5 | AF11: 1048134124 | AG11: 1054634896 | AH11: 1278185584 | AI11: 1562353128 | AJ11: 2291278755 | AK11: 3909051100 | AL11: 5627820131 | AM11: 2601219.86 | AN11: 3437986.48 | AO11: 4300180.75 | AP11: 5512106.83 | AQ11: 10071279.69 | AR11: 13535754.29 | AS11: 17399107.43 | AT11: 17611693.13 | AU11: 18206689.01 | AV11: 19075408.8 | AW11: 21427384.72 | AX11: 22688421.64 | AY11: 26105482.01 | AZ11: 28678761.81 | BA11: 22545329.67 | BB11: 25322808.96 | BC11: 25799650.25 | BD11: 34263050.15 | BE11: 28442959.25 | BF11: 25017637.46 | BG11: 25465636 | BH11: 25742078.26 | BI11: 26362646.78 | BJ11: 27488892.5 | BK11: 29373619.9 | BL11: 29852243.02 | BM11: 25939070.87 | BN11: 45698824.37 | BO11: 29398101.81 | BP11: 28093242.25 | BQ11: 28966691.14 | BR11: 26625210.71 | BS11: 28113149.72 | BT11: 26123275.29 | BU11: 27909162.4 | BV11: 37332871.73 | BW11: 42558471.1 | BX11: 31733883.99 | BY11: 28942724.4 | BZ11: 36294900.91 | CA11: 37040106.57 | CB11: 28768712.68 | CC11: 30893241.29 | CD11: 32477960.25 | CE11: 33455097.98 | CF11: 34193789.64 | CG11: 38035719.49 | CH11: 33478788.98 | CI11: 40559888.27 | CJ11: 33361511.45 | CK11: 31199858.48 | CL11: 37163399.51 | CM11: 35347717.46 | CN11: 25047187.23 | CO11: 26367045.36 | CP11: 34422772.77 | CQ11: 33313277.46 | CR11: 28344075.78 | CS11: 30488352.72 | CT11: 30537839.04 | CU11: 39573442.99 | CV11: 40177720.84 | CW11: 41076662.05 | CX11: 37291998.01 | CY11: 40272642.39 | CZ11: 26903544.76 | DA11: 26758705.86 | DB11: 33376183.68 | DC11: 31144289.41 | DD11: 37102757.21 | DE11: 35254425.67 | DF11: 38746133.59 | DG11: 43743852.57 | DH11: 41493780.36 | DI11: 45201378.21 | DJ11: 46883511.64 | DK11: 44843350.91 | DL11: 36373895.25 | DM11: 34605579.22 | DN11: 38583584.56 | DO11: 38905078.77 | DP11: 41134728.23 | DQ11: 44646945.86 | DR11: 50386771.88 | DS11: 58514195.91 | DT11: 47676985.41 | DU11: 41807799.16 | DV11: 49172623.06 | DW11: 55287392.87 | DX11: 47970117.67 | DY11: 43637180.74 | DZ11: 45942525.37 | EA11: 49692377.45 | EB11: 47490070.57 | EC11: 49358685.73 | ED11: 59862694.89 | EE11: 64798910.21 | EF11: 75707967.36 | EG11: 57938095.63 | EH11: 60511932.41 | EI11: 69353630.44 | EJ11: 48826614.37 | EK11: 53388336.95 | EL11: 50551861.49 | EM11: 55808979.8 | EN11: 73541454.77 | EO11: 64504705.13 | EP11: 63178226.3 | EQ11: 68827393.36 | ER11: 72472086.04 | ES11: 62859730.19 | ET11: 59850378.89 | EU11: 83947457.34 | EV11: 58952855.68 | EW11: 49429152.65 | EX11: 64846766.16 | EY11: 56266353.19 | EZ11: 58132243.52 | FA11: 64757185.46 | FB11: 67517528.52 | FC11: 74106622.47 | FD11: 80931908.07 | FE11: 65497944.18 | FF11: 72147736.38 | FG11: 84027170.57 | FH11: 54546059.65 | FI11: 56724693.48 | FJ11: 73797505.64 | FK11: 63905211.41 | FL11: 68388859.34 | FM11: 68175770.35 | FN11: 84145844.7 | FO11: 94614281.06 | FP11: 82824721.92 | FQ11: 79433640.58 | FR11: 86242513.8 | FS11: 97344113.2 | FT11: 94310912.42 | FU11: 77444769.13 | FV11: 79678327.79 | FW11: 66556189.9 | FX11: 77071892.64 | FY11: 93166178.55 | FZ11: 130619602.3 | GA11: 107220439.4 | GB11: 92217741.92 | GC11: 87122814.99 | GD11: 98085264.65 | GE11: 107646840.5 | GF11: 104759708.4 | GG11: 93869900.02 | GH11: 94973368.09 | GI11: 88240797.81 | GJ11: 79963882.06 | GK11: 98485992.34 | GL11: 119767307.6 | GM11: 106557280.5 | GN11: 114518629.7 | GO11: 93140855.1 | GP11: 111361202.3 | GQ11: 119393782.2 | GR11: 121969367.4 | GS11: 94853808.15 | GT11: 100086257 | GU11: 103071529.1 | GV11: 97529613.47 | GW11: 114351434.6 | GX11: 154801588.2 | GY11: 136443329.4 | GZ11: 149961703.9 | HA11: 118117902.2 | HB11: 136913937 | HC11: 144055955.3 | HD11: 124198320.8 | HE11: 112508553.2 | HF11: 137426610.3 | HG11: 121024525.8 | HH11: 115182612 | HI11: 145960625.4 | HJ11: 153624758.7 | HK11: 140167856.7 | HL11: 130672628.5 | HM11: 104461959.9 | HN11: 124333186.2 | HO11: 148078945.6 | HP11: 127809848.6 | HQ11: 98067971.78 | HR11: 114085375.1 | HS11: 100990177 | HT11: 116172192.1 | HU11: 145013383 | HV11: 156369395.5 | HW11: 120416677.1 | HX11: 147020087.5 | HY11: 109214773.8 | HZ11: 130855684.3 | IA11: 161109998.6 | IB11: 139822984.1 | IC11: 102817222.2 | ID11: 137795607.9 | IE11: 115027215.4 | IF11: 123825453.7 | IG11: 148437555.9 | IH11: 187098181.9 | II11: 181562899.5 | IJ11: 195607408.8 | IK11: 127696489.6 | IL11: 169261289.9 | IM11: 194276543.3 | IN11: 175348265.6 | IO11: 149164527.5 | IP11: 153865876.9 | IQ11: 122835991.8 | IR11: 161459236.8 | IS11: 170562491.9 | IT11: 198127056.4 | IU11: 180680481.8 | IV11: 218560490.7 | IW11: 148437476.9 | IX11: 187079906.3 | IY11: 209235638.1 | IZ11: 178551007.8 | JA11: 133335923.4 | JB11: 147133393.3 | JC11: 128739558.4 | JD11: 136662851.9 | JE11: 184722293.1 | JF11: 208793152.5 | JG11: 193047664 | JH11: 259724984.7 | JI11: 149582302.3 | JJ11: 160498437.9 | JK11: 230614439.8 | JL11: 192399911.6 | JM11: 137013290.4 | JN11: 179142690.4 | JO11: 148264081.5 | JP11: 148266359.1 | JQ11: 206235494.6 | JR11: 212717051.1 | JS11: 254234579.2 | JT11: 271485345.7 | JU11: 161043766.8 | JV11: 183804345.3 | JW11: 244941889.6 | JX11: 183690606.7 | JY11: 157766989.6 | JZ11: 191660050.3 | KA11: 168006059.1 | KB11: 158783027.1 | KC11: 210169641.5 | KD11: 230855954.4 | KE11: 258611033.7 | KF11: 263991762.3 | KG11: 192279223 | KH11: 207520232.8 | KI11: 255191999.2 | KJ11: 222042910.4 | KK11: 164415813.6 | KL11: 192295790.6 | KM11: 160318196.5 | KN11: 182468676.8 | KO11: 206021459.7 | KP11: 236901037.5 | KQ11: 225730312.6 | KR11: 282802835.8 | KS11: 171645391.6 | KT11: 204049507.6 | KU11: 271350405.4 | KV11: 224167983.1 | KW11: 162524417.4 | KX11: 201552805.4 | KY11: 163902698.4 | KZ11: 200420011.9 | LA11: 377776900.9 | LB11: 458646666.9 | LC11: 242256259.1 | LD11: 312480032.7 | LE11: 194611667.8 | LF11: 237045429.7 | LG11: 266709687.9 | LH11: 246336120.1 | LI11: 192429544.2 | LJ11: 216516165.4 | LK11: 182215720.5 | LL11: 209049019.1 | LM11: 210554322.6 | LN11: 286036829.4 | LO11: 256938067.8 | LP11: 340389091.7 | LQ11: 227250288.7 | LR11: 238777169.9 | LS11: 292944790.1 | LT11: 277078584.8 | LU11: 186506341.2 | LV11: 235682354.3 | LW11: 177466410.6 | LX11: 200657214.7 | LY11: 254093799 | LZ11: 317141414.6 | MA11: 316145617.4 | MB11: 346215688.4 | MC11: 262326546.1 | MD11: 251712969.6 | ME11: 324976922.7 | MF11: 254055915.2 | MG11: 211160053 | MH11: 258289503.2 | MI11: 232679325.3 | MJ11: 207987958.1 | MK11: 288475125.6 | ML11: 349443870.2 | MM11: 284004529 | MN11: 421131607.3 | MO11: 240118225.3 | MP11: 235803852.9 | MQ11: 246892312.5 | MR11: 199920187.3 | MS11: 206875592.4 | MT11: 219230786.3 | MU11: 176459663.9 | MV11: 240448581.3 | MW11: 324796490.8 | MX11: 342715245.3 | MY11: 343522250.9 | MZ11: 465851986.2 | NA11: 307858308.8 | NB11: 321842712.9 | NC11: 383886917.2 | ND11: 336055910.8 | NE11: 296798582.7 | NF11: 374853506.7 | NG11: 292103893.5 | NH11: 324923735.1 | NI11: 428288985 | NJ11: 443407610.9 | NK11: 425107461.5 | NL11: 608579925.8 | NM11: 363537429.4 | NN11: 434329556.3 | NO11: 478764606.3 | NP11: 450767267.8 | NQ11: 391026195.5 | NR11: 445251664.4 | NS11: 370109187 | NT11: 388356393.2 | NU11: 492092190.4 | NV11: 524174683.9 | NW11: 479808784.6 | NX11: 659307307.2 | NY11: 398607304.7 | NZ11: 457851381 | OA11: 505236945.2 | OB11: 474576705.9 | OC11: 354107782.4 | OD11: 406396378.2 | OE11: 355261677.5 | OF11: 384819671.6 | OG11: 504154070.8 | OH11: 553422590.7 | OI11: ='[1]EST - FPE'!C13 -> 543420713.4 | OJ11: ='[1]EST - FPE'!D13 -> 760067844.7 | OK11: ='[1]EST - FPE'!E13 -> 467904999.4 | OL11: ='[1]EST - FPE'!F13 -> 489450674.6 | OM11: ='[1]EST - FPE'!G13 -> 566609557.7 | ON11: ='[1]EST - FPE'!H13 -> 620723371.4 | OO11: ='[1]EST - FPE'!I13 -> 397681549.2 | OP11: ='[1]EST - FPE'!J13 -> 525574172.1 | OQ11: ='[1]EST - FPE'!K13 -> 428819802 | OR11: ='[1]EST - FPE'!L13 -> 454555586.5 | OS11: ='[1]EST - FPE'!M13 -> 588231587.6 | OT11: ='[1]EST - FPE'!N13 -> 659277417.3 | OU11: ='[2]EST - FPE'!C13 -> 577102838 | OV11: ='[2]EST - FPE'!D13 -> 790393648.1 | OW11: ='[2]EST - FPE'!E13 -> 517279697.5 | OX11: ='[2]EST - FPE'!F13 -> 523496628.2 | OY11: ='[2]EST - FPE'!G13 -> 669806018.5 | OZ11: ='[2]EST - FPE'!H13 -> 695617825.5 | PA11: ='[2]EST - FPE'!I13 -> 422639428.9 | PB11: ='[2]EST - FPE'!J13 -> 561400633.2 | PC11: ='[2]EST - FPE'!K13 -> 452457766.4 | PD11: ='[2]EST - FPE'!L13 -> 474543269.7 | PE11: ='[2]EST - FPE'!M13 -> 652857838.4 | PF11: ='[2]EST - FPE'!N13 -> 736514527.1 | PG11: ='[3]EST - FPE'!C13 -> 644242829.1 | PH11: ='[3]EST - FPE'!D13 -> 815145092.9 | PI11: ='[3]EST - FPE'!E13 -> 491103119.8 | PJ11: ='[3]EST - FPE'!F13 -> 579836368.1 | PK11: ='[3]EST - FPE'!G13 -> 701509598.6 | PL11: ='[3]EST - FPE'!H13 -> 742896946.5 | PM11: ='[3]EST - FPE'!I13 -> 0 | PN11: ='[3]EST - FPE'!J13 -> 0 | PO11: ='[3]EST - FPE'!K13 -> 0 | PP11: ='[3]EST - FPE'!L13 -> 0 | PQ11: ='[3]EST - FPE'!M13 -> 0 | PR11: ='[3]EST - FPE'!N13 -> 0
A12: Amazonas | B12: AM | C12: 1550406721 | D12: 1820256963 | E12: 2180399791 | F12: 2405905321 | G12: 4018465986 | H12: 3303408559 | I12: 3597742555 | J12: 4036221393 | K12: 4888188064 | L12: 3880425223 | M12: 5737866934 | N12: 9526460536 | O12: 7682609708 | P12: 9316951542 | Q12: 1.301580127e+10 | R12: 1.543905787e+10 | S12: 2.845353866e+10 | T12: 3.048084488e+10 | U12: 3.631490596e+10 | V12: 4.447043119e+10 | W12: 5.282134867e+10 | X12: 7.167654846e+10 | Y12: 8.700869615e+10 | Z12: 1.155394219e+11 | AA12: 158850084.9 | AB12: 198913109.5 | AC12: 234630978.1 | AD12: 298652618.4 | AE12: 391901920.2 | AF12: 703039220.3 | AG12: 707399632.9 | AH12: 857346951.8 | AI12: 1047953215 | AJ12: 1536882343 | AK12: 2622008171 | AL12: 3774877838 | AM12: 1744776.3 | AN12: 2306040.11 | AO12: 2884359.6 | AP12: 3697262.78 | AQ12: 6755342.14 | AR12: 9079149.24 | AS12: 11670505.36 | AT12: 11813097.89 | AU12: 12212193.22 | AV12: 12794889.72 | AW12: 14372484.88 | AX12: 15218329.3 | AY12: 17510333.18 | AZ12: 19236368.58 | BA12: 15122349.91 | BB12: 16985352.78 | BC12: 17305195.56 | BD12: 22982047.35 | BE12: 19078203.3 | BF12: 16780658.07 | BG12: 17081154.47 | BH12: 17266578.95 | BI12: 17682827.23 | BJ12: 18438260.06 | BK12: 19702446.8 | BL12: 20023484.77 | BM12: 17398712.37 | BN12: 30652628.44 | BO12: 19718868.13 | BP12: 18843629.52 | BQ12: 19429498.09 | BR12: 17858942.8 | BS12: 18856982.52 | BT12: 17522268.06 | BU12: 18720157.39 | BV12: 25041139.7 | BW12: 28546226.72 | BX12: 21285601.27 | BY12: 19413422.3 | BZ12: 24344917.56 | CA12: 24844766.55 | CB12: 19296703.42 | CC12: 20721737.57 | CD12: 21784692.75 | CE12: 22440110.92 | CF12: 22935590.64 | CG12: 25512577.03 | CH12: 22456001.73 | CI12: 27205671.06 | CJ12: 22377337.45 | CK12: 20927402.01 | CL12: 24927465.7 | CM12: 23709591.32 | CN12: 16800478.67 | CO12: 17685777.61 | CP12: 23089181.79 | CQ12: 22344984.36 | CR12: 19011876.88 | CS12: 20450157.32 | CT12: 20483350.43 | CU12: 26544009.85 | CV12: 26949331.08 | CW12: 27552298.69 | CX12: 25013723.55 | CY12: 27013000.02 | CZ12: 18045636.24 | DA12: 17948485.08 | DB12: 22387178.89 | DC12: 20890128.88 | DD12: 24886789.68 | DE12: 23647015.55 | DF12: 25989089.49 | DG12: 29341325.04 | DH12: 27832082.09 | DI12: 30318964.91 | DJ12: 31447261.12 | DK12: 30078816.96 | DL12: 24397903.25 | DM12: 23211799.8 | DN12: 25880059.23 | DO12: 26095702.48 | DP12: 27591246.77 | DQ12: 29947077.66 | DR12: 33797083.81 | DS12: 39248578.71 | DT12: 31979486.11 | DU12: 28042711.17 | DV12: 32982689.7 | DW12: 37084190.54 | DX12: 32176105.48 | DY12: 29269774.54 | DZ12: 30816091.64 | EA12: 33331316.58 | EB12: 31854112.39 | EC12: 33107491.81 | ED12: 40153088.57 | EE12: 43464070.36 | EF12: 50781354.34 | EG12: 38862157.65 | EH12: 40588566.67 | EI12: 46519163.1 | EJ12: 32750603.3 | EK12: 35810392.9 | EL12: 33907818.16 | EM12: 37434046.62 | EN12: 49328159.28 | EO12: 43266731.38 | EP12: 42376991.59 | EQ12: 46166187.94 | ER12: 48610876.88 | ES12: 42163359.32 | ET12: 40144827.58 | EU12: 56308017.85 | EV12: 39542811.12 | EW12: 33154757.72 | EX12: 43496169.89 | EY12: 37740831.22 | EZ12: 38992382.97 | FA12: 43436083.37 | FB12: 45287592.04 | FC12: 49707247.27 | FD12: 54285328.8 | FE12: 43932949.58 | FF12: 48393318.35 | FG12: 56361485.73 | FH12: 36586938.99 | FI12: 38048264.41 | FJ12: 49499906.21 | FK12: 42864619.11 | FL12: 45872039.9 | FM12: 45729109.78 | FN12: 56441086.79 | FO12: 63462822.98 | FP12: 55554939.57 | FQ12: 53280361.22 | FR12: 57847434.08 | FS12: 65293866.36 | FT12: 63259337.52 | FU12: 51946319.53 | FV12: 53444485.93 | FW12: 44642771.18 | FX12: 51696211.45 | FY12: 62491503.72 | FZ12: 87613504.14 | GA12: 71918442.85 | GB12: 61855336.91 | GC12: 58437898.84 | GD12: 65790996.02 | GE12: 72204452.73 | GF12: 70267899.89 | GG12: 62963527.12 | GH12: 63703681.72 | GI12: 59187789.31 | GJ12: 53636022.33 | GK12: 66059785.36 | GL12: 80334293.69 | GM12: 71473626.94 | GN12: 76813726.68 | GO12: 62474517.95 | GP12: 74695872.42 | GQ12: 80083750.37 | GR12: 81811332.15 | GS12: 63623486.55 | GT12: 67133167.91 | GU12: 69135548.41 | GV12: 65418291.25 | GW12: 76701580.04 | GX12: 103833646.2 | GY12: 91519787.12 | GZ12: 100587278.8 | HA12: 79227949.9 | HB12: 91835448.64 | HC12: 96625979.6 | HD12: 83306409.52 | HE12: 75465461.64 | HF12: 92179325.84 | HG12: 81177576.67 | HH12: 77259094.87 | HI12: 97903542.96 | HJ12: 103044284.2 | HK12: 94018025.41 | HL12: 87649071.57 | HM12: 70068184.18 | HN12: 83396870.96 | HO12: 99324412.84 | HP12: 85728853.06 | HQ12: 65779396.76 | HR12: 76523119.8 | HS12: 67739475.02 | HT12: 77922858.75 | HU12: 97268177.2 | HV12: 104885257.8 | HW12: 80769860.32 | HX12: 98614180.5 | HY12: 73256148.84 | HZ12: 87771856.83 | IA12: 108065032.1 | IB12: 93786700.97 | IC12: 68964971.23 | ID12: 92426832.12 | IE12: 77154862.11 | IF12: 83056307.8 | IG12: 99564951.82 | IH12: 125496686.8 | II12: 121783879 | IJ12: 131204277.2 | IK12: 85652817.16 | IL12: 113532536.1 | IM12: 130311595 | IN12: 117615394 | IO12: 100052570.2 | IP12: 103206015 | IQ12: 82392623.15 | IR12: 108299284.7 | IS12: 114405321.4 | IT12: 132894338.6 | IU12: 121191994.6 | IV12: 146600128.2 | IW12: 99564898.8 | IX12: 125484428.4 | IY12: 140345454.4 | IZ12: 119763643.2 | JA12: 89435484.87 | JB12: 98690180.68 | JC12: 86352458.79 | JD12: 91667032.54 | JE12: 123903052 | JF12: 140048655.7 | JG12: 129487320.4 | JH12: 174211340.4 | JI12: 100332794 | JJ12: 107654825.9 | JK12: 154685352 | JL12: 129052838.5 | JM12: 91902090.21 | JN12: 120160516.2 | JO12: 99448593.31 | JP12: 99450120.99 | JQ12: 138333098.8 | JR12: 142680622.9 | JS12: 170528633.9 | JT12: 182099639.1 | JU12: 108020606.9 | JV12: 123287335.7 | JW12: 164295533.4 | JX12: 123211045.1 | JY12: 105822698.4 | JZ12: 128556574.2 | KA12: 112690586.1 | KB12: 106504208.7 | KC12: 140971940 | KD12: 154847348.7 | KE12: 173464154.4 | KF12: 177073294.8 | KG12: 128971886.2 | KH12: 139194840.9 | KI12: 171170826.3 | KJ12: 148935972 | KK12: 110282417.8 | KL12: 128982999 | KM12: 107533928.4 | KN12: 122391431.9 | KO12: 138189534.2 | KP12: 158902107 | KQ12: 151409308.5 | KR12: 190240265.6 | KS12: 115131679.7 | KT12: 136866841.2 | KU12: 182043444.7 | KV12: 150361371.1 | KW12: 109013757.9 | KX12: 135192170.4 | KY12: 109938244.2 | KZ12: 138058162.2 | LA12: 290106648.7 | LB12: 356686515 | LC12: 162494138.5 | LD12: 212374443.4 | LE12: 130536380.9 | LF12: 162803542 | LG12: 179990379.5 | LH12: 166987166.2 | LI12: 133651823.4 | LJ12: 147874505.6 | LK12: 125057295.7 | LL12: 147201553.3 | LM12: 141801229.9 | LN12: 199168592.3 | LO12: 172342007.3 | LP12: 239401630 | LQ12: 155043660.8 | LR12: 164167477 | LS12: 201182044.3 | LT12: 197029084 | LU12: 128548519.8 | LV12: 163407142.8 | LW12: 122345889 | LX12: 136022462.1 | LY12: 177278204.2 | LZ12: 235926984.3 | MA12: 217961416.5 | MB12: 237296899.2 | MC12: 183927313 | MD12: 170938345.1 | ME12: 223297255.4 | MF12: 172002402.5 | MG12: 145919693.7 | MH12: 181161941.4 | MI12: 166835260 | MJ12: 141039929.2 | MK12: 203928907.4 | ML12: 253190117.8 | MM12: 190873528.4 | MN12: 305467056.6 | MO12: 161714751.9 | MP12: 159715270.1 | MQ12: 168329565.2 | MR12: 134097086.8 | MS12: 142630229.8 | MT12: 147688057.6 | MU12: 118598220.3 | MV12: 167871583.4 | MW12: 239321470.8 | MX12: 257167965.5 | MY12: 231915977.1 | MZ12: 344139258.5 | NA12: 219349048.3 | NB12: 229313269 | NC12: 268068035.6 | ND12: 242283429.5 | NE12: 220938178.8 | NF12: 284592515.8 | NG12: 217618495.8 | NH12: 241011352.5 | NI12: 329248964.1 | NJ12: 338800905.6 | NK12: 300027938.7 | NL12: 480879791.4 | NM12: 269502843.7 | NN12: 334159819.6 | NO12: 353464416.7 | NP12: 342358580.2 | NQ12: 312086557.9 | NR12: 353314428 | NS12: 294399357.7 | NT12: 302060414.7 | NU12: 396287628.7 | NV12: 413792813 | NW12: 351278775.9 | NX12: 537322095.6 | NY12: 306304306.6 | NZ12: 360254434.5 | OA12: 382743599.3 | OB12: 370238749.8 | OC12: 277643807.1 | OD12: 317257870.6 | OE12: 283029462.9 | OF12: 300619829.7 | OG12: 413122318.5 | OH12: 448473202.2 | OI12: ='[1]EST - FPE'!C14 -> 400744847.9 | OJ12: ='[1]EST - FPE'!D14 -> 624993935.4 | OK12: ='[1]EST - FPE'!E14 -> 367100620.6 | OL12: ='[1]EST - FPE'!F14 -> 380062722 | OM12: ='[1]EST - FPE'!G14 -> 431538537.5 | ON12: ='[1]EST - FPE'!H14 -> 509891174.1 | OO12: ='[1]EST - FPE'!I14 -> 313061959.6 | OP12: ='[1]EST - FPE'!J14 -> 429988752.1 | OQ12: ='[1]EST - FPE'!K14 -> 348944683.9 | OR12: ='[1]EST - FPE'!L14 -> 362203622.6 | OS12: ='[1]EST - FPE'!M14 -> 487791569 | OT12: ='[1]EST - FPE'!N14 -> 543766977.3 | OU12: ='[2]EST - FPE'!C14 -> 428140505.2 | OV12: ='[2]EST - FPE'!D14 -> 645289324.1 | OW12: ='[2]EST - FPE'!E14 -> 410650784.5 | OX12: ='[2]EST - FPE'!F14 -> 407783696.6 | OY12: ='[2]EST - FPE'!G14 -> 529091614.7 | OZ12: ='[2]EST - FPE'!H14 -> 577247185.4 | PA12: ='[2]EST - FPE'!I14 -> 334981794.4 | PB12: ='[2]EST - FPE'!J14 -> 458741990.9 | PC12: ='[2]EST - FPE'!K14 -> 366772906.5 | PD12: ='[2]EST - FPE'!L14 -> 375983048.2 | PE12: ='[2]EST - FPE'!M14 -> 545582414.5 | PF12: ='[2]EST - FPE'!N14 -> 614127205.3 | PG12: ='[3]EST - FPE'!C14 -> 508239396.3 | PH12: ='[3]EST - FPE'!D14 -> 700400658.6 | PI12: ='[3]EST - FPE'!E14 -> 394070698.5 | PJ12: ='[3]EST - FPE'!F14 -> 483215683.5 | PK12: ='[3]EST - FPE'!G14 -> 581541215.8 | PL12: ='[3]EST - FPE'!H14 -> 658013901.8 | PM12: ='[3]EST - FPE'!I14 -> 0 | PN12: ='[3]EST - FPE'!J14 -> 0 | PO12: ='[3]EST - FPE'!K14 -> 0 | PP12: ='[3]EST - FPE'!L14 -> 0 | PQ12: ='[3]EST - FPE'!M14 -> 0 | PR12: ='[3]EST - FPE'!N14 -> 0
A13: Amapá | B13: AP | C13: 1895781153 | D13: 2225744251 | E13: 2666113849 | F13: 2941853840 | G13: 4913634584 | H13: 4039288275 | I13: 4399189220 | J13: 4935345253 | K13: 5977099224 | L13: 4744843342 | M13: 7016055755 | N13: 1.164861072e+10 | O13: 9394016745 | P13: 1.139243071e+10 | Q13: 1.591525012e+10 | R13: 1.887832047e+10 | S13: 3.479195596e+10 | T13: 3.727087254e+10 | U13: 4.440455101e+10 | V13: 5.437683172e+10 | W13: 6.458803099e+10 | X13: 8.7643486e+10 | Y13: 1.063910806e+11 | Z13: 1.412774182e+11 | AA13: 194236127.4 | AB13: 243223741.9 | AC13: 286898257.3 | AD13: 365181599 | AE13: 479203466.1 | AF13: 859650881.5 | AG13: 864982636 | AH13: 1048332784 | AI13: 1281399215 | AJ13: 1879244035 | AK13: 3206096573 | AL13: 4615783824 | AM13: 2133449.23 | AN13: 2819742.29 | AO13: 3526890.39 | AP13: 4520878.95 | AQ13: 8260187.57 | AR13: 11101654.68 | AS13: 14270271.04 | AT13: 14444627.99 | AU13: 14932627.33 | AV13: 15645127.47 | AW13: 17574153.68 | AX13: 18608421.59 | AY13: 21411000.84 | AZ13: 23521534.42 | BA13: 18491061.48 | BB13: 20769073.86 | BC13: 21160166.01 | BD13: 28101614.66 | BE13: 23328135.61 | BF13: 20518780.57 | BG13: 20886216.68 | BH13: 21112947.03 | BI13: 21621920.34 | BJ13: 22545636.22 | BK13: 24091437.97 | BL13: 24483991.54 | BM13: 21274514.98 | BN13: 37480923.23 | BO13: 24111517.36 | BP13: 23041307.32 | BQ13: 23757686.17 | BR13: 21837268.08 | BS13: 23057634.88 | BT13: 21425594.4 | BU13: 22890330.06 | BV13: 30619398.18 | BW13: 34905291.56 | BX13: 26027261.88 | BY13: 23738029.3 | BZ13: 29768082.96 | CA13: 30379280.21 | CB13: 23595309.65 | CC13: 25337789.77 | CD13: 26637532.87 | CE13: 27438954.43 | CF13: 28044809.08 | CG13: 31195854.64 | CH13: 27458385.14 | CI13: 33266108.68 | CJ13: 27362197.32 | CK13: 25589268.81 | CL13: 30480401.7 | CM13: 28991229.06 | CN13: 20543016.47 | CO13: 21625527.94 | CP13: 28232614.77 | CQ13: 27322637.1 | CR13: 23247034.08 | CS13: 25005711.29 | CT13: 25046298.59 | CU13: 32457053.31 | CV13: 32952665.44 | CW13: 33689952.39 | CX13: 30585874.69 | CY13: 33030517.49 | CZ13: 22065550.03 | DA13: 21946757.13 | DB13: 27374231.08 | DC13: 25543692.57 | DD13: 30430664.57 | DE13: 28914713.7 | DF13: 31778516.82 | DG13: 35877508.96 | DH13: 34032061.39 | DI13: 37072931.55 | DJ13: 38452571.28 | DK13: 36779287.36 | DL13: 29832871.96 | DM13: 28382547.62 | DN13: 31645198.55 | DO13: 31908879.32 | DP13: 33737576.67 | DQ13: 36618201.31 | DR13: 41325849.3 | DS13: 47991739.73 | DT13: 39103356.71 | DU13: 34289611.01 | DV13: 40330037.73 | DW13: 45345204.32 | DX13: 39343775.76 | DY13: 35790019.64 | DZ13: 37680800.11 | EA13: 40756326.01 | EB13: 38950054.28 | EC13: 40482641.22 | ED13: 49097741.63 | EE13: 53146290.15 | EF13: 62093599.83 | EG13: 47519238.06 | EH13: 49630228.46 | EI13: 56881946.85 | EJ13: 40046250.88 | EK13: 43787650.69 | EL13: 41461251.26 | EM13: 45772995.63 | EN13: 60316685.59 | EO13: 52904991.23 | EP13: 51817049.61 | EQ13: 56450341.62 | ER13: 59439618.65 | ES13: 51555827.85 | ET13: 49087640.38 | EU13: 68851403.71 | EV13: 48351516.45 | EW13: 40540436.27 | EX13: 53185540.3 | EY13: 46148120.75 | EZ13: 47678472.85 | FA13: 53112068.65 | FB13: 55376026.38 | FC13: 60780220.64 | FD13: 66378132.83 | FE13: 53719618.66 | FF13: 59173595.98 | FG13: 68916782.29 | FH13: 44737183.13 | FI13: 46524038.9 | FJ13: 60526691.49 | FK13: 52413302.89 | FL13: 56090668.04 | FM13: 55915898.28 | FN13: 69014115.56 | FO13: 77600040.13 | FP13: 67930566.86 | FQ13: 65149294.88 | FR13: 70733746.1 | FS13: 79838973.65 | FT13: 77351225.49 | FU13: 63518077.04 | FV13: 65349980.64 | FW13: 54587562.81 | FX13: 63212253.98 | FY13: 76412346.15 | FZ13: 107130617.8 | GA13: 87939265.72 | GB13: 75634464.42 | GC13: 71455745 | GD13: 80446845.74 | GE13: 88288988.2 | GF13: 85921041.53 | GG13: 76989519.23 | GH13: 77894553.49 | GI13: 72372683.88 | GJ13: 65584184.42 | GK13: 80775511.61 | GL13: 98229863.12 | GM13: 87395360.93 | GN13: 93925041.36 | GO13: 76391576.57 | GP13: 91335405.88 | GQ13: 97923507.83 | GR13: 100035932.2 | GS13: 77796493.7 | GT13: 82088004.89 | GU13: 84536443.22 | GV13: 79991115.87 | GW13: 93787912.52 | GX13: 126964019.8 | GY13: 111907079.1 | GZ13: 122994479.4 | HA13: 96877066.05 | HB13: 112293058.6 | HC13: 118150746.3 | HD13: 101864058.7 | HE13: 92276431.74 | HF13: 112713539.2 | HG13: 99260999 | HH13: 94469621.4 | HI13: 119712904.5 | HJ13: 125998816.5 | HK13: 114961834.4 | HL13: 107174108.4 | HM13: 85676836.41 | HN13: 101974671.6 | HO13: 121450292.7 | HP13: 104826134.8 | HQ13: 80432662.61 | HR13: 93569697.8 | HS13: 82829375.28 | HT13: 95281247.88 | HU13: 118936002.2 | HV13: 128249892.4 | HW13: 98762458.21 | HX13: 120581846.3 | HY13: 89574964.1 | HZ13: 107324245.8 | IA13: 132138005.1 | IB13: 114678979.3 | IC13: 84327867.63 | ID13: 113016180.9 | IE13: 94342169.41 | IF13: 101558243.3 | IG13: 121744415 | IH13: 153452800.8 | II13: 148912913.9 | IJ13: 160431835.5 | IK13: 104733160.9 | IL13: 138823470.9 | IM13: 159340296.1 | IN13: 143815841.5 | IO13: 122340657.1 | IP13: 126196575.1 | IQ13: 100746713.8 | IR13: 132424440.7 | IS13: 139890681.1 | IT13: 162498381.4 | IU13: 148189179.2 | IV13: 179257324.1 | IW13: 121744350.2 | IX13: 153437811.7 | IY13: 171609335.7 | IZ13: 146442642.9 | JA13: 109358469.9 | JB13: 120674776.6 | JC13: 105588657.3 | JD13: 112087125.5 | JE13: 151504161.9 | JF13: 171246421 | JG13: 158332403 | JH13: 213019313.9 | JI13: 122683304.6 | JJ13: 131636419.8 | JK13: 189143642.9 | JL13: 157801134.2 | JM13: 112374545.5 | JN13: 146927924.8 | JO13: 121602136 | JP13: 121604004 | JQ13: 169148700.2 | JR13: 174464695.2 | JS13: 208516233.8 | JT13: 222664839.7 | JU13: 132083683.7 | JV13: 150751286.3 | JW13: 200894624.5 | JX13: 150658001 | JY13: 129396160.8 | JZ13: 157194320.2 | KA13: 137793965 | KB13: 130229486.9 | KC13: 172375379.6 | KD13: 189341726.5 | KE13: 212105681.9 | KF13: 216518808 | KG13: 157702148.7 | KH13: 170202407.3 | KI13: 209301483.4 | KJ13: 182113509.3 | KK13: 134849344 | KL13: 157715737 | KM13: 131488590.8 | KN13: 149655807.6 | KO13: 168973154.6 | KP13: 194299738 | KQ13: 185137815.6 | KR13: 231862790.9 | KS13: 140778845.8 | KT13: 167355813.6 | KU13: 222548896.8 | KV13: 183856435.8 | KW13: 133298072.7 | KX13: 165308086.8 | KY13: 134428501 | KZ13: 163822349.7 | LA13: 304206135.4 | LB13: 368639391.9 | LC13: 198691944 | LD13: 254587614.3 | LE13: 159615156.1 | LF13: 192089595.4 | LG13: 218078383.9 | LH13: 200963112.1 | LI13: 155022826.1 | LJ13: 175961394.2 | LK13: 147712870.1 | LL13: 167183435 | LM13: 172341246.4 | LN13: 230126450.6 | LO13: 210733561.1 | LP13: 276521221.7 | LQ13: 185757778.1 | LR13: 194878167.4 | LS13: 239141641.1 | LT13: 224573348.9 | LU13: 152140831.7 | LV13: 192024600.3 | LW13: 144759858.4 | LX13: 164230585.2 | LY13: 206760506.5 | LZ13: 254549667.4 | MA13: 255808773.1 | MB13: 280963659.3 | MC13: 210449095.3 | MD13: 205208152.4 | ME13: 263398841.2 | MF13: 207429254.3 | MG13: 170659884.1 | MH13: 207171963.6 | MI13: 184484471.4 | MJ13: 169682313.2 | MK13: 230442322.2 | ML13: 275510005.8 | MM13: 232923689 | MN13: 344848614.8 | MO13: 196922669 | MP13: 193362666.2 | MQ13: 202428867.2 | MR13: 163969058.2 | MS13: 169580832.8 | MT13: 179791757.2 | MU13: 144721681.6 | MV13: 197051124.1 | MW13: 265873889.1 | MX13: 280430454.9 | MY13: 281704068.5 | MZ13: 381159762.2 | NA13: 252123866.5 | NB13: 263576534.7 | NC13: 314546558.4 | ND13: 275134049.7 | NE13: 242791507 | NF13: 306482028.3 | NG13: 238946007 | NH13: 265823915.4 | NI13: 350052471.4 | NJ13: 362469449.8 | NK13: 350175049.8 | NL13: 506529831.8 | NM13: 300771075.5 | NN13: 360569505.1 | NO13: 395948897.7 | NP13: 373764543.5 | NQ13: 325760484.6 | NR13: 370727253.6 | NS13: 308234004.2 | NT13: 322735498.7 | NU13: 410316533.5 | NV13: 436222562.8 | NW13: 397281849.8 | NX13: 552874652.2 | NY13: 331893302.9 | NZ13: 382296435.6 | OA13: 419975200.9 | OB13: 395856658 | OC13: 295547506.9 | OD13: 339012434.8 | OE13: 297082128.3 | OF13: 321039610.8 | OG13: 423054566.8 | OH13: 463757119.6 | OI13: ='[1]EST - FPE'!C15 -> 441951422 | OJ13: ='[1]EST - FPE'!D15 -> 611478394.4 | OK13: ='[1]EST - FPE'!E15 -> 378256974.1 | OL13: ='[1]EST - FPE'!F15 -> 396082173.9 | OM13: ='[1]EST - FPE'!G15 -> 459394595.5 | ON13: ='[1]EST - FPE'!H15 -> 499428997.1 | OO13: ='[1]EST - FPE'!I15 -> 321378766.6 | OP13: ='[1]EST - FPE'!J15 -> 423052876.9 | OQ13: ='[1]EST - FPE'!K15 -> 345366957.3 | OR13: ='[1]EST - FPE'!L15 -> 366888668.5 | OS13: ='[1]EST - FPE'!M15 -> 472811727.7 | OT13: ='[1]EST - FPE'!N15 -> 530221214.9 | OU13: ='[2]EST - FPE'!C15 -> 454778263.1 | OV13: ='[2]EST - FPE'!D15 -> 596241528.7 | OW13: ='[2]EST - FPE'!E15 -> 395485287 | OX13: ='[2]EST - FPE'!F15 -> 403763720.8 | OY13: ='[2]EST - FPE'!G15 -> 513293906.5 | OZ13: ='[2]EST - FPE'!H15 -> 520529046.7 | PA13: ='[2]EST - FPE'!I15 -> 323370993.6 | PB13: ='[2]EST - FPE'!J15 -> 423314857.9 | PC13: ='[2]EST - FPE'!K15 -> 342500103.9 | PD13: ='[2]EST - FPE'!L15 -> 363145902.7 | PE13: ='[2]EST - FPE'!M15 -> 486806413.3 | PF13: ='[2]EST - FPE'!N15 -> 549802452.2 | PG13: ='[3]EST - FPE'!C15 -> 531725146.3 | PH13: ='[3]EST - FPE'!D15 -> 675291399.2 | PI13: ='[3]EST - FPE'!E15 -> 405622481.2 | PJ13: ='[3]EST - FPE'!F15 -> 479697164.9 | PK13: ='[3]EST - FPE'!G15 -> 580222488.6 | PL13: ='[3]EST - FPE'!H15 -> 616301578.9 | PM13: ='[3]EST - FPE'!I15 -> 0 | PN13: ='[3]EST - FPE'!J15 -> 0 | PO13: ='[3]EST - FPE'!K15 -> 0 | PP13: ='[3]EST - FPE'!L15 -> 0 | PQ13: ='[3]EST - FPE'!M15 -> 0 | PR13: ='[3]EST - FPE'!N15 -> 0
A14: Bahia | B14: BA | C14: 5220732378 | D14: 6129407423 | E14: 7342127477 | F14: 8101479207 | G14: 1.353150448e+10 | H14: 11123669545 | I14: 1.211478949e+10 | J14: 1.359129281e+10 | K14: 1.646014646e+10 | L14: 1.306667556e+10 | M14: 1.932129633e+10 | N14: 3.207874444e+10 | O14: 2.586988867e+10 | P14: 3.137325834e+10 | Q14: 4.382850915e+10 | R14: 5.198841583e+10 | S14: 9.581247847e+10 | T14: 1.026390893e+11 | U14: 1.222843031e+11 | V14: 1.497466548e+11 | W14: 1.778669568e+11 | X14: 2.413586527e+11 | Y14: 2.929870667e+11 | Z14: 3.890594597e+11 | AA14: 534900791.4 | AB14: 669806249.7 | AC14: 790080130.4 | AD14: 1005662175 | AE14: 1319663426 | AF14: 2367365654 | AG14: 2382048606 | AH14: 2886970839 | AI14: 3528805187 | AJ14: 5175191326 | AK14: 8829168998 | AL14: 1.271126259e+10 | AM14: 5875239.07 | AN14: 7765200.03 | AO14: 9712593.06 | AP14: 12449907.03 | AQ14: 22747472 | AR14: 30572499.33 | AS14: 39298452.71 | AT14: 39778608.93 | AU14: 41122494.95 | AV14: 43084626.83 | AW14: 48396911.72 | AX14: 51245149.74 | AY14: 58963085.06 | AZ14: 64775217.35 | BA14: 50921955.41 | BB14: 57195302.39 | BC14: 58272318.85 | BD14: 77388156.99 | BE14: 64242622.47 | BF14: 56506027.55 | BG14: 57517898.39 | BH14: 58142283.99 | BI14: 59543929.64 | BJ14: 62087721.87 | BK14: 66344656.92 | BL14: 67425697.94 | BM14: 58587220.9 | BN14: 103217541.3 | BO14: 66399952.94 | BP14: 63452734.99 | BQ14: 65425548.28 | BR14: 60136969.04 | BS14: 63497698.95 | BT14: 59003273.79 | BU14: 63036963.46 | BV14: 84321802.19 | BW14: 96124589.82 | BX14: 71675661.81 | BY14: 65371415.85 | BZ14: 81977391.86 | CA14: 83660548.88 | CB14: 64978384.68 | CC14: 69776946.18 | CD14: 73356267.92 | CE14: 75563277.75 | CF14: 77231721.86 | CG14: 85909287.63 | CH14: 75616787.35 | CI14: 91610495.38 | CJ14: 75351898.66 | CK14: 70469486.37 | CL14: 83939024.14 | CM14: 79838038.17 | CN14: 56572770.03 | CO14: 59553864.45 | CP14: 77748914.04 | CQ14: 75242955.06 | CR14: 64019279.47 | CS14: 68862445.52 | CT14: 68974217.69 | CU14: 89382463.12 | CV14: 90747313.87 | CW14: 92777705.27 | CX14: 84229482.86 | CY14: 90961708.21 | CZ14: 60765627.5 | DA14: 60438487.48 | DB14: 75385038.05 | DC14: 70343975.36 | DD14: 83802054.55 | DE14: 79627324.91 | DF14: 87513862.72 | DG14: 98801948.88 | DH14: 93719828.59 | DI14: 102093985.7 | DJ14: 105893332.4 | DK14: 101285328.2 | DL14: 82155812.21 | DM14: 78161809.41 | DN14: 87146721.74 | DO14: 87872863.89 | DP14: 92908856.35 | DQ14: 100841718.4 | DR14: 113805962.8 | DS14: 132162949.8 | DT14: 107685510 | DU14: 94429086.38 | DV14: 111063628.5 | DW14: 124874738.8 | DX14: 108347592.5 | DY14: 98561014.73 | DZ14: 103767976 | EA14: 112237570.4 | EB14: 107263335.2 | EC14: 111483878.4 | ED14: 135208733.8 | EE14: 146357904.8 | EF14: 170997620.9 | EG14: 130861742.2 | EH14: 136675132.6 | EI14: 156645412.9 | EJ14: 110282116.7 | EK14: 120585440.6 | EL14: 114178842 | EM14: 126052819.8 | EN14: 166104232.4 | EO14: 145693399.2 | EP14: 142697351 | EQ14: 155456828.8 | ER14: 163688905.2 | ES14: 141977980.5 | ET14: 135180916.3 | EU14: 189607725.4 | EV14: 133153727.6 | EW14: 111643038.4 | EX14: 146465994.6 | EY14: 127085865.2 | EZ14: 131300253.9 | FA14: 146263663.4 | FB14: 152498305.6 | FC14: 167380747.1 | FD14: 182796662.2 | FE14: 147936776.3 | FF14: 162956313.7 | FG14: 189787769.5 | FH14: 123200328.2 | FI14: 128121094.4 | FJ14: 166682561.1 | FK14: 144339354.2 | FL14: 154466334.9 | FM14: 153985042 | FN14: 190055812.6 | FO14: 213700321.5 | FP14: 187071861.7 | FQ14: 179412603.9 | FR14: 194791449.3 | FS14: 219866050.4 | FT14: 213015118.6 | FU14: 174920444.1 | FV14: 179965266.1 | FW14: 150326980.5 | FX14: 174078247.5 | FY14: 210429568.2 | FZ14: 295023655 | GA14: 242173191.2 | GB14: 208287384 | GC14: 196779739.4 | GD14: 221540050.4 | GE14: 243136281 | GF14: 236615266.8 | GG14: 212019027 | GH14: 214511372.6 | GI14: 199304868.7 | GJ14: 180610232.5 | GK14: 222445153 | GL14: 270512145.3 | GM14: 240675348.8 | GN14: 258657231.4 | GO14: 210372371.5 | GP14: 251525715.4 | GQ14: 269668483 | GR14: 275485822.4 | GS14: 214241328.8 | GT14: 226059587.1 | GU14: 232802264.7 | GV14: 220285030.2 | GW14: 258279596.6 | GX14: 349642240 | GY14: 308177402.4 | GZ14: 338710646.8 | HA14: 266786719.7 | HB14: 309240339.1 | HC14: 325371641.8 | HD14: 280520242.6 | HE14: 254117176.9 | HF14: 310398287.5 | HG14: 273351758.1 | HH14: 260156933.3 | HI14: 329673620.3 | HJ14: 346984196.8 | HK14: 316589797.2 | HL14: 295143422.5 | HM14: 235942758 | HN14: 280824856.2 | HO14: 334458159.4 | HP14: 288677411.5 | HQ14: 221500991.9 | HR14: 257678661.9 | HS14: 228101223.8 | HT14: 262392046 | HU14: 327534133.6 | HV14: 353183364.2 | HW14: 271978842.2 | HX14: 332066572.1 | HY14: 246677689.8 | HZ14: 295556881 | IA14: 363890716.2 | IB14: 315810851.3 | IC14: 232227875.1 | ID14: 311231722.9 | IE14: 259805947.2 | IF14: 279678067.4 | IG14: 335268133.6 | IH14: 422588864.9 | II14: 410086612.4 | IJ14: 441808210.1 | IK14: 288421373.4 | IL14: 382301611 | IM14: 438802253.7 | IN14: 396049944.3 | IO14: 336910106.2 | IP14: 347528798 | IQ14: 277443221.5 | IR14: 364679522.2 | IS14: 385240567.8 | IT14: 447499206.1 | IU14: 408093541.9 | IV14: 493651133.9 | IW14: 335267955.1 | IX14: 422547586.8 | IY14: 472589577.9 | IZ14: 403283810.3 | JA14: 301158867.1 | JB14: 332322489.9 | JC14: 290777298.3 | JD14: 308673226.4 | JE14: 417222569.2 | JF14: 471590158.6 | JG14: 436026648.4 | JH14: 586627220.8 | JI14: 337853712.3 | JJ14: 362509416.2 | JK14: 520876757.7 | JL14: 434563604.2 | JM14: 309464743.4 | JN14: 404620212.9 | JO14: 334876316 | JP14: 334881460.3 | JQ14: 465813310.8 | JR14: 480452863.1 | JS14: 574226329.4 | JT14: 613189732.3 | JU14: 363741121.9 | JV14: 415149248.7 | JW14: 553237418 | JX14: 414892353.1 | JY14: 356340036.9 | JZ14: 432892518.1 | KA14: 379466487 | KB14: 358634907.5 | KC14: 474699162.3 | KD14: 521422254 | KE14: 584111198.1 | KF14: 596264367.9 | KG14: 434291011 | KH14: 468715081.7 | KI14: 576388803.8 | KJ14: 501516692.9 | KK14: 371357387.5 | KL14: 434328431.3 | KM14: 362102314.4 | KN14: 412132444.1 | KO14: 465329881.3 | KP14: 535075966.6 | KQ14: 509845235.3 | KR14: 637743592.4 | KS14: 387686456.8 | KT14: 460875936.5 | KU14: 612821962.8 | KV14: 506316483.4 | KW14: 367085390 | KX14: 455236766 | KY14: 370198441 | KZ14: 446023221.9 | LA14: 785882989.6 | LB14: 945896925 | LC14: 547171525.2 | LD14: 699087946.1 | LE14: 439559182.1 | LF14: 526232248.5 | LG14: 599766366.5 | LH14: 552153082.8 | LI14: 423593915.2 | LJ14: 482657233.3 | LK14: 404726867.2 | LL14: 455341727.1 | LM14: 474191154.9 | LN14: 628441378.6 | LO14: 580332557.6 | LP14: 751058172.4 | LQ14: 509088592.7 | LR14: 532893153.5 | LS14: 654146803.9 | LT14: 607912754.9 | LU14: 415726072.4 | LV14: 523795192.5 | LW14: 395530885.4 | LX14: 450921031 | LY14: 562942213.7 | LZ14: 679131893.6 | MA14: 697882934.8 | MB14: 768085645.3 | MC14: 570667062.4 | MD14: 562775047.2 | ME14: 719439961.2 | MF14: 569457160.2 | MG14: 465201849.5 | MH14: 561706358.6 | MI14: 496050617.9 | MJ14: 465576404 | MK14: 622981963.5 | ML14: 737769881.9 | MM14: 640866133.4 | MN14: 914556868.4 | MO14: 541299364.5 | MP14: 530129739.9 | MQ14: 553299950.4 | MR14: 451549257.1 | MS14: 461096808.2 | MT14: 494148096.3 | MU14: 398182045.1 | MV14: 532589329.7 | MW14: 699405044.9 | MX14: 730592770.4 | MY14: 773096352.9 | MZ14: 992991864.5 | NA14: 671315950.8 | NB14: 701809726.1 | NC14: 847295533.4 | ND14: 727487467.5 | NE14: 629496149.1 | NF14: 784671319.9 | NG14: 619211640.4 | NH14: 690762299.3 | NI14: 888884355.2 | NJ14: 924133016.7 | NK14: 940134018.9 | NL14: 1276761238 | NM14: 786602093.1 | NN14: 923614075 | NO14: 1038044864 | NP14: 964528345.4 | NQ14: 816465614.6 | NR14: 932436139.3 | NS14: 774120937 | NT14: 821468664.5 | NU14: 1022752070 | NV14: 1100593139 | NW14: 1053777118 | NX14: 1392450454 | NY14: 860719928.1 | NZ14: 980079894.1 | OA14: 1096558703 | OB14: 1019111561 | OC14: 759003475.1 | OD14: 872487117.6 | OE14: 756920309.7 | OF14: 825954836.6 | OG14: 1062483527 | OH14: 1171421049 | OI14: ='[1]EST - FPE'!C16 -> 1188844081 | OJ14: ='[1]EST - FPE'!D16 -> 1594214609 | OK14: ='[1]EST - FPE'!E16 -> 1000189388 | OL14: ='[1]EST - FPE'!F16 -> 1050438074 | OM14: ='[1]EST - FPE'!G16 -> 1225009298 | ON14: ='[1]EST - FPE'!H16 -> 1302499478 | OO14: ='[1]EST - FPE'!I16 -> 848957131.7 | OP14: ='[1]EST - FPE'!J16 -> 1104695840 | OQ14: ='[1]EST - FPE'!K16 -> 903335796.5 | OR14: ='[1]EST - FPE'!L16 -> 965722233.5 | OS14: ='[1]EST - FPE'!M16 -> 1229437092 | OT14: ='[1]EST - FPE'!N16 -> 1381053471 | OU14: ='[2]EST - FPE'!C16 -> 1264449421 | OV14: ='[2]EST - FPE'!D16 -> 1675768669 | OW14: ='[2]EST - FPE'!E16 -> 1107809645 | OX14: ='[2]EST - FPE'!F16 -> 1128541542 | OY14: ='[2]EST - FPE'!G16 -> 1436975232 | OZ14: ='[2]EST - FPE'!H16 -> 1465953934 | PA14: ='[2]EST - FPE'!I16 -> 905638210.8 | PB14: ='[2]EST - FPE'!J16 -> 1189878614 | PC14: ='[2]EST - FPE'!K16 -> 961778462.6 | PD14: ='[2]EST - FPE'!L16 -> 1016989231 | PE14: ='[2]EST - FPE'!M16 -> 1372210426 | PF14: ='[2]EST - FPE'!N16 -> 1549342741 | PG14: ='[3]EST - FPE'!C16 -> 1410960535 | PH14: ='[3]EST - FPE'!D16 -> 1751989713 | PI14: ='[3]EST - FPE'!E16 -> 1071714610 | PJ14: ='[3]EST - FPE'!F16 -> 1254943361 | PK14: ='[3]EST - FPE'!G16 -> 1520064165 | PL14: ='[3]EST - FPE'!H16 -> 1585282756 | PM14: ='[3]EST - FPE'!I16 -> 0 | PN14: ='[3]EST - FPE'!J16 -> 0 | PO14: ='[3]EST - FPE'!K16 -> 0 | PP14: ='[3]EST - FPE'!L16 -> 0 | PQ14: ='[3]EST - FPE'!M16 -> 0 | PR14: ='[3]EST - FPE'!N16 -> 0
A15: Ceará | B15: CE | C15: 4076540664 | D15: 4786067700 | E15: 5733004309 | F15: 6325934186 | G15: 1.056589847e+10 | H15: 8685772023 | I15: 9459675084 | J15: 1.061258341e+10 | K15: 1.28526903e+10 | L15: 1.020294288e+10 | M15: 1.508678179e+10 | N15: 2.504826846e+10 | O15: 2.020016455e+10 | P15: 2.449739886e+10 | Q15: 3.422291871e+10 | R15: 4.059447523e+10 | S15: 7.481392194e+10 | T15: 8.014439178e+10 | U15: 9.548410031e+10 | V15: 1.169277188e+11 | W15: 1.388850893e+11 | X15: 1.884617504e+11 | Y15: 2.287751229e+11 | Z15: 3.037919957e+11 | AA15: 417670293.9 | AB15: 523009458.5 | AC15: 616923746.7 | AD15: 785258169.3 | AE15: 1030441943 | AF15: 1848526539 | AG15: 1859991531 | AH15: 2254253459 | AI15: 2755421424 | AJ15: 4040980528 | AK15: 6894141251 | AL15: 9925423312 | AM15: 4587603.66 | AN15: 6063354.98 | AO15: 7583951.38 | AP15: 9721347.23 | AQ15: 17762066.3 | AR15: 23872136.64 | AS15: 30685683.35 | AT15: 31060607.03 | AU15: 32109962.89 | AV15: 33642067.92 | AW15: 37790096.17 | AX15: 40014105.61 | AY15: 46040554.56 | AZ15: 50578882.11 | BA15: 39761743.55 | BB15: 44660204.57 | BC15: 45501178.79 | BD15: 60427531.24 | BE15: 50163012.37 | BF15: 44121993.31 | BG15: 44912099.42 | BH15: 45399642.78 | BI15: 46494099.47 | BJ15: 48480386.39 | BK15: 51804358.51 | BL15: 52648475.25 | BM15: 45747065.93 | BN15: 80596068.5 | BO15: 51847535.68 | BP15: 49546239.04 | BQ15: 51086684.52 | BR15: 46957166.51 | BS15: 49581348.57 | BT15: 46071935.41 | BU15: 49221589.3 | BV15: 65841577.5 | BW15: 75057630.01 | BX15: 55967004 | BY15: 51044415.93 | BZ15: 64010975.32 | CA15: 65325246.49 | CB15: 50737522.68 | CC15: 54484416.71 | CD15: 57279283.34 | CE15: 59002598.13 | CF15: 60305380.93 | CG15: 67081144.76 | CH15: 59044380.4 | CI15: 71532858.35 | CJ15: 58837545.56 | CK15: 55025177.67 | CL15: 65542690.27 | CM15: 62340488.96 | CN15: 44174108.29 | CO15: 46501856.93 | CP15: 60709223.67 | CQ15: 58752478.35 | CR15: 49988617.92 | CS15: 53770340.85 | CT15: 53857616.66 | CU15: 69793128.46 | CV15: 70858854.32 | CW15: 72444258.95 | CX15: 65769491.17 | CY15: 71026261.37 | CZ15: 47448046.3 | DA15: 47192603.25 | DB15: 58863421.98 | DC15: 54927174.06 | DD15: 65435739.35 | DE15: 62175956.24 | DF15: 68334056.28 | DG15: 77148210.84 | DH15: 73179903.61 | DI15: 79718754.81 | DJ15: 82685425.01 | DK15: 79087325.12 | DL15: 64150292.52 | DM15: 61031627.63 | DN15: 68047379.02 | DO15: 68614377.64 | DP15: 72546666.54 | DQ15: 78740938.2 | DR15: 88863899.07 | DS15: 103197712.5 | DT15: 84084823.48 | DU15: 73733718.3 | DV15: 86722583.14 | DW15: 97506808.14 | DX15: 84601801.93 | DY15: 76960080.58 | DZ15: 81025868.19 | EA15: 87639240.4 | EB15: 83755173.84 | EC15: 87050729.85 | ED15: 105575973.2 | EE15: 114281657.7 | EF15: 133521258 | EG15: 102181681.6 | EH15: 106720991.5 | EI15: 122314524 | EJ15: 86112349.93 | EK15: 94157565.75 | EL15: 89155056.95 | EM15: 98426697.39 | EN15: 129700319.5 | EO15: 113762787.2 | EP15: 111423362 | EQ15: 121386433.6 | ER15: 127814342.9 | ES15: 110861651 | ET15: 105554252.2 | EU15: 148052715 | EV15: 103971348.5 | EW15: 87175007.81 | EX15: 114366058.2 | EY15: 99233337.35 | EZ15: 102524087.7 | FA15: 114208070.5 | FB15: 119076309.4 | FC15: 130697069.4 | FD15: 142734385.3 | FE15: 115514498.8 | FF15: 127242308.4 | FG15: 148193300.1 | FH15: 96199366.59 | FI15: 100041682.6 | FJ15: 130151900 | FK15: 112705498.8 | FL15: 120613019.4 | FM15: 120237208.1 | FN15: 148402598 | FO15: 166865103.9 | FP15: 146072618.9 | FQ15: 140091987.5 | FR15: 152100358.1 | FS15: 171679532.7 | FT15: 166330072.2 | FU15: 136584343.3 | FV15: 140523526.6 | FW15: 117380858.5 | FX15: 135926725.1 | FY15: 164311178.9 | FZ15: 230365366.3 | GA15: 189097772.1 | GB15: 162638482.4 | GC15: 153652888.5 | GD15: 172986653.7 | GE15: 189849788.2 | GF15: 184757939.5 | GG15: 165552287 | GH15: 167498402.5 | GI15: 155624602.6 | GJ15: 141027140.2 | GK15: 173693391.3 | GL15: 211225874.2 | GM15: 187928201.5 | GN15: 201969119.5 | GO15: 164266517.6 | GP15: 196400568.4 | GQ15: 210567111.5 | GR15: 215109505 | GS15: 167287542.3 | GT15: 176515674.9 | GU15: 181780606.7 | GV15: 172006687.6 | GW15: 201674248.3 | GX15: 273013574.7 | GY15: 240636298 | GZ15: 264477783 | HA15: 208316924.3 | HB15: 241466278.3 | HC15: 254062195.2 | HD15: 219040566.2 | HE15: 198424077.3 | HF15: 242370447.2 | HG15: 213443148.7 | HH15: 203140142.2 | HI15: 257421339 | HJ15: 270938076.4 | HK15: 247205006.6 | HL15: 230458885.1 | HM15: 184232819.8 | HN15: 219278419.7 | HO15: 261157283.7 | HP15: 225409985 | HQ15: 172956155.4 | HR15: 201205016.3 | HS15: 178109860.3 | HT15: 204885400.8 | HU15: 255750748.7 | HV15: 275778615.3 | HW15: 212371125.3 | HX15: 259289844.1 | HY15: 192615051 | HZ15: 230781728.8 | IA15: 284139311.2 | IB15: 246596776.9 | IC15: 181332102 | ID15: 243021224.3 | IE15: 202866079.3 | IF15: 218382964.7 | IG15: 261789741.6 | IH15: 329972993.6 | II15: 320210773.1 | IJ15: 344980168.2 | IK15: 225210060.9 | IL15: 298515217.8 | IM15: 342633006.5 | IN15: 309250424.3 | IO15: 263071854.4 | IP15: 271363321.2 | IQ15: 216637914.5 | IR15: 284755240 | IS15: 300810063.8 | IT15: 349423908.1 | IU15: 318654510 | IV15: 385461037.9 | IW15: 261789602.2 | IX15: 329940762.2 | IY15: 369015397.1 | IZ15: 314898894 | JA15: 235155966.5 | JB15: 259489674.1 | JC15: 227049654.1 | JD15: 241023455.7 | JE15: 325782791.7 | JF15: 368235013.6 | JG15: 340465711.3 | JH15: 458060200.5 | JI15: 263808656.9 | JJ15: 283060741.1 | JK15: 406719810.5 | JL15: 339323312.4 | JM15: 241641501.4 | JN15: 315942406.5 | JO15: 261483795.9 | JP15: 261487812.7 | JQ15: 363724237.4 | JR15: 375155340.6 | JS15: 448377126.6 | JT15: 478801190.6 | JU15: 284022502.5 | JV15: 324163866.6 | JW15: 431988209.3 | JX15: 323963273 | JY15: 278243461.9 | JZ15: 338018466.6 | KA15: 296301448.3 | KB15: 280035381.6 | KC15: 370662638.5 | KD15: 407145754.1 | KE15: 456095597.1 | KF15: 465585241 | KG15: 339110461.5 | KH15: 365990047.4 | KI15: 450065666.4 | KJ15: 391602756.9 | KK15: 289969563.9 | KL15: 339139680.7 | KM15: 282742861 | KN15: 321808234.1 | KO15: 363346757.8 | KP15: 417807077.2 | KQ15: 398105990.4 | KR15: 498046824.1 | KS15: 302719904.3 | KT15: 359868953.2 | KU15: 478518587 | KV15: 395350610.6 | KW15: 286633830.4 | KX15: 355465680.6 | KY15: 289064615.7 | KZ15: 348753668.3 | LA15: 618529409.5 | LB15: 745115018.3 | LC15: 427251736.1 | LD15: 545905320.3 | LE15: 343224044.1 | LF15: 410944904.4 | LG15: 468332190.2 | LH15: 431161523.8 | LI15: 330809923.7 | LJ15: 376906724.1 | LK15: 316057978.9 | LL15: 355627145.2 | LM15: 370272473.5 | LN15: 490793472.9 | LO15: 453145095 | LP15: 585496118.4 | LQ15: 397289223.6 | LR15: 415756407.4 | LS15: 510376849 | LT15: 473714838.1 | LU15: 324316252.8 | LV15: 408538706.4 | LW15: 308559122.1 | LX15: 351972138.6 | LY15: 438974668.1 | LZ15: 528286212.1 | MA15: 544192839 | MB15: 599114213.8 | MC15: 444599237.8 | MD15: 439172297.3 | ME15: 561099005.1 | MF15: 444453520.1 | MG15: 362710115.2 | MH15: 437609595.1 | MI15: 385985913.1 | MJ15: 363347388 | MK15: 485140136.9 | ML15: 573722578.4 | MM15: 500351301.4 | MN15: 710417414.8 | MO15: 422561108.6 | MP15: 413695428 | MQ15: 431598103.5 | MR15: 352586337.5 | MS15: 359418587.3 | MT15: 385746294.5 | MU15: 310877026.3 | MV15: 414804236.9 | MW15: 542665060.7 | MX15: 566079194.5 | MY15: 603325106.8 | MZ15: 768235853.7 | NA15: 521295073.4 | NB15: 544974240.7 | NC15: 659219117.9 | ND15: 564250734.2 | NE15: 486612904 | NF15: 605235882.6 | NG15: 478620808.4 | NH15: 534179805.6 | NI15: 684625002.6 | NJ15: 712281035.3 | NK15: 728111820.8 | NL15: 967749996.1 | NM15: 603894651.5 | NN15: 703935818.5 | NO15: 797517996.2 | NP15: 737022090.2 | NQ15: 617461214.7 | NR15: 706058906.6 | NS15: 585870282.9 | NT15: 624685652.4 | NU15: 771925723.2 | NV15: 834324169 | NW15: 816970950.3 | NX15: 1068362034 | NY15: 664336734.4 | NZ15: 754710436.1 | OA15: 847510272.1 | OB15: 785433313.5 | OC15: 584676521.7 | OD15: 672385406 | OE15: 582132580 | OF15: 636482011.2 | OG15: 814715870 | OH15: 899320037.8 | OI15: ='[1]EST - FPE'!C17 -> 921815788.1 | OJ15: ='[1]EST - FPE'!D17 -> 1224237056 | OK15: ='[1]EST - FPE'!E17 -> 771467487.9 | OL15: ='[1]EST - FPE'!F17 -> 810969765.7 | OM15: ='[1]EST - FPE'!G17 -> 947331243.8 | ON15: ='[1]EST - FPE'!H17 -> 1000322138 | OO15: ='[1]EST - FPE'!I17 -> 654619389.3 | OP15: ='[1]EST - FPE'!J17 -> 848743757.5 | OQ15: ='[1]EST - FPE'!K17 -> 694400016.7 | OR15: ='[1]EST - FPE'!L17 -> 743829153.2 | OS15: ='[1]EST - FPE'!M17 -> 943326953.3 | OT15: ='[1]EST - FPE'!N17 -> 1060227434 | OU15: ='[2]EST - FPE'!C17 -> 981594898.6 | OV15: ='[2]EST - FPE'!D17 -> 1292419352 | OW15: ='[2]EST - FPE'!E17 -> 856122604.3 | OX15: ='[2]EST - FPE'!F17 -> 873293859.4 | OY15: ='[2]EST - FPE'!G17 -> 1110893565 | OZ15: ='[2]EST - FPE'!H17 -> 1129212813 | PA15: ='[2]EST - FPE'!I17 -> 699962343.3 | PB15: ='[2]EST - FPE'!J17 -> 917621221.7 | PC15: ='[2]EST - FPE'!K17 -> 742151712.1 | PD15: ='[2]EST - FPE'!L17 -> 786045118.5 | PE15: ='[2]EST - FPE'!M17 -> 1056431172 | PF15: ='[2]EST - FPE'!N17 -> 1193006008 | PG15: ='[3]EST - FPE'!C17 -> 1106871011 | PH15: ='[3]EST - FPE'!D17 -> 1378395779 | PI15: ='[3]EST - FPE'!E17 -> 841201894 | PJ15: ='[3]EST - FPE'!F17 -> 986274802.8 | PK15: ='[3]EST - FPE'!G17 -> 1194419778 | PL15: ='[3]EST - FPE'!H17 -> 1248635089 | PM15: ='[3]EST - FPE'!I17 -> 0 | PN15: ='[3]EST - FPE'!J17 -> 0 | PO15: ='[3]EST - FPE'!K17 -> 0 | PP15: ='[3]EST - FPE'!L17 -> 0 | PQ15: ='[3]EST - FPE'!M17 -> 0 | PR15: ='[3]EST - FPE'!N17 -> 0
A16: Distrito Federal | B16: DF | C16: 383490079.8 | D16: 450237011.1 | E16: 539317637.4 | F16: 595095990.8 | G16: 993959727.4 | H16: 817091666.8 | I16: 889894607.1 | J16: 998351492.9 | K16: 1209083788 | L16: 959815613.9 | M16: 1419250200 | N16: 2356351441 | O16: 1900278534 | P16: 2304529800 | Q16: 3219433070 | R16: 3818820865 | S16: 7037927315 | T16: 7539377558 | U16: 8982421191 | V16: 1.099967446e+10 | W16: 1.306525762e+10 | X16: 1.772905452e+10 | Y16: 2.152143137e+10 | Z16: 2.857845077e+10 | AA16: 39291258.83 | AB16: 49200769.84 | AC16: 58035515 | AD16: 73871142.92 | AE16: 96936175.93 | AF16: 173895380.5 | AG16: 174973920.1 | AH16: 212063097.1 | AI16: 259209184.6 | AJ16: 380144851.4 | AK16: 648548609.3 | AL16: 933708673.9 | AM16: 431567.01 | AN16: 570394.52 | AO16: 713440.72 | AP16: 914510.74 | AQ16: 1670920.71 | AR16: 2245709.86 | AS16: 2886676.75 | AT16: 2921946.75 | AU16: 3020662.2 | AV16: 3164791.02 | AW16: 3555006.12 | AX16: 3764224.08 | AY16: 4331146.78 | AZ16: 4758078.27 | BA16: 3740483.77 | BB16: 4201293.9 | BC16: 4280406.38 | BD16: 5684564.6 | BE16: 4718956.38 | BF16: 4150663.06 | BG16: 4224990.26 | BH16: 4270854.65 | BI16: 4373812.84 | BJ16: 4560667.68 | BK16: 4873361.8 | BL16: 4952769.91 | BM16: 4303537.58 | BN16: 7581867.89 | BO16: 4877423.58 | BP16: 4660935.04 | BQ16: 4805848.48 | BR16: 4417374.69 | BS16: 4664237.87 | BT16: 4334098.84 | BU16: 4630394.43 | BV16: 6193877.1 | BW16: 7060853.52 | BX16: 5264951.98 | BY16: 4801872.16 | BZ16: 6021667.91 | CA16: 6145304.58 | CB16: 4773001.97 | CC16: 5125481.4 | CD16: 5388401.28 | CE16: 5550517.69 | CF16: 5673073.62 | CG16: 6310486.19 | CH16: 5554448.25 | CI16: 6729269.73 | CJ16: 5534990.81 | CK16: 5176352.11 | CL16: 6165760.07 | CM16: 5864521.22 | CN16: 4155565.67 | CO16: 4374542.64 | CP16: 5711064.14 | CQ16: 5526988.33 | CR16: 4702550.71 | CS16: 5058306.58 | CT16: 5066516.81 | CU16: 6565609.1 | CV16: 6665864.52 | CW16: 6815007.39 | CX16: 6187095.76 | CY16: 6681612.9 | CZ16: 4463552.96 | DA16: 4439522.81 | DB16: 5537425.07 | DC16: 5167132.66 | DD16: 6155698.93 | DE16: 5849043.22 | DF16: 6428350.63 | DG16: 7257519.55 | DH16: 6884211.28 | DI16: 7499336.87 | DJ16: 7778418.77 | DK16: 7439936.75 | DL16: 6034773.83 | DM16: 5741393.44 | DN16: 6401382.2 | DO16: 6454721.16 | DP16: 6824641.13 | DQ16: 7407351.3 | DR16: 8359642.81 | DS16: 9708059.45 | DT16: 7910063.57 | DU16: 6936309.96 | DV16: 8158204.02 | DW16: 9172702.25 | DX16: 7958696.98 | DY16: 7239821.7 | DZ16: 7622300.21 | EA16: 8244436.2 | EB16: 7879052.62 | EC16: 8189073.56 | ED16: 9931788.2 | EE16: 10750753.12 | EF16: 12560669.02 | EG16: 9612478.94 | EH16: 10039502.86 | EI16: 11506424.31 | EJ16: 8100797.89 | EK16: 8857630.89 | EL16: 8387032.74 | EM16: 9259238.47 | EN16: 12201224.04 | EO16: 10701941.67 | EP16: 10481866.27 | EQ16: 11419116.62 | ER16: 12023805.65 | ES16: 10429024.76 | ET16: 9929744.85 | EU16: 13927678.46 | EV16: 9780837.25 | EW16: 8200764.71 | EX16: 10758692.84 | EY16: 9335121.06 | EZ16: 9644689.94 | FA16: 10743830.55 | FB16: 11201797.65 | FC16: 12294990.73 | FD16: 13427370.27 | FE16: 10866729.44 | FF16: 11969992.98 | FG16: 13940903.62 | FH16: 9049708.06 | FI16: 9411164.04 | FJ16: 12243705.32 | FK16: 10602479.98 | FL16: 11346359.66 | FM16: 11311006.18 | FN16: 13960592.8 | FO16: 15697405.57 | FP16: 13741406.02 | FQ16: 13178793.49 | FR16: 14308450.09 | FS16: 16150310.57 | FT16: 15647073.82 | FU16: 12848820.87 | FV16: 13219389.43 | FW16: 11042302.42 | FX16: 12786957.15 | FY16: 15457151.65 | FZ16: 21671029.46 | GA16: 17788886.67 | GB16: 15299797.01 | GC16: 14454500.39 | GD16: 16273274.64 | GE16: 17859630.63 | GF16: 17380628.06 | GG16: 15573905.7 | GH16: 15756981.52 | GI16: 14639984.31 | GJ16: 13266765.58 | GK16: 16339759.15 | GL16: 19870530.97 | GM16: 17678862.3 | GN16: 18999725.55 | GO16: 15452950.25 | GP16: 18475878.42 | GQ16: 19808559.54 | GR16: 20235873.54 | GS16: 15737145.38 | GT16: 16605258.21 | GU16: 17100543.16 | GV16: 16181086.83 | GW16: 18971986.32 | GX16: 25683050.01 | GY16: 22637240.94 | GZ16: 24880067.35 | HA16: 19596878.98 | HB16: 22715319.22 | HC16: 23900247.69 | HD16: 20605678 | HE16: 18666234.83 | HF16: 22800376.56 | HG16: 20079115.36 | HH16: 19109886.51 | HI16: 24216250.51 | HJ16: 25487802.85 | HK16: 23255175.31 | HL16: 21679827 | HM16: 17331228.77 | HN16: 20628053.48 | HO16: 24567699.93 | HP16: 21204864.7 | HQ16: 16270405.56 | HR16: 18927844.52 | HS16: 16755227.12 | HT16: 19274067.24 | HU16: 24059094.03 | HV16: 25943164.08 | HW16: 19978267.51 | HX16: 24392025.32 | HY16: 18119765.61 | HZ16: 21710197.69 | IA16: 26729675.03 | IB16: 23197957.67 | IC16: 17058351.2 | ID16: 22861596.77 | IE16: 19084104.74 | IF16: 20543815.82 | IG16: 24627196.73 | IH16: 31041360.85 | II16: 30123005.07 | IJ16: 32453122.21 | IK16: 21186057.35 | IL16: 28082051.48 | IM16: 32232319 | IN16: 29091938.42 | IO16: 24747808.23 | IP16: 25527806.62 | IQ16: 20379654.73 | IR16: 26787616.97 | IS16: 28297933.22 | IT16: 32871155.59 | IU16: 29976603.6 | IV16: 36261255.92 | IW16: 24627183.62 | IX16: 31038328.76 | IY16: 34714174.54 | IZ16: 29623303.69 | JA16: 22121692.85 | JB16: 24410823.81 | JC16: 21359112.37 | JD16: 22673661.81 | JE16: 30647178.38 | JF16: 34640762 | JG16: 32028436.28 | JH16: 43090835.45 | JI16: 24817121.03 | JJ16: 26628211.33 | JK16: 38261120.26 | JL16: 31920968.04 | JM16: 22731802.86 | JN16: 29721469.44 | JO16: 24598415.7 | JP16: 24598793.57 | JQ16: 34216422.31 | JR16: 35291773.94 | JS16: 42179925.16 | JT16: 45041990.73 | JU16: 26718686.55 | JV16: 30494882.15 | JW16: 40638179.93 | JX16: 30476011.83 | JY16: 26175038.17 | JZ16: 31798218.01 | KA16: 27873796.81 | KB16: 26343608.41 | KC16: 34869134.54 | KD16: 38301189.84 | KE16: 42906020.43 | KF16: 43798734.28 | KG16: 31900944.63 | KH16: 34429572.55 | KI16: 42338770.21 | KJ16: 36839022.34 | KK16: 27278141.08 | KL16: 31903693.37 | KM16: 26598307.57 | KN16: 30273282.11 | KO16: 34180911.89 | KP16: 39304126.38 | KQ16: 37450797.29 | KR16: 46866301.7 | KS16: 28477596.53 | KT16: 33853746.34 | KU16: 45016269.24 | KV16: 37191592.01 | KW16: 26964340.51 | KX16: 33439519.79 | KY16: 27193010.37 | KZ16: 32899362.81 | LA16: 59110559.8 | LB16: 71329266.22 | LC16: 40192608.35 | LD16: 51451209.62 | LE16: 32287919.32 | LF16: 38790866.55 | LG16: 44095184.63 | LH16: 40621481.44 | LI16: 31279303.73 | LJ16: 35548516.12 | LK16: 29830930.22 | LL16: 33697440.86 | LM16: 34852293 | LN16: 46424242.85 | LO16: 42628459.52 | LP16: 55431700.83 | LQ16: 37457153.35 | LR16: 39238696.99 | LS16: 48161552.8 | LT16: 44919128.67 | LU16: 30618942.33 | LV16: 38601564.06 | LW16: 29132206.28 | LX16: 33156401.83 | LY16: 41513156.7 | LZ16: 50435389.09 | MA16: 51539360.74 | MB16: 56657105.49 | MC16: 42291279.41 | MD16: 41437036.23 | ME16: 53095346.27 | MF16: 41904137.54 | MG16: 34371842.78 | MH16: 41630379.03 | MI16: 36940982.47 | MJ16: 34270641.76 | MK16: 46249246.26 | ML16: 55072306.48 | MM16: 47082396.21 | MN16: 67632529.4 | MO16: 39774182.55 | MP16: 38971358.59 | MQ16: 40696543.43 | MR16: 33168653.01 | MS16: 33946268.56 | MT16: 36310352.37 | MU16: 29253234.48 | MV16: 39251466.88 | MW16: 51798351.29 | MX16: 54204207.93 | MY16: 56830223.07 | MZ16: 73834097.78 | NA16: 49674350.76 | NB16: 51930762.24 | NC16: 62536701.85 | ND16: 53913907.36 | NE16: 46856657.58 | NF16: 58573934.3 | NG16: 46096389.38 | NH16: 51391070.09 | NI16: 66477668.67 | NJ16: 69050247.73 | NK16: 69530967.42 | NL16: 96095013.19 | NM16: 58597767.87 | NN16: 69222584.28 | NO16: 77290229.43 | NP16: 72136983.95 | NQ16: 61576343.63 | NR16: 70251246.7 | NS16: 58348224.21 | NT16: 61678835.13 | NU16: 77257248.85 | NV16: 82845906.31 | NW16: 77930005.17 | NX16: 103976772.6 | NY16: 63918038.36 | NZ16: 72938836.12 | OA16: 81329227 | OB16: 75783928.14 | OC16: 56467591.87 | OD16: 64884461.6 | OE16: 56396728.84 | OF16: 61427846.1 | OG16: 79380359.48 | OH16: 87423432.99 | OI16: ='[1]EST - FPE'!C18 -> 87825892.3 | OJ16: ='[1]EST - FPE'!D18 -> 118689385.8 | OK16: ='[1]EST - FPE'!E18 -> 74202424.03 | OL16: ='[1]EST - FPE'!F18 -> 77872938.88 | OM16: ='[1]EST - FPE'!G18 -> 90692269.4 | ON16: ='[1]EST - FPE'!H18 -> 96963439.97 | OO16: ='[1]EST - FPE'!I18 -> 62998113.81 | OP16: ='[1]EST - FPE'!J18 -> 82212294.03 | OQ16: ='[1]EST - FPE'!K18 -> 67199016.87 | OR16: ='[1]EST - FPE'!L18 -> 71726499.09 | OS16: ='[1]EST - FPE'!M18 -> 91592417.13 | OT16: ='[1]EST - FPE'!N18 -> 102844016.6 | OU16: ='[2]EST - FPE'!C18 -> 93463517.33 | OV16: ='[2]EST - FPE'!D18 -> 124729467.1 | OW16: ='[2]EST - FPE'!E18 -> 82279077.76 | OX16: ='[2]EST - FPE'!F18 -> 83701977.27 | OY16: ='[2]EST - FPE'!G18 -> 106687194.7 | OZ16: ='[2]EST - FPE'!H18 -> 109253965.3 | PA16: ='[2]EST - FPE'!I18 -> 67255380.49 | PB16: ='[2]EST - FPE'!J18 -> 88570233.53 | PC16: ='[2]EST - FPE'!K18 -> 71546665.14 | PD16: ='[2]EST - FPE'!L18 -> 75522579.39 | PE16: ='[2]EST - FPE'!M18 -> 102325633.9 | PF16: ='[2]EST - FPE'!N18 -> 115513530 | PG16: ='[3]EST - FPE'!C18 -> 105133431.3 | PH16: ='[3]EST - FPE'!D18 -> 131702561.7 | PI16: ='[3]EST - FPE'!E18 -> 79989747.02 | PJ16: ='[3]EST - FPE'!F18 -> 94029239.75 | PK16: ='[3]EST - FPE'!G18 -> 113831148.7 | PL16: ='[3]EST - FPE'!H18 -> 119576050.9 | PM16: ='[3]EST - FPE'!I18 -> 0 | PN16: ='[3]EST - FPE'!J18 -> 0 | PO16: ='[3]EST - FPE'!K18 -> 0 | PP16: ='[3]EST - FPE'!L18 -> 0 | PQ16: ='[3]EST - FPE'!M18 -> 0 | PR16: ='[3]EST - FPE'!N18 -> 0
A17: Espírito Santo | B17: ES | C17: 833432511.8 | D17: 978492490.1 | E17: 1172089910 | F17: 1293312063 | G17: 2160155884 | H17: 1775771516 | I17: 1933992916 | J17: 2169700434 | K17: 2627681371 | L17: 2085951059 | M17: 3084432483 | N17: 5121018780 | O17: 4129843235 | P17: 5008395683 | Q17: 6996739503 | R17: 8299378871 | S17: 1.529540854e+10 | T17: 1.638520188e+10 | U17: 1.952134423e+10 | V17: 2.390540668e+10 | W17: 2.839450366e+10 | X17: 3.853025469e+10 | Y17: 4.677216321e+10 | Z17: 6.210906425e+10 | AA17: 85391029.04 | AB17: 106927201.9 | AC17: 126127604.3 | AD17: 160542906.9 | AE17: 210669753.6 | AF17: 377923892.8 | AG17: 380267864.6 | AH17: 460873146.4 | AI17: 563334941.9 | AJ17: 826162383.5 | AK17: 1409479736 | AL17: 2029213287 | AM17: 937917.3 | AN17: 1239628.79 | AO17: 1550508.67 | AP17: 1987490.74 | AQ17: 3631383.75 | AR17: 4880563.31 | AS17: 6273565.81 | AT17: 6350217.46 | AU17: 6564754.11 | AV17: 6877986.86 | AW17: 7726034.74 | AX17: 8180724.62 | AY17: 9412808.12 | AZ17: 10340651.11 | BA17: 8129130.19 | BB17: 9130601.05 | BC17: 9302534.89 | BD17: 12354168.22 | BE17: 10255628.2 | BF17: 9020565.9 | BG17: 9182099.95 | BH17: 9281776.25 | BI17: 9505533.56 | BJ17: 9911622.01 | BK17: 10591194.89 | BL17: 10763771.21 | BM17: 9352805.53 | BN17: 16477545.38 | BO17: 10600022.29 | BP17: 10129531.35 | BQ17: 10444469.31 | BR17: 9600205.79 | BS17: 10136709.35 | BT17: 9419223.81 | BU17: 10063158 | BV17: 13461048.43 | BW17: 15345233.68 | BX17: 11442231.2 | BY17: 10435827.66 | BZ17: 13086789.1 | CA17: 13355486.61 | CB17: 10373084.54 | CC17: 11139122.12 | CD17: 11710521.48 | CE17: 12062846.33 | CF17: 12329195.08 | CG17: 13714473.03 | CH17: 12071388.54 | CI17: 14624608.19 | CJ17: 12029102 | CK17: 11249678.57 | CL17: 13399942.16 | CM17: 12745264.83 | CN17: 9031220.62 | CO17: 9507119.57 | CP17: 12411759.15 | CQ17: 12011710.35 | CR17: 10219973.98 | CS17: 10993132.18 | CT17: 11010975.35 | CU17: 14268927.31 | CV17: 14486810.73 | CW17: 14810940.41 | CX17: 13446310.66 | CY17: 14521036.42 | CZ17: 9700564.22 | DA17: 9648339.92 | DB17: 12034392.34 | DC17: 11229642.12 | DD17: 13378076.46 | DE17: 12711626.77 | DF17: 13970625.82 | DG17: 15772644.64 | DH17: 14961340.01 | DI17: 16298182.1 | DJ17: 16904706.04 | DK17: 16169088.82 | DL17: 13115271.98 | DM17: 12477673.33 | DN17: 13912015.79 | DO17: 14027936.4 | DP17: 14831877.22 | DQ17: 16098271.41 | DR17: 18167870.43 | DS17: 21098361.57 | DT17: 17190807.49 | DU17: 15074565.23 | DV17: 17730086.94 | DW17: 19934878.81 | DX17: 17296501.65 | DY17: 15734182.15 | DZ17: 16565416.25 | EA17: 17917493.88 | EB17: 17123411.91 | EC17: 17797175.22 | ED17: 21584587.49 | EE17: 23364430.05 | EF17: 27297889.74 | EG17: 20890638.09 | EH17: 21818681.94 | EI17: 25006717.56 | EJ17: 17605327.18 | EK17: 19250139.55 | EL17: 18227396.54 | EM17: 20122946.51 | EN17: 26516714.1 | EO17: 23258349.03 | EP17: 22780062.86 | EQ17: 24816973.18 | ER17: 26131133.64 | ES17: 22665223.27 | ET17: 21580146.74 | EU17: 30268788.28 | EV17: 21256528.34 | EW17: 17822583.37 | EX17: 23381685.38 | EY17: 20287860.84 | EZ17: 20960641.67 | FA17: 23349385.42 | FB17: 24344677.5 | FC17: 26720495.6 | FD17: 29181476.93 | FE17: 23616479.5 | FF17: 26014183.47 | FG17: 30297530.34 | FH17: 19667577.59 | FI17: 20453123.81 | FJ17: 26609037.89 | FK17: 23042190.62 | FL17: 24658851.75 | FM17: 24582018.61 | FN17: 30340320.45 | FO17: 34114906.28 | FP17: 29863965.53 | FQ17: 28641249.23 | FR17: 31096312.8 | FS17: 35099197.13 | FT17: 34005521.19 | FU17: 27924125.32 | FV17: 28729475.68 | FW17: 23998049.31 | FX17: 27789677.9 | FY17: 33592766.49 | FZ17: 47097282.2 | GA17: 38660286.81 | GB17: 33250790.35 | GC17: 31413721.44 | GD17: 35366432.8 | GE17: 38814033.53 | GF17: 37773025.31 | GG17: 33846506.11 | GH17: 34244381.68 | GI17: 31816830.56 | GJ17: 28832437.49 | GK17: 35510922.48 | GL17: 43184289.19 | GM17: 38421172.76 | GN17: 41291782.56 | GO17: 33583635.66 | GP17: 40153314.46 | GQ17: 43049607.79 | GR17: 43978282.04 | GS17: 34201272.16 | GT17: 36087927.12 | GU17: 37164321.46 | GV17: 35166082.61 | GW17: 41231497.32 | GX17: 55816538.65 | GY17: 49197133.29 | GZ17: 54071429.99 | HA17: 42589565.97 | HB17: 49366819.45 | HC17: 51942004.53 | HD17: 44781971.89 | HE17: 40567012.8 | HF17: 49551673.15 | HG17: 43637602.16 | HH17: 41531193.49 | HI17: 52628768.1 | HJ17: 55392211.26 | HK17: 50540079.63 | HL17: 47116401.73 | HM17: 37665666.68 | HN17: 44830600.09 | HO17: 53392567.16 | HP17: 46084174.18 | HQ17: 35360197.52 | HR17: 41135564.7 | HS17: 36413851.98 | HT17: 41888004.67 | HU17: 52287222.6 | HV17: 56381840.17 | HW17: 43418431.25 | HX17: 53010776.53 | HY17: 39379380.49 | HZ17: 47182405.82 | IA17: 58091151.17 | IB17: 50415729.46 | IC17: 37072626.47 | ID17: 49684721.98 | IE17: 41475162.42 | IF17: 44647527.87 | IG17: 53521870.63 | IH17: 67461665.1 | II17: 65465817.97 | IJ17: 70529822.18 | IK17: 46043300.51 | IL17: 61030248.04 | IM17: 70049954.32 | IN17: 63225018.27 | IO17: 53783993.47 | IP17: 55479150.84 | IQ17: 44290759.29 | IR17: 58217075.37 | IS17: 61499420.19 | IT17: 71438327.13 | IU17: 65147646.19 | IV17: 78805974.87 | IW17: 53521842.13 | IX17: 67455075.52 | IY17: 75443729.07 | IZ17: 64379825.42 | JA17: 48076701.33 | JB17: 53051630.98 | JC17: 46419398.03 | JD17: 49276286.15 | JE17: 66604994.99 | JF17: 75284182.76 | JG17: 69606859.45 | JH17: 93648584.67 | JI17: 53934629.83 | JJ17: 57870641.81 | JK17: 83152246.3 | JL17: 69373300.54 | JM17: 49402643.11 | JN17: 64593167.41 | JO17: 53459321.25 | JP17: 53460142.47 | JQ17: 74361972.55 | JR17: 76699016.07 | JS17: 91668918.73 | JT17: 97888997.53 | JU17: 58067270.08 | JV17: 66274012.18 | JW17: 88318269.85 | JX17: 66233001.62 | JY17: 56885768.24 | JZ17: 69106530.01 | KA17: 60577651.68 | KB17: 57252119.1 | KC17: 75780501 | KD17: 83239328.78 | KE17: 93246929.33 | KF17: 95187049.25 | KG17: 69329784.02 | KH17: 74825208.37 | KI17: 92014133.99 | KJ17: 80061624.86 | KK17: 59283123.12 | KL17: 69335757.76 | KM17: 57805652.48 | KN17: 65792412.53 | KO17: 74284798.34 | KP17: 85418993.87 | KQ17: 81391185.06 | KR17: 102175774.7 | KS17: 61889879.42 | KT17: 73573775.01 | KU17: 97853213.14 | KV17: 80827858.64 | KW17: 58601145.69 | KX17: 72673543.44 | KY17: 59098110.03 | KZ17: 73624974.63 | LA17: 149983233.4 | LB17: 183769064.4 | LC17: 87349916.76 | LD17: 114079110 | LE17: 70170789.57 | LF17: 87400723.2 | LG17: 96721932.37 | LH17: 89711847.04 | LI17: 71706486.64 | LJ17: 79410699.01 | LK17: 67139373.99 | LL17: 78917308.28 | LM17: 76208947.05 | LN17: 106842636.2 | LO17: 92643710.9 | LP17: 128058932.7 | LQ17: 83195494.58 | LR17: 88020548.42 | LS17: 107879074.1 | LT17: 105275937.3 | LU17: 68905198.25 | LV17: 87536680.31 | LW17: 65578872.41 | LX17: 73038131.01 | LY17: 94906258.87 | LZ17: 125498864.5 | MA17: 117398136.1 | MB17: 127759387.8 | MC17: 99183764.85 | MD17: 91971478.83 | ME17: 120243427 | MF17: 92523588.52 | MG17: 78608019.36 | MH17: 97694965.87 | MI17: 90105266.69 | MJ17: 75877044.98 | MK17: 110032239.2 | ML17: 136840738.2 | MM17: 102562743.5 | MN17: 161597866.5 | MO17: 86856681.58 | MP17: 85680384.68 | MQ17: 90177579.5 | MR17: 72084873.2 | MS17: 76233163.73 | MT17: 79318387.26 | MU17: 63726418.38 | MV17: 89493034.72 | MW17: 126214215.9 | MX17: 135146663.3 | MY17: 124000485.1 | MZ17: 170874476.5 | NA17: 112182116.8 | NB17: 117277998.2 | NC17: 139386841.7 | ND17: 122717868.3 | NE17: 109020066 | NF17: 138199975.7 | NG17: 107311661.2 | NH17: 119271856.1 | NI17: 158275151.8 | NJ17: 163672460.4 | NK17: 158707887.8 | NL17: 245932483.1 | NM17: 140438051.7 | NN17: 172241155.5 | NO17: 184429892.4 | NP17: 177136123.7 | NQ17: 159172672.4 | NR17: 180497316.4 | NS17: 150295663.8 | NT17: 155203723.3 | NU17: 201604569.3 | NV17: 211707105 | NW17: 185740386.1 | NX17: 278855999.9 | NY17: 160567302.2 | NZ17: 188076179 | OA17: 201141453.5 | OB17: 193572930.2 | OC17: 145035919.8 | OD17: 165853862.4 | OE17: 147446743 | OF17: 157137351.4 | OG17: 214205391.7 | OH17: 232966587.6 | OI17: ='[1]EST - FPE'!C19 -> 197915047.8 | OJ17: ='[1]EST - FPE'!D19 -> 280331864.7 | OK17: ='[1]EST - FPE'!E19 -> 171613192.4 | OL17: ='[1]EST - FPE'!F19 -> 179300709.1 | OM17: ='[1]EST - FPE'!G19 -> 207106565.1 | ON17: ='[1]EST - FPE'!H19 -> 228909747.8 | OO17: ='[1]EST - FPE'!I19 -> 145914924.4 | OP17: ='[1]EST - FPE'!J19 -> 193725782.3 | OQ17: ='[1]EST - FPE'!K19 -> 157959502.9 | OR17: ='[1]EST - FPE'!L19 -> 167020878 | OS17: ='[1]EST - FPE'!M19 -> 217177588.8 | OT17: ='[1]EST - FPE'!N19 -> 243247851.7 | OU17: ='[2]EST - FPE'!C19 -> 217922678.1 | OV17: ='[2]EST - FPE'!D19 -> 312584100 | OW17: ='[2]EST - FPE'!E19 -> 201777714.5 | OX17: ='[2]EST - FPE'!F19 -> 202332760.1 | OY17: ='[2]EST - FPE'!G19 -> 260640532.1 | OZ17: ='[2]EST - FPE'!H19 -> 277339393.4 | PA17: ='[2]EST - FPE'!I19 -> 164732168.4 | PB17: ='[2]EST - FPE'!J19 -> 222119480.6 | PC17: ='[2]EST - FPE'!K19 -> 178309507.6 | PD17: ='[2]EST - FPE'!L19 -> 184929783.7 | PE17: ='[2]EST - FPE'!M19 -> 261206474.7 | PF17: ='[2]EST - FPE'!N19 -> 294349947.4 | PG17: ='[3]EST - FPE'!C19 -> 250094073.2 | PH17: ='[3]EST - FPE'!D19 -> 329847852.8 | PI17: ='[3]EST - FPE'!E19 -> 192198945.4 | PJ17: ='[3]EST - FPE'!F19 -> 231122317 | PK17: ='[3]EST - FPE'!G19 -> 278902531.2 | PL17: ='[3]EST - FPE'!H19 -> 305217999.2 | PM17: ='[3]EST - FPE'!I19 -> 0 | PN17: ='[3]EST - FPE'!J19 -> 0 | PO17: ='[3]EST - FPE'!K19 -> 0 | PP17: ='[3]EST - FPE'!L19 -> 0 | PQ17: ='[3]EST - FPE'!M19 -> 0 | PR17: ='[3]EST - FPE'!N19 -> 0
A18: Goiás | B18: GO | C18: 1579687983 | D18: 1854634666 | E18: 2221579216 | F18: 2451343685 | G18: 4094359462 | H18: 3365797331 | I18: 3665690173 | J18: 4112450202 | K18: 4980507270 | L18: 3953711637 | M18: 5846233328 | N18: 9706378996 | O18: 7827704867 | P18: 9492913177 | Q18: 1.326162005e+10 | R18: 1.573064271e+10 | S18: 2.899091734e+10 | T18: 3.105651164e+10 | U18: 3.700075585e+10 | V18: 4.531030782e+10 | W18: 5.381894223e+10 | X18: 7.303024474e+10 | Y18: 8.865195815e+10 | Z18: 1.177215204e+11 | AA18: 161850156.4 | AB18: 202669818.5 | AC18: 239062261.2 | AD18: 304293025.8 | AE18: 399303450.9 | AF18: 716316946.4 | AG18: 720759710.6 | AH18: 873538961.7 | AI18: 1067745049 | AJ18: 1565908182 | AK18: 2671527892 | AL18: 3846170865 | AM18: 1777728.46 | AN18: 2349592.41 | AO18: 2938834.13 | AP18: 3767089.96 | AQ18: 6882924.76 | AR18: 9250619.7 | AS18: 11890916.63 | AT18: 12036202.21 | AU18: 12442834.93 | AV18: 13036536.82 | AW18: 14643926.23 | AX18: 15505745.44 | AY18: 17841036.5 | AZ18: 19599670.13 | BA18: 15407953.37 | BB18: 17306141.22 | BC18: 17632024.62 | BD18: 23416090.46 | BE18: 19438517.71 | BF18: 17097580.6 | BG18: 17403752.26 | BH18: 17592678.7 | BI18: 18016788.33 | BJ18: 18786488.38 | BK18: 20074550.78 | BL18: 20401651.93 | BM18: 17727307.61 | BN18: 31231539.52 | BO18: 20091282.25 | BP18: 19199513.73 | BQ18: 19796447.1 | BR18: 18196230.03 | BS18: 19213118.91 | BT18: 17853196.79 | BU18: 19073709.68 | BV18: 25514071.2 | BW18: 29085355.92 | BX18: 21687605.01 | BY18: 19780067.73 | BZ18: 24804700.07 | CA18: 25313989.33 | CB18: 19661144.45 | CC18: 21113092.07 | CD18: 22196122.41 | CE18: 22863918.92 | CF18: 23368756.35 | CG18: 25994412.17 | CH18: 22880109.83 | CI18: 27719482.31 | CJ18: 22799959.9 | CK18: 21322640.73 | CL18: 25398250.33 | CM18: 24157374.96 | CN18: 17117775.55 | CO18: 18019794.42 | CP18: 23525248.24 | CQ18: 22766995.78 | CR18: 19370938.63 | CS18: 20836382.69 | CT18: 20870202.68 | CU18: 27045324.82 | CV18: 27458301.04 | CW18: 28072656.41 | CX18: 25486137.26 | CY18: 27523172.42 | CZ18: 18386449.38 | DA18: 18287463.43 | DB18: 22809987.2 | DC18: 21284663.64 | DD18: 25356806.1 | DE18: 24093617.39 | DF18: 26479924.15 | DG18: 29895470.62 | DH18: 28357723.84 | DI18: 30891574.36 | DJ18: 32041179.79 | DK18: 30646890.94 | DL18: 24858686.47 | DM18: 23650182.04 | DN18: 26368834.71 | DO18: 26588550.65 | DP18: 28112340.05 | DQ18: 30512663.58 | DR18: 34435381.64 | DS18: 39989834.48 | DT18: 32583456.47 | DU18: 28572330.91 | DV18: 33605606.76 | DW18: 37784569.28 | DX18: 32783789.23 | DY18: 29822568.83 | DZ18: 31398089.93 | EA18: 33960817.84 | EB18: 32455714.94 | EC18: 33732765.91 | ED18: 40911427.1 | EE18: 44284940.68 | EF18: 51740420.19 | EG18: 39596115.41 | EH18: 41355129.69 | EI18: 47397732.46 | EJ18: 33369137.12 | EK18: 36486714.45 | EL18: 34548207.35 | EM18: 38141032.8 | EN18: 50259779.85 | EO18: 44083874.72 | EP18: 43177331.12 | EQ18: 47038090.93 | ER18: 49528950.7 | ES18: 42959664.18 | ET18: 40903010.07 | EU18: 57371461.27 | EV18: 40289623.81 | EW18: 33780924.47 | EX18: 44317646.44 | EY18: 38453611.41 | EZ18: 39728800.15 | FA18: 44256425.11 | FB18: 46142901.7 | FC18: 50646027.35 | FD18: 55310571.35 | FE18: 44762675.2 | FF18: 49307283.33 | FG18: 57425938.97 | FH18: 37277926.55 | FI18: 38766850.82 | FJ18: 50434770.41 | FK18: 43674168.07 | FL18: 46738387.57 | FM18: 46592758.04 | FN18: 57507043.37 | FO18: 64661393.34 | FP18: 56604160.21 | FQ18: 54286623.77 | FR18: 58939951.21 | FS18: 66527018.16 | FT18: 64454064.84 | FU18: 52927387.12 | FV18: 54453848.16 | FW18: 45485902.64 | FX18: 52672555.46 | FY18: 63671729.58 | FZ18: 89268188.63 | GA18: 73276707.59 | GB18: 63023548 | GC18: 59541567.59 | GD18: 67033536.68 | GE18: 73568119.11 | GF18: 71594992.17 | GG18: 64152667.68 | GH18: 64906801.01 | GI18: 60305620.61 | GJ18: 54649001.98 | GK18: 67307402.45 | GL18: 81851501.72 | GM18: 72823490.8 | GN18: 78264444.63 | GO18: 63654423.02 | GP18: 76106592.21 | GQ18: 81596226.58 | GR18: 83356435.78 | GS18: 64825091.23 | GT18: 68401057.06 | GU18: 70441254.89 | GV18: 66653792.96 | GW18: 78150180 | GX18: 105794667.3 | GY18: 93248246.41 | GZ18: 102486988.4 | HA18: 80724263.33 | HB18: 93569869.56 | HC18: 98450875.37 | HD18: 84879749.47 | HE18: 76890716.02 | HF18: 93920241.29 | HG18: 82710711.1 | HH18: 78718224.12 | HI18: 99752567.01 | HJ18: 104990397.2 | HK18: 95793666.86 | HL18: 89304427.81 | HM18: 71391504.6 | HN18: 84971919.4 | HO18: 101200271.7 | HP18: 87347943.73 | HQ18: 67021718.37 | HR18: 77968349.29 | HS18: 69018815.04 | HT18: 79394523.98 | HU18: 99105201.65 | HV18: 106866139.8 | HW18: 82295294.53 | HX18: 100476625.8 | HY18: 74639677.73 | HZ18: 89429531.99 | IA18: 110105967.9 | IB18: 95557973.62 | IC18: 70267456.18 | ID18: 94172422.01 | IE18: 78612022.8 | IF18: 84624924.29 | IG18: 101445353.5 | IH18: 127866840 | II18: 124083911.3 | IJ18: 133682225 | IK18: 87270471.8 | IL18: 115676732.1 | IM18: 132772683.4 | IN18: 119836699.6 | IO18: 101942181.2 | IP18: 105155182.5 | IQ18: 83948705.13 | IR18: 110344644.6 | IS18: 116566001 | IT18: 135404205.2 | IU18: 123480848.5 | IV18: 149368844.7 | IW18: 101445299.5 | IX18: 127854350.1 | IY18: 142996044 | IZ18: 122025521.1 | JA18: 91124579.66 | JB18: 100554061.3 | JC18: 87983326.97 | JD18: 93398272.73 | JE18: 126243107.5 | JF18: 142693640 | JG18: 131932841.4 | JH18: 177501527.4 | JI18: 102227697.3 | JJ18: 109688014.4 | JK18: 157606767.6 | JL18: 131490153.8 | JM18: 93637769.72 | JN18: 122429889.5 | JO18: 101326797.4 | JP18: 101328354 | JQ18: 140945682.8 | JR18: 145375315 | JS18: 173749268.6 | JT18: 185538805.9 | JU18: 110060703.7 | JV18: 125615762.7 | JW18: 167398448.7 | JX18: 125538031.3 | JY18: 107821285.1 | JZ18: 130984517 | KA18: 114818881 | KB18: 108515666.5 | KC18: 143634361.6 | KD18: 157771823.8 | KE18: 176740229.8 | KF18: 180417533.1 | KG18: 131407672.6 | KH18: 141823699.9 | KI18: 174403589.5 | KJ18: 151748803.8 | KK18: 112365231.5 | KL18: 131418995.3 | KM18: 109564833.7 | KN18: 124702938.7 | KO18: 140799406.7 | KP18: 161903160.9 | KQ18: 154268852.1 | KR18: 193126996.4 | KS18: 117306077.5 | KT18: 139451733.2 | KU18: 185437438.7 | KV18: 153201123.2 | KW18: 111072611.5 | KX18: 137745434.2 | KY18: 112014557.8 | KZ18: 136004915.8 | LA18: 248396406 | LB18: 300376690.1 | LC18: 165563032.2 | LD18: 212604140.5 | LE18: 133001714.6 | LF18: 160698761.1 | LG18: 181900313.2 | LH18: 167749706.8 | LI18: 129942047.7 | LJ18: 147065579.2 | LK18: 123558884.2 | LL18: 140477398.6 | LM18: 143701601.3 | LN18: 192980414.6 | LO18: 175596889.7 | LP18: 232430810.9 | LQ18: 155260865.2 | LR18: 163113678.2 | LS18: 200120782 | LT18: 189161409.9 | LU18: 127400675.7 | LV18: 160975085.7 | LW18: 121225084.1 | LX18: 137107772.6 | LY18: 173530639.7 | LZ18: 216326092.9 | MA18: 212106045.7 | MB18: 233215091.2 | MC18: 173942084.9 | MD18: 170619046.6 | ME18: 218535131 | MF18: 172560076.9 | MG18: 141443019.5 | MH18: 171221595.4 | MI18: 151809730 | MJ18: 141117945.9 | MK18: 190163769.4 | ML18: 226229015.9 | MM18: 194017254.7 | MN18: 283083471.6 | MO18: 163967257.4 | MP18: 160834850.2 | MQ18: 168171030.7 | MR18: 136629668.7 | MS18: 140587982.5 | MT18: 149695708.8 | MU18: 120547456.6 | MV18: 162972835.2 | MW18: 217560260.4 | MX18: 228608284.5 | MY18: 234868247.7 | MZ18: 320443605.9 | NA18: 211237174.4 | NB18: 220832603.9 | NC18: 263047820.2 | ND18: 230770901.2 | NE18: 204267666.1 | NF18: 258350799.4 | NG18: 201048055.1 | NH18: 223567980.5 | NI18: 295446051.1 | NJ18: 305739932.7 | NK18: 293666216.8 | NL18: 431240169.1 | NM18: 253867767.2 | NN18: 305928093.6 | NO18: 334065515.9 | NP18: 316561500.4 | NQ18: 277814746.5 | NR18: 315905052.8 | NS18: 262742811.1 | NT18: 274240836 | NU18: 350371257 | NV18: 371444424.5 | NW18: 330715579.5 | NX18: 459640046.7 | NY18: 276124684.5 | NZ18: 317966763.9 | OA18: 349465893.7 | OB18: 329279663.9 | OC18: 245825879.1 | OD18: 281993484.9 | OE18: 247053652.7 | OF18: 267041294.8 | OG18: 351688018.8 | OH18: 385578564.8 | OI18: ='[1]EST - FPE'!C20 -> 364527091.5 | OJ18: ='[1]EST - FPE'!D20 -> 497652641.9 | OK18: ='[1]EST - FPE'!E20 -> 309699756.6 | OL18: ='[1]EST - FPE'!F20 -> 324706412.8 | OM18: ='[1]EST - FPE'!G20 -> 377491163.8 | ON18: ='[1]EST - FPE'!H20 -> 406515873.3 | OO18: ='[1]EST - FPE'!I20 -> 263020020.4 | OP18: ='[1]EST - FPE'!J20 -> 344531732 | OQ18: ='[1]EST - FPE'!K20 -> 281462877.4 | OR18: ='[1]EST - FPE'!L20 -> 299808785.9 | OS18: ='[1]EST - FPE'!M20 -> 384368137.2 | OT18: ='[1]EST - FPE'!N20 -> 431347808.4 | OU18: ='[2]EST - FPE'!C20 -> 375937571.3 | OV18: ='[2]EST - FPE'!D20 -> 488375574.7 | OW18: ='[2]EST - FPE'!E20 -> 324869067.3 | OX18: ='[2]EST - FPE'!F20 -> 332283782.8 | OY18: ='[2]EST - FPE'!G20 -> 421850530.6 | OZ18: ='[2]EST - FPE'!H20 -> 425615225.7 | PA18: ='[2]EST - FPE'!I20 -> 265673516.2 | PB18: ='[2]EST - FPE'!J20 -> 346700632.2 | PC18: ='[2]EST - FPE'!K20 -> 280747615.2 | PD18: ='[2]EST - FPE'!L20 -> 298362402.9 | PE18: ='[2]EST - FPE'!M20 -> 397734343.8 | PF18: ='[2]EST - FPE'!N20 -> 449314129.5 | PG18: ='[3]EST - FPE'!C20 -> 434172193.9 | PH18: ='[3]EST - FPE'!D20 -> 544739628.5 | PI18: ='[3]EST - FPE'!E20 -> 330433484.1 | PJ18: ='[3]EST - FPE'!F20 -> 388694602.3 | PK18: ='[3]EST - FPE'!G20 -> 470505474.8 | PL18: ='[3]EST - FPE'!H20 -> 494875574.6 | PM18: ='[3]EST - FPE'!I20 -> 0 | PN18: ='[3]EST - FPE'!J20 -> 0 | PO18: ='[3]EST - FPE'!K20 -> 0 | PP18: ='[3]EST - FPE'!L20 -> 0 | PQ18: ='[3]EST - FPE'!M20 -> 0 | PR18: ='[3]EST - FPE'!N20 -> 0
A19: Maranhão | B19: MA | C19: 4010588371 | D19: 4708636328 | E19: 5640252927 | F19: 6223590091 | G19: 1.039495813e+10 | H19: 8545249304 | I19: 9306631778 | J19: 1.044088778e+10 | K19: 1.264475311e+10 | L19: 1.003787462e+10 | M19: 1.484270037e+10 | N19: 2.464302517e+10 | O19: 1.987335629e+10 | P19: 2.410106781e+10 | Q19: 3.366924339e+10 | R19: 3.993771771e+10 | S19: 7.360354527e+10 | T19: 7.884777614e+10 | U19: 9.393931127e+10 | V19: 1.150360043e+11 | W19: 1.366381375e+11 | X19: 1.854127229e+11 | Y19: 2.250738857e+11 | Z19: 2.988770984e+11 | AA19: 410913017.2 | AB19: 514547952.6 | AC19: 606942849 | AD19: 772553874 | AE19: 1013770943 | AF19: 1818620162 | AG19: 1829899667 | AH19: 2217783030 | AI19: 2710842852 | AJ19: 3975603545 | AK19: 6782604421 | AL19: 9764844900 | AM19: 4513383.14 | AN19: 5965259.02 | AO19: 7461254.46 | AP19: 9564070.46 | AQ19: 17474702.8 | AR19: 23485921.4 | AS19: 30189235.15 | AT19: 30558093.15 | AU19: 31590472.01 | AV19: 33097789.89 | AW19: 37178709.29 | AX19: 39366737.6 | AY19: 45295687.68 | AZ19: 49760591.93 | BA19: 39118458.36 | BB19: 43937669.66 | BC19: 44765038.2 | BD19: 59449904.74 | BE19: 49351450.33 | BF19: 43408165.86 | BG19: 44185489.25 | BH19: 44665144.87 | BI19: 45741894.91 | BJ19: 47696046.71 | BK19: 50966241.94 | BL19: 51796702.16 | BM19: 45006947.27 | BN19: 79292145.41 | BO19: 51008720.58 | BP19: 48744655.47 | BQ19: 50260178.86 | BR19: 46197470.25 | BS19: 48779196.98 | BT19: 45326560.82 | BU19: 48425258.04 | BV19: 64776359.88 | BW19: 73843310.52 | BX19: 55061542.11 | BY19: 50218594.1 | BZ19: 62975374.08 | CA19: 64268382.32 | CB19: 49916665.91 | CC19: 53602940.86 | CD19: 56352590.74 | CE19: 58048024.88 | CF19: 59329730.62 | CG19: 65995872.79 | CH19: 58089131.18 | CI19: 70375564.35 | CJ19: 57885642.6 | CK19: 54134953.12 | CL19: 64482308.19 | CM19: 61331913.66 | CN19: 43459437.69 | CO19: 45749526.87 | CP19: 59727039.78 | CQ19: 57801951.68 | CR19: 49179877.32 | CS19: 52900417.67 | CT19: 52986281.5 | CU19: 68663980.68 | CV19: 69712464.72 | CW19: 71272219.86 | CX19: 64705439.77 | CY19: 69877163.35 | CZ19: 46680408.31 | DA19: 46429097.99 | DB19: 57911100.41 | DC19: 54038535.06 | DD19: 64377087.58 | DE19: 61170042.86 | DF19: 67228514.07 | DG19: 75900068.9 | DH19: 71995962.92 | DI19: 78429025.32 | DJ19: 81347699.28 | DK19: 77807811.23 | DL19: 63112437.35 | DM19: 60044227.76 | DN19: 66946474.85 | DO19: 67504300.27 | DP19: 71372970.67 | DQ19: 77467028.34 | DR19: 87426214.94 | DS19: 101528128.8 | DT19: 82724457.59 | DU19: 72540817.71 | DV19: 85319542.27 | DW19: 95929294.75 | DX19: 83233072.1 | DY19: 75714982.29 | DZ19: 79714991.6 | EA19: 86221369.39 | EB19: 82400141.16 | EC19: 85642380.04 | ED19: 103867912.8 | EE19: 112432752.5 | EF19: 131361085.1 | EG19: 100528535.8 | EH19: 104994406.5 | EI19: 120335659 | EJ19: 84719181.71 | EK19: 92634238.04 | EL19: 87712662.3 | EM19: 96834301.55 | EN19: 127601963.6 | EO19: 111922276.5 | EP19: 109620699.8 | EQ19: 119422583.7 | ER19: 125746499.2 | ES19: 109068076.3 | ET19: 103846543.3 | EU19: 145657444.9 | EV19: 102289248.5 | EW19: 85764647.39 | EX19: 112515787.5 | EY19: 97627891.29 | EZ19: 100865402.3 | FA19: 112360355.8 | FB19: 117149833.9 | FC19: 128582587.5 | FD19: 140425157.8 | FE19: 113645648.1 | FF19: 125183719.3 | FG19: 145795755.5 | FH19: 94643005.63 | FI19: 98423158.7 | FJ19: 128046238.1 | FK19: 110882093.4 | FL19: 118661682.3 | FM19: 118291951 | FN19: 146001667.3 | FO19: 164165477.6 | FP19: 143709383.8 | FQ19: 137825510 | FR19: 149639603.2 | FS19: 168902016.2 | FT19: 163639101.9 | FU19: 134374614.2 | FV19: 138250067.5 | FW19: 115481812.9 | FX19: 133727635.2 | FY19: 161652871.3 | FZ19: 226638401.4 | GA19: 186038454.7 | GB19: 160007236.5 | GC19: 151167015.9 | GD19: 170187990 | GE19: 186778304.4 | GF19: 181768834.1 | GG19: 162873900.2 | GH19: 164788530.4 | GI19: 153106830.8 | GJ19: 138745533.4 | GK19: 170883293.6 | GL19: 207808557.4 | GM19: 184887806 | GN19: 198701563.1 | GO19: 161608932.5 | GP19: 193223102.8 | GQ19: 207160452.6 | GR19: 211629356.9 | GS19: 164581081.7 | GT19: 173659917 | GU19: 178839670 | GV19: 169223878.2 | GW19: 198411462.5 | GX19: 268596625.9 | GY19: 236743164.9 | GZ19: 260198930.5 | HA19: 204946670 | HB19: 237559717.3 | HC19: 249951851.3 | HD19: 215496819.5 | HE19: 195213874.4 | HF19: 238449258.1 | HG19: 209989959.8 | HH19: 199853640.4 | HI19: 253256649.1 | HJ19: 266554706.1 | HK19: 243205601.6 | HL19: 226730407.2 | HM19: 181252210 | HN19: 215730824.9 | HO19: 256932151.9 | HP19: 221763190.6 | HQ19: 170157985.1 | HR19: 197949822 | HS19: 175228310.8 | HT19: 201570663.3 | HU19: 251613086.5 | HV19: 271316932.3 | HW19: 208935280.1 | HX19: 255094924.6 | HY19: 189498829.4 | HZ19: 227048027.8 | IA19: 279542364.8 | IB19: 242607212.2 | IC19: 178398421.5 | ID19: 239089506.7 | IE19: 199584011.4 | IF19: 214849857 | IG19: 257554377.5 | IH19: 324634527.2 | II19: 315030244.8 | IJ19: 339398908.3 | IK19: 221566501.1 | IL19: 293685690.8 | IM19: 337089720.1 | IN19: 304247217.9 | IO19: 258815747.7 | IP19: 266973071 | IQ19: 213133039.1 | IR19: 280148328.9 | IS19: 295943409.7 | IT19: 343770755.1 | IU19: 313499159.6 | IV19: 379224858.4 | IW19: 257554240.4 | IX19: 324602817.2 | IY19: 363045283.3 | IZ19: 309804303.9 | JA19: 231351496.9 | JB19: 255291521.7 | JC19: 223376332.4 | JD19: 237124059 | JE19: 320512116.5 | JF19: 362277525.3 | JG19: 334957488.5 | JH19: 450649475.9 | JI19: 259540629.9 | JJ19: 278481244.3 | JK19: 400139696.1 | JL19: 333833571.8 | JM19: 237732105.6 | JN19: 310830933.9 | JO19: 257253381.6 | JP19: 257257333.5 | JQ19: 357839726.7 | JR19: 369085891.7 | JS19: 441123059.4 | JT19: 471054907.9 | JU19: 279427445.8 | JV19: 318919383.1 | JW19: 424999290.2 | JX19: 318722034.8 | JY19: 273741901.4 | JZ19: 332549836.6 | KA19: 291507736.8 | KB19: 275504830.6 | KC19: 364665874.8 | KD19: 400558748.6 | KE19: 448716656.7 | KF19: 458052772.4 | KG19: 333624164.6 | KH19: 360068879.2 | KI19: 442784281.3 | KJ19: 385267213.7 | KK19: 285278292.8 | KL19: 333652911.1 | KM19: 278168507 | KN19: 316601861.2 | KO19: 357468354.1 | KP19: 411047587.5 | KQ19: 391665234.6 | KR19: 490204020.8 | KS19: 297822351.8 | KT19: 354046815.2 | KU19: 470790296.6 | KV19: 388954432.7 | KW19: 281996526.5 | KX19: 349714780.9 | KY19: 284387985.2 | KZ19: 344529285.5 | LA19: 622879130.2 | LB19: 752241026.7 | LC19: 420339446.1 | LD19: 538123360.9 | LE19: 337671195.6 | LF19: 405734670.5 | LG19: 461168852.5 | LH19: 424849964.5 | LI19: 327188944.9 | LJ19: 371809055 | LK19: 312016545.9 | LL19: 352512744.9 | LM19: 364497975.4 | LN19: 485615985.3 | LO19: 445813889.4 | LP19: 578235667.4 | LQ19: 391383485.3 | LR19: 409829704.6 | LS19: 503055320.8 | LT19: 468281433.3 | LU19: 319757534.7 | LV19: 402991295.5 | LW19: 304227578.6 | LX19: 346563326 | LY19: 433238479 | LZ19: 524369710.6 | MA19: 537949158.6 | MB19: 591620345.7 | MC19: 440862236.2 | MD19: 432978112.3 | ME19: 554326963.8 | MF19: 437953866.2 | MG19: 358699164.4 | MH19: 433960739.9 | MI19: 384408534 | MJ19: 358132920.7 | MK19: 481814838.7 | ML19: 572591469.8 | MM19: 492400687.1 | MN19: 707734382.8 | MO19: 415975589.9 | MP19: 407596076.6 | MQ19: 425660017.3 | MR19: 346882021.2 | MS19: 355085874.3 | MT19: 379750107.4 | MU19: 305938457.6 | MV19: 410618604.7 | MW19: 542110283.8 | MX19: 567378691.2 | MY19: 594301029.3 | MZ19: 771389811.7 | NA19: 519185527.4 | NB19: 542769041.8 | NC19: 653757496.2 | ND19: 563424745.5 | NE19: 489496825.2 | NF19: 611760507 | NG19: 481550029.5 | NH19: 536888662.7 | NI19: 694202601.5 | NJ19: 721121406 | NK19: 724637604.2 | NL19: 992641165.7 | NM19: 608432214.1 | NN19: 716373749 | NO19: 802600769.9 | NP19: 747352194 | NQ19: 635176895.3 | NR19: 725042489.3 | NS19: 602062711.4 | NT19: 637703281.2 | NU19: 796271371.9 | NV19: 855427257.8 | NW19: 811811788.4 | NX19: 1077100207 | NY19: 664244498.6 | NZ19: 757045403.6 | OA19: 845800208 | OB19: 786933461.1 | OC19: 586198097.8 | OD19: 673730783.6 | OE19: 584957365.3 | OF19: 637815659.3 | OG19: 822048719.4 | OH19: 905914606.6 | OI19: ='[1]EST - FPE'!C21 -> 911505543.7 | OJ19: ='[1]EST - FPE'!D21 -> 1219059362 | OK19: ='[1]EST - FPE'!E21 -> 765749876.3 | OL19: ='[1]EST - FPE'!F21 -> 804423855.1 | OM19: ='[1]EST - FPE'!G21 -> 938543806.1 | ON19: ='[1]EST - FPE'!H21 -> 996018911.3 | OO19: ='[1]EST - FPE'!I21 -> 649911248.4 | OP19: ='[1]EST - FPE'!J21 -> 844850403.6 | OQ19: ='[1]EST - FPE'!K21 -> 690953022.7 | OR19: ='[1]EST - FPE'!L21 -> 739073992.2 | OS19: ='[1]EST - FPE'!M21 -> 939907003.3 | OT19: ='[1]EST - FPE'!N21 -> 1055973093 | OU19: ='[2]EST - FPE'!C21 -> 967517882.1 | OV19: ='[2]EST - FPE'!D21 -> 1276569079 | OW19: ='[2]EST - FPE'!E21 -> 845070262.4 | OX19: ='[2]EST - FPE'!F21 -> 861654483.3 | OY19: ='[2]EST - FPE'!G21 -> 1096428353 | OZ19: ='[2]EST - FPE'!H21 -> 1115806510 | PA19: ='[2]EST - FPE'!I21 -> 690900834.5 | PB19: ='[2]EST - FPE'!J21 -> 906386729.1 | PC19: ='[2]EST - FPE'!K21 -> 732925742.5 | PD19: ='[2]EST - FPE'!L21 -> 775862775 | PE19: ='[2]EST - FPE'!M21 -> 1044071269 | PF19: ='[2]EST - FPE'!N21 -> 1178982817 | PG19: ='[3]EST - FPE'!C21 -> 1079676337 | PH19: ='[3]EST - FPE'!D21 -> 1337348231 | PI19: ='[3]EST - FPE'!E21 -> 819702452.4 | PJ19: ='[3]EST - FPE'!F21 -> 958813212.2 | PK19: ='[3]EST - FPE'!G21 -> 1161551406 | PL19: ='[3]EST - FPE'!H21 -> 1208945732 | PM19: ='[3]EST - FPE'!I21 -> 0 | PN19: ='[3]EST - FPE'!J21 -> 0 | PO19: ='[3]EST - FPE'!K21 -> 0 | PP19: ='[3]EST - FPE'!L21 -> 0 | PQ19: ='[3]EST - FPE'!M21 -> 0 | PR19: ='[3]EST - FPE'!N21 -> 0
A20: Minas Gerais | B20: MG | C20: 2475016749 | D20: 2905796531 | E20: 3480716337 | F20: 3840705725 | G20: 6414942923 | H20: 5273449478 | I20: 5743314296 | J20: 6443287054 | K20: 7803337777 | L20: 6194579328 | M20: 9159736330 | N20: 1.520771877e+10 | O20: 1.226425779e+10 | P20: 1.487326571e+10 | Q20: 2.077798408e+10 | R20: 2.464638879e+10 | S20: 4.542226489e+10 | T20: 4.865858785e+10 | U20: 5.797188524e+10 | V20: 7.099108936e+10 | W20: 8.432221103e+10 | X20: 1.14422013e+11 | Y20: 1.38897734e+11 | Z20: 1.844432178e+11 | AA20: 253582892.6 | AB20: 317538147.3 | AC20: 374556942.3 | AD20: 476758919.3 | AE20: 625618944.8 | AF20: 1122307987 | AG20: 1129268802 | AH20: 1368639620 | AI20: 1672916999 | AJ20: 2453426892 | AK20: 4185684990 | AL20: 6026087059 | AM20: 2785301.76 | AN20: 3681284.3 | AO20: 4604493.92 | AP20: 5902185.01 | AQ20: 10783999.28 | AR20: 14493646.18 | AS20: 18630399.27 | AT20: 18858029.15 | AU20: 19495131.43 | AV20: 20425328.34 | AW20: 22943747.81 | AX20: 24294025.2 | AY20: 27952902.49 | AZ20: 30708286.93 | BA20: 24140806.96 | BB20: 27114841.59 | BC20: 27625427.76 | BD20: 36687761.57 | BE20: 30455797.21 | BF20: 26788073.88 | BG20: 27267776.14 | BH20: 27563781.52 | BI20: 28228266.17 | BJ20: 29434213.52 | BK20: 31452318.4 | BL20: 31964812.54 | BM20: 27774714.82 | BN20: 48932817.29 | BO20: 31478532.85 | BP20: 30081331.59 | BQ20: 31016592.32 | BR20: 28509411.1 | BS20: 30102647.88 | BT20: 27971954.95 | BU20: 29884224.88 | BV20: 39974826.85 | BW20: 45570228.96 | BX20: 33979612.57 | BY20: 30990929.52 | BZ20: 38863401.39 | CA20: 39661343.4 | CB20: 30804603.4 | CC20: 33079479.66 | CD20: 34776345.28 | CE20: 35822632.63 | CF20: 36613599.65 | CG20: 40727413.4 | CH20: 35848000.17 | CI20: 43430211.33 | CJ20: 35722423.19 | CK20: 33407795.39 | CL20: 39793361.48 | CM20: 37849188.1 | CN20: 26819714.79 | CO20: 28232976.03 | CP20: 36858787.35 | CQ20: 35670775.8 | CR20: 30349915.98 | CS20: 32645938.12 | CT20: 32698926.44 | CU20: 42373957.81 | CV20: 43020998.88 | CW20: 43983555.93 | CX20: 39931060.6 | CY20: 43122637.81 | CZ20: 28807442.13 | DA20: 28652353.36 | DB20: 35738133.71 | DC20: 33348293.84 | DD20: 39728427.68 | DE20: 37749294.26 | DF20: 41488101.73 | DG20: 46839496.97 | DH20: 44430192.7 | DI20: 48400168.09 | DJ20: 50201341.95 | DK20: 48016804.06 | DL20: 38947985.95 | DM20: 37054530.58 | DN20: 41314049.52 | DO20: 41658295.09 | DP20: 44045731.33 | DQ20: 47806499.92 | DR20: 53952519.25 | DS20: 62655101.01 | DT20: 51050967.89 | DU20: 44766433.81 | DV20: 52652448.13 | DW20: 59199945.07 | DX20: 51364844.38 | DY20: 46725276.22 | DZ20: 49193764.4 | EA20: 53208984.21 | EB20: 50850825.54 | EC20: 52851677.98 | ED20: 64099029.92 | EE20: 69384569.01 | EF20: 81065633.18 | EG20: 62038231.5 | EH20: 64794212.38 | EI20: 74261615.53 | EJ20: 52281953.26 | EK20: 57166497.66 | EL20: 54129291.84 | EM20: 59758443.42 | EN20: 78745801.84 | EO20: 69069543.76 | EP20: 67649193.3 | EQ20: 73698137.95 | ER20: 77600756.53 | ES20: 67308158.01 | ET20: 64085842.33 | EU20: 89888211.54 | EV20: 63124803.63 | EW20: 52927131.67 | EX20: 69435811.62 | EY20: 60248184.01 | EZ20: 62246118.79 | FA20: 69339891.52 | FB20: 72295577.21 | FC20: 79350965.06 | FD20: 86659259.27 | FE20: 70133071.89 | FF20: 77253453.46 | FG20: 89973565.86 | FH20: 58406149.53 | FI20: 60738959.91 | FJ20: 79019972.81 | FK20: 68427625.36 | FL20: 73228569.97 | FM20: 73000401.21 | FN20: 90100638.26 | FO20: 101309900 | FP20: 88686022.89 | FQ20: 85054963.08 | FR20: 92345683.47 | FS20: 104232915.6 | FT20: 100985062.7 | FU20: 82925344.11 | FV20: 85316966.21 | FW20: 71266207.07 | FX20: 82526080.1 | FY20: 99759318.84 | FZ20: 139863228.9 | GA20: 114808165 | GB20: 98743763.67 | GC20: 93288281.38 | GD20: 105026516.5 | GE20: 115264741.5 | GF20: 112173294.1 | GG20: 100512840.9 | GH20: 101694398.7 | GI20: 94485381.08 | GJ20: 85622728.46 | GK20: 105455602.7 | GL20: 128242944.1 | GM20: 114098076 | GN20: 122622830.2 | GO20: 99732203.33 | GP20: 119241959.4 | GQ20: 127842985.2 | GR20: 130600838.2 | GS20: 101566377.8 | GT20: 107169114.2 | GU20: 110365646.6 | GV20: 104431543.3 | GW20: 122443803.2 | GX20: 165756514.1 | GY20: 146099086.8 | GZ20: 160574123.2 | HA20: 126476814.4 | HB20: 146602998.1 | HC20: 154250439.4 | HD20: 132987529.1 | HE20: 120470505.6 | HF20: 147151952.1 | HG20: 129589132.5 | HH20: 123333800.8 | HI20: 156289898.3 | HJ20: 164496403.4 | HK20: 150087189.7 | HL20: 139920007.6 | HM20: 111854474.8 | HN20: 133131938.7 | HO20: 158558126.8 | HP20: 136854635.9 | HQ20: 105007999.9 | HR20: 122158915.2 | HS20: 108137002.4 | HT20: 124393411.1 | HU20: 155275621.9 | HV20: 167435271.3 | HW20: 128938267.9 | HX20: 157424335.9 | HY20: 116943633.5 | HZ20: 140116017.8 | IA20: 172511355.2 | IB20: 149717911.2 | IC20: 110093343 | ID20: 147547062.6 | IE20: 123167407.2 | IF20: 132588275.2 | IG20: 158942115 | IH20: 200338658 | II20: 194411657.4 | IJ20: 209450061.9 | IK20: 136733254.7 | IL20: 181239493.2 | IM20: 208025014.3 | IN20: 187757229.2 | IO20: 159720532.6 | IP20: 164754584.9 | IQ20: 131528791.5 | IR20: 172885308.1 | IS20: 182632778.1 | IT20: 212148018.7 | IU20: 193466793.2 | IV20: 234027476.7 | IW20: 158942030.4 | IX20: 200319089.2 | IY20: 224042727.3 | IZ20: 191186621.5 | JA20: 142771777.3 | JB20: 157545660.1 | JC20: 137850138.9 | JD20: 146334144.3 | JE20: 197794633.4 | JF20: 223568928.1 | JG20: 206709170.3 | JH20: 278105080.3 | JI20: 160167872.3 | JJ20: 171856515.9 | JK20: 246934454 | JL20: 206015578.1 | JM20: 146709382.5 | JN20: 191820176.1 | JO20: 158756364.2 | JP20: 158758803 | JQ20: 220830271.1 | JR20: 227770511.3 | JS20: 272226132.3 | JT20: 290697693 | JU20: 172440436.3 | JV20: 196811724.8 | JW20: 262275822 | JX20: 196689937.1 | JY20: 168931769.7 | JZ20: 205223358.6 | KA20: 179895432.9 | KB20: 170019709.6 | KC20: 225042827.8 | KD20: 247193060 | KE20: 276912297.7 | KF20: 282673807.2 | KG20: 205886348.6 | KH20: 222205927 | KI20: 273251306.6 | KJ20: 237756338.6 | KK20: 176051114.6 | KL20: 205904088.6 | KM20: 171663519.2 | KN20: 195381534.3 | KO20: 220601089.4 | KP20: 253665938.7 | KQ20: 241704689.2 | KR20: 302623057.4 | KS20: 183792312 | KT20: 218489587.2 | KU20: 290541145.3 | KV20: 240031797.5 | KW20: 174025868.9 | KX20: 215816199.5 | KY20: 175501687.4 | KZ20: 213329243.9 | LA20: 391611939.4 | LB20: 473870102.5 | LC20: 259400136.1 | LD20: 332410152.1 | LE20: 208383854.8 | LF20: 250829854.9 | LG20: 284724084 | LH20: 262388015.9 | LI20: 202447777.3 | LJ20: 229758823.5 | LK20: 192881729 | LL20: 218355085.2 | LM20: 225005674.7 | LN20: 300533907.9 | LO20: 275120940.2 | LP20: 363919090.1 | LQ20: 243200482.4 | LR20: 255472950.4 | LS20: 313439543.4 | LT20: 296123560.6 | LU20: 199531166 | LV20: 252092839.8 | LW20: 189858508.8 | LX20: 214785128.6 | LY20: 271730554.7 | LZ20: 338415626.8 | MA20: 336356657.8 | MB20: 368860039.8 | MC20: 277972975.2 | MD20: 268756971.1 | ME20: 346028092.1 | MF20: 271451484.4 | MG20: 224535378 | MH20: 273671293.3 | MI20: 245204982.2 | MJ20: 222146197.7 | MK20: 305070680.6 | ML20: 367291572.2 | MM20: 304032247.8 | MN20: 446625176 | MO20: 256988100.6 | MP20: 252200791.9 | MQ20: 263853433.7 | MR20: 214068045.1 | MS20: 220790806.3 | MT20: 234625578.8 | MU20: 188902796.2 | MV20: 256229511.9 | MW20: 343759118.5 | MX20: 361853820.5 | MY20: 367703180.2 | MZ20: 496084796 | NA20: 328534944.8 | NB20: 343458552.3 | NC20: 410140558.7 | ND20: 358380843.7 | NE20: 315914785.5 | NF20: 398517856.2 | NG20: 310902604.5 | NH20: 345925966.8 | NI20: 454973736 | NJ20: 471213121.2 | NK20: 456560189.4 | NL20: 658330752.1 | NM20: 391644087.3 | NN20: 469170857.2 | NO20: 515744146.6 | NP20: 486500905.5 | NQ20: 423471255.9 | NR20: 481999507.4 | NS20: 400723522.5 | NT20: 419823267.8 | NU20: 533262193.3 | NV20: 567230373.2 | NW20: 513199080.4 | NX20: 704141614.5 | NY20: 426069179.8 | NZ20: 489233313.5 | OA20: 540150455.8 | OB20: 507165913.7 | OC20: 378397763.4 | OD20: 434299618.9 | OE20: 379544892.9 | OF20: 411237501.3 | OG20: 538394542.9 | OH20: 591105500.1 | OI20: ='[1]EST - FPE'!C22 -> 587224003.3 | OJ20: ='[1]EST - FPE'!D22 -> 830846981.5 | OK20: ='[1]EST - FPE'!E22 -> 508873309.8 | OL20: ='[1]EST - FPE'!F22 -> 531723951.5 | OM20: ='[1]EST - FPE'!G22 -> 614302057.1 | ON20: ='[1]EST - FPE'!H22 -> 678449505.4 | OO20: ='[1]EST - FPE'!I22 -> 432657096.9 | OP20: ='[1]EST - FPE'!J22 -> 574194559.1 | OQ20: ='[1]EST - FPE'!K22 -> 468211263.1 | OR20: ='[1]EST - FPE'!L22 -> 495177712.8 | OS20: ='[1]EST - FPE'!M22 -> 643613269.7 | OT20: ='[1]EST - FPE'!N22 -> 720914397.6 | OU20: ='[2]EST - FPE'!C22 -> 606115966 | OV20: ='[2]EST - FPE'!D22 -> 813154940.5 | OW20: ='[2]EST - FPE'!E22 -> 535536856.9 | OX20: ='[2]EST - FPE'!F22 -> 544221373.1 | OY20: ='[2]EST - FPE'!G22 -> 694208535.8 | OZ20: ='[2]EST - FPE'!H22 -> 712960301.1 | PA20: ='[2]EST - FPE'!I22 -> 437711114.4 | PB20: ='[2]EST - FPE'!J22 -> 577450529.3 | PC20: ='[2]EST - FPE'!K22 -> 466242420.5 | PD20: ='[2]EST - FPE'!L22 -> 491505497 | PE20: ='[2]EST - FPE'!M22 -> 668033906.3 | PF20: ='[2]EST - FPE'!N22 -> 754028751.2 | PG20: ='[3]EST - FPE'!C22 -> 703640385.6 | PH20: ='[3]EST - FPE'!D22 -> 900700010.1 | PI20: ='[3]EST - FPE'!E22 -> 537586452.7 | PJ20: ='[3]EST - FPE'!F22 -> 637973237.6 | PK20: ='[3]EST - FPE'!G22 -> 771288570.5 | PL20: ='[3]EST - FPE'!H22 -> 824440804.8 | PM20: ='[3]EST - FPE'!I22 -> 0 | PN20: ='[3]EST - FPE'!J22 -> 0 | PO20: ='[3]EST - FPE'!K22 -> 0 | PP20: ='[3]EST - FPE'!L22 -> 0 | PQ20: ='[3]EST - FPE'!M22 -> 0 | PR20: ='[3]EST - FPE'!N22 -> 0
A21: Mato Grosso do Sul | B21: MS | C21: 740088070.4 | D21: 868901331.2 | E21: 1040815840 | F21: 1148461112 | G21: 1918218425 | H21: 1576885106 | I21: 1717385709 | J21: 1926693985 | K21: 2333381057 | L21: 1852324540 | M21: 2738976045 | N21: 4547464677 | O21: 3667300793 | P21: 4447455366 | Q21: 6213104679 | R21: 7369848438 | S21: 1.358232278e+10 | T21: 1.455005927e+10 | U21: 1.733495368e+10 | V21: 2.122800113e+10 | W21: 2.521431925e+10 | X21: 34214866165 | Y21: 4.153368093e+10 | Z21: 5.515284906e+10 | AA21: 75827233.78 | AB21: 94951355.3 | AC21: 112001312.6 | AD21: 142562101.4 | AE21: 187074741.2 | AF21: 335596416.8 | AG21: 337677863.8 | AH21: 409255354 | AI21: 500241428.3 | AJ21: 733632196.7 | AK21: 1251618006 | AL21: 1801941399 | AM21: 832870.56 | AN21: 1100790.36 | AO21: 1376851.7 | AP21: 1764891.78 | AQ21: 3224668.77 | AR21: 4333940.22 | AS21: 5570926.49 | AT21: 5638993.08 | AU21: 5829501.54 | AV21: 6107652.29 | AW21: 6860718.92 | AX21: 7264483.47 | AY21: 8358573.62 | AZ21: 9182498.22 | BA21: 7218667.63 | BB21: 8107973.74 | BC21: 8260651.01 | BD21: 10970501.4 | BE21: 9106997.8 | BF21: 8010262.57 | BG21: 8153704.79 | BH21: 8242217.28 | BI21: 8440913.81 | BJ21: 8801520.38 | BK21: 9404981.08 | BL21: 9558228.78 | BM21: 8305291.37 | BN21: 14632060.31 | BO21: 9412819.78 | BP21: 8995023.79 | BQ21: 9274688.79 | BR21: 8524982.7 | BS21: 9001397.91 | BT21: 8364270.69 | BU21: 8936084.3 | BV21: 11953411 | BW21: 13626567.47 | BX21: 10160701.24 | BY21: 9267014.94 | BZ21: 11621068.7 | CA21: 11859672.14 | CB21: 9211299.1 | CC21: 9891540.42 | CD21: 10398943.07 | CE21: 10711807.57 | CF21: 10948325.28 | CG21: 12178452.02 | CH21: 10719393.07 | CI21: 12986652.05 | CJ21: 10681842.6 | CK21: 9989714.59 | CL21: 11899148.64 | CM21: 11317795.2 | CN21: 8019723.95 | CO21: 8442322.18 | CP21: 11021642.07 | CQ21: 10666398.74 | CR21: 9075336.94 | CS21: 9761901.36 | CT21: 9777746.1 | CU21: 12670807.45 | CV21: 12864287.92 | CW21: 13152115.08 | CX21: 11940323.96 | CY21: 12894680.36 | CZ21: 8614101 | DA21: 8567725.83 | DB21: 10686540.35 | DC21: 9971922.19 | DD21: 11879731.94 | DE21: 11287924.6 | DF21: 12405915.75 | DG21: 14006108.46 | DH21: 13285669.99 | DI21: 14472785.69 | DJ21: 15011378.99 | DK21: 14358150.88 | DL21: 11646361.53 | DM21: 11080173.93 | DN21: 12353870.08 | DO21: 12456807.57 | DP21: 13170706.94 | DQ21: 14295265.01 | DR21: 16133068.96 | DS21: 18735345.04 | DT21: 15265437 | DU21: 13386213.98 | DV21: 15744317.23 | DW21: 17702172.42 | DX21: 15359293.53 | DY21: 13971953.76 | DZ21: 14710089.6 | EA21: 15910734.58 | EB21: 15205589.79 | EC21: 15803891.69 | ED21: 19167113.74 | EE21: 20747613.84 | EF21: 24240526.11 | EG21: 18550886.59 | EH21: 19374989.56 | EI21: 22205965.23 | EJ21: 15633530.51 | EK21: 17094123.92 | EL21: 16185928.14 | EM21: 17869176.51 | EN21: 23546842.11 | EO21: 20653413.9 | EP21: 20228695.9 | EQ21: 22037472.21 | ER21: 23204446.71 | ES21: 20126718.3 | ET21: 19163170.28 | EU21: 26878683.97 | EV21: 18875797.13 | EW21: 15826454.07 | EX21: 20762936.63 | EY21: 18015620.45 | EZ21: 18613049.79 | FA21: 20734254.21 | FB21: 21618073.61 | FC21: 23727800.11 | FD21: 25913151.48 | FE21: 20971433.84 | FF21: 23100594.93 | FG21: 26904207.02 | FH21: 17464808.94 | FI21: 18162373.91 | FJ21: 23628825.67 | FK21: 20461465.26 | FL21: 21897060.3 | FM21: 21828832.55 | FN21: 26942204.58 | FO21: 30294036.83 | FP21: 26519201.37 | FQ21: 25433429.29 | FR21: 27613525.74 | FS21: 31168087.04 | FT21: 30196902.83 | FU21: 24796623.29 | FV21: 25511774.41 | FW21: 21310267.81 | FX21: 24677233.94 | FY21: 29830376.66 | FZ21: 41822386.6 | GA21: 34330334.71 | GB21: 29526701.85 | GC21: 27895384.6 | GD21: 31405392.33 | GE21: 34466861.77 | GF21: 33542446.46 | GG21: 30055697.44 | GH21: 30409010.96 | GI21: 28253345.61 | GJ21: 25603204.46 | GK21: 31533699.17 | GL21: 38347648.79 | GM21: 34118001.42 | GN21: 36667102.94 | GO21: 29822268.42 | GP21: 35656143.29 | GQ21: 38228051.78 | GR21: 39052714.44 | GS21: 30370729.75 | GT21: 32046079.39 | GU21: 33001917.55 | GV21: 31227481.35 | GW21: 36613569.6 | GX21: 49565086.28 | GY21: 43687054.38 | GZ21: 48015429.89 | HA21: 37819534.57 | HB21: 43837735.71 | HC21: 46124500.01 | HD21: 39766391.08 | HE21: 36023507.37 | HF21: 44001885.8 | HG21: 38750190.76 | HH21: 36879699.88 | HI21: 46734346.01 | HJ21: 49188283.59 | HK21: 44879590.64 | HL21: 41839364.78 | HM21: 33447112.02 | HN21: 39809572.85 | HO21: 47412599.6 | HP21: 40922746.69 | HQ21: 31399855.4 | HR21: 36528381.43 | HS21: 32335500.57 | HT21: 37196548.12 | HU21: 46431053.64 | HV21: 50067074.11 | HW21: 38555566.97 | HX21: 47073569.54 | HY21: 34968889.88 | HZ21: 41897976.41 | IA21: 51584942.28 | IB21: 44769167.76 | IC21: 32920492.28 | ID21: 44120033.12 | IE21: 36829944.21 | IF21: 39647004.72 | IG21: 47527421.14 | IH21: 59905958.64 | II21: 58133646.35 | IJ21: 62630482.12 | IK21: 40886450.82 | IL21: 54194860.25 | IM21: 62204359.48 | IN21: 56143816.2 | IO21: 47760186.24 | IP21: 49265485.98 | IQ21: 39330194.23 | IR21: 51696763 | IS21: 54611485.13 | IT21: 63437234.53 | IU21: 57851109.76 | IV21: 69979705.7 | IW21: 47527395.77 | IX21: 59900107.03 | IY21: 66994031.46 | IZ21: 57169285 | JA21: 42692110.77 | JB21: 47109848.34 | JC21: 41220425.46 | JD21: 43757342.05 | JE21: 59145235.53 | JF21: 66852354.29 | JG21: 61810891.2 | JH21: 83159943.23 | JI21: 47893951.25 | JJ21: 51389129.89 | JK21: 73839194.77 | JL21: 61603490.83 | JM21: 43869547.09 | JN21: 57358732.61 | JO21: 47471877.26 | JP21: 47472606.53 | JQ21: 66033431.6 | JR21: 68108726.26 | JS21: 81401999.82 | JT21: 86925429.82 | JU21: 51563735.85 | JV21: 58851322.8 | JW21: 78426623.62 | JX21: 58814905.44 | JY21: 50514562.15 | JZ21: 61366598.64 | KA21: 53792954.72 | KB21: 50839881.76 | KC21: 67293084.87 | KD21: 73916523.97 | KE21: 82803273.19 | KF21: 84526099.74 | KG21: 61564848.2 | KH21: 66444785.03 | KI21: 81708551 | KJ21: 71094722.91 | KK21: 52643413.36 | KL21: 61570152.93 | KM21: 51331419.41 | KN21: 58423662.32 | KO21: 65964900.89 | KP21: 75852066.55 | KQ21: 72275373.13 | KR21: 90698057.69 | KS21: 54958213.54 | KT21: 65333512.87 | KU21: 86891528.39 | KV21: 71775139.28 | KW21: 52037818.08 | KX21: 64534107.35 | KY21: 52479122.41 | KZ21: 65154381.23 | LA21: 130911046.5 | LB21: 160148709.1 | LC21: 77566726.63 | LD21: 101532412.5 | LE21: 62311661.84 | LF21: 77927116.57 | LG21: 85979735.23 | LH21: 79809672.28 | LI21: 64054816.87 | LJ21: 70735934.92 | LK21: 59854736.4 | LL21: 70657085.66 | LM21: 67720884.42 | LN21: 95481892.66 | LO21: 82267615.79 | LP21: 109094791 | LQ21: 72787391.35 | LR21: 76491614.82 | LS21: 93841858.71 | LT21: 88824644.53 | LU21: 59749890.13 | LV21: 75513453.8 | LW21: 56854095.28 | LX21: 64261223.66 | LY21: 81423262.9 | LZ21: 101768708.1 | MA21: 101852059.6 | MB21: 111391464.8 | MC21: 84839313.47 | MD21: 80817722.37 | ME21: 104617294.6 | MF21: 81514011.18 | MG21: 68065032.56 | MH21: 83540607.34 | MI21: 75643398.51 | MJ21: 66757150.31 | MK21: 93473148.92 | ML21: 113882763.2 | MM21: 90929136.38 | MN21: 134550240 | MO21: 76873914.24 | MP21: 75481252.1 | MQ21: 79016783.94 | MR21: 64011368.1 | MS21: 66189660.36 | MT21: 70186284.04 | MU21: 56496679.87 | MV21: 76904924.5 | MW21: 103724472.3 | MX21: 109388374.7 | MY21: 109926890.9 | MZ21: 147812540.3 | NA21: 98025187.14 | NB21: 102477947.9 | NC21: 122465184.9 | ND21: 106882714.6 | NE21: 94101151.05 | NF21: 118612859.4 | NG21: 92605239.97 | NH21: 103055037.5 | NI21: 135347400.9 | NJ21: 140213185.6 | NK21: 135660675.6 | NL21: 192650309 | NM21: 115620928.5 | NN21: 137775043 | NO21: 152318855.8 | NP21: 143123324.3 | NQ21: 123699877.4 | NR21: 140915719.3 | NS21: 117112765.9 | NT21: 123093193.1 | NU21: 155565170.1 | NV21: 165958447 | NW21: 152844160.8 | NX21: 208570740.8 | NY21: 126592225.2 | NZ21: 145183238.7 | OA21: 160602603.1 | OB21: 150571260.4 | OC21: 112312571.2 | OD21: 128933779.1 | OE21: 112559363.5 | OF21: 122082847.5 | OG21: 159428512 | OH21: 175142252.7 | OI21: ='[1]EST - FPE'!C23 -> 167788271.7 | OJ21: ='[1]EST - FPE'!D23 -> 223638308.4 | OK21: ='[1]EST - FPE'!E23 -> 140696679.2 | OL21: ='[1]EST - FPE'!F23 -> 147850386.6 | OM21: ='[1]EST - FPE'!G23 -> 172603208.1 | ON21: ='[1]EST - FPE'!H23 -> 182727658.5 | OO21: ='[1]EST - FPE'!I23 -> 119400001.4 | OP21: ='[1]EST - FPE'!J23 -> 155016160.9 | OQ21: ='[1]EST - FPE'!K23 -> 126801838.9 | OR21: ='[1]EST - FPE'!L23 -> 135727620.2 | OS21: ='[1]EST - FPE'!M23 -> 172376629.6 | OT21: ='[1]EST - FPE'!N23 -> 193699419 | OU21: ='[2]EST - FPE'!C23 -> 185291490.1 | OV21: ='[2]EST - FPE'!D23 -> 254508078.8 | OW21: ='[2]EST - FPE'!E23 -> 166419424.6 | OX21: ='[2]EST - FPE'!F23 -> 168322205.6 | OY21: ='[2]EST - FPE'!G23 -> 215457260.9 | OZ21: ='[2]EST - FPE'!H23 -> 224106546.1 | PA21: ='[2]EST - FPE'!I23 -> 135965018.4 | PB21: ='[2]EST - FPE'!J23 -> 180777009.8 | PC21: ='[2]EST - FPE'!K23 -> 145659470.5 | PD21: ='[2]EST - FPE'!L23 -> 152661004.3 | PE21: ='[2]EST - FPE'!M23 -> 210378239.8 | PF21: ='[2]EST - FPE'!N23 -> 237318904.9 | PG21: ='[3]EST - FPE'!C23 -> 215346635.4 | PH21: ='[3]EST - FPE'!D23 -> 279305707.9 | PI21: ='[3]EST - FPE'!E23 -> 164949221.5 | PJ21: ='[3]EST - FPE'!F23 -> 196890794 | PK21: ='[3]EST - FPE'!G23 -> 237840311.4 | PL21: ='[3]EST - FPE'!H23 -> 256896774 | PM21: ='[3]EST - FPE'!I23 -> 0 | PN21: ='[3]EST - FPE'!J23 -> 0 | PO21: ='[3]EST - FPE'!K23 -> 0 | PP21: ='[3]EST - FPE'!L23 -> 0 | PQ21: ='[3]EST - FPE'!M23 -> 0 | PR21: ='[3]EST - FPE'!N23 -> 0
A22: Mato Grosso | B22: MT | C22: 1282319263 | D22: 1505508545 | E22: 1803377536 | F22: 1989889941 | G22: 3323615843 | H22: 2732202054 | I22: 2975641501 | J22: 3338301087 | K22: 4042950557 | L22: 3209444299 | M22: 4745707818 | N22: 7879199495 | O22: 6354176801 | P22: 7705917597 | Q22: 1.07651834e+10 | R22: 1.276942433e+10 | S22: 2.353351558e+10 | T22: 2.521027161e+10 | U22: 3.003554023e+10 | V22: 3.678085871e+10 | W22: 4.368778333e+10 | X22: 5.928264987e+10 | Y22: 7.196365032e+10 | Z22: 9.556100626e+10 | AA22: 131382637.3 | AB22: 164518192.9 | AC22: 194059932 | AD22: 247011316.6 | AE22: 324136482.8 | AF22: 581473701.5 | AG22: 585080136.5 | AH22: 709099423.1 | AI22: 866747141.6 | AJ22: 1271133443 | AK22: 2168625522 | AL22: 3122147564 | AM22: 1443079.57 | AN22: 1907292.85 | AO22: 2385612.64 | AP22: 3057953.26 | AQ22: 5587247.04 | AR22: 7509234.71 | AS22: 9652508.36 | AT22: 9770444.6 | AU22: 10100530.65 | AV22: 10582470.61 | AW22: 11887277.03 | AX22: 12586862.88 | AY22: 14482546.56 | AZ22: 15910125.82 | BA22: 12507479.72 | BB22: 14048342.78 | BC22: 14312880.16 | BD22: 19008123.23 | BE22: 15779309.55 | BF22: 13879042.69 | BG22: 14127578.98 | BH22: 14280940.93 | BI22: 14625213.94 | BJ22: 15250021.63 | BK22: 16295612.45 | BL22: 16561138.36 | BM22: 14390226.59 | BN22: 25352351.33 | BO22: 16309194.29 | BP22: 15585296.95 | BQ22: 16069860.47 | BR22: 14770876.61 | BS22: 15596341.01 | BT22: 14492417.76 | BU22: 15483174.91 | BV22: 20711169.12 | BW22: 23610176.55 | BX22: 17605016.9 | BY22: 16056564.42 | BZ22: 20135333.73 | CA22: 20548751.71 | CB22: 15960027.88 | CC22: 17138653.29 | CD22: 18017808.33 | CE22: 18559895.35 | CF22: 18969699.56 | CG22: 21101088.2 | CH22: 18573038.41 | CI22: 22501422.12 | CJ22: 18507976.32 | CK22: 17308755.42 | CL22: 20617150.99 | CM22: 19609864.47 | CN22: 13895436.04 | CO22: 14627654.15 | CP22: 19096732.6 | CQ22: 18481217.53 | CR22: 15724451.93 | CS22: 16914033.15 | CT22: 16941486.69 | CU22: 21954171.57 | CV22: 22289406.96 | CW22: 22788112.87 | CX22: 20688493.62 | CY22: 22342066.65 | CZ22: 14925288.1 | DA22: 14844935.76 | DB22: 18516116.04 | DC22: 17277927.34 | DD22: 20583508.44 | DE22: 19558108.96 | DF22: 21495204.86 | DG22: 24267791.02 | DH22: 23019517.75 | DI22: 25076382.99 | DJ22: 26009580.68 | DK22: 24877760.05 | DL22: 20179157.44 | DM22: 19198148.2 | DN22: 21405027.48 | DO22: 21583382.95 | DP22: 22820326.28 | DQ22: 24768800.39 | DR22: 27953085.48 | DS22: 32461939.09 | DT22: 26449776.38 | DU22: 23193726.05 | DV22: 27279511.76 | DW22: 30671804.54 | DX22: 26612397.43 | DY22: 24208612.66 | DZ22: 25487549.43 | EA22: 27567856.05 | EB22: 26346081.55 | EC22: 27382733.78 | ED22: 33210046.29 | EE22: 35948512.05 | EF22: 42000533.15 | EG22: 32142335.74 | EH22: 33570223.99 | EI22: 38475335.62 | EJ22: 27087556.41 | EK22: 29618264.69 | EL22: 28044672.29 | EM22: 30961165.49 | EN22: 40798616.27 | EO22: 35785295.8 | EP22: 35049404.7 | EQ22: 38183394.91 | ER22: 40205362.22 | ES22: 34872712.51 | ET22: 33203213.73 | EU22: 46571557.63 | EV22: 32705294.52 | EW22: 27421826.75 | EX22: 35975061.11 | EY22: 31214902.67 | EZ22: 32250043.25 | FA22: 35925364.38 | FB22: 37456720.78 | FC22: 41112154.55 | FD22: 44898620.4 | FE22: 36336315.34 | FF22: 40025422.69 | FG22: 46615780.16 | FH22: 30260534.88 | FI22: 31469176.26 | FJ22: 40940665.7 | FK22: 35452714.47 | FL22: 37940109.27 | FM22: 37821893.82 | FN22: 46681617.06 | FO22: 52489194.79 | FP22: 45948697.32 | FQ22: 44067426.07 | FR22: 47844786.83 | FS22: 54003624.67 | FT22: 52320894.87 | FU22: 42964059.2 | FV22: 44203171.27 | FW22: 36923398.67 | FX22: 42757198.4 | FY22: 51685830.51 | FZ22: 72463878.35 | GA22: 59482717.29 | GB22: 51159666.01 | GC22: 48333151.79 | GD22: 54414793.46 | GE22: 59719271.96 | GF22: 58117576.73 | GG22: 52076234.33 | GH22: 52688405.65 | GI22: 48953375.49 | GJ22: 44361588.28 | GK22: 54637105.3 | GL22: 66443347.36 | GM22: 59114816.38 | GN22: 63531536.62 | GO22: 51671781.82 | GP22: 61779889.62 | GQ22: 66236126.55 | GR22: 67664984.77 | GS22: 52622077.32 | GT22: 55524884.68 | GU22: 57181025.01 | GV22: 54106534.7 | GW22: 63438781.75 | GX22: 85879326.31 | GY22: 75694709.27 | GZ22: 83194302.16 | HA22: 65528306.2 | HB22: 75955788.38 | HC22: 79917968.15 | HD22: 68901541.91 | HE22: 62416405.86 | HF22: 76240204.33 | HG22: 67140814.65 | HH22: 63899894.28 | HI22: 80974622.57 | HJ22: 85226456.24 | HK22: 77760966.46 | HL22: 72493295.68 | HM22: 57952394.75 | HN22: 68976361.31 | HO22: 82149803.79 | HP22: 70905110.38 | HQ22: 54405199.9 | HR22: 63291179.83 | HS22: 56026352.66 | HT22: 64448883.96 | HU22: 80449120.62 | HV22: 86749099.27 | HW22: 66803598.29 | HX22: 81562380.75 | HY22: 60589114.8 | HZ22: 72594849.61 | IA22: 89379045.17 | IB22: 77569641.34 | IC22: 57039943.08 | ID22: 76444913.22 | IE22: 63813684.87 | IF22: 68694686.35 | IG22: 82348750.1 | IH22: 103796517.9 | II22: 100725707.5 | IJ22: 108517184.4 | IK22: 70842222.15 | IL22: 93901139.6 | IM22: 107778859.7 | IN22: 97278013.1 | IO22: 82752052.35 | IP22: 85360221.5 | IQ22: 68145762.23 | IR22: 89572792.13 | IS22: 94623007.88 | IT22: 109915010.1 | IU22: 100236168.4 | IV22: 121250872.9 | IW22: 82348706.25 | IX22: 103786379.1 | IY22: 116077721.5 | IZ22: 99054799.4 | JA22: 73970812.63 | JB22: 81625239.4 | JC22: 71420885.77 | JD22: 75816493.83 | JE22: 102478445.3 | JF22: 115832243.6 | JG22: 107097113.9 | JH22: 144087712.4 | JI22: 82983821.43 | JJ22: 89039769.45 | JK22: 127938046.2 | JL22: 106737760.2 | JM22: 76010906.68 | JN22: 99383047.35 | JO22: 82252511.63 | JP22: 82253775.17 | JQ22: 114413330.9 | JR22: 118009106.1 | JS22: 141041798.4 | JT22: 150612011.6 | JU22: 89342301.73 | JV22: 101969195.1 | JW22: 135886490 | JX22: 101906096.3 | JY22: 87524442.98 | JZ22: 106327307.1 | KA22: 93204774.86 | KB22: 88088110.42 | KC22: 116595878.8 | KD22: 128072031.2 | KE22: 143469725.4 | KF22: 146454793.9 | KG22: 106670805.7 | KH22: 115126065.6 | KI22: 141572946.6 | KJ22: 123182816 | KK22: 91213013.22 | KL22: 106679996.9 | KM22: 88939776.87 | KN22: 101228205.9 | KO22: 114294590.7 | KP22: 131425663.9 | KQ22: 125228477.3 | KR22: 156634505.9 | KS22: 95223768.51 | KT22: 113200610.2 | KU22: 150521152.7 | KV22: 124361743.3 | KW22: 90163722.7 | KX22: 111815513.9 | KY22: 90928352.1 | KZ22: 109496783.7 | LA22: 192465119.8 | LB22: 231578343.6 | LC22: 134396581.9 | LD22: 172215317.1 | LE22: 107964776.8 | LF22: 129945123.7 | LG22: 147513846.9 | LH22: 135939470.5 | LI22: 104875843.5 | LJ22: 119031507.5 | LK22: 99924733.32 | LL22: 113110463.7 | LM22: 116574955.4 | LN22: 155686787.2 | LO22: 142541613.6 | LP22: 186423087.4 | LQ22: 125502099.3 | LR22: 131593609.2 | LS22: 161495745.4 | LT22: 151280000.5 | LU22: 102716889.8 | LV22: 129590122.6 | LW22: 97732099.67 | LX22: 111006933.8 | LY22: 139472794.6 | LZ22: 170885994.3 | MA22: 171387914.4 | MB22: 188634885.5 | MC22: 140131815.9 | MD22: 138219703.6 | ME22: 176685400 | MF22: 139863244.3 | MG22: 114243930.4 | MH22: 137931140.8 | MI22: 121791950.4 | MJ22: 114348272.9 | MK22: 152970387.1 | ML22: 181127134.9 | MM22: 157357782.2 | MN22: 221451910.9 | MO22: 132863646.7 | MP22: 129996372.1 | MQ22: 135524599.6 | MR22: 110909785.9 | MS22: 112719557.3 | MT22: 121284592.3 | MU22: 97768851.16 | MV22: 129902841.5 | MW22: 168817743.7 | MX22: 175671570.1 | MY22: 189894638.5 | MZ22: 244031865.7 | NA22: 164942836.9 | NB22: 172435182 | NC22: 208157503.4 | ND22: 178756557.6 | NE22: 154708760.7 | NF22: 192870298.8 | NG22: 152181958.8 | NH22: 169762047.7 | NI22: 218504082.7 | NJ22: 227159412.4 | NK22: 229741915.8 | NL22: 307865666.7 | NM22: 191176854 | NN22: 223442395.5 | NO22: 252386445.9 | NP22: 233717250.8 | NQ22: 196568403.7 | NR22: 224665844.1 | NS22: 186459361.6 | NT22: 198454097.9 | NU22: 245927700.3 | NV22: 265367239.4 | NW22: 256770467.8 | NX22: 335365687 | NY22: 208687980.9 | NZ22: 237011524.7 | OA22: 266271023.5 | OB22: 246684805.3 | OC22: 183621282.8 | OD22: 211177664.7 | OE22: 182787160.4 | OF22: 199899786.6 | OG22: 255726555.1 | OH22: 282322761.9 | OI22: ='[1]EST - FPE'!C24 -> 285986835.2 | OJ22: ='[1]EST - FPE'!D24 -> 372448642.2 | OK22: ='[1]EST - FPE'!E24 -> 236825410.1 | OL22: ='[1]EST - FPE'!F24 -> 249414867.8 | OM22: ='[1]EST - FPE'!G24 -> 292339432.9 | ON22: ='[1]EST - FPE'!H24 -> 304389908.7 | OO22: ='[1]EST - FPE'!I24 -> 200831286.4 | OP22: ='[1]EST - FPE'!J24 -> 258475242.2 | OQ22: ='[1]EST - FPE'!K24 -> 211697837.1 | OR22: ='[1]EST - FPE'!L24 -> 227685937 | OS22: ='[1]EST - FPE'!M24 -> 286495030.8 | OT22: ='[1]EST - FPE'!N24 -> 322353522.1 | OU22: ='[2]EST - FPE'!C24 -> 301168426.4 | OV22: ='[2]EST - FPE'!D24 -> 385219892.8 | OW22: ='[2]EST - FPE'!E24 -> 257506998.8 | OX22: ='[2]EST - FPE'!F24 -> 264211809.9 | OY22: ='[2]EST - FPE'!G24 -> 334659711.2 | OZ22: ='[2]EST - FPE'!H24 -> 334709647.3 | PA22: ='[2]EST - FPE'!I24 -> 210642716.9 | PB22: ='[2]EST - FPE'!J24 -> 273426048.8 | PC22: ='[2]EST - FPE'!K24 -> 221730026.5 | PD22: ='[2]EST - FPE'!L24 -> 236575093.3 | PE22: ='[2]EST - FPE'!M24 -> 312367986.6 | PF22: ='[2]EST - FPE'!N24 -> 353026443.3 | PG22: ='[3]EST - FPE'!C24 -> 325414945.1 | PH22: ='[3]EST - FPE'!D24 -> 387639189.8 | PI22: ='[3]EST - FPE'!E24 -> 245270243.2 | PJ22: ='[3]EST - FPE'!F24 -> 282043786.7 | PK22: ='[3]EST - FPE'!G24 -> 342519599.6 | PL22: ='[3]EST - FPE'!H24 -> 345005023.2 | PM22: ='[3]EST - FPE'!I24 -> 0 | PN22: ='[3]EST - FPE'!J24 -> 0 | PO22: ='[3]EST - FPE'!K24 -> 0 | PP22: ='[3]EST - FPE'!L24 -> 0 | PQ22: ='[3]EST - FPE'!M24 -> 0 | PR22: ='[3]EST - FPE'!N24 -> 0
A23: Pará | B23: PA | C23: 3395959675 | D23: 3987030733 | E23: 4775875688 | F23: 5269815555 | G23: 8801915175 | H23: 7235677003 | I23: 7880376469 | J23: 8840806033 | K23: 1.070692569e+10 | L23: 8499555248 | M23: 1.256803422e+10 | N23: 2.086644452e+10 | O23: 1.682773457e+10 | P23: 2.040754294e+10 | Q23: 2.850938123e+10 | R23: 3.381720244e+10 | S23: 6.232369132e+10 | T23: 6.676423592e+10 | U23: 7.954297062e+10 | V23: 9.740656374e+10 | W23: 1.156981376e+11 | X23: 1.569979444e+11 | Y23: 1.905809744e+11 | Z23: 2.530737338e+11 | AA23: 347939979.6 | AB23: 435692705.4 | AC23: 513927945 | AD23: 654158831.5 | AE23: 858409022.4 | AF23: 1539913889 | AG23: 1549464792 | AH23: 1877904447 | AI23: 2295402110 | AJ23: 3366336325 | AK23: 5743160098 | AL23: 8268367741 | AM23: 3821700.39 | AN23: 5051074.11 | AO23: 6317806 | AP23: 8098362.29 | AQ23: 14796678.32 | AR23: 19886668.64 | AS23: 25562689.48 | AT23: 25875019.45 | AU23: 26749184.69 | AV23: 28025503.84 | AW23: 31481016.2 | AX23: 33333725.89 | AY23: 38354055.45 | AZ23: 42134706.42 | BA23: 33123495.82 | BB23: 37204155.75 | BC23: 37904728.81 | BD23: 50339117.47 | BE23: 41788266.39 | BF23: 36755799.2 | BG23: 37413996.6 | BH23: 37820144.29 | BI23: 38731880.76 | BJ23: 40386555.85 | BK23: 43155588.76 | BL23: 43858779.7 | BM23: 38109564.95 | BN23: 67140504.93 | BO23: 43191557.48 | BP23: 41274463.74 | BQ23: 42557730.9 | BR23: 39117638.49 | BS23: 41303711.72 | BT23: 38380197.25 | BU23: 41004014.47 | BV23: 54849285.35 | BW23: 62526712.19 | BX23: 46623278.03 | BY23: 42522519.07 | BZ23: 53324303.35 | CA23: 54419156.13 | CB23: 42266861.83 | CC23: 42021903.5 | CD23: 40559000.81 | CE23: 41779266.18 | CF23: 42701756.22 | CG23: 47499620.21 | CH23: 41808851.86 | CI23: 59590403.33 | CJ23: 49014580.85 | CK23: 45838690.19 | CL23: 54600297.52 | CM23: 51932705.72 | CN23: 36799213.56 | CO23: 38738343.12 | CP23: 50573781.15 | CQ23: 48943715.69 | CR23: 41642987.19 | CS23: 44793349.13 | CT23: 44866054.21 | CU23: 58141122.46 | CV23: 59028924.7 | CW23: 60349645.03 | CX23: 54789233.88 | CY23: 59168383.03 | CZ23: 39526565.57 | DA23: 39313768.9 | DB23: 49036137.23 | DC23: 45757048.34 | DD23: 54511202.15 | DE23: 51795641.85 | DF23: 56925643.24 | DG23: 64268269.25 | DH23: 60962473.39 | DI23: 66409659.3 | DJ23: 68881042.1 | DK23: 65883647.2 | DL23: 53440361.45 | DM23: 50842359.59 | DN23: 56686826.94 | DO23: 57159164.78 | DP23: 60434955.63 | DQ23: 65595089.81 | DR23: 74028016.07 | DS23: 85968790.49 | DT23: 70046810.12 | DU23: 61423828.34 | DV23: 72244194.17 | DW23: 81227986.13 | DX23: 70477478.68 | DY23: 64111547.44 | DZ23: 67498549.32 | EA23: 73007814.93 | EB23: 69772195.67 | EC23: 72517556.58 | ED23: 87949999.06 | EE23: 95202264.17 | EF23: 111229801.3 | EG23: 85122386.58 | EH23: 88903855.89 | EI23: 101894038.4 | EJ23: 71735839.77 | EK23: 78437901.82 | EL23: 74270564.98 | EM23: 81994299.29 | EN23: 108046770.9 | EO23: 94770019.4 | EP23: 92821162.74 | EQ23: 101120893.3 | ER23: 106475659.2 | ES23: 92353229.71 | ET23: 87931904.44 | EU23: 123335222.5 | EV23: 86613267.44 | EW23: 72621086.27 | EX23: 95272573.94 | EY23: 82666270.21 | EZ23: 85407627.76 | FA23: 95140962.38 | FB23: 99196445.82 | FC23: 108877112.7 | FD23: 118904791.2 | FE23: 96229281.72 | FF23: 105999126.2 | FG23: 123452336.8 | FH23: 80138822.76 | FI23: 83339661.67 | FJ23: 108422959.7 | FK23: 93889245.92 | FL23: 100476601.1 | FM23: 100163531.8 | FN23: 123626692.4 | FO23: 139006871.4 | FP23: 121685704.8 | FQ23: 116703543.4 | FR23: 126707109 | FS23: 143017528.4 | FT23: 138561163.6 | FU23: 113781502.6 | FV23: 117063036.8 | FW23: 97784051.5 | FX23: 113233674.1 | FY23: 136879325.8 | FZ23: 191905725.7 | GA23: 157527781.9 | GB23: 135485887 | GC23: 128000443.5 | GD23: 144106424.7 | GE23: 158154248.5 | GF23: 153912487.1 | GG23: 137913230.1 | GH23: 139534440.4 | GI23: 129642978.8 | GJ23: 117482571.8 | GK23: 144695172 | GL23: 175961583.6 | GM23: 156553471.8 | GN23: 168250249.9 | GO23: 136842120.7 | GP23: 163611371.9 | GQ23: 175412801.8 | GR23: 179196839.9 | GS23: 139358783.6 | GT23: 147046273.7 | GU23: 151432221.8 | GV23: 143290064.6 | GW23: 168004607.7 | GX23: 227433789.3 | GY23: 200461919 | GZ23: 220323053.3 | HA23: 173538284.8 | HB23: 201153333.6 | HC23: 211646354.3 | HD23: 182471608 | HE23: 165297054.7 | HF23: 201906550.9 | HG23: 177808682.8 | HH23: 169225769.6 | HI23: 214444687 | HJ23: 225704796.8 | HK23: 205933977.6 | HL23: 191983631.5 | HM23: 153475036.4 | HN23: 182669751.7 | HO23: 217556913.5 | HP23: 187777648.3 | HQ23: 144081018.1 | HR23: 167613714.2 | HS23: 148374308.8 | HT23: 170679656.2 | HU23: 213053002.8 | HV23: 229737204.6 | HW23: 176915634.4 | HX23: 216001244 | HY23: 160457848.9 | HZ23: 192252576.2 | IA23: 236702077.2 | IB23: 205427292.2 | IC23: 151058595.2 | ID23: 202448680.3 | IE23: 168997461.7 | IF23: 181923793.4 | IG23: 218083782 | IH23: 274883797.9 | II23: 266751386.2 | IJ23: 287385515.4 | IK23: 187611101.8 | IL23: 248677917.3 | IM23: 285430213.8 | IN23: 257620874.4 | IO23: 219151845.3 | IP23: 226059046.6 | IQ23: 180470080.5 | IR23: 237215176.3 | IS23: 250589637.3 | IT23: 291087370.2 | IU23: 265454942.2 | IV23: 321108078.8 | IW23: 218083665.9 | IX23: 274856947.6 | IY23: 307408047.9 | IZ23: 262326328.6 | JA23: 195896532.2 | JB23: 216167712.3 | JC23: 189143573.7 | JD23: 200784440.5 | JE23: 271393152.9 | JF23: 306757950 | JG23: 283624749.9 | JH23: 381586766.3 | JI23: 219765638.2 | JJ23: 235803575.1 | JK23: 338817686.2 | JL23: 282673075.1 | JM23: 201299303.1 | JN23: 263195626 | JO23: 217828914.2 | JP23: 217832260.4 | JQ23: 303000250.7 | JR23: 312522924.1 | JS23: 373520287.5 | JT23: 398865035.2 | JU23: 236604769.7 | JV23: 270044508.2 | JW23: 359867510.2 | JX23: 269877403.9 | JY23: 231790543.6 | JZ23: 281586074.2 | KA23: 246833738 | KB23: 233283301.2 | KC23: 308780281.4 | KD23: 339172518.3 | KE23: 379950154.6 | KF23: 387855496.6 | KG23: 282495759.9 | KH23: 304887782.2 | KI23: 374926924.6 | KJ23: 326224434.1 | KK23: 241558965.6 | KL23: 282520100.9 | KM23: 235538765.2 | KN23: 268082150.1 | KO23: 302685791.5 | KP23: 348053926.9 | KQ23: 331641948.7 | KR23: 415259966.4 | KS23: 252180628.7 | KT23: 299788608.6 | KU23: 398652247.7 | KV23: 329346581.2 | KW23: 238780134.9 | KX23: 296120465.1 | KY23: 240805099 | KZ23: 292920575.2 | LA23: 539480112.1 | LB23: 653069006.6 | LC23: 355921794.1 | LD23: 456964362.7 | LE23: 285922577.3 | LF23: 345348575.2 | LG23: 391009720.5 | LH23: 360568999.5 | LI23: 279205185.2 | LJ23: 316075812.4 | LK23: 265536117.2 | LL23: 301780374.9 | LM23: 308907387.4 | LN23: 414639587 | LO23: 377492240.7 | LP23: 495451500.7 | LQ23: 332778969.6 | LR23: 349130639.3 | LS23: 428427792.4 | LT23: 402396934.2 | LU23: 272568543.4 | LV23: 344032289.6 | LW23: 259345415.7 | LX23: 294204794.1 | LY23: 370444483.4 | LZ23: 456215976 | MA23: 460369256.7 | MB23: 505128614.6 | MC23: 379861125.8 | MD23: 368353179.4 | ME23: 473753273.4 | MF23: 372148634.1 | MG23: 307254094.2 | MH23: 373969949.9 | MI23: 334358983.4 | MJ23: 304509125.9 | MK23: 416564686.6 | ML23: 500316737 | MM23: 417022119.6 | MN23: 604314367.5 | MO23: 352370261.4 | MP23: 345471033.5 | MQ23: 361024655.3 | MR23: 293721830 | MS23: 301516510.4 | MT23: 321692797.1 | MU23: 259104972.9 | MV23: 349135649.7 | MW23: 463737258.3 | MX23: 486411012.6 | MY23: 503980421.4 | MZ23: 669181187.4 | NA23: 446116340.1 | NB23: 466380928.4 | NC23: 558913703.4 | ND23: 485608328.8 | NE23: 425530771.4 | NF23: 534768900.5 | NG23: 418715542 | NH23: 466270455.6 | NI23: 609032332.8 | NJ23: 631528087.9 | NK23: 619677784.3 | NL23: 870258675.9 | NM23: 525696010.6 | NN23: 624166622.1 | NO23: 692869876.8 | NP23: 649237419.6 | NQ23: 558274865.3 | NR23: 636361312.1 | NS23: 528734625.2 | NT23: 557034283.7 | NU23: 701416341.9 | NV23: 749859051.4 | NW23: 697580467.6 | NX23: 944907843.9 | NY23: 575909594.9 | NZ23: 659402056.4 | OA23: 731341593 | OB23: 684283013.8 | OC23: 510234537.5 | OD23: 585922756.7 | OE23: 510778320.5 | OF23: 554763047.3 | OG23: 721983848.3 | OH23: 793793667.7 | OI23: ='[1]EST - FPE'!C25 -> 785917434.8 | OJ23: ='[1]EST - FPE'!D25 -> 1077048689 | OK23: ='[1]EST - FPE'!E25 -> 669116479.4 | OL23: ='[1]EST - FPE'!F25 -> 701283998.7 | OM23: ='[1]EST - FPE'!G25 -> 814741413.1 | ON23: ='[1]EST - FPE'!H25 -> 879771121.4 | OO23: ='[1]EST - FPE'!I25 -> 568331653.5 | OP23: ='[1]EST - FPE'!J25 -> 745512793.9 | OQ23: ='[1]EST - FPE'!K25 -> 608918518 | OR23: ='[1]EST - FPE'!L25 -> 648107250.7 | OS23: ='[1]EST - FPE'!M25 -> 832139531 | OT23: ='[1]EST - FPE'!N25 -> 933655878.9 | OU23: ='[2]EST - FPE'!C25 -> 831517213.3 | OV23: ='[2]EST - FPE'!D25 -> 1115356505 | OW23: ='[2]EST - FPE'!E25 -> 734603208.4 | OX23: ='[2]EST - FPE'!F25 -> 746541800.8 | OY23: ='[2]EST - FPE'!G25 -> 952264100.3 | OZ23: ='[2]EST - FPE'!H25 -> 977894239.9 | PA23: ='[2]EST - FPE'!I25 -> 600416088.7 | PB23: ='[2]EST - FPE'!J25 -> 792053356.7 | PC23: ='[2]EST - FPE'!K25 -> 639525894.6 | PD23: ='[2]EST - FPE'!L25 -> 674207252.8 | PE23: ='[2]EST - FPE'!M25 -> 916260513.4 | PF23: ='[2]EST - FPE'!N25 -> 1034213729 | PG23: ='[3]EST - FPE'!C25 -> 945379539.9 | PH23: ='[3]EST - FPE'!D25 -> 1195308074 | PI23: ='[3]EST - FPE'!E25 -> 720558734 | PJ23: ='[3]EST - FPE'!F25 -> 850481819 | PK23: ='[3]EST - FPE'!G25 -> 1028993450 | PL23: ='[3]EST - FPE'!H25 -> 1089070523 | PM23: ='[3]EST - FPE'!I25 -> 0 | PN23: ='[3]EST - FPE'!J25 -> 0 | PO23: ='[3]EST - FPE'!K25 -> 0 | PP23: ='[3]EST - FPE'!L25 -> 0 | PQ23: ='[3]EST - FPE'!M25 -> 0 | PR23: ='[3]EST - FPE'!N25 -> 0
A24: Paraíba | B24: PB | C24: 2660816637 | D24: 3123935124 | E24: 3742014248 | F24: 4129028094 | G24: 6896513675 | H24: 5669328142 | I24: 6174465784 | J24: 6926985604 | K24: 8389135544 | L24: 6659607350 | M24: 9847359145 | N24: 1.634936456e+10 | O24: 1.318493751e+10 | P24: 1.598980406e+10 | Q24: 2.233779054e+10 | R24: 2.649659698e+10 | S24: 4.88321213e+10 | T24: 5.231139552e+10 | U24: 6.232384358e+10 | V24: 7.632040136e+10 | W24: 9.065229238e+10 | X24: 1.230116911e+11 | Y24: 1.493248083e+11 | Z24: 1.982893985e+11 | AA24: 272619399.3 | AB24: 341375784.8 | AC24: 402674989.5 | AD24: 512549284.7 | AE24: 672584255.2 | AF24: 1206559820 | AG24: 1214043185 | AH24: 1471383607 | AI24: 1798503136 | AJ24: 2637606026 | AK24: 4499905006 | AL24: 6478466341 | AM24: 2994394.79 | AN24: 3957638.87 | AO24: 4950153.98 | AP24: 6345262.95 | AQ24: 11593555.76 | AR24: 15581686.43 | AS24: 20028986.21 | AT24: 20273704.29 | AU24: 20958633.92 | AV24: 21958660.88 | AW24: 24666138.5 | AX24: 26117781.39 | AY24: 30051331.19 | AZ24: 33013562.75 | BA24: 25953061.05 | BB24: 29150356.91 | BC24: 29699272.87 | BD24: 39441917.48 | BE24: 32742118.6 | BF24: 28799058.69 | BG24: 29314772.32 | BH24: 29632998.86 | BI24: 30347366.44 | BJ24: 31643844.46 | BK24: 33813448.8 | BL24: 34364415.92 | BM24: 29859766.94 | BN24: 52606211.42 | BO24: 33841631.15 | BP24: 32339541.78 | BQ24: 33345012.68 | BR24: 30649616.97 | BS24: 32362458.28 | BT24: 30071813.91 | BU24: 32127638.23 | BV24: 42975743.23 | BW24: 48991193.06 | BX24: 36530467.3 | BY24: 33317423.36 | BZ24: 41780882.88 | CA24: 42638726.56 | CB24: 33117109.73 | CC24: 35562761.28 | CD24: 37387010.86 | CE24: 38511843.16 | CF24: 39362188.2 | CG24: 43784826.58 | CH24: 38539115.06 | CI24: 46690523.98 | CJ24: 38404110.98 | CK24: 35915723.73 | CL24: 42780655.25 | CM24: 40690532.47 | CN24: 28833074.9 | CO24: 30352429.86 | CP24: 39625782.18 | CQ24: 38348586.41 | CR24: 32628288.85 | CS24: 35096673.71 | CT24: 35153639.9 | CU24: 45554977.3 | CV24: 46250591.87 | CW24: 47285408.23 | CX24: 42928691.44 | CY24: 46359860.87 | CZ24: 30970021.24 | DA24: 30803289.94 | DB24: 38421000.92 | DC24: 35851755.35 | DD24: 42710846.84 | DE24: 40583139.61 | DF24: 44602619.92 | DG24: 50355745.21 | DH24: 47765574.09 | DI24: 52033576.18 | DJ24: 53969964.41 | DK24: 51621432.94 | DL24: 41871817.24 | DM24: 39836219.88 | DN24: 44415501.57 | DO24: 44785589.69 | DP24: 47352251.15 | DQ24: 51395341.24 | DR24: 58002743.15 | DS24: 67358629.06 | DT24: 54883371.89 | DU24: 48127056.87 | DV24: 56605075.5 | DW24: 63644094.05 | DX24: 55220811.16 | DY24: 50232949.88 | DZ24: 52886747.86 | EA24: 57203390.84 | EB24: 54668204.84 | EC24: 56819261.57 | ED24: 68910953.96 | EE24: 74593279.27 | EF24: 87151242.75 | EG24: 66695451.09 | EH24: 69658323.87 | EI24: 79836446.44 | EJ24: 56206767.51 | EK24: 61457995.43 | EL24: 58192786.11 | EM24: 64244518.95 | EN24: 84657261.3 | EO24: 74254605.04 | EP24: 72727628.65 | EQ24: 79230668.49 | ER24: 83426257.25 | ES24: 72360991.77 | ET24: 68896776.38 | EU24: 96636133.4 | EV24: 67863592.36 | EW24: 56900379.59 | EX24: 74648368.69 | EY24: 64771024.44 | EZ24: 66918944.5 | FA24: 74545247.83 | FB24: 77722817.31 | FC24: 85307854.23 | FD24: 93164783.21 | FE24: 75397972.38 | FF24: 83052882.11 | FG24: 96727895.26 | FH24: 62790708.17 | FI24: 65298642.97 | FJ24: 84952014.32 | FK24: 73564497.7 | FL24: 78725849.98 | FM24: 78480552.53 | FN24: 96864507.03 | FO24: 108915249.8 | FP24: 95343696.27 | FQ24: 91440052.23 | FR24: 99278088.11 | FS24: 112057696.6 | FT24: 108566026.9 | FU24: 89150562.46 | FV24: 91721723.98 | FW24: 76616172.18 | FX24: 88721325.61 | FY24: 107248266.3 | FZ24: 150362783 | GA24: 123426831.6 | GB24: 106156473.2 | GC24: 100291447 | GD24: 112910873.3 | GE24: 123917683.4 | GF24: 120594160.5 | GG24: 108058355.3 | GH24: 109328612.9 | GI24: 101578413.2 | GJ24: 92050439.84 | GK24: 113372171 | GL24: 137870161.6 | GM24: 122663436.1 | GN24: 131828144.9 | GO24: 107219115.2 | GP24: 128193471.7 | GQ24: 137440177.8 | GR24: 140405063.2 | GS24: 109190981.4 | GT24: 115214316.1 | GU24: 118650812.7 | GV24: 112271235.3 | GW24: 131635678.3 | GX24: 178199881.1 | GY24: 157066767.7 | GZ24: 172628447.3 | HA24: 135971448.3 | HB24: 157608507.7 | HC24: 165830043.6 | HD24: 142970923.4 | HE24: 129514245 | HF24: 158198671.7 | HG24: 139317408.6 | HH24: 132592488.3 | HI24: 168022604.9 | HJ24: 176845173.6 | HK24: 161354258.1 | HL24: 150423824.1 | HM24: 120251407.4 | HN24: 143126173.8 | HO24: 170461109.8 | HP24: 147128334.4 | HQ24: 112890966.6 | HR24: 131329403.8 | HS24: 116254863.8 | HT24: 133731643.6 | HU24: 166932186.7 | HV24: 180004662.9 | HW24: 138617683.5 | HX24: 169242205.1 | HY24: 125722610.1 | HZ24: 150634548.8 | IA24: 185461809.2 | IB24: 160957257.8 | IC24: 118358067.2 | ID24: 158623443.3 | IE24: 132413603.4 | IF24: 142541697.4 | IG24: 170873924.1 | IH24: 215378111.9 | II24: 209006170.4 | IJ24: 225173510.3 | IK24: 146997841.2 | IL24: 194845169.9 | IM24: 223641484.1 | IN24: 201852193.3 | IO24: 171710777.5 | IP24: 177122737 | IQ24: 141402678.1 | IR24: 185863834.8 | IS24: 196343048.8 | IT24: 228074003.1 | IU24: 207990375.1 | IV24: 251595955.3 | IW24: 170873833.1 | IX24: 215357074 | IY24: 240861649.3 | IZ24: 205539030.6 | JA24: 153489676.6 | JB24: 169372637 | JC24: 148198570.1 | JD24: 157319471.1 | JE24: 212643106.9 | JF24: 240352281.8 | JG24: 222226859.5 | JH24: 298982471.4 | JI24: 172191699.1 | JJ24: 184757811 | JK24: 265471861.5 | JL24: 221481199.2 | JM24: 157722878.3 | JN24: 206220146.2 | JO24: 170674228.9 | JP24: 170676850.8 | JQ24: 237408033.5 | JR24: 244869278.6 | JS24: 292662189.9 | JT24: 312520413.5 | JU24: 185385566.4 | JV24: 211586411.2 | JW24: 281964908.3 | JX24: 211455480.9 | JY24: 181613503.6 | JZ24: 220629507.7 | KA24: 193400210.7 | KB24: 182783115.4 | KC24: 241936827.5 | KD24: 265749881 | KE24: 297700146.5 | KF24: 303894173.4 | KG24: 221342268.4 | KH24: 238886960.1 | KI24: 293764324.2 | KJ24: 255604743.5 | KK24: 189267298.8 | KL24: 221361340.2 | KM24: 184550326 | KN24: 210048856.1 | KO24: 237161647.1 | KP24: 272708679.7 | KQ24: 259849497.4 | KR24: 325138171.2 | KS24: 197589629.1 | KT24: 234891634.1 | KU24: 312339443.1 | KV24: 258051021.4 | KW24: 187090017.7 | KX24: 232017554.8 | KY24: 188676626.1 | KZ24: 228005167 | LA24: 407455521.3 | LB24: 491333997 | LC24: 278873344.2 | LD24: 356364018.3 | LE24: 224027262.8 | LF24: 268289604.4 | LG24: 305704389.4 | LH24: 281453001.9 | LI24: 215996558.8 | LJ24: 246054129 | LK24: 206340272.4 | LL24: 232232975.9 | LM24: 241691164.8 | LN24: 320463136.6 | LO24: 295774311.4 | LP24: 383837579.5 | LQ24: 259711711.3 | LR24: 271975979.7 | LS24: 333839130.4 | LT24: 310890419.2 | LU24: 212207294.1 | LV24: 267463773.6 | LW24: 201901363.1 | LX24: 229953621.3 | LY24: 287559799.2 | LZ24: 348328067.4 | MA24: 354765448.5 | MB24: 390675143.7 | MC24: 289606447.1 | MD24: 286498582.7 | ME24: 365843842.8 | MF24: 289983266.8 | MG24: 236429122.5 | MH24: 285048462.9 | MI24: 251141935.6 | MJ24: 237048736 | MK24: 315885857.2 | ML24: 373085778.1 | MM24: 326631225.9 | MN24: 466431343.4 | MO24: 275889491.2 | MP24: 270208999.4 | MQ24: 282034136.1 | MR24: 230138166.2 | MS24: 235057213.1 | MT24: 251857987.3 | MU24: 202942100.1 | MV24: 271531648.3 | MW24: 356755367.6 | MX24: 372730478.5 | MY24: 394118291.9 | MZ24: 508192067.7 | NA24: 342997651.8 | NB24: 358577958.9 | NC24: 432536965.6 | ND24: 371892902.1 | NE24: 322281053.9 | NF24: 402117570.2 | NG24: 317028093.3 | NH24: 353586304.2 | NI24: 455815772.8 | NJ24: 473741667.5 | NK24: 481909003.4 | NL24: 664178473.6 | NM24: 405642120.1 | NN24: 478562731.2 | NO24: 534964291.9 | NP24: 498898440.4 | NQ24: 425227778.3 | NR24: 485221469 | NS24: 402977674.3 | NT24: 426272092.3 | NU24: 533364599.4 | NV24: 572303480.3 | NW24: 538580122.7 | NX24: 714552308.9 | NY24: 440672153.6 | NZ24: 502233607.2 | OA24: 561122454.7 | OB24: 522063395.8 | OC24: 388891834.1 | OD24: 446962941.1 | OE24: 388066363.5 | OF24: 423136209.9 | OG24: 545349002.4 | OH24: 600988499.7 | OI24: ='[1]EST - FPE'!C26 -> 605969032.3 | OJ24: ='[1]EST - FPE'!D26 -> 812699250.1 | OK24: ='[1]EST - FPE'!E26 -> 509846133.6 | OL24: ='[1]EST - FPE'!F26 -> 535453644.1 | OM24: ='[1]EST - FPE'!G26 -> 624425771.4 | ON24: ='[1]EST - FPE'!H26 -> 663987706 | OO24: ='[1]EST - FPE'!I26 -> 432757357.1 | OP24: ='[1]EST - FPE'!J26 -> 563148406.4 | OQ24: ='[1]EST - FPE'!K26 -> 460496431.9 | OR24: ='[1]EST - FPE'!L26 -> 492286045.6 | OS24: ='[1]EST - FPE'!M26 -> 626749981.6 | OT24: ='[1]EST - FPE'!N26 -> 704036771.4 | OU24: ='[2]EST - FPE'!C26 -> 642002050.8 | OV24: ='[2]EST - FPE'!D26 -> 847229669.4 | OW24: ='[2]EST - FPE'!E26 -> 560821945.4 | OX24: ='[2]EST - FPE'!F26 -> 571806832.5 | OY24: ='[2]EST - FPE'!G26 -> 727625947.8 | OZ24: ='[2]EST - FPE'!H26 -> 740560712.4 | PA24: ='[2]EST - FPE'!I26 -> 458507584.5 | PB24: ='[2]EST - FPE'!J26 -> 601549227.6 | PC24: ='[2]EST - FPE'!K26 -> 486418881.2 | PD24: ='[2]EST - FPE'!L26 -> 514891129 | PE24: ='[2]EST - FPE'!M26 -> 692960533.3 | PF24: ='[2]EST - FPE'!N26 -> 782498910.6 | PG24: ='[3]EST - FPE'!C26 -> 724414953.3 | PH24: ='[3]EST - FPE'!D26 -> 903623603.9 | PI24: ='[3]EST - FPE'!E26 -> 550716409.4 | PJ24: ='[3]EST - FPE'!F26 -> 646164430.2 | PK24: ='[3]EST - FPE'!G26 -> 782450591.5 | PL24: ='[3]EST - FPE'!H26 -> 819082102.3 | PM24: ='[3]EST - FPE'!I26 -> 0 | PN24: ='[3]EST - FPE'!J26 -> 0 | PO24: ='[3]EST - FPE'!K26 -> 0 | PP24: ='[3]EST - FPE'!L26 -> 0 | PQ24: ='[3]EST - FPE'!M26 -> 0 | PR24: ='[3]EST - FPE'!N26 -> 0
A25: Pernambuco | B25: PE | C25: 3833900678 | D25: 4501195920 | E25: 5391769866 | F25: 5949407934 | G25: 9937005087 | H25: 8168785743 | I25: 8896625280 | J25: 9980911288 | K25: 1.208768466e+10 | L25: 9595652997 | M25: 1.418880068e+10 | N25: 2.355736919e+10 | O25: 1.899782953e+10 | P25: 2.303928793e+10 | Q25: 3.218593461e+10 | R25: 3.817824939e+10 | S25: 7.036091866e+10 | T25: 7.537411334e+10 | U25: 8.98007863e+10 | V25: 1.099680581e+11 | W25: 1.306185028e+11 | X25: 1.772443089e+11 | Y25: 2.151581871e+11 | Z25: 2.857099768e+11 | AA25: 392810119 | AB25: 491879385.8 | AC25: 580203796.9 | AD25: 738518777.7 | AE25: 969108955.6 | AF25: 1738500297 | AG25: 1749282880 | AH25: 2120077923 | AI25: 2591415844 | AJ25: 3800457119 | AK25: 6483794717 | AL25: 9334651683 | AM25: 4314544.67 | AN25: 5702457.72 | AO25: 7132546.62 | AP25: 9142722.43 | AQ25: 16704849.44 | AR25: 22451241.98 | AS25: 28859239.21 | AT25: 29211847.05 | AU25: 30198744.13 | AV25: 31639656.68 | AW25: 35540789.92 | AX25: 37632423.98 | AY25: 43300172.37 | AZ25: 47568373.88 | BA25: 37395082.77 | BB25: 42001982.25 | BC25: 42792900.81 | BD25: 56830821.07 | BE25: 47177257.15 | BF25: 41495805.89 | BG25: 42238884.05 | BH25: 42697408.31 | BI25: 43726721.79 | BJ25: 45594782.83 | BK25: 48720908.63 | BL25: 49514782.67 | BM25: 43024152.49 | BN25: 75798905.78 | BO25: 48761515.85 | BP25: 46597194.82 | BQ25: 48045951.37 | BR25: 44162226.62 | BS25: 46630214.59 | BT25: 43329685.39 | BU25: 46291868.56 | BV25: 61922617.61 | BW25: 70590120.97 | BX25: 52635789.11 | BY25: 48006198.63 | BZ25: 60200974.8 | CA25: 61437019.16 | CB25: 47717571.99 | CC25: 51241446.97 | CD25: 53869960.19 | CE25: 55490701.47 | CF25: 56715941.24 | CG25: 63088404.52 | CH25: 55529996.81 | CI25: 67275147.45 | CJ25: 55335473.01 | CK25: 51750021.27 | CL25: 61641520.45 | CM25: 58629917.53 | CN25: 41544818.94 | CO25: 43734017.52 | CP25: 57095746.85 | CQ25: 55255469.08 | CR25: 47013242.83 | CS25: 50569873.65 | CT25: 50651954.73 | CU25: 65638968.09 | CV25: 66641260.84 | CW25: 68132300.49 | CX25: 61854821.91 | CY25: 66798703.63 | CZ25: 44623888.72 | DA25: 44383649.92 | DB25: 55359809.23 | DC25: 51657850.94 | DD25: 61540935.37 | DE25: 58475177.99 | DF25: 64266741.41 | DG25: 72556268.25 | DH25: 68824158.86 | DI25: 74973810.74 | DJ25: 77763901.61 | DK25: 74379964.4 | DL25: 60331999.67 | DM25: 57398961.02 | DN25: 63997127.5 | DO25: 64530377.74 | DP25: 68228612.69 | DQ25: 74054194.81 | DR25: 83574626.39 | DS25: 97055276.2 | DT25: 79080006.42 | DU25: 69345009.88 | DV25: 81560763.85 | DW25: 91703100.42 | DX25: 79566213.76 | DY25: 72379335.69 | DZ25: 76203123.35 | EA25: 82422860.68 | EB25: 78769977.85 | EC25: 81869378.9 | ED25: 99291980.29 | EE25: 107479493.3 | EF25: 125573932.5 | EG25: 96099720.51 | EH25: 100368845.9 | EI25: 115034234.9 | EJ25: 80986852.35 | EK25: 88553208.45 | EL25: 83848454.24 | EM25: 92568236.9 | EN25: 121980420.2 | EO25: 106991506.5 | EP25: 104791326.4 | EQ25: 114161385.4 | ER25: 120206698.9 | ES25: 104263049 | ET25: 99271552.2 | EU25: 139240461.8 | EV25: 97782864.51 | EW25: 81986259.71 | EX25: 107558870.2 | EY25: 93326864.82 | EZ25: 96421746.27 | FA25: 107410286.1 | FB25: 111988762.3 | FC25: 122917842.5 | FD25: 134238684.6 | FE25: 108638954.5 | FF25: 119668712.4 | FG25: 139372679.1 | FH25: 90473479.19 | FI25: 94087096.46 | FJ25: 122405122.1 | FK25: 105997149 | FL25: 113434005.7 | FM25: 113080563.1 | FN25: 139569519.4 | FO25: 156933117.5 | FP25: 137378223.1 | FQ25: 131753565.2 | FR25: 143047184.9 | FS25: 161460986.5 | FT25: 156429931.4 | FU25: 128454699.6 | FV25: 132159418.6 | FW25: 110394226.5 | FX25: 127836223.5 | FY25: 154531204.8 | FZ25: 216653777.5 | GA25: 177842473.9 | GB25: 152958068.9 | GC25: 144507307 | GD25: 162690306.3 | GE25: 178549729.3 | GF25: 173760952.7 | GG25: 155698440.9 | GH25: 157528721.5 | GI25: 146361662.7 | GJ25: 132633056.6 | GK25: 163354978.1 | GL25: 198653488.1 | GM25: 176742517.4 | GN25: 189947705.2 | GO25: 154489201.8 | GP25: 184710600.2 | GQ25: 198033935.7 | GR25: 202305961.1 | GS25: 157330412 | GT25: 166009276.4 | GU25: 170960833.9 | GV25: 161768668.8 | GW25: 189670385.1 | GX25: 256763519.8 | GY25: 226313372.6 | GZ25: 248735787.3 | HA25: 195917682 | HB25: 227093951.6 | HC25: 238940146.3 | HD25: 206003041.5 | HE25: 186613667.7 | HF25: 227944303.4 | HG25: 200738788.2 | HH25: 191049027.4 | HI25: 242099350.3 | HJ25: 254811557.3 | HK25: 232491104.8 | HL25: 216741730.1 | HM25: 173267088.7 | HN25: 206226737.7 | HO25: 245612927.7 | HP25: 211993345.7 | HQ25: 162661623.2 | HR25: 189229082.3 | HS25: 167508574.2 | HT25: 192690406.3 | HU25: 240528195.3 | HV25: 259363982.2 | HW25: 199730572.7 | HX25: 243856640 | HY25: 181150400.7 | HZ25: 217045357.7 | IA25: 267227040.8 | IB25: 231919077.6 | IC25: 170539024.7 | ID25: 228556345.6 | IE25: 190791277 | IF25: 205384581 | IG25: 246207741 | IH25: 310332654.2 | II25: 301151491.4 | IJ25: 324446586 | IK25: 211805321.4 | IL25: 280747278.3 | IM25: 322239129.8 | IN25: 290843514 | IO25: 247413541.1 | IP25: 255211491.1 | IQ25: 203743398.1 | IR25: 267806308.9 | IS25: 282905532.6 | IT25: 328625829.8 | IU25: 299687858.6 | IV25: 362517991.8 | IW25: 246207609.9 | IX25: 310302341.2 | IY25: 347051212.8 | IZ25: 296155780.9 | JA25: 221159236.2 | JB25: 244044575.9 | JC25: 213535420 | JD25: 226677486.3 | JE25: 306391857.5 | JF25: 346317278.6 | JG25: 320200834.3 | JH25: 430795975.9 | JI25: 248106488.3 | JJ25: 266212668.3 | JK25: 382511419.9 | JL25: 319126432.1 | JM25: 227258745.3 | JN25: 297137182.4 | JO25: 245920005.5 | JP25: 245923783.2 | JQ25: 342074988.5 | JR25: 352825700.4 | JS25: 421689248.7 | JT25: 450302440.4 | JU25: 267117184.6 | JV25: 304869292.5 | JW25: 406275817 | JX25: 304680638.5 | JY25: 261682118.5 | JZ25: 317899252.2 | KA25: 278665274.7 | KB25: 263367381.3 | KC25: 348600408.6 | KD25: 382912010.9 | KE25: 428948307.7 | KF25: 437873118 | KG25: 318926250.4 | KH25: 344205935.1 | KI25: 423277284.9 | KJ25: 368294149.2 | KK25: 272710270.7 | KL25: 318953730.4 | KM25: 265913708.7 | KN25: 302653869.7 | KO25: 341719976.9 | KP25: 392938760.9 | KQ25: 374410303.4 | KR25: 468132973 | KS25: 284701697.4 | KT25: 338449174.9 | KU25: 450019818.5 | KV25: 371818926.7 | KW25: 269573083.6 | KX25: 334307989.7 | KY25: 271859185.9 | KZ25: 326216311.7 | LA25: 563699665.1 | LB25: 676697438.9 | LC25: 401821263.7 | LD25: 512964694.2 | LE25: 322794988.2 | LF25: 385871683.5 | LG25: 440280194.5 | LH25: 405215174.4 | LI25: 310381557.5 | LJ25: 354046332.2 | LK25: 296788750.7 | LL25: 333334371.6 | LM25: 348141371.5 | LN25: 460402704.3 | LO25: 426173422.7 | LP25: 551612187.6 | LQ25: 373869889.7 | LR25: 391359134.7 | LS25: 480407020.7 | LT25: 446492361.6 | LU25: 305312983.2 | LV25: 384685614.5 | LW25: 290481621.3 | LX25: 331147021.1 | LY25: 413442513.4 | LZ25: 498862964.2 | MA25: 514319933 | MB25: 565616692.3 | MC25: 421534784 | MD25: 413928136.2 | ME25: 529969213.4 | MF25: 418678641.8 | MG25: 342947543.4 | MH25: 414936650.7 | MI25: 367601419 | MJ25: 342373491.5 | MK25: 460712513.2 | ML25: 547589524.4 | MM25: 470688878.3 | MN25: 675398258.5 | MO25: 397616721.5 | MP25: 389561374.8 | MQ25: 406770306.7 | MR25: 331600028.1 | MS25: 339247877 | MT25: 362987987.8 | MU25: 292448304.9 | MV25: 392197148.9 | MW25: 517147675.9 | MX25: 541009708.7 | MY25: 567882173.9 | MZ25: 732399144 | NA25: 494280644.3 | NB25: 516732823.7 | NC25: 623284082 | ND25: 535935182.8 | NE25: 464475745.6 | NF25: 579566656.3 | NG25: 456906038.1 | NH25: 509588706.4 | NI25: 656983119 | NJ25: 682809120.1 | NK25: 694863834 | NL25: 959408187.7 | NM25: 585342396.8 | NN25: 691068074.1 | NO25: 771963058.5 | NP25: 720268967.8 | NQ25: 614466523.6 | NR25: 701082138.1 | NS25: 582277186.3 | NT25: 615679067 | NU25: 770860257.9 | NV25: 826823846 | NW25: 780535270.2 | NX25: 1044141822 | NY25: 640915826 | NZ25: 731794552.6 | OA25: 815222513.6 | OB25: 760177758.1 | OC25: 566488811.7 | OD25: 650857408.4 | OE25: 566005653.1 | OF25: 616194485.4 | OG25: 797258445.6 | OH25: 877780752.3 | OI25: ='[1]EST - FPE'!C27 -> 880622451.9 | OJ25: ='[1]EST - FPE'!D27 -> 1194823059 | OK25: ='[1]EST - FPE'!E27 -> 745639921.1 | OL25: ='[1]EST - FPE'!F27 -> 782228934.3 | OM25: ='[1]EST - FPE'!G27 -> 910368868.4 | ON25: ='[1]EST - FPE'!H27 -> 976072528.1 | OO25: ='[1]EST - FPE'!I27 -> 633129891 | OP25: ='[1]EST - FPE'!J27 -> 827449252.4 | OQ25: ='[1]EST - FPE'!K27 -> 676200700.4 | OR25: ='[1]EST - FPE'!L27 -> 721177344.2 | OS25: ='[1]EST - FPE'!M27 -> 922354444.2 | OT25: ='[1]EST - FPE'!N27 -> 1035436325 | OU25: ='[2]EST - FPE'!C27 -> 939348778.5 | OV25: ='[2]EST - FPE'!D27 -> 1260873977 | OW25: ='[2]EST - FPE'!E27 -> 830267461.7 | OX25: ='[2]EST - FPE'!F27 -> 843642855.1 | OY25: ='[2]EST - FPE'!G27 -> 1076233441 | OZ25: ='[2]EST - FPE'!H27 -> 1105619349 | PA25: ='[2]EST - FPE'!I27 -> 678597604.2 | PB25: ='[2]EST - FPE'!J27 -> 895396537.9 | PC25: ='[2]EST - FPE'!K27 -> 722923213.2 | PD25: ='[2]EST - FPE'!L27 -> 761995203.4 | PE25: ='[2]EST - FPE'!M27 -> 1035993793 | PF25: ='[2]EST - FPE'!N27 -> 1169339783 | PG25: ='[3]EST - FPE'!C27 -> 1040480911 | PH25: ='[3]EST - FPE'!D27 -> 1295326813 | PI25: ='[3]EST - FPE'!E27 -> 790701116.5 | PJ25: ='[3]EST - FPE'!F27 -> 926941401.6 | PK25: ='[3]EST - FPE'!G27 -> 1122585826 | PL25: ='[3]EST - FPE'!H27 -> 1173249078 | PM25: ='[3]EST - FPE'!I27 -> 0 | PN25: ='[3]EST - FPE'!J27 -> 0 | PO25: ='[3]EST - FPE'!K27 -> 0 | PP25: ='[3]EST - FPE'!L27 -> 0 | PQ25: ='[3]EST - FPE'!M27 -> 0 | PR25: ='[3]EST - FPE'!N27 -> 0
A26: Piauí | B26: PI | C26: 2401063504 | D26: 2818971631 | E26: 3376712892 | F26: 3725945834 | G26: 6223265091 | H26: 5115879352 | I26: 5571704658 | J26: 6250762303 | K26: 7570174850 | L26: 6009485937 | M26: 8886044355 | N26: 1.47533137e+10 | O26: 1.189780304e+10 | P26: 1.442885407e+10 | Q26: 2.015714006e+10 | R26: 2.390995724e+10 | S26: 4.406505231e+10 | T26: 4.720467427e+10 | U26: 5.62396913e+10 | V26: 6.886988294e+10 | W26: 8.180267207e+10 | X26: 1.110030951e+11 | Y26: 1.347474841e+11 | Z26: 1.789320735e+11 | AA26: 246005861.9 | AB26: 308050140.2 | AC26: 363365219.5 | AD26: 462513412.1 | AE26: 606925515.3 | AF26: 1088773540 | AG26: 1095526367 | AH26: 1327744810 | AI26: 1622930412 | AJ26: 2380118750 | AK26: 4060617155 | AL26: 5846028200 | AM26: 2702077.23 | AN26: 3571287.9 | AO26: 4466912.11 | AP26: 5725828.34 | AQ26: 10461774.49 | AR26: 14060577.53 | AS26: 18073724.86 | AT26: 18294553.18 | AU26: 18912618.9 | AV26: 19815021.65 | AW26: 22258191 | AX26: 23568122.22 | AY26: 27117672.66 | AZ26: 29790726.49 | BA26: 23419482.13 | BB26: 26304652.93 | BC26: 26799982.84 | BD26: 35591535.05 | BE26: 29545781.14 | BF26: 25987648.99 | BG26: 26453017.81 | BH26: 26740178.58 | BI26: 27384808.48 | BJ26: 28554722.26 | BK26: 30512526.39 | BL26: 31009707.23 | BM26: 26944809.22 | BN26: 47470709.76 | BO26: 30537957.54 | BP26: 29182504.51 | BQ26: 30089819.75 | BR26: 27657552.83 | BS26: 29203183.87 | BT26: 27136155.82 | BU26: 28991287.32 | BV26: 38780383.14 | BW26: 44208595.22 | BX26: 32964305.25 | BY26: 30064923.75 | BZ26: 37702166.95 | CA26: 38476266.57 | CB26: 29884165.03 | CC26: 32091068.22 | CD26: 33737231.66 | CE26: 34752256.07 | CF26: 35519589.07 | CG26: 39510482.48 | CH26: 34776865.63 | CI26: 42132521.11 | CJ26: 34655040.86 | CK26: 32409573.91 | CL26: 38604339.94 | CM26: 36718258.28 | CN26: 26018344.48 | CO26: 27389377.62 | CP26: 35757450.57 | CQ26: 34604936.7 | CR26: 29443063.64 | CS26: 31670480.85 | CT26: 31721885.91 | CU26: 41107828.3 | CV26: 41735535.89 | CW26: 42669331.83 | CX26: 38737924.64 | CY26: 41834137.84 | CZ26: 27946678.76 | DA26: 27796224.01 | DB26: 34670281.98 | DC26: 32351850.23 | DD26: 38541346.36 | DE26: 36621349.26 | DF26: 40248441.54 | DG26: 45439937.65 | DH26: 43102623.11 | DI26: 46953976.07 | DJ26: 48701331.04 | DK26: 46582066.94 | DL26: 37784224.16 | DM26: 35947345.04 | DN26: 40079589.97 | DO26: 40413549.54 | DP26: 42729649.42 | DQ26: 46378046.65 | DR26: 52340423.53 | DS26: 60782973.04 | DT26: 49525570.24 | DU26: 43428817.39 | DV26: 51079198.42 | DW26: 57431056.82 | DX26: 49830068.13 | DY26: 45329129.78 | DZ26: 47723859.8 | EA26: 51619105.28 | EB26: 49331408.12 | EC26: 51272475.3 | ED26: 62183757.54 | EE26: 67311365.24 | EF26: 78643400.43 | EG26: 60184535.56 | EH26: 62858167.99 | EI26: 72042686.14 | EJ26: 50719773.88 | EK26: 55458368.63 | EL26: 52511914.19 | EM26: 57972867.31 | EN26: 76392885.42 | EO26: 67005752.95 | EP26: 65627842.4 | EQ26: 71496045.21 | ER26: 75282053.93 | ES26: 65296997.18 | ET26: 62170963.99 | EU26: 87202361.06 | EV26: 61238641.03 | EW26: 51345674.44 | EX26: 67361076.74 | EY26: 58447974.49 | EZ26: 60386211.21 | FA26: 67268022.71 | FB26: 70135392.82 | FC26: 76979966.43 | FD26: 84069889.55 | FE26: 68037502.94 | FF26: 74945128.26 | FG26: 87285164.99 | FH26: 56660979.83 | FI26: 58924086.07 | FJ26: 76658864.2 | FK26: 66383014.96 | FL26: 71040507.86 | FM26: 70819156.75 | FN26: 87408440.48 | FO26: 98282770.64 | FP26: 86036093.67 | FQ26: 82513529.55 | FR26: 89586403.99 | FS26: 101118446.9 | FT26: 97967639.45 | FU26: 80447543.41 | FV26: 82767704.08 | FW26: 69136780.15 | FX26: 80060209.34 | FY26: 96778520.7 | FZ26: 135684130.1 | GA26: 111377708.9 | GB26: 95793310.21 | GC26: 90500837.17 | GD26: 101888335 | GE26: 111820642.9 | GF26: 108821567.7 | GG26: 97509527.62 | GH26: 98655780.61 | GI26: 91662167.66 | GJ26: 83064330.16 | GK26: 102304600.2 | GL26: 124411058.2 | GM26: 110688837.2 | GN26: 118958872.7 | GO26: 96752215.4 | GP26: 115679022 | GQ26: 124023050 | GR26: 126698498.7 | GS26: 98531584.95 | GT26: 103966912.1 | GU26: 107067932.5 | GV26: 101311139.6 | GW26: 118785194.9 | GX26: 160803726.6 | GY26: 141733661.2 | GZ26: 155776185 | HA26: 122697700.2 | HB26: 142222515.7 | HC26: 149641452.2 | HD26: 129013875.5 | HE26: 116870859.3 | HF26: 142755066.9 | HG26: 125717022.6 | HH26: 119648599.6 | HI26: 151619972.2 | HJ26: 159581267.8 | HK26: 145602600 | HL26: 135739212.2 | HM26: 108512274.6 | HN26: 129153970.1 | HO26: 153820426.4 | HP26: 132765433.5 | HQ26: 101870371.7 | HR26: 118508819.5 | HS26: 104905879.9 | HT26: 120676548.8 | HU26: 150636002.3 | HV26: 162432322.7 | HW26: 125085605.7 | HX26: 152720513 | HY26: 113449369.8 | HZ26: 135929365.7 | IA26: 167356733.7 | IB26: 145244355.5 | IC26: 106803765.3 | ID26: 143138371.6 | IE26: 119487177.8 | IF26: 128626551.2 | IG26: 154192941.1 | IH26: 194352559.6 | II26: 188602657.2 | IJ26: 203191715.7 | IK26: 132647679.2 | IL26: 175824075.9 | IM26: 201809248.3 | IN26: 182147062.6 | IO26: 154948099.6 | IP26: 159831734.9 | IQ26: 127598724.8 | IR26: 167719512.9 | IS26: 177175729.5 | IT26: 205809057.8 | IU26: 187686025.4 | IV26: 227034759.8 | IW26: 154192858.9 | IX26: 194333575.5 | IY26: 217348353.8 | IZ26: 185473985 | JA26: 138505771.3 | JB26: 152838212 | JC26: 133731191 | JD26: 141961695.2 | JE26: 191884550.2 | JF26: 216888711.6 | JG26: 200532721.6 | JH26: 269795329.2 | JI26: 155382072.8 | JJ26: 166721460.9 | JK26: 239556078.1 | JL26: 199859853.9 | JM26: 142325721.2 | JN26: 186088609 | JO26: 154012740.5 | JP26: 154015106.4 | JQ26: 214231885.4 | JR26: 220964752 | JS26: 264092043.6 | JT26: 282011675.9 | JU26: 167287933.9 | JV26: 190931010.8 | JW26: 254439047.5 | JX26: 190812862.1 | JY26: 163884105.8 | JZ26: 199091305.8 | KA26: 174520175.9 | KB26: 164939538.2 | KC26: 218318571.3 | KD26: 239806956.9 | KE26: 268638186.9 | KF26: 274227543 | KG26: 199734485.8 | KH26: 215566436.9 | KI26: 265086585.7 | KJ26: 230652203.8 | KK26: 170790725.5 | KL26: 199751695.7 | KM26: 166534231 | KN26: 189543554.2 | KO26: 214009551.6 | KP26: 246086426.6 | KQ26: 234482578 | KR26: 293520396.9 | KS26: 178300616.7 | KT26: 211961140.9 | KU26: 281856038.4 | KV26: 232859672.2 | KW26: 168825993.9 | KX26: 209367633.8 | KY26: 170257715.1 | KZ26: 206556923.9 | LA26: 375880189.7 | LB26: 454326141.9 | LC26: 251649286.9 | LD26: 322345123.6 | LE26: 202157366.7 | LF26: 243153385.4 | LG26: 276164309.2 | LH26: 254464004.6 | LI26: 196179969.4 | LJ26: 222767304.2 | LK26: 186983023.3 | LL26: 211497245.9 | LM26: 218255245.9 | LN26: 291204946.2 | LO26: 266900354.9 | LP26: 348700720 | LQ26: 234908820.5 | LR26: 246268957.6 | LS26: 302236419.6 | LT26: 282894395.4 | LU26: 192217464.4 | LV26: 242474236.8 | LW26: 182888332.2 | LX26: 207806498.8 | LY26: 260928829.8 | LZ26: 319209440.1 | MA26: 324483634.3 | MB26: 356273253.9 | MC26: 267207056.5 | MD26: 260078072.2 | ME26: 334047498.3 | MF26: 262848699.8 | MG26: 216504269.4 | MH26: 263051658.7 | MI26: 234555870.1 | MJ26: 215035861.8 | MK26: 292735118.2 | ML26: 350514747.5 | MM26: 294852534.9 | MN26: 427464446.6 | MO26: 249143718.8 | MP26: 244273222.1 | MQ26: 255280051.2 | MR26: 207671714 | MS26: 213215267.7 | MT26: 227453529.9 | MU26: 183198363.3 | MV26: 246906513 | MW26: 328058642.8 | MX26: 344138663.1 | MY26: 356173039.5 | MZ26: 469773561.9 | NA26: 314055897.8 | NB26: 328321677.7 | NC26: 394049346.4 | ND26: 341551368.3 | NE26: 298545123 | NF26: 374581095.1 | NG26: 293744633.6 | NH26: 327221287.9 | NI26: 426152405.2 | NJ26: 442120207.3 | NK26: 437413331.3 | NL26: 611784855.9 | NM26: 370434278.1 | NN26: 439160737.5 | NO26: 488262739 | NP26: 457028386.4 | NQ26: 392223407.1 | NR26: 447189859.6 | NS26: 371520737.9 | NT26: 391759102.9 | NU26: 492606835.2 | NV26: 527058773.1 | NW26: 490898154.9 | NX26: 660604447.8 | NY26: 404126028.9 | NZ26: 462040379.3 | OA26: 513635212.9 | OB26: 479729169 | OC26: 357598030.4 | OD26: 410755101.5 | OE26: 357619796.3 | OF26: 388894394.1 | OG26: 504572547.4 | OH26: 555163428.3 | OI26: ='[1]EST - FPE'!C28 -> 549089985.8 | OJ26: ='[1]EST - FPE'!D28 -> 740596922.8 | OK26: ='[1]EST - FPE'!E28 -> 463419106.6 | OL26: ='[1]EST - FPE'!F28 -> 486433195.8 | OM26: ='[1]EST - FPE'!G28 -> 566702214.1 | ON26: ='[1]EST - FPE'!H28 -> 605043728.9 | OO26: ='[1]EST - FPE'!I28 -> 393420177.3 | OP26: ='[1]EST - FPE'!J28 -> 513038423.2 | OQ26: ='[1]EST - FPE'!K28 -> 419393317.7 | OR26: ='[1]EST - FPE'!L28 -> 447828108.5 | OS26: ='[1]EST - FPE'!M28 -> 571422011.6 | OT26: ='[1]EST - FPE'!N28 -> 641686629.6 | OU26: ='[2]EST - FPE'!C28 -> 582007576.6 | OV26: ='[2]EST - FPE'!D28 -> 772035330.6 | OW26: ='[2]EST - FPE'!E28 -> 510229712.5 | OX26: ='[2]EST - FPE'!F28 -> 519682985.8 | OY26: ='[2]EST - FPE'!G28 -> 661802927 | OZ26: ='[2]EST - FPE'!H28 -> 675487785 | PA26: ='[2]EST - FPE'!I28 -> 417107987.9 | PB26: ='[2]EST - FPE'!J28 -> 548188269.3 | PC26: ='[2]EST - FPE'!K28 -> 443063995.2 | PD26: ='[2]EST - FPE'!L28 -> 468391027 | PE26: ='[2]EST - FPE'!M28 -> 632339711.6 | PF26: ='[2]EST - FPE'!N28 -> 713948527.4 | PG26: ='[3]EST - FPE'!C28 -> 663508701.5 | PH26: ='[3]EST - FPE'!D28 -> 835217620.3 | PI26: ='[3]EST - FPE'!E28 -> 505290783.2 | PJ26: ='[3]EST - FPE'!F28 -> 595240509.4 | PK26: ='[3]EST - FPE'!G28 -> 720376815.5 | PL26: ='[3]EST - FPE'!H28 -> 759712241.6 | PM26: ='[3]EST - FPE'!I28 -> 0 | PN26: ='[3]EST - FPE'!J28 -> 0 | PO26: ='[3]EST - FPE'!K28 -> 0 | PP26: ='[3]EST - FPE'!L28 -> 0 | PQ26: ='[3]EST - FPE'!M28 -> 0 | PR26: ='[3]EST - FPE'!N28 -> 0
A27: Paraná | B27: PR | C27: 1601968412 | D27: 1880793032 | E27: 2252913086 | F27: 2485918228 | G27: 4152107630 | H27: 3413269623 | I27: 3717392250 | J27: 4170453527 | K27: 5050753952 | L27: 4009476062 | M27: 5928690490 | N27: 9843280898 | O27: 7938109343 | P27: 9626804288 | Q27: 1.344866622e+10 | R27: 1.595251277e+10 | S27: 2.93998146e+10 | T27: 31494542705 | U27: 3.752262645e+10 | V27: 4.594937902e+10 | W27: 5.457802196e+10 | X27: 7.406028688e+10 | Y27: 8.990233398e+10 | Z27: 1.193819027e+11 | AA27: 164132943.3 | AB27: 205528339 | AC27: 242434072.5 | AD27: 308584872.9 | AE27: 404935355.6 | AF27: 726420111.8 | AG27: 730925538.1 | AH27: 885859637.2 | AI27: 1082804870 | AJ27: 1587994256 | AK27: 2709207984 | AL27: 3900418500 | AM27: 1802802.12 | AN27: 2382731.82 | AO27: 2980284.4 | AP27: 3820222.21 | AQ27: 6980003.75 | AR27: 9381093.42 | AS27: 12058629.96 | AT27: 12205964.67 | AU27: 12618332.68 | AV27: 13220407.83 | AW27: 14850468.9 | AX27: 15724443.46 | AY27: 18092672.24 | AZ27: 19876110.2 | BA27: 15625272.11 | BB27: 17550232.64 | BC27: 17880712.38 | BD27: 23746358.55 | BE27: 19712684.81 | BF27: 17338730.41 | BG27: 17649220.39 | BH27: 17840811.51 | BI27: 18270902.91 | BJ27: 19051459.06 | BK27: 20357688.73 | BL27: 20689403.41 | BM27: 17977339.26 | BN27: 31672039.24 | BO27: 20374656.16 | BP27: 19470309.87 | BQ27: 20075662.58 | BR27: 18452875.53 | BS27: 19484106.94 | BT27: 18105004.05 | BU27: 19342731.43 | BV27: 25873929.9 | BW27: 29495585.18 | BX27: 21993493.99 | BY27: 20059052.19 | BZ27: 25154553.58 | CA27: 25671026.01 | CB27: 19938451.58 | CC27: 21410877.93 | CD27: 22509183.67 | CE27: 23186399 | CF27: 23698356.83 | CG27: 26361045.76 | CH27: 23202818.29 | CI27: 28110446.82 | CJ27: 23121537.89 | CK27: 21623382.14 | CL27: 25756475.42 | CM27: 24498098.37 | CN27: 17359210.18 | CO27: 18273951.4 | CP27: 23857055.95 | CQ27: 23088108.84 | CR27: 19644152.61 | CS27: 21130265.75 | CT27: 21164562.76 | CU27: 27426780.81 | CV27: 27845581.77 | CW27: 28468602.2 | CX27: 25845601.96 | CY27: 27911368.15 | CZ27: 18645777.81 | DA27: 18545395.73 | DB27: 23131706.64 | DC27: 21584869.41 | DD27: 25714446.69 | DE27: 24433441.54 | DF27: 26853405.56 | DG27: 30317125.99 | DH27: 28757690.35 | DI27: 31327279.09 | DJ27: 32493098.92 | DK27: 31079144.58 | DL27: 25209301.41 | DM27: 23983751.85 | DN27: 26740749.27 | DO27: 26963564.12 | DP27: 28508845.57 | DQ27: 30943024.05 | DR27: 34921069.36 | DS27: 40553864.01 | DT27: 33043024.05 | DU27: 28975324.28 | DV27: 34079591.09 | DW27: 38317495.05 | DX27: 33246182.37 | DY27: 30243195.97 | DZ27: 31840938.73 | EA27: 34439812.19 | EB27: 32913480.8 | EC27: 34208543.72 | ED27: 41488455.08 | EE27: 44909549.77 | EF27: 52470183.78 | EG27: 40154591.8 | EH27: 41938415.8 | EI27: 48066245.36 | EJ27: 33839786.2 | EK27: 37001334.86 | EL27: 35035486.41 | EM27: 38678986.21 | EN27: 50968659.98 | EO27: 44705647.92 | EP27: 43786318.14 | EQ27: 47701531.34 | ER27: 50227523.02 | ES27: 43565581.14 | ET27: 41479919.34 | EU27: 58180646.88 | EV27: 40857881.66 | EW27: 34257381.56 | EX27: 44942716.82 | EY27: 38995973.56 | EZ27: 40289147.99 | FA27: 44880632 | FB27: 46793716.07 | FC27: 51360355.28 | FD27: 56090689.5 | FE27: 45394022.44 | FF27: 50002729.15 | FG27: 58235892.95 | FH27: 37803706.45 | FI27: 39313631 | FJ27: 51146118.7 | FK27: 44290162.63 | FL27: 47397600.86 | FM27: 47249917.34 | FN27: 58318141.27 | FO27: 65573398.51 | FP27: 57402523.56 | FQ27: 55052299.83 | FR27: 59771259.32 | FS27: 67465336.7 | FT27: 65363145.78 | FU27: 53673892.07 | FV27: 55221882.82 | FW27: 46127450.5 | FX27: 53415466.18 | FY27: 64569776.21 | FZ27: 90527255.95 | GA27: 74310225.92 | GB27: 63912452.46 | GC27: 60381361.07 | GD27: 67978999.32 | GE27: 74605747.61 | GF27: 72604791.03 | GG27: 65057497.62 | GH27: 65822267.48 | GI27: 61156190.56 | GJ27: 55419789.15 | GK27: 68256727.76 | GL27: 83005961.72 | GM27: 73850616.84 | GN27: 79368311.62 | GO27: 64552225.53 | GP27: 77180024.12 | GQ27: 82747086.11 | GR27: 84532121.86 | GS27: 65739405.25 | GT27: 69365807.66 | GU27: 71434781.1 | GV27: 67593899.58 | GW27: 79252435.36 | GX27: 107286829.4 | GY27: 94563449.76 | GZ27: 103932497.9 | HA27: 81862824.39 | HB27: 94889609.2 | HC27: 99839458.27 | HD27: 86076920.86 | HE27: 77975207.49 | HF27: 95244922.69 | HG27: 83877289.67 | HH27: 79828491.34 | HI27: 101159509.4 | HJ27: 106471215.7 | HK27: 97144771.67 | HL27: 90564006.28 | HM27: 72398433.42 | HN27: 86170390.77 | HO27: 102627633 | HP27: 88579927.31 | HQ27: 67967014.3 | HR27: 79068040.07 | HS27: 69992278.66 | HT27: 80514329.98 | HU27: 100503013.4 | HV27: 108373414.3 | HW27: 83456013.93 | HX27: 101893780.5 | HY27: 75692419.84 | HZ27: 90690874.98 | IA27: 111658938 | IB27: 96905754.09 | IC27: 71258531.05 | ID27: 95500660.25 | IE27: 79720792.13 | IF27: 85818501.53 | IG27: 102876171.5 | IH27: 129670315.2 | II27: 125834030.9 | IJ27: 135567722.2 | IK27: 88501362.68 | IL27: 117308274.1 | IM27: 134645352.2 | IN27: 121526915.1 | IO27: 103380006.6 | IP27: 106638325.1 | IQ27: 85132744.78 | IR27: 111900981.1 | IS27: 118210085.5 | IT27: 137313989.8 | IU27: 125222462.3 | IV27: 151475591.1 | IW27: 102876116.8 | IX27: 129657649.1 | IY27: 145012906.4 | IZ27: 123746608.4 | JA27: 92409830.14 | JB27: 101972308.3 | JC27: 89224272.23 | JD27: 94715592.1 | JE27: 128023681 | JF27: 144706237.2 | JG27: 133793664.8 | JH27: 180005066.2 | JI27: 103669549.8 | JJ27: 111235089.6 | JK27: 159829704.3 | JL27: 133344733.4 | JM27: 94958467.08 | JN27: 124156680.2 | JO27: 102755943.3 | JP27: 102757521.8 | JQ27: 142933626.1 | JR27: 147425735.4 | JS27: 176199884.3 | JT27: 188155705.1 | JU27: 111613035.4 | JV27: 127387487.9 | JW27: 169759490.4 | JX27: 127308660.2 | JY27: 109342031.3 | JZ27: 132831964.9 | KA27: 116438323.5 | KB27: 110046206.5 | KC27: 145660227 | KD27: 159997088.5 | KE27: 179233031.1 | KF27: 182962200.2 | KG27: 133261088.9 | KH27: 143824027.1 | KI27: 176863434.1 | KJ27: 153889117.8 | KK27: 113950067 | KL27: 133272571.2 | KM27: 111110171.4 | KN27: 126461789.1 | KO27: 142785287 | KP27: 164186695.4 | KQ27: 156444709.8 | KR27: 195603861.4 | KS27: 118960600.3 | KT27: 141418605.4 | KU27: 188037475.7 | KV27: 155361921.3 | KW27: 112639215.5 | KX27: 139688240.3 | KY27: 113594447.2 | KZ27: 136292629.6 | LA27: 235390515.9 | LB27: 282556302.2 | LC27: 167898186.7 | LD27: 214849646.8 | LE27: 134877613.7 | LF27: 161933675.6 | LG27: 184169242.6 | LH27: 169639432.7 | LI27: 130533143.1 | LJ27: 148422467.4 | LK27: 124532728.5 | LL27: 140565728.3 | LM27: 145573513.9 | LN27: 193720534.7 | LO27: 178073564.8 | LP27: 229434916.8 | LQ27: 155970654.7 | LR27: 163146246.5 | LS27: 200289581.4 | LT27: 185502491.8 | LU27: 127245456.3 | LV27: 160232869.4 | LW27: 121061479.2 | LX27: 138231593.9 | LY27: 172104285.8 | LZ27: 206243485.2 | MA27: 212741227.8 | MB27: 234480816.8 | MC27: 173214962.3 | MD27: 172187167.3 | ME27: 219495521.1 | MF27: 174358061.9 | MG27: 141728865.5 | MH27: 170479050 | MI27: 149655659.8 | MJ27: 142497298.1 | MK27: 188682950.7 | ML27: 221918701 | MM27: 196543346.1 | MN27: 274231940.8 | MO27: 165914155.6 | MP27: 162237916.7 | MQ27: 169020223.7 | MR27: 138556737.6 | MS27: 140410159.4 | MT27: 151450466.9 | MU27: 122115100.9 | MV27: 161590007.8 | MW27: 208638463.3 | MX27: 216586839.9 | MY27: 237214448.5 | MZ27: 304523701.6 | NA27: 205921246.4 | NB27: 215274986.5 | NC27: 259932596.9 | ND27: 223135327.1 | NE27: 193039648.4 | NF27: 240592914.8 | NG27: 189884807.4 | NH27: 211832398 | NI27: 272522176.9 | NJ27: 283341362 | NK27: 291946616.1 | NL27: 408706169.3 | NM27: 247348036.1 | NN27: 293404425.6 | NO27: 326066725.6 | NP27: 305299147.1 | NQ27: 262153409.2 | NR27: 298871919.5 | NS27: 248306596.6 | NT27: 261766672.5 | NU27: 329281701.3 | NV27: 352230218.7 | NW27: 322571849.7 | NX27: 424760766.6 | NY27: 263082289.4 | NZ27: 299332583.2 | OA27: 335319069 | OB27: 311341918.5 | OC27: 231839516 | OD27: 266541851.6 | OE27: 231078615 | OF27: 252320677.5 | OG27: 324042428.1 | OH27: 357408837.4 | OI27: ='[1]EST - FPE'!C29 -> 362255683.2 | OJ27: ='[1]EST - FPE'!D29 -> 481115088 | OK27: ='[1]EST - FPE'!E29 -> 303176416.7 | OL27: ='[1]EST - FPE'!F29 -> 318699420.9 | OM27: ='[1]EST - FPE'!G29 -> 372285676 | ON27: ='[1]EST - FPE'!H29 -> 393118250.8 | OO27: ='[1]EST - FPE'!I29 -> 257256906.1 | OP27: ='[1]EST - FPE'!J29 -> 333548822.1 | OQ27: ='[1]EST - FPE'!K29 -> 272892669.4 | OR27: ='[1]EST - FPE'!L29 -> 292316141.6 | OS27: ='[1]EST - FPE'!M29 -> 370720647.6 | OT27: ='[1]EST - FPE'!N29 -> 416661026.2 | OU27: ='[2]EST - FPE'!C29 -> 390269677.2 | OV27: ='[2]EST - FPE'!D29 -> 520590840.1 | OW27: ='[2]EST - FPE'!E29 -> 343460673.3 | OX27: ='[2]EST - FPE'!F29 -> 349431902.1 | OY27: ='[2]EST - FPE'!G29 -> 445359100.2 | OZ27: ='[2]EST - FPE'!H29 -> 455961750 | PA27: ='[2]EST - FPE'!I29 -> 280748858 | PB27: ='[2]EST - FPE'!J29 -> 369669227.9 | PC27: ='[2]EST - FPE'!K29 -> 298629283 | PD27: ='[2]EST - FPE'!L29 -> 315259762.7 | PE27: ='[2]EST - FPE'!M29 -> 427031326.2 | PF27: ='[2]EST - FPE'!N29 -> 482073433.1 | PG27: ='[3]EST - FPE'!C29 -> 410554013.4 | PH27: ='[3]EST - FPE'!D29 -> 492385511.5 | PI27: ='[3]EST - FPE'!E29 -> 309826331 | PJ27: ='[3]EST - FPE'!F29 -> 357331968.2 | PK27: ='[3]EST - FPE'!G29 -> 433765899.8 | PL27: ='[3]EST - FPE'!H29 -> 439444673.4 | PM27: ='[3]EST - FPE'!I29 -> 0 | PN27: ='[3]EST - FPE'!J29 -> 0 | PO27: ='[3]EST - FPE'!K29 -> 0 | PP27: ='[3]EST - FPE'!L29 -> 0 | PQ27: ='[3]EST - FPE'!M29 -> 0 | PR27: ='[3]EST - FPE'!N29 -> 0
A28: Rio de Janeiro | B28: RJ | C28: 848823232.2 | D28: 996561984.7 | E28: 1193734504 | F28: 1317195226 | G28: 2200046763 | H28: 1808564097 | I28: 1969707319 | J28: 2209767568 | K28: 2676205887 | L28: 2124471622 | M28: 3141391670 | N28: 5215586927 | O28: 4206107673 | P28: 5100884056 | Q28: 7125945959 | R28: 8452640734 | S28: 1.557786375e+10 | T28: 1.668778194e+10 | U28: 1.988183839e+10 | V28: 2.434685985e+10 | W28: 2.891885549e+10 | X28: 3.924178006e+10 | Y28: 4.763588916e+10 | Z28: 6.325601164e+10 | AA28: 86967916.7 | AB28: 108901790.9 | AC28: 128456760.7 | AD28: 163507599.3 | AE28: 214560121.7 | AF28: 384902887.4 | AG28: 387290144.5 | AH28: 469383937.2 | AI28: 573737860.5 | AJ28: 841418848.9 | AK28: 1435508129 | AL28: 2066686093 | AM28: 955237.51 | AN28: 1262520.6 | AO28: 1579141.39 | AP28: 2024193.07 | AQ28: 3698443.3 | AR28: 4970691.04 | AS28: 6389417.66 | AT28: 6467484.82 | AU28: 6685983.24 | AV28: 7005000.36 | AW28: 7868708.85 | AX28: 8331795.32 | AY28: 9586631.3 | AZ28: 10531608.47 | BA28: 8279248.12 | BB28: 9299212.81 | BC28: 9474321.68 | BD28: 12582308.52 | BE28: 10445015.48 | BF28: 9187145.68 | BG28: 9351662.73 | BH28: 9453179.72 | BI28: 9681069.09 | BJ28: 10094656.64 | BK28: 10786778.94 | BL28: 10962542.16 | BM28: 9525520.68 | BN28: 16781830.73 | BO28: 10795769.37 | BP28: 10316590.04 | BQ28: 10637343.82 | BR28: 9777489.57 | BS28: 10323900.6 | BT28: 9593165.47 | BU28: 10248990.99 | BV28: 13709629.13 | BW28: 15628608.99 | BX28: 11653531.05 | BY28: 10628542.6 | BZ28: 13328458.48 | CA28: 13602117.93 | CB28: 10564640.84 | CC28: 11344824.58 | CD28: 11926775.77 | CE28: 12285606.89 | CF28: 12556874.19 | CG28: 13967733.63 | CH28: 12294306.85 | CI28: 14894675.93 | CJ28: 12251239.43 | CK28: 11457422.62 | CL28: 13647394.4 | CM28: 12980627.39 | CN28: 9197997.17 | CO28: 9682684.38 | CP28: 12640962.96 | CQ28: 12233526.6 | CR28: 10408702.82 | CS28: 11196138.69 | CT28: 11214311.38 | CU28: 14532426.85 | CV28: 14754333.85 | CW28: 15084449.08 | CX28: 13694619.25 | CY28: 14789191.57 | CZ28: 9879701.3 | DA28: 9826512.58 | DB28: 12256627.45 | DC28: 11437016.18 | DD28: 13625124.95 | DE28: 12946368.16 | DF28: 14228616.7 | DG28: 16063912.8 | DH28: 15237626.1 | DI28: 16599155.21 | DJ28: 17216879.61 | DK28: 16467678 | DL28: 13357467.31 | DM28: 12708094.39 | DN28: 14168924.36 | DO28: 14286985.64 | DP28: 15105772.55 | DQ28: 16395552.82 | DR28: 18503370.46 | DS28: 21487977.97 | DT28: 17508264.37 | DU28: 15352942.19 | DV28: 18057502.55 | DW28: 20303009.58 | DX28: 17615910.4 | DY28: 16024740.05 | DZ28: 16871324.26 | EA28: 18248370.25 | EB28: 17439624.26 | EC28: 18125829.73 | ED28: 21983182.87 | EE28: 23795893.2 | EF28: 27801990.78 | EG28: 21276418.55 | EH28: 22221600.26 | EI28: 25468508.27 | EJ28: 17930438.89 | EK28: 19605625.44 | EL28: 18563995.79 | EM28: 20494550.24 | EN28: 27006389.41 | EO28: 23687853.19 | EP28: 23200734.7 | EQ28: 25275259.94 | ER28: 26613688.6 | ES28: 23083774.4 | ET28: 21978660.1 | EU28: 30827751.91 | EV28: 21649065.57 | EW28: 18151707.08 | EX28: 23813467.16 | EY28: 20662510.01 | EZ28: 21347714.83 | FA28: 23780570.72 | FB28: 24794242.57 | FC28: 27213934.1 | FD28: 29720361.55 | FE28: 24052597.16 | FF28: 26494578.72 | FG28: 30857024.72 | FH28: 20030772.18 | FI28: 20830824.83 | FJ28: 27100418.14 | FK28: 23467703.05 | FL28: 25114218.53 | FM28: 25035966.56 | FN28: 30900605.05 | FO28: 34744894.9 | FP28: 30415453.42 | FQ28: 29170157.65 | FR28: 31670558.02 | FS28: 35747362.27 | FT28: 34633489.82 | FU28: 28439790.84 | FV28: 29260013.33 | FW28: 24441213.29 | FX28: 28302860.62 | FY28: 34213112.92 | FZ28: 47967012 | GA28: 39374213.41 | GB28: 33864821.61 | GC28: 31993828.16 | GD28: 36019532.91 | GE28: 39530799.34 | GF28: 38470567.18 | GG28: 34471538.27 | GH28: 34876761.25 | GI28: 32404381.36 | GJ28: 29364876.49 | GK28: 36166690.84 | GL28: 43981759.07 | GM28: 39130683.74 | GN28: 42054304.13 | GO28: 34203813.49 | GP28: 40894812.33 | GQ28: 43844590.55 | GR28: 44790414.32 | GS28: 34832855.63 | GT28: 36754350.86 | GU28: 37850622.63 | GV28: 35815482.95 | GW28: 41992905.64 | GX28: 56847284.06 | GY28: 50105640.33 | GZ28: 55069949.07 | HA28: 43376053.29 | HB28: 50278460.06 | HC28: 52901200.22 | HD28: 45608945.62 | HE28: 41316150.28 | HF28: 50466727.4 | HG28: 44443443.21 | HH28: 42298136.19 | HI28: 53600646.01 | HJ28: 56415120.78 | HK28: 51473386.42 | HL28: 47986484.6 | HM28: 38361225.99 | HN28: 45658471.85 | HO28: 54378549.88 | HP28: 46935195.28 | HQ28: 36013182.49 | HR28: 41895201.46 | HS28: 37086294.45 | HT28: 42661536.47 | HU28: 53252793.28 | HV28: 57423024.83 | HW28: 44220224.94 | HX28: 53989708.85 | HY28: 40106586.37 | HZ28: 48053707.61 | IA28: 59163901.07 | IB28: 51346739.94 | IC28: 37757234.31 | ID28: 50602233.17 | IE28: 42241070.4 | IF28: 45472018.85 | IG28: 54510241.15 | IH28: 68707457.19 | II28: 66674753.41 | IJ28: 71832272.9 | IK28: 46893566.79 | IL28: 62157273.29 | IM28: 71343543.47 | IN28: 64392573.62 | IO28: 54777204.58 | IP28: 56503665.84 | IQ28: 45108661.97 | IR28: 59292150.69 | IS28: 62635109.49 | IT28: 72757554.91 | IU28: 66350706.04 | IV28: 80261258.55 | IW28: 54510212.13 | IX28: 68700745.9 | IY28: 76836923.25 | IZ28: 65568706.22 | JA28: 48964517.73 | JB28: 54031317.76 | JC28: 47276609.56 | JD28: 50186254.9 | JE28: 67834967.23 | JF28: 76674430.69 | JG28: 70892266.12 | JH28: 95377961.88 | JI28: 54930622.66 | JJ28: 58939319.64 | JK28: 84687791.12 | JL28: 70654394.16 | JM28: 50314945.26 | JN28: 65785987.9 | JO28: 54446536.7 | JP28: 54447373.1 | JQ28: 75735190.29 | JR28: 78115391.24 | JS28: 93361738.12 | JT28: 99696681.02 | JU28: 59139579 | JV28: 67497872.27 | JW28: 89949213.91 | JX28: 67456104.39 | JY28: 57936258.77 | JZ28: 70382697.28 | KA28: 61696318.98 | KB28: 58309374.89 | KC28: 77179914.26 | KD28: 84776481.72 | KE28: 94968889.29 | KF28: 96944836.75 | KG28: 70610074.05 | KH28: 76206980.54 | KI28: 93713328.36 | KJ28: 81540096.22 | KK28: 60377884.8 | KL28: 70616158.1 | KM28: 58873130.18 | KN28: 67007379.06 | KO28: 75656590.95 | KP28: 86996397.92 | KQ28: 82894208.94 | KR28: 104512233.1 | KS28: 63032779.21 | KT28: 74932437.38 | KU28: 99688320.7 | KV28: 82320479.76 | KW28: 59683313.49 | KX28: 74015581.54 | KY28: 60189455.13 | KZ28: 77951923.2 | LA28: 182797433.6 | LB28: 227303044.5 | LC28: 88962978.55 | LD28: 117413517.6 | LE28: 71466610.18 | LF28: 90696480.51 | LG28: 98991662.08 | LH28: 92144936.58 | LI28: 75054790.65 | LJ28: 82046603.09 | LK28: 69632618.83 | LL28: 83460612.2 | LM28: 77868790.6 | LN28: 112046273 | LO28: 94354531.42 | LP28: 132232606.3 | LQ28: 85158541.21 | LR28: 90299873.25 | LS28: 110636325.9 | LT28: 109044089.6 | LU28: 70740446.11 | LV28: 90021744.88 | LW28: 67329999.94 | LX28: 74620423.25 | LY28: 97775707.35 | LZ28: 131602884.2 | MA28: 122602415.4 | MB28: 132726163.8 | MC28: 105113469.1 | MD28: 94750117.49 | ME28: 125198050.9 | MF28: 95051511.97 | MG28: 82261886.99 | MH28: 103567608 | MI28: 97303754.59 | MJ28: 78065558.74 | MK28: 117428247.6 | ML28: 149033140.1 | MM28: 104356502.8 | MN28: 158462892.9 | MO28: 88286387.74 | MP28: 86850328.67 | MQ28: 91117404.4 | MR28: 73416040.53 | MS28: 76611542.29 | MT28: 80613245.61 | MU28: 64840062.57 | MV28: 89391785.92 | MW28: 122832629.8 | MX28: 130379083.2 | MY28: 125589548 | MZ28: 159208506.4 | NA28: 108238535.5 | NB28: 113155125.4 | NC28: 137011555.3 | ND28: 117087005.8 | NE28: 100802303.3 | NF28: 125232888 | NG28: 99142245.68 | NH28: 110677961.2 | NI28: 141553346.3 | NJ28: 147325960.5 | NK28: 157712891.2 | NL28: 231308138.3 | NM28: 136270291.2 | NN28: 164173273.9 | NO28: 179344718.6 | NP28: 169901038 | NQ28: 149032301.3 | NR28: 169475456.7 | NS28: 140951786 | NT28: 147152846.4 | NU28: 187937953.5 | NV28: 199281278.9 | NW28: 177142936.2 | NX28: 245164796.4 | NY28: 147627977.9 | NZ28: 169839764.3 | OA28: 186942926.1 | OB28: 175942168.8 | OC28: 131324652.2 | OD28: 150672063.1 | OE28: 131896289.4 | OF28: 142679075.2 | OG28: 187542802.1 | OH28: 205709405.4 | OI28: ='[1]EST - FPE'!C30 -> 210426375.4 | OJ28: ='[1]EST - FPE'!D30 -> 313653026.1 | OK28: ='[1]EST - FPE'!E30 -> 187794921 | OL28: ='[1]EST - FPE'!F30 -> 195260371.4 | OM28: ='[1]EST - FPE'!G30 -> 223511595 | ON28: ='[1]EST - FPE'!H30 -> 255994102 | OO28: ='[1]EST - FPE'!I30 -> 159927198.6 | OP28: ='[1]EST - FPE'!J30 -> 216230909.3 | OQ28: ='[1]EST - FPE'!K30 -> 175858772.8 | OR28: ='[1]EST - FPE'!L30 -> 184109207.9 | OS28: ='[1]EST - FPE'!M30 -> 243970603 | OT28: ='[1]EST - FPE'!N30 -> 272555660.3 | OU28: ='[2]EST - FPE'!C30 -> 216642597.8 | OV28: ='[2]EST - FPE'!D30 -> 303478518.9 | OW28: ='[2]EST - FPE'!E30 -> 197274196 | OX28: ='[2]EST - FPE'!F30 -> 198748877.7 | OY28: ='[2]EST - FPE'!G30 -> 255139149.3 | OZ28: ='[2]EST - FPE'!H30 -> 268160729.8 | PA28: ='[2]EST - FPE'!I30 -> 161119658.1 | PB28: ='[2]EST - FPE'!J30 -> 215601297.7 | PC28: ='[2]EST - FPE'!K30 -> 173424089.2 | PD28: ='[2]EST - FPE'!L30 -> 180890780.2 | PE28: ='[2]EST - FPE'!M30 -> 252115423.2 | PF28: ='[2]EST - FPE'!N30 -> 284264418 | PG28: ='[3]EST - FPE'!C30 -> 265472641.4 | PH28: ='[3]EST - FPE'!D30 -> 357659630.6 | PI28: ='[3]EST - FPE'!E30 -> 204889688.7 | PJ28: ='[3]EST - FPE'!F30 -> 248720306.4 | PK28: ='[3]EST - FPE'!G30 -> 299745616.6 | PL28: ='[3]EST - FPE'!H30 -> 333433636.9 | PM28: ='[3]EST - FPE'!I30 -> 0 | PN28: ='[3]EST - FPE'!J30 -> 0 | PO28: ='[3]EST - FPE'!K30 -> 0 | PP28: ='[3]EST - FPE'!L30 -> 0 | PQ28: ='[3]EST - FPE'!M30 -> 0 | PR28: ='[3]EST - FPE'!N30 -> 0
A29: Rio Grande do Norte | B29: RN | C29: 2321331794 | D29: 2725362516 | E29: 3264582958 | F29: 3602218980 | G29: 6016610178 | H29: 4945997211 | I29: 5386686003 | J29: 6043194294 | K29: 7318793332 | L29: 5809929952 | M29: 8590966980 | N29: 1.426340291e+10 | O29: 1.15027147e+10 | P29: 1.394971755e+10 | Q29: 1.948778531e+10 | R29: 2.311598332e+10 | S29: 4.260179156e+10 | T29: 4.563715662e+10 | U29: 5.437214937e+10 | V29: 6.658293237e+10 | W29: 7.908626455e+10 | X29: 1.07317034e+11 | Y29: 1.302729471e+11 | Z29: 1.729903064e+11 | AA29: 237836786.8 | AB29: 297820771.2 | AC29: 351299012 | AD29: 447154807.3 | AE29: 586771442.2 | AF29: 1052618821 | AG29: 1059147408 | AH29: 1283654612 | AI29: 1569038036 | AJ29: 2301082548 | AK29: 3925776926 | AL29: 5651900129 | AM29: 2612349.81 | AN29: 3452696.75 | AO29: 4318580.12 | AP29: 5535691.72 | AQ29: 10114372.11 | AR29: 13593670.31 | AS29: 17473553.74 | AT29: 17687049.06 | AU29: 18284590.75 | AV29: 19157027.57 | AW29: 21519067 | AX29: 22785499.57 | AY29: 26217180.68 | AZ29: 28801470.87 | BA29: 22641795.34 | BB29: 25431158.75 | BC29: 25910040.33 | BD29: 34409652.96 | BE29: 28564659.37 | BF29: 25124681.52 | BG29: 25574596.93 | BH29: 25852222 | BI29: 26475445.77 | BJ29: 27606510.42 | BK29: 29499302.07 | BL29: 29979973.11 | BM29: 26050057.49 | BN29: 45894357.92 | BO29: 29523888.74 | BP29: 28213446.03 | BQ29: 29090632.17 | BR29: 26739133.15 | BS29: 28233438.67 | BT29: 26235050.09 | BU29: 28028578.53 | BV29: 37492609.51 | BW29: 42740567.88 | BX29: 31869665.13 | BY29: 29066562.9 | BZ29: 36450197.48 | CA29: 37198591.68 | CB29: 28891806.62 | CC29: 31025425.53 | CD29: 32616925.11 | CE29: 33598243.76 | CF29: 34340096.08 | CG29: 38198464.57 | CH29: 33622036.14 | CI29: 40733433.6 | CJ29: 33504256.78 | CK29: 31333354.68 | CL29: 37322412.15 | CM29: 35498961.25 | CN29: 25154357.7 | CO29: 26479863.17 | CP29: 34570058.96 | CQ29: 33455816.4 | CR29: 28465352.8 | CS29: 30618804.53 | CT29: 30668502.6 | CU29: 39742767.59 | CV29: 40349630.99 | CW29: 41252418.54 | CX29: 37451560.91 | CY29: 40444958.7 | CZ29: 27018658.11 | DA29: 26873199.48 | DB29: 33518991.78 | DC29: 31277547.82 | DD29: 37261510.39 | DE29: 35405270.31 | DF29: 38911918.35 | DG29: 43931021.31 | DH29: 41671321.59 | DI29: 45394783.32 | DJ29: 47084114.17 | DK29: 45035224.1 | DL29: 36529529.81 | DM29: 34753647.62 | DN29: 38748673.82 | DO29: 39071543.6 | DP29: 41310733.17 | DQ29: 44837978.7 | DR29: 50602363.95 | DS29: 58764563.14 | DT29: 47880983 | DU29: 41986683.98 | DV29: 49383020.1 | DW29: 55523953.42 | DX29: 48175369.5 | DY29: 43823893.02 | DZ29: 46139101.65 | EA29: 49904998.36 | EB29: 47693268.38 | EC29: 49569878.86 | ED29: 60118832 | EE29: 65076168.14 | EF29: 76031902.33 | EG29: 58185997.87 | EH29: 60770847.43 | EI29: 69650376.82 | EJ29: 49035530.93 | EK29: 53616771.92 | EL29: 50768159.94 | EM29: 56047772.09 | EN29: 73856119.76 | EO29: 64780704.22 | EP29: 63448549.71 | EQ29: 69121888.11 | ER29: 72782175.49 | ES29: 63128690.83 | ET29: 60106463.28 | EU29: 84306647 | EV29: 59205099.82 | EW29: 49640647.31 | EX29: 65124228.86 | EY29: 56507102.47 | EZ29: 58380976.47 | FA29: 65034264.86 | FB29: 67806418.69 | FC29: 74423705.69 | FD29: 81278194.92 | FE29: 65778193.06 | FF29: 72456438.05 | FG29: 84386701.27 | FH29: 54779448.24 | FI29: 56967403.9 | FJ29: 74113266.25 | FK29: 64178645.41 | FL29: 68681477.73 | FM29: 68467476.97 | FN29: 84505883.16 | FO29: 95019111.28 | FP29: 83179107.65 | FQ29: 79773516.72 | FR29: 86611523.4 | FS29: 97760623.66 | FT29: 94714444.6 | FU29: 77776135.42 | FV29: 80019250.89 | FW29: 66840966.77 | FX29: 77401663.48 | FY29: 93564812.7 | FZ29: 131178490.1 | GA29: 107679208.1 | GB29: 92612317.96 | GC29: 87495591.16 | GD29: 98504946.33 | GE29: 108107433.7 | GF29: 105207948.2 | GG29: 94271545.22 | GH29: 95379734.75 | GI29: 88618357.54 | GJ29: 80306026.97 | GK29: 98907388.62 | GL29: 120279761.2 | GM29: 107013211.7 | GN29: 115008625.5 | GO29: 93539380.91 | GP29: 111837688.3 | GQ29: 119904637.5 | GR29: 122491243 | GS29: 95259663.26 | GT29: 100514500.5 | GU29: 103512545.7 | GV29: 97946917.64 | GW29: 114840715.1 | GX29: 155463944.4 | GY29: 137027135.4 | GZ29: 150603351.5 | HA29: 118623298.4 | HB29: 137499756.6 | HC29: 144672333.8 | HD29: 124729733.5 | HE29: 112989948.4 | HF29: 138014623.5 | HG29: 121542358.7 | HH29: 115675448.8 | HI29: 146585153.4 | HJ29: 154282079.6 | HK29: 140767599 | HL29: 131231743.1 | HM29: 104908925.8 | HN29: 124865176 | HO29: 148712537.4 | HP29: 128356714.2 | HQ29: 98487579.47 | HR29: 114573517.1 | HS29: 101422288.1 | HT29: 116669263 | HU29: 145633858.1 | HV29: 157038460 | HW29: 120931909.2 | HX29: 147649148.8 | HY29: 109682075.8 | HZ29: 131415582.2 | IA29: 161799346.9 | IB29: 140421250.7 | IC29: 103257150.7 | ID29: 138385199.9 | IE29: 115519387.3 | IF29: 124355271 | IG29: 149072682.1 | IH29: 187898727 | II29: 182339760.6 | IJ29: 196444362.7 | IK29: 128242870.1 | IL29: 169985515.5 | IM29: 195107802.7 | IN29: 176098535.8 | IO29: 149802764.2 | IP29: 154524229.5 | IQ29: 123361575.5 | IR29: 162150079.4 | IS29: 171292285 | IT29: 198974791.2 | IU29: 181453567.2 | IV29: 219495654.9 | IW29: 149072602.7 | IX29: 187880373.3 | IY29: 210130903.7 | IZ29: 179314981.7 | JA29: 133906433.6 | JB29: 147762939.3 | JC29: 129290402 | JD29: 137247597.2 | JE29: 185512672.3 | JF29: 209686524.8 | JG29: 193873665.4 | JH29: 260836281.2 | JI29: 150222326.6 | JJ29: 161185169.5 | JK29: 231601179.8 | JL29: 193223141.5 | JM29: 137599535.1 | JN29: 179909196 | JO29: 148898465.4 | JP29: 148900752.8 | JQ29: 207117923.3 | JR29: 213627212.8 | JS29: 255322383.7 | JT29: 272646961.8 | JU29: 161732831.7 | JV29: 184590796.9 | JW29: 245989933 | JX29: 184476571.6 | JY29: 158442034 | JZ29: 192480114.5 | KA29: 168724913.9 | KB29: 159462418.8 | KC29: 211068903.4 | KD29: 231843727.8 | KE29: 259717564 | KF29: 265121315.3 | KG29: 193101936.4 | KH29: 208408158.6 | KI29: 256283900.3 | KJ29: 222992975 | KK29: 165119306.7 | KL29: 193118574.9 | KM29: 161004156.9 | KN29: 183249413.4 | KO29: 206902972.6 | KP29: 237914676.3 | KQ29: 226696154.7 | KR29: 283806050.4 | KS29: 172379818.2 | KT29: 204922583.1 | KU29: 272498524.9 | KV29: 225127140.4 | KW29: 163219817.7 | KX29: 202415198.1 | KY29: 164603995.9 | KZ29: 199912551.5 | LA29: 365572538.9 | LB29: 442144126.4 | LC29: 243292811.5 | LD29: 311167819 | LE29: 195444361.2 | LF29: 234430785.6 | LG29: 266807361 | LH29: 245714787.9 | LI29: 188885239.9 | LJ29: 214919133.2 | LK29: 180290775.2 | LL29: 203284583.8 | LM29: 210910345.7 | LN29: 280289689.4 | LO29: 258037439.9 | LP29: 333331360.3 | LQ29: 226214165.7 | LR29: 236721064.4 | LS29: 290597012.5 | LT29: 269678397 | LU29: 184655291.7 | LV29: 232602542.3 | LW29: 175683501.9 | LX29: 200416602.7 | LY29: 249924066.2 | LZ29: 300675652.8 | MA29: 313110909.4 | MB29: 343929306.9 | MC29: 257527310.3 | MD29: 251229077.5 | ME29: 322416670.6 | MF29: 253959057.3 | MG29: 208881373.6 | MH29: 253515720.3 | MI29: 225677627.9 | MJ29: 207740231.5 | MK29: 281958480.6 | ML29: 336972784.6 | MM29: 285004009.4 | MN29: 409765027.6 | MO29: 240770647 | MP29: 235925549.2 | MQ29: 246387513 | MR29: 200775594.5 | MS29: 205545489.5 | MT29: 219803217.4 | MU29: 177078746.1 | MV29: 237703009.3 | MW29: 313893169.2 | MX29: 328550934.4 | MY29: 343773107.8 | MZ29: 442064961.1 | NA29: 298712757.2 | NB29: 312281455.6 | NC29: 376920713.3 | ND29: 323757753.4 | NE29: 280272808.4 | NF29: 349463500.6 | NG29: 275697001.7 | NH29: 307534765.5 | NI29: 395951867.3 | NJ29: 411614619.3 | NK29: 416285003 | NL29: 559232289.9 | NM29: 346754240.1 | NN29: 405602411.5 | NO29: 457725705.5 | NP29: 424129085.4 | NQ29: 357134752.6 | NR29: 408124675.9 | NS29: 338739682.7 | NT29: 360334258 | NU29: 446914558.5 | NV29: 482000829.3 | NW29: 458040517.7 | NX29: 585201411.8 | NY29: 368812896.1 | NZ29: 416813066.8 | OA29: 471920852.3 | OB29: 434608453.7 | OC29: 323162135.7 | OD29: 372000559.5 | OE29: 320590152.6 | OF29: 352083323.9 | OG29: 445669560.5 | OH29: 493285071.7 | OI29: ='[1]EST - FPE'!C31 -> 521804771.9 | OJ29: ='[1]EST - FPE'!D31 -> 687239435.2 | OK29: ='[1]EST - FPE'!E31 -> 434731050.4 | OL29: ='[1]EST - FPE'!F31 -> 457352966.1 | OM29: ='[1]EST - FPE'!G31 -> 535026119.8 | ON29: ='[1]EST - FPE'!H31 -> 561591264.8 | OO29: ='[1]EST - FPE'!I31 -> 368788808.8 | OP29: ='[1]EST - FPE'!J31 -> 476657258.4 | OQ29: ='[1]EST - FPE'!K31 -> 390154131.2 | OR29: ='[1]EST - FPE'!L31 -> 418644525.3 | OS29: ='[1]EST - FPE'!M31 -> 529162350.3 | OT29: ='[1]EST - FPE'!N31 -> 595015528.2 | OU29: ='[2]EST - FPE'!C31 -> 564013679 | OV29: ='[2]EST - FPE'!D31 -> 750136581 | OW29: ='[2]EST - FPE'!E31 -> 495354312.1 | OX29: ='[2]EST - FPE'!F31 -> 504265188.5 | OY29: ='[2]EST - FPE'!G31 -> 642418083.8 | OZ29: ='[2]EST - FPE'!H31 -> 656649908.6 | PA29: ='[2]EST - FPE'!I31 -> 404929116.2 | PB29: ='[2]EST - FPE'!J31 -> 532652952 | PC29: ='[2]EST - FPE'!K31 -> 430406021.2 | PD29: ='[2]EST - FPE'!L31 -> 454710076.8 | PE29: ='[2]EST - FPE'!M31 -> 614837780.4 | PF29: ='[2]EST - FPE'!N31 -> 694140267 | PG29: ='[3]EST - FPE'!C31 -> 616877354.2 | PH29: ='[3]EST - FPE'!D31 -> 757828235.5 | PI29: ='[3]EST - FPE'!E31 -> 467613776.8 | PJ29: ='[3]EST - FPE'!F31 -> 545001505.7 | PK29: ='[3]EST - FPE'!G31 -> 660581044.6 | PL29: ='[3]EST - FPE'!H31 -> 682867136 | PM29: ='[3]EST - FPE'!I31 -> 0 | PN29: ='[3]EST - FPE'!J31 -> 0 | PO29: ='[3]EST - FPE'!K31 -> 0 | PP29: ='[3]EST - FPE'!L31 -> 0 | PQ29: ='[3]EST - FPE'!M31 -> 0 | PR29: ='[3]EST - FPE'!N31 -> 0
A30: Rondônia | B30: RO | C30: 1564408387 | D30: 1836695637 | E30: 2200090901 | F30: 2427632964 | G30: 4054756605 | H30: 3333241520 | I30: 3630233636 | J30: 4072672361 | K30: 4932333111 | L30: 3915469201 | M30: 5789685399 | N30: 9612493652 | O30: 7751991075 | P30: 9401092589 | Q30: 1.31333465e+10 | R30: 1.557848743e+10 | S30: 2.871050152e+10 | T30: 3.075611627e+10 | U30: 3.664286454e+10 | V30: 4.487204203e+10 | W30: 5.329837633e+10 | X30: 7.232385674e+10 | Y30: 8.77944685e+10 | Z30: 1.165828542e+11 | AA30: 160284654.2 | AB30: 200709486.5 | AC30: 236749921.8 | AD30: 301349739.2 | AE30: 395441172.1 | AF30: 709388341.7 | AG30: 713788133.1 | AH30: 865089620.7 | AI30: 1057417242 | AJ30: 1550761871 | AK30: 2645687430 | AL30: 3808968621 | AM30: 1760533.31 | AN30: 2326865.88 | AO30: 2910408.14 | AP30: 3730652.62 | AQ30: 6816349.39 | AR30: 9161142.7 | AS30: 11775901.27 | AT30: 11919781.53 | AU30: 12322481.1 | AV30: 12910439.89 | AW30: 14502282.27 | AX30: 15355765.48 | AY30: 17668468.34 | AZ30: 19410091.52 | BA30: 15258919.31 | BB30: 17138746.89 | BC30: 17461478.15 | BD30: 23189597.37 | BE30: 19250497.85 | BF30: 16932203.56 | BG30: 17235413.75 | BH30: 17422512.79 | BI30: 17842520.19 | BJ30: 18604775.31 | BK30: 19880378.87 | BL30: 20204316.13 | BM30: 17555839.52 | BN30: 30929451.2 | BO30: 19896948.51 | BP30: 19013805.65 | BQ30: 19604965.17 | BR30: 18020226.25 | BS30: 19027279.24 | BT30: 17680511.01 | BU30: 18889218.44 | BV30: 25267285.32 | BW30: 28804026.65 | BX30: 21477830.76 | BY30: 19588744.23 | BZ30: 24564775.62 | CA30: 25069138.74 | CB30: 19470971.23 | CC30: 20908874.83 | CD30: 21981429.52 | CE30: 22642766.74 | CF30: 23142721.11 | CG30: 25742980.16 | CH30: 22658801.04 | CI30: 27451364.47 | CJ30: 22579426.38 | CK30: 21116396.63 | CL30: 25152584.71 | CM30: 23923711.76 | CN30: 16952203.16 | CO30: 17845497.21 | CP30: 23297699.34 | CQ30: 22546781.09 | CR30: 19183572.46 | CS30: 20634841.93 | CT30: 20668334.79 | CU30: 26783727.82 | CV30: 27192709.5 | CW30: 27801122.48 | CX30: 25239621.56 | CY30: 27256953.45 | CZ30: 18208605.72 | DA30: 18110577.21 | DB30: 22589356.69 | DC30: 21078786.87 | DD30: 25111541.37 | DE30: 23860570.89 | DF30: 26223796 | DG30: 29606305.47 | DH30: 28083432.62 | DI30: 30592774.35 | DJ30: 31731260.16 | DK30: 30350457.64 | DL30: 24618239.83 | DM30: 23421424.69 | DN30: 26113781.11 | DO30: 26331371.79 | DP30: 27840422.29 | DQ30: 30217528.61 | DR30: 34102304.01 | DS30: 39603031.18 | DT30: 32268291.67 | DU30: 28295963.86 | DV30: 33280555.16 | DW30: 37419096.5 | DX30: 32466686.68 | DY30: 29534108.81 | DZ30: 31094390.64 | EA30: 33632330.48 | EB30: 32141785.7 | EC30: 33406484.35 | ED30: 40515709.65 | EE30: 43856592.81 | EF30: 51239958.88 | EG30: 39213120.38 | EH30: 40955120.54 | EI30: 46939275.96 | EJ30: 33046372.8 | EK30: 36133795.24 | EL30: 34214038.42 | EM30: 37772112.1 | EN30: 49773640.08 | EO30: 43657471.64 | EP30: 42759696.65 | EQ30: 46583113.08 | ER30: 49049879.93 | ES30: 42544135.08 | ET30: 40507374.06 | EU30: 56816533.49 | EV30: 39899920.79 | EW30: 33454177.12 | EX30: 43888982.21 | EY30: 38081667.28 | EZ30: 39344521.75 | FA30: 43828353.04 | FB30: 45696582.63 | FC30: 50156151.6 | FD30: 54775577.62 | FE30: 44329706.42 | FF30: 48830356.64 | FG30: 56870484.24 | FH30: 36917354.3 | FI30: 38391876.89 | FJ30: 49946938.03 | FK30: 43251727.92 | FL30: 46286308.6 | FM30: 46142087.7 | FN30: 56950804.16 | FO30: 64035953.41 | FP30: 56056654.21 | FQ30: 53761534.19 | FR30: 58369852.14 | FS30: 65883532.88 | FT30: 63830630.3 | FU30: 52415444.81 | FV30: 53927141.13 | FW30: 45045938.41 | FX30: 52163078.04 | FY30: 63055862.2 | FZ30: 88404738.46 | GA30: 72567935.67 | GB30: 62413950.2 | GC30: 58965649.38 | GD30: 66385152.1 | GE30: 72856528.5 | GF30: 70902486.7 | GG30: 63532148.41 | GH30: 64278987.34 | GI30: 59722312.06 | GJ30: 54120407.29 | GK30: 66656368.86 | GL30: 81059789.75 | GM30: 72119102.65 | GN30: 77507428.63 | GO30: 63038723.03 | GP30: 75370448.1 | GQ30: 80806983.8 | GR30: 82550167.28 | GS30: 64198067.9 | GT30: 67739445.06 | GU30: 69759909 | GV30: 66009081.47 | GW30: 77394269.21 | GX30: 104771364.1 | GY30: 92346298.95 | GZ30: 101495678.8 | HA30: 79943454.62 | HB30: 92664811.23 | HC30: 97498605.28 | HD30: 84058746.66 | HE30: 76146987.44 | HF30: 93011793.97 | HG30: 81910688.41 | HH30: 77956818.87 | HI30: 98787706.26 | HJ30: 103974873.3 | HK30: 94867098.74 | HL30: 88440627.12 | HM30: 70700967.37 | HN30: 84150025.04 | HO30: 100221408 | HP30: 86503067.21 | HQ30: 66373448.08 | HR30: 77214197.29 | HS30: 68351227.74 | HT30: 78626577.25 | HU30: 98146602.55 | HV30: 105832472.8 | HW30: 81499289.97 | HX30: 99504761.55 | HY30: 73917722.44 | HZ30: 88564521.21 | IA30: 109040963.5 | IB30: 94633685.23 | IC30: 69587791.36 | ID30: 93261535.42 | IE30: 77851644.82 | IF30: 83806386.27 | IG30: 100464119.2 | IH30: 126630042.8 | II30: 122883704.7 | IJ30: 132389178.2 | IK30: 86426344.6 | IL30: 114557844.2 | IM30: 131488434.2 | IN30: 118677574.3 | IO30: 100956141.3 | IP30: 104138064.7 | IQ30: 83136707.88 | IR30: 109277331.6 | IS30: 115438511.6 | IT30: 134094502.5 | IU30: 122286475 | IV30: 147924068.5 | IW30: 100464065.8 | IX30: 126617673.7 | IY30: 141612909 | IZ30: 120845224.3 | JA30: 90243173.47 | JB30: 99581448.1 | JC30: 87132304.7 | JD30: 92494874.14 | JE30: 125022015.9 | JF30: 141313430 | JG30: 130656715.6 | JH30: 175784636.7 | JI30: 101238895.8 | JJ30: 108627052.7 | JK30: 156082309.8 | JL30: 130218310 | JM30: 92732054.62 | JN30: 121245681.4 | JO30: 100346709.9 | JP30: 100348251.4 | JQ30: 139582379.9 | JR30: 143969166.4 | JS30: 172068671.7 | JT30: 183744174.3 | JU30: 108996137.1 | JV30: 124400739.1 | JW30: 165779280.4 | JX30: 124323759.6 | JY30: 106778379.3 | JZ30: 129717563.9 | KA30: 113708290.7 | KB30: 107466044.3 | KC30: 142245052.4 | KD30: 156245769.4 | KE30: 175030702.8 | KF30: 178672437.2 | KG30: 130136626.6 | KH30: 140451904.4 | KI30: 172716663.8 | KJ30: 150281007.3 | KK30: 111278374.3 | KL30: 130147839.7 | KM30: 108505063.4 | KN30: 123496744.4 | KO30: 139437518.8 | KP30: 160337146.1 | KQ30: 152776680.4 | KR30: 191617239.8 | KS30: 116171429.7 | KT30: 138102880.6 | KU30: 183666167 | KV30: 151719279.2 | KW30: 109998257.2 | KX30: 136413086 | KY30: 110931092.4 | KZ30: 137053918.1 | LA30: 269934648.1 | LB30: 329457009.1 | LC30: 163961617.1 | LD30: 211888628.1 | LE30: 131715250.1 | LF30: 160981162.8 | LG30: 180669046.8 | LH30: 166975114.5 | LI30: 130895868.3 | LJ30: 146920324.6 | LK30: 123732688.2 | LL30: 142489026.9 | LM30: 142587435 | LN30: 194642182.7 | LO30: 173898421.6 | LP30: 231951893.1 | LQ30: 154176466.1 | LR30: 162175527.9 | LS30: 198933452.2 | LT30: 189115889.1 | LU30: 126718873.3 | LV30: 160267599.6 | LW30: 120580817.7 | LX30: 136010004.6 | LY30: 172944569.8 | LZ30: 217937304.9 | MA30: 213693196.2 | MB30: 234084137.4 | MC30: 177170826.3 | MD30: 170263284.3 | ME30: 219697939.1 | MF30: 171872862.6 | MG30: 142714084.8 | MH30: 174441215.4 | MI30: 156973978.8 | MJ30: 140696503.6 | MK30: 194752751.7 | ML30: 235623898.2 | MM30: 192108447.8 | MN30: 278381545.9 | MO30: 162325357.1 | MP30: 159146855.2 | MQ30: 166311572.9 | MR30: 135308112.7 | MS30: 138897781 | MT30: 148193249.7 | MU30: 119361183.5 | MV30: 160833607.1 | MW30: 213622664.8 | MX30: 224066088.4 | MY30: 232141704.1 | MZ30: 307726173.5 | NA30: 205290586.8 | NB30: 214615792.5 | NC30: 257291784.6 | ND30: 223414209.3 | NE30: 195652783.9 | NF30: 245781192.8 | NG30: 192516160.8 | NH30: 214399484.7 | NI30: 279840561.2 | NJ30: 290213739.9 | NK30: 283498569.6 | NL30: 391297595.3 | NM30: 238775380.2 | NN30: 281830156.1 | NO30: 314877655.6 | NP30: 293755863.5 | NQ30: 250547548.3 | NR30: 285872858.9 | NS30: 237426261.5 | NT30: 251072606 | NU30: 314303061 | NV30: 337153549 | NW30: 328844546.3 | NX30: 459482163.3 | NY30: 275209704.5 | NZ30: 317287944.2 | OA30: 348063252.5 | OB30: 328435762.2 | OC30: 245257523.8 | OD30: 281280085 | OE30: 246681382.1 | OF30: 266374873.2 | OG30: 351666545.4 | OH30: 385333175.2 | OI30: ='[1]EST - FPE'!C32 -> 359199821.4 | OJ30: ='[1]EST - FPE'!D32 -> 487114653.3 | OK30: ='[1]EST - FPE'!E32 -> 304057474.5 | OL30: ='[1]EST - FPE'!F32 -> 318993019.8 | OM30: ='[1]EST - FPE'!G32 -> 371281062.3 | ON30: ='[1]EST - FPE'!H32 -> 397934801.3 | OO30: ='[1]EST - FPE'!I32 -> 258173982.6 | OP30: ='[1]EST - FPE'!J32 -> 337349444.1 | OQ30: ='[1]EST - FPE'!K32 -> 275693094.6 | OR30: ='[1]EST - FPE'!L32 -> 294060527.5 | OS30: ='[1]EST - FPE'!M32 -> 376016480.8 | OT30: ='[1]EST - FPE'!N32 -> 422128163.3 | OU30: ='[2]EST - FPE'!C32 -> 387697301 | OV30: ='[2]EST - FPE'!D32 -> 526835102.1 | OW30: ='[2]EST - FPE'!E32 -> 345613438.2 | OX30: ='[2]EST - FPE'!F32 -> 350316937.1 | OY30: ='[2]EST - FPE'!G32 -> 447708171.1 | OZ30: ='[2]EST - FPE'!H32 -> 463004826.3 | PA30: ='[2]EST - FPE'!I32 -> 282418678.1 | PB30: ='[2]EST - FPE'!J32 -> 374171717.5 | PC30: ='[2]EST - FPE'!K32 -> 301769332.3 | PD30: ='[2]EST - FPE'!L32 -> 317111861.7 | PE30: ='[2]EST - FPE'!M32 -> 434274611.3 | PF30: ='[2]EST - FPE'!N32 -> 490018441.4 | PG30: ='[3]EST - FPE'!C32 -> 433433692.2 | PH30: ='[3]EST - FPE'!D32 -> 546457119.2 | PI30: ='[3]EST - FPE'!E32 -> 330177740.2 | PJ30: ='[3]EST - FPE'!F32 -> 389222559.2 | PK30: ='[3]EST - FPE'!G32 -> 471002101.5 | PL30: ='[3]EST - FPE'!H32 -> 497351578.6 | PM30: ='[3]EST - FPE'!I32 -> 0 | PN30: ='[3]EST - FPE'!J32 -> 0 | PO30: ='[3]EST - FPE'!K32 -> 0 | PP30: ='[3]EST - FPE'!L32 -> 0 | PQ30: ='[3]EST - FPE'!M32 -> 0 | PR30: ='[3]EST - FPE'!N32 -> 0
A31: Roraima | B31: RR | C31: 1378330688 | D31: 1618230880 | E31: 1938402294 | F31: 2138879491 | G31: 3572465801 | H31: 2936770933 | I31: 3198437485 | J31: 3588250577 | K31: 4345659451 | L31: 3449745861 | M31: 5101034440 | N31: 8469140859 | O31: 6829934742 | P31: 8282884780 | Q31: 1.157120779e+10 | R31: 1.372551278e+10 | S31: 2.529554664e+10 | T31: 2.709784687e+10 | U31: 3.228439909e+10 | V31: 3.953476156e+10 | W31: 4.695883015e+10 | X31: 6.372133521e+10 | Y31: 7.735180352e+10 | Z31: 1.027159705e+11 | AA31: 141219683.8 | AB31: 176836206.5 | AC31: 208589832 | AD31: 265505859.5 | AE31: 348405638.4 | AF31: 625010533.9 | AG31: 628886994.5 | AH31: 762192009.5 | AI31: 931643326.9 | AJ31: 1366307350 | AK31: 2330997588 | AL31: 3355912935 | AM31: 1551127.64 | AN31: 2050098.09 | AO31: 2564231.24 | AP31: 3286912.19 | AQ31: 6005582.44 | AR31: 8071475.6 | AS31: 10375223.15 | AT31: 10501989.65 | AU31: 10856790.33 | AV31: 11374814.7 | AW31: 12777316.24 | AX31: 13529282.38 | AY31: 15566902.04 | AZ31: 17101368.82 | BA31: 13443955.52 | BB31: 15100188.03 | BC31: 15384532.2 | BD31: 20431323.4 | BE31: 16960757.92 | BF31: 14918211.88 | BG31: 15185356.9 | BH31: 15350201.56 | BI31: 15720251.42 | BJ31: 16391840.49 | BK31: 17515718.1 | BL31: 17801124.8 | BM31: 15467669.78 | BN31: 27250564.56 | BO31: 17530316.85 | BP31: 16752218.95 | BQ31: 17273063.31 | BR31: 15876820.32 | BS31: 16764089.91 | BT31: 15577512.32 | BU31: 16642450.69 | BV31: 22261881.89 | BW31: 25377947.48 | BX31: 18923161.96 | BY31: 17258771.77 | BZ31: 21642931.83 | CA31: 22087303.76 | CB31: 17155007.23 | CC31: 18421880.17 | CD31: 19366860.42 | CE31: 19949535.25 | CF31: 20390022.82 | CG31: 22680995.48 | CH31: 19963662.36 | CI31: 24186176.99 | CJ31: 19893728.86 | CK31: 18604718.41 | CL31: 22160824.3 | CM31: 21078118.98 | CN31: 14935832.65 | CO31: 15722874.33 | CP31: 20526567.26 | CQ31: 19864966.58 | CR31: 16901792.94 | CS31: 18180441.99 | CT31: 18209951.05 | CU31: 23597951.99 | CV31: 23958287.56 | CW31: 24494333.19 | CX31: 22237508.61 | CY31: 24014890.04 | CZ31: 16042793.09 | DA31: 15956424.52 | DB31: 19902478.03 | DC31: 18571582.11 | DD31: 22124662.83 | DE31: 21022488.36 | DF31: 23104620.95 | DG31: 26084799.68 | DH31: 24743064.11 | DI31: 26953933.58 | DJ31: 27957002.82 | DK31: 26740439.08 | DL31: 21690036.79 | DM31: 20635576.17 | DN31: 23007691.71 | DO31: 23199401.2 | DP31: 24528958.53 | DQ31: 26623321.25 | DR31: 30046024.16 | DS31: 34892470.33 | DT31: 28430157.4 | DU31: 24930315.95 | DV31: 29322017.77 | DW31: 32968302.55 | DX31: 28604954.44 | DY31: 26021190.42 | DZ31: 27395885.37 | EA31: 29631951.35 | EB31: 28318698.62 | EC31: 29432968.38 | ED31: 35696590.77 | EE31: 38640094.38 | EF31: 45145250.03 | EG31: 34548937.25 | EH31: 36083736.16 | EI31: 41356109.48 | EJ31: 29115690.09 | EK31: 31835880.75 | EL31: 30144468.36 | EM31: 33279328.91 | EN31: 43853341.72 | EO31: 38464657.6 | EP31: 37673667.93 | EQ31: 41042310.21 | ER31: 43215668.83 | ES31: 37483746.23 | ET31: 35689246.64 | EU31: 50058522.02 | EV31: 35154046.58 | EW31: 29474988.37 | EX31: 38668631.26 | EY31: 33552064.23 | EZ31: 34664709.16 | FA31: 38615213.59 | FB31: 40261227.63 | FC31: 44190355.63 | FD31: 48260326.54 | FE31: 39056933.77 | FF31: 43022256.62 | FG31: 50106055.65 | FH31: 32526239.81 | FI31: 33825376.12 | FJ31: 44006026.86 | FK31: 38107174.84 | FL31: 40780808.97 | FM31: 40653742.36 | FN31: 50176821.96 | FO31: 56419232 | FP31: 49389026.17 | FQ31: 47366897.97 | FR31: 51427082.05 | FS31: 58047052.16 | FT31: 56238330.93 | FU31: 46180918.44 | FV31: 47512806.85 | FW31: 39687973.93 | FX31: 45958569.3 | FY31: 55555717.22 | FZ31: 77889485.25 | GA31: 63936382.31 | GB31: 54990157.06 | GC31: 51952012.49 | GD31: 58489006.54 | GE31: 64190648.62 | GF31: 62469029.24 | GG31: 55975351.82 | GH31: 56633358.4 | GI31: 52618674.35 | GJ31: 47683085.08 | GK31: 58727963.57 | GL31: 71418177.48 | GM31: 63540935.49 | GN31: 68288349.99 | GO31: 55540616.65 | GP31: 66405551.43 | GQ31: 71195441.36 | GR31: 72731282.84 | GS31: 56562063.88 | GT31: 59682213.87 | GU31: 61462354.84 | GV31: 58157667.42 | GW31: 68188650.26 | GX31: 92309391.57 | GY31: 81362219 | GZ31: 89423330.89 | HA31: 70434624.18 | HB31: 81642845.98 | HC31: 85901687.08 | HD31: 74060425.07 | HE31: 67089725.74 | HF31: 81948557.06 | HG31: 72167866.44 | HH31: 68684287.78 | HI31: 87037456.65 | HJ31: 91607638.98 | HK31: 83583183.63 | HL31: 77921105.16 | HM31: 62291479.55 | HN31: 74140846.42 | HO31: 88300627.53 | HP31: 76214007.25 | HQ31: 58478694.65 | HR31: 68029996.88 | HS31: 60221228.39 | HT31: 69274382.1 | HU31: 86472608.67 | HV31: 93244287.25 | HW31: 71805401.56 | HX31: 87669222.18 | HY31: 65125619.43 | HZ31: 78030262.76 | IA31: 96071145.78 | IB31: 83377533.37 | IC31: 61310709.64 | ID31: 82168593.18 | IE31: 68591623.59 | IF31: 73838081.56 | IG31: 88514469.59 | IH31: 111568101.7 | II31: 108267369.7 | IJ31: 116642219.9 | IK31: 76146410.37 | IL31: 100931824.2 | IM31: 115848614.4 | IN31: 104561535.2 | IO31: 88947968.41 | IP31: 91751419.68 | IQ31: 73248057.7 | IR31: 96279399.2 | IS31: 101707741.1 | IT31: 118144705.4 | IU31: 107741177.2 | IV31: 130329321.2 | IW31: 88514422.46 | IX31: 111557203.8 | IY31: 124768839.1 | IZ31: 106471355.3 | JA31: 79509248.62 | JB31: 87736787.3 | JC31: 76768400.43 | JD31: 81493122 | JE31: 110151340.7 | JF31: 124504981.5 | JG31: 115115824.2 | JH31: 154876029.3 | JI31: 89197090.77 | JJ31: 95706467.39 | JK31: 137517184.9 | JL31: 114729564.4 | JM31: 81702091.17 | JN31: 106824180.2 | JO31: 88411025.45 | JP31: 88412383.59 | JQ31: 122979830.2 | JR31: 126844832.7 | JS31: 151602057.8 | JT31: 161888824.1 | JU31: 96031651.23 | JV31: 109603961.3 | JW31: 146060754.7 | JX31: 109536138.1 | JY31: 94077683.49 | JZ31: 114288379.3 | KA31: 100183320.3 | KB31: 94683554.53 | KC31: 125325792.6 | KD31: 137661201.9 | KE31: 154211771.7 | KF31: 157420342 | KG31: 114657596.8 | KH31: 123745929.6 | KI31: 152172974.8 | KJ31: 132405915.2 | KK31: 98042429 | KL31: 114667476.2 | KM31: 95598988.03 | KN31: 108807491.8 | KO31: 122852199.5 | KP31: 141265932 | KQ31: 134604741.9 | KR31: 168642939.9 | KS31: 102353482.6 | KT31: 121676309.1 | KU31: 161808696 | KV31: 133673112.6 | KW31: 96914574.71 | KX31: 120187506.2 | KY31: 97736454.37 | KZ31: 119547707 | LA31: 225632713.6 | LB31: 273977428.5 | LC31: 144459292.3 | LD31: 184737705.9 | LE31: 116048451.8 | LF31: 139165067.4 | LG31: 158412188.5 | LH31: 145882496.2 | LI31: 112115051.8 | LJ31: 127589510.5 | LK31: 107026717.7 | LL31: 120644551 | LM31: 125226804.6 | LN31: 166364883.9 | LO31: 153214169.1 | LP31: 199981461.9 | LQ31: 134804555.6 | LR31: 141301954.1 | LS31: 173418385.9 | LT31: 162203737.5 | LU31: 110283268 | LV31: 139101019.9 | LW31: 104930265.5 | LX31: 119266780.2 | LY31: 149668770.7 | LZ31: 182844030.2 | MA31: 188810478.3 | MB31: 206700482.4 | MC31: 156819293.6 | MD31: 150201713 | ME31: 194047752.9 | MF31: 151573876.9 | MG31: 126126999.3 | MH31: 154409145.7 | MI31: 139277802 | MJ31: 124100134.8 | MK31: 172532969.2 | ML31: 209300474.3 | MM31: 169234054.4 | MN31: 243794698.1 | MO31: 142975657.3 | MP31: 140117845.5 | MQ31: 146354876.6 | MR31: 119213963.3 | MS31: 122128544.2 | MT31: 130525536.4 | MU31: 105148606.8 | MV31: 141280599.8 | MW31: 186836579.7 | MX31: 195663989 | MY31: 205421727.3 | MZ31: 289988528.2 | NA31: 188528543.3 | NB31: 197092544 | NC31: 232987796.3 | ND31: 206891660.5 | NE31: 185402940.1 | NF31: 236299624.7 | NG31: 182537709.9 | NH31: 202639525.2 | NI31: 271558660.5 | NJ31: 280347179.8 | NK31: 261997580.3 | NL31: 404411377.7 | NM31: 232013539.2 | NN31: 288161918.8 | NO31: 307508320.9 | NP31: 296038792.2 | NQ31: 267088013.9 | NR31: 302729916.5 | NS31: 252124647.6 | NT31: 259887843.4 | NU31: 338529894.4 | NV31: 354927298.9 | NW31: 300499349.4 | NX31: 439606193.3 | NY31: 256715438.9 | NZ31: 298986413.8 | OA31: 322701790.1 | OB31: 308356862.4 | OC31: 230760275.8 | OD31: 264159039.5 | OE31: 233701390 | OF31: 250234775.1 | OG31: 337252459.7 | OH31: 367757219 | OI31: ='[1]EST - FPE'!C33 -> 342726958.4 | OJ31: ='[1]EST - FPE'!D33 -> 512599125.3 | OK31: ='[1]EST - FPE'!E33 -> 306462807.2 | OL31: ='[1]EST - FPE'!F33 -> 318542816.6 | OM31: ='[1]EST - FPE'!G33 -> 364409586.5 | ON31: ='[1]EST - FPE'!H33 -> 418354644.5 | OO31: ='[1]EST - FPE'!I33 -> 261012988.9 | OP31: ='[1]EST - FPE'!J33 -> 353327971.5 | OQ31: ='[1]EST - FPE'!K33 -> 287310633.9 | OR31: ='[1]EST - FPE'!L33 -> 300593615.8 | OS31: ='[1]EST - FPE'!M33 -> 398822006.1 | OT31: ='[1]EST - FPE'!N33 -> 445476149.7 | OU31: ='[2]EST - FPE'!C33 -> 369185285.2 | OV31: ='[2]EST - FPE'!D33 -> 541591453.9 | OW31: ='[2]EST - FPE'!E33 -> 347329416.5 | OX31: ='[2]EST - FPE'!F33 -> 346741287.7 | OY31: ='[2]EST - FPE'!G33 -> 448129553.4 | OZ31: ='[2]EST - FPE'!H33 -> 482346895.7 | PA31: ='[2]EST - FPE'!I33 -> 283454893.4 | PB31: ='[2]EST - FPE'!J33 -> 384929294.8 | PC31: ='[2]EST - FPE'!K33 -> 308432438.6 | PD31: ='[2]EST - FPE'!L33 -> 318181746.3 | PE31: ='[2]EST - FPE'!M33 -> 455027780.8 | PF31: ='[2]EST - FPE'!N33 -> 512501076.3 | PG31: ='[3]EST - FPE'!C33 -> 430529974.4 | PH31: ='[3]EST - FPE'!D33 -> 579666153.3 | PI31: ='[3]EST - FPE'!E33 -> 332237006.9 | PJ31: ='[3]EST - FPE'!F33 -> 403196405.8 | PK31: ='[3]EST - FPE'!G33 -> 485931642.5 | PL31: ='[3]EST - FPE'!H33 -> 540283915.4 | PM31: ='[3]EST - FPE'!I33 -> 0 | PN31: ='[3]EST - FPE'!J33 -> 0 | PO31: ='[3]EST - FPE'!K33 -> 0 | PP31: ='[3]EST - FPE'!L33 -> 0 | PQ31: ='[3]EST - FPE'!M33 -> 0 | PR31: ='[3]EST - FPE'!N33 -> 0
A32: Rio Grande do Sul | B32: RS | C32: 1308377919 | D32: 1536102744 | E32: 1840024881 | F32: 2030327498 | G32: 3391156717 | H32: 2787724510 | I32: 3036111013 | J32: 3406140387 | K32: 4125109394 | L32: 3274665036 | M32: 4842147741 | N32: 8039316682 | O32: 6483303233 | P32: 7862513435 | Q32: 1.098394812e+10 | R32: 1.302891824e+10 | S32: 2.401175202e+10 | T32: 2.572258226e+10 | U32: 3.064590759e+10 | V32: 3.75283011e+10 | W32: 4.457558481e+10 | X32: 6.04873625e+10 | Y32: 7.342605996e+10 | Z32: 9.750294967e+10 | AA32: 134052530.1 | AB32: 167861450 | AC32: 198003521.8 | AD32: 252030958.2 | AE32: 330723423.8 | AF32: 593290121.9 | AG32: 596969845 | AH32: 723509390.1 | AI32: 884360747.5 | AJ32: 1296964787 | AK32: 2212695255 | AL32: 3185594299 | AM32: 1472405.11 | AN32: 1946051.91 | AO32: 2434091.88 | AP32: 3120095.47 | AQ32: 5700788.3 | AR32: 7661833.65 | AS32: 9848661.85 | AT32: 9968994.72 | AU32: 10305788.63 | AV32: 10797522.32 | AW32: 12128844.39 | AX32: 12842646.88 | AY32: 14776853.69 | AZ32: 16233443.49 | BA32: 12761650.53 | BB32: 14333826.24 | BC32: 14603739.43 | BD32: 19394396.9 | BE32: 16099968.87 | BF32: 14161085.72 | BG32: 14414672.65 | BH32: 14571151.15 | BI32: 14922420.29 | BJ32: 15559925.01 | BK32: 16626763.8 | BL32: 16897685.62 | BM32: 14682657.64 | BN32: 25867549.25 | BO32: 16640621.66 | BP32: 15902013.62 | BQ32: 16396424.2 | BR32: 15071043.04 | BS32: 15913282.13 | BT32: 14786925.45 | BU32: 15797816.3 | BV32: 21132051.23 | BW32: 24089970.85 | BX32: 17962777.34 | BY32: 16382857.96 | BZ32: 20544513.99 | CA32: 20966333.26 | CB32: 16284359.65 | CC32: 17486936.5 | CD32: 18383957.3 | CE32: 18937060.36 | CF32: 19355192.38 | CG32: 21529894.06 | CH32: 18950470.48 | CI32: 22958684.85 | CJ32: 18884086.23 | CK32: 17660495.36 | CL32: 21036122.49 | CM32: 20008366.41 | CN32: 14177812.2 | CO32: 14924910.09 | CP32: 19484806.93 | CQ32: 18856783.66 | CR32: 16043996.46 | CS32: 17257751.75 | CT32: 17285763.17 | CU32: 22400313.35 | CV32: 22742361.26 | CW32: 23251201.61 | CX32: 21108914.92 | CY32: 22796091.04 | CZ32: 15228592.39 | DA32: 15146607.2 | DB32: 18892391.38 | DC32: 17629040.83 | DD32: 21001796.29 | DE32: 19955559.13 | DF32: 21932019.75 | DG32: 24760949.06 | DH32: 23487308.96 | DI32: 25585972.82 | DJ32: 26538134.49 | DK32: 25383313.57 | DL32: 20589228.29 | DM32: 19588283.46 | DN32: 21840009.85 | DO32: 22021989.76 | DP32: 23284069.61 | DQ32: 25272139.66 | DR32: 28521134.22 | DS32: 33121614.53 | DT32: 26987275.63 | DU32: 23665057.45 | DV32: 27833872.47 | DW32: 31295101.73 | DX32: 27153201.41 | DY32: 24700568.07 | DZ32: 26005494.77 | EA32: 28128076.35 | EB32: 26881473.58 | EC32: 27939192.12 | ED32: 33884924.38 | EE32: 36679039.89 | EF32: 42854047.16 | EG32: 32795516.36 | EH32: 34252421.47 | EI32: 39257212.33 | EJ32: 27638016.29 | EK32: 30220152.37 | EL32: 28614582.23 | EM32: 31590342.94 | EN32: 41627705.52 | EO32: 36512506.85 | EP32: 35761661.34 | EQ32: 38959338.94 | ER32: 41022395.69 | ES32: 35581378.5 | ET32: 33877952.99 | EU32: 47517961.74 | EV32: 33369915.28 | EW32: 27979079.52 | EX32: 36706128.47 | EY32: 31849236.45 | EZ32: 32905412.63 | FA32: 36655421.85 | FB32: 38217897.72 | FC32: 41947615.36 | FD32: 45811027.9 | FE32: 37074723.93 | FF32: 40838799.46 | FG32: 47563082.93 | FH32: 30875474.46 | FI32: 32108677.26 | FJ32: 41772641.6 | FK32: 36173166.96 | FL32: 38711109.36 | FM32: 38590491.6 | FN32: 47630257.73 | FO32: 53555854.2 | FP32: 46882443.97 | FQ32: 44962942.44 | FR32: 48817064.86 | FS32: 55101059.55 | FT32: 53384134.18 | FU32: 43837153.52 | FV32: 45101446.21 | FW32: 37673737.67 | FX32: 43626089 | FY32: 52736164.35 | FZ32: 73936453.38 | GA32: 60691495.58 | GB32: 52199307.38 | GC32: 49315354.16 | GD32: 55520583.95 | GE32: 60932857.39 | GF32: 59298613.34 | GG32: 53134501.74 | GH32: 53759113.29 | GI32: 49948181.72 | GJ32: 45263082.51 | GK32: 55747413.49 | GL32: 67793576.13 | GM32: 60316118.38 | GN32: 64822593.04 | GO32: 52721830.16 | GP32: 63035349.91 | GQ32: 67582144.28 | GR32: 69040039.04 | GS32: 53691437.1 | GT32: 56653233.85 | GU32: 58343029.47 | GV32: 55206060.89 | GW32: 64727953.25 | GX32: 87624523.42 | GY32: 77232939.62 | GZ32: 84884935.55 | HA32: 66859939.97 | HB32: 77499324.28 | HC32: 81542021.49 | HD32: 70301724.9 | HE32: 63684801.14 | HF32: 77789519.98 | HG32: 68505217.03 | HH32: 65198436.26 | HI32: 82620148.73 | HJ32: 86958386.06 | HK32: 79341186.29 | HL32: 73966468.52 | HM32: 59130074.58 | HN32: 70378064.72 | HO32: 83819211.39 | HP32: 72346008.9 | HQ32: 55510795.41 | HR32: 64577351.83 | HS32: 57164892.43 | HT32: 65758582.23 | HU32: 82083967.78 | HV32: 88511971.46 | HW32: 68161147.89 | HX32: 83219851.01 | HY32: 61820376.75 | HZ32: 74070086.15 | IA32: 91195361.82 | IB32: 79145973.14 | IC32: 58199080.51 | ID32: 77998388.85 | IE32: 65110474.94 | IF32: 70090665.73 | IG32: 84022200.59 | IH32: 105905819.3 | II32: 102772605.4 | IJ32: 110722416.9 | IK32: 72281842.69 | IL32: 95809352.06 | IM32: 109969088.3 | IN32: 99254848.67 | IO32: 84433698.55 | IP32: 87094869.62 | IQ32: 69530586.64 | IR32: 91393046.04 | IS32: 96545889.76 | IT32: 112148648.5 | IU32: 102273118.1 | IV32: 123714873.1 | IW32: 84022155.85 | IX32: 105895474.5 | IY32: 118436595.4 | IZ32: 101067741.9 | JA32: 75474010.84 | JB32: 83283987.07 | JC32: 72872265.61 | JD32: 77357199.04 | JE32: 104560961.5 | JF32: 118186129.1 | JG32: 109273488.4 | JH32: 147015791.5 | JI32: 84670177.51 | JJ32: 90849191.54 | JK32: 130537939.7 | JL32: 108906832 | JM32: 77555562.65 | JN32: 101402660.4 | JO32: 83924006.41 | JP32: 83925295.64 | JQ32: 116738381.9 | JR32: 120407228.7 | JS32: 143907979.9 | JT32: 153672674.3 | JU32: 91157871.7 | JV32: 104041362.6 | JW32: 138647907.9 | JX32: 103976981.5 | JY32: 89303071.34 | JZ32: 108488037.9 | KA32: 95098836.11 | KB32: 89878193.34 | KC32: 118965282.5 | KD32: 130674647.6 | KE32: 146385246.1 | KF32: 149430975.7 | KG32: 108838516.9 | KH32: 117465600.4 | KI32: 144449921.8 | KJ32: 125686076.1 | KK32: 93066598.88 | KL32: 108847894.9 | KM32: 90747166.93 | KN32: 103285315.3 | KO32: 116617228.7 | KP32: 134096431.1 | KQ32: 127773308.4 | KR32: 159544792.2 | KS32: 97158858.74 | KT32: 115501016.9 | KU32: 153562930.9 | KV32: 126888961 | KW32: 91995985.22 | KX32: 114087773.4 | KY32: 92776153.01 | KZ32: 109921752.2 | LA32: 178149458.4 | LB32: 211932748.9 | LC32: 137127722.7 | LD32: 172956296.1 | LE32: 110158783.5 | LF32: 128806966.2 | LG32: 149424925.8 | LH32: 136957402.8 | LI32: 102458956.5 | LJ32: 118822694.8 | LK32: 99139007.26 | LL32: 108475006.7 | LM32: 118376535.7 | LN32: 151591533.4 | LO32: 145438273.6 | LP32: 182571932.4 | LQ32: 126250341.7 | LR32: 131506181 | LS32: 161546302.7 | LT32: 146650469.7 | LU32: 102427313.6 | LV32: 128555315.8 | LW32: 97437072.24 | LX32: 112276501.3 | LY32: 137590174.3 | LZ32: 158366762.5 | MA32: 170016528.3 | MB32: 188299582.1 | MC32: 136427761.1 | MD32: 139301544 | ME32: 175904798.6 | MF32: 141395608.1 | MG32: 113044767.8 | MH32: 134229637.4 | MI32: 115418742.9 | MJ32: 115413298.9 | MK32: 147503297.5 | ML32: 169355597.4 | MM32: 160472445.6 | MN32: 220879950.3 | MO32: 135419201.4 | MP32: 132296346.8 | MQ32: 137677330.1 | MR32: 113163639.6 | MS32: 114156917.8 | MT32: 123608456.7 | MU32: 99703299.03 | MV32: 131088855.9 | MW32: 167513381.1 | MX32: 173220899.1 | MY32: 192859626.1 | MZ32: 230084707.7 | NA32: 160621716.8 | NB32: 167917574.2 | NC32: 206074251.2 | ND32: 172315675.1 | NE32: 144802006.2 | NF32: 176993438 | NG32: 142325771 | NH32: 159439912.1 | NI32: 197885726.1 | NJ32: 207068545.6 | NK32: 228690119.3 | NL32: 286194298.4 | NM32: 185205370.5 | NN32: 211556276.4 | NO32: 245115585.1 | NP32: 223124093.1 | NQ32: 181462047.4 | NR32: 208268119.7 | NS32: 172550119 | NT32: 186544471.1 | NU32: 225530587.7 | NV32: 246904703.1 | NW32: 245476878.5 | NX32: 288859407.8 | NY32: 191094838 | NZ32: 212024608.8 | OA32: 247090780 | OB32: 222586568.2 | OC32: 164852749.2 | OD32: 190422575.7 | OE32: 161415684.1 | OF32: 180129758.3 | OG32: 218889908.2 | OH32: 244734697.2 | OI32: ='[1]EST - FPE'!C34 -> 278903059.9 | OJ32: ='[1]EST - FPE'!D34 -> 339037892.6 | OK32: ='[1]EST - FPE'!E34 -> 222691119.2 | OL32: ='[1]EST - FPE'!F34 -> 236066456.2 | OM32: ='[1]EST - FPE'!G34 -> 279962490.2 | ON32: ='[1]EST - FPE'!H34 -> 277294522.5 | OO32: ='[1]EST - FPE'!I34 -> 188433381.5 | OP32: ='[1]EST - FPE'!J34 -> 236168325 | OQ32: ='[1]EST - FPE'!K34 -> 194184974 | OR32: ='[1]EST - FPE'!L34 -> 211922386.3 | OS32: ='[1]EST - FPE'!M34 -> 259144740.1 | OT32: ='[1]EST - FPE'!N34 -> 292771260.7 | OU32: ='[2]EST - FPE'!C34 -> 307222552.8 | OV32: ='[2]EST - FPE'!D34 -> 392862827.2 | OW32: ='[2]EST - FPE'!E34 -> 262637423.1 | OX32: ='[2]EST - FPE'!F34 -> 269489813 | OY32: ='[2]EST - FPE'!G34 -> 341332026.5 | OZ32: ='[2]EST - FPE'!H34 -> 341333333.9 | PA32: ='[2]EST - FPE'!I34 -> 214840407.4 | PB32: ='[2]EST - FPE'!J34 -> 278850199.6 | PC32: ='[2]EST - FPE'!K34 -> 226134050.1 | PD32: ='[2]EST - FPE'!L34 -> 241289810.9 | PE32: ='[2]EST - FPE'!M34 -> 318542459 | PF32: ='[2]EST - FPE'!N34 -> 360007146.6 | PG32: ='[3]EST - FPE'!C34 -> 327185845 | PH32: ='[3]EST - FPE'!D34 -> 385742443.2 | PI32: ='[3]EST - FPE'!E34 -> 246140887 | PJ32: ='[3]EST - FPE'!F34 -> 281776937.2 | PK32: ='[3]EST - FPE'!G34 -> 342418481.5 | PL32: ='[3]EST - FPE'!H34 -> 341855479.4 | PM32: ='[3]EST - FPE'!I34 -> 0 | PN32: ='[3]EST - FPE'!J34 -> 0 | PO32: ='[3]EST - FPE'!K34 -> 0 | PP32: ='[3]EST - FPE'!L34 -> 0 | PQ32: ='[3]EST - FPE'!M34 -> 0 | PR32: ='[3]EST - FPE'!N34 -> 0
A33: Santa Catarina | B33: SC | C33: 711084619 | D33: 834849792.5 | E33: 1000027112 | F33: 1103453853 | G33: 1843045000 | H33: 1515088257 | I33: 1650082756 | J33: 1851188410 | K33: 2241937745 | L33: 1779733443 | M33: 2631637794 | N33: 4369253223 | O33: 3523582248 | P33: 4273163196 | Q33: 5969618144 | R33: 7081030053 | S33: 1.305004256e+10 | T33: 1.397985424e+10 | U33: 1.66556109e+10 | V33: 2.039609298e+10 | W33: 2.422619052e+10 | X33: 3.28740133e+10 | Y33: 3.990600965e+10 | Z33: 5.299145362e+10 | AA33: 72855625.97 | AB33: 91230288.67 | AC33: 107612072 | AD33: 136975208.2 | AE33: 179743433.7 | AF33: 322444665.3 | AG33: 324444542.1 | AH33: 393216968.5 | AI33: 480637372.4 | AJ33: 704881745.6 | AK33: 1202568111 | AL33: 1731324777 | AM33: 800231.04 | AN33: 1057651.28 | AO33: 1322893.99 | AP33: 1695727.1 | AQ33: 3098296.61 | AR33: 4164096.61 | AS33: 5352606.34 | AT33: 5418005.54 | AU33: 5601048.19 | AV33: 5868298.4 | AW33: 6591852.84 | AX33: 6979794.24 | AY33: 8031007.88 | AZ33: 8822643.53 | BA33: 6935773.86 | BB33: 7790228.81 | BC33: 7936922.76 | BD33: 10540576.34 | BE33: 8750101.99 | BF33: 7696346.83 | BG33: 7834167.68 | BH33: 7919211.5 | BI33: 8110121.23 | BJ33: 8456595.9 | BK33: 9036407.47 | BL33: 9183649.58 | BM33: 7979813.68 | BN33: 14058641.74 | BO33: 9043939.01 | BP33: 8642516.15 | BQ33: 8911221.21 | BR33: 8190895.56 | BS33: 8648640.41 | BT33: 8036481.75 | BU33: 8585886.41 | BV33: 11484966.52 | BW33: 13092553.39 | BX33: 9762511.66 | BY33: 8903848.15 | BZ33: 11165648.47 | CA33: 11394901.18 | CB33: 8850315.73 | CC33: 9503898.99 | CD33: 9991416.93 | CE33: 10292020.48 | CF33: 10519269.23 | CG33: 11701188.39 | CH33: 10299308.7 | CI33: 12477715.71 | CJ33: 10263229.84 | CK33: 9598225.76 | CL33: 11432830.65 | CM33: 10874259.95 | CN33: 7705437.43 | CO33: 8111474.41 | CP33: 10589712.92 | CQ33: 10248391.28 | CR33: 8719681.79 | CS33: 9379340.36 | CT33: 9394564.2 | CU33: 12174248.79 | CV33: 12360146.93 | CW33: 12636694.36 | CX33: 11472392.3 | CY33: 12389348.29 | CZ33: 8276521.39 | DA33: 8231963.6 | DB33: 10267743.56 | DC33: 9581130.66 | DD33: 11414174.84 | DE33: 10845559.97 | DF33: 11919737.96 | DG33: 13457220.4 | DH33: 12765015.31 | DI33: 13905609 | DJ33: 14423095.19 | DK33: 13795466.58 | DL33: 11189950.06 | DM33: 10645950.92 | DN33: 11869731.88 | DO33: 11968635.34 | DP33: 12654557.65 | DQ33: 13735045.17 | DR33: 15500827.07 | DS33: 18001122.09 | DT33: 14667196.95 | DU33: 12861619.06 | DV33: 15127310.17 | DW33: 17008438.61 | DX33: 14757375.23 | DY33: 13424404.21 | DZ33: 14133613.14 | EA33: 15287205.77 | EB33: 14609695.06 | EC33: 15184549.91 | ED33: 18415970.04 | EE33: 19934531.71 | EF33: 23290559.55 | EG33: 17823892.41 | EH33: 18615699.41 | EI33: 21335731.44 | EJ33: 15020865.16 | EK33: 16424219.06 | EL33: 15551614.71 | EM33: 17168897.96 | EN33: 22624060.45 | EO33: 19844023.38 | EP33: 19435949.64 | EQ33: 21173841.52 | ER33: 22295083.24 | ES33: 19337968.51 | ET33: 18412181.2 | EU33: 25825330.15 | EV33: 18136069.99 | EW33: 15206228.13 | EX33: 19949253.97 | EY33: 17309602.89 | EZ33: 17883619.45 | FA33: 19921695.66 | FB33: 20770878.85 | FC33: 22797926.87 | FD33: 24897636.14 | FE33: 20149580.32 | FF33: 22195301.35 | FG33: 25849852.89 | FH33: 16780377.19 | FI33: 17450605.23 | FJ33: 22702831.13 | FK33: 19659597.05 | FL33: 21038932.31 | FM33: 20973378.29 | FN33: 25886361.44 | FO33: 29106838.05 | FP33: 25479935.39 | FQ33: 24436713.85 | FR33: 26531374.07 | FS33: 29946634.97 | FT33: 29013510.68 | FU33: 23824863.74 | FV33: 24511988.65 | FW33: 20475135.67 | FX33: 23710153.2 | FY33: 28661348.36 | FZ33: 40183401.18 | GA33: 32984956.7 | GB33: 28369574.32 | GC33: 26802187.15 | GD33: 30174640.47 | GE33: 33116133.4 | GF33: 32227945.19 | GG33: 28877839.05 | GH33: 29217306.45 | GI33: 27146119.84 | GJ33: 24599835.65 | GK33: 30297919.06 | GL33: 36844835.55 | GM33: 32780944.6 | GN33: 35230148.88 | GO33: 28653557.95 | GP33: 34258807.9 | GQ33: 36729925.37 | GR33: 37522270.26 | GS33: 29180525.42 | GT33: 30790219.45 | GU33: 31708599.09 | GV33: 30003701.69 | GW33: 35178713.52 | GX33: 47622670.77 | GY33: 41974994.12 | GZ33: 46133744.06 | HA33: 36337417.72 | HB33: 42119770.36 | HC33: 44316918.27 | HD33: 38207978.41 | HE33: 34611775.31 | HF33: 42277487.55 | HG33: 37231602.18 | HH33: 35434414.28 | HI33: 44902864.94 | HJ33: 47260634.66 | HK33: 43120795.91 | HL33: 40199713.95 | HM33: 32136346.82 | HN33: 38249468.02 | HO33: 45554538.28 | HP33: 39319017.42 | HQ33: 30169320.52 | HR33: 35096863.8 | HS33: 31068298.53 | HT33: 35738845.58 | HU33: 44611458.29 | HV33: 48104986.05 | HW33: 37044605.53 | HX33: 45228794.54 | HY33: 33598487.42 | HZ33: 40256028.65 | IA33: 49563370.18 | IB33: 43014700.38 | IC33: 31630364.91 | ID33: 42391004.8 | IE33: 35386608.56 | IF33: 38093270.79 | IG33: 45664859.99 | IH33: 57558292.67 | II33: 55855435.9 | IJ33: 60176044.3 | IK33: 39284144.01 | IL33: 52071007.63 | IM33: 59766621.02 | IN33: 53943585.6 | IO33: 45888503.23 | IP33: 47334811.51 | IQ33: 37788875.84 | IR33: 49670808.72 | IS33: 52471305.31 | IT33: 60951180.7 | IU33: 55583971.74 | IV33: 67237257.77 | IW33: 45664835.7 | IX33: 57552670.41 | IY33: 64368589.64 | IZ33: 54928867.06 | JA33: 41019041.55 | JB33: 45263651.54 | JC33: 39605030.4 | JD33: 42042527.34 | JE33: 56827381.71 | JF33: 64232464.75 | JG33: 59388572.49 | JH33: 79900972.46 | JI33: 46017026.17 | JJ33: 49375231.59 | JK33: 70945496.54 | JL33: 59189300.02 | JM33: 42150335.11 | JN33: 55110890.43 | JO33: 45611492.89 | JP33: 45612193.55 | JQ33: 63445634.97 | JR33: 65439600.5 | JS33: 78211921.49 | JT33: 83518892.68 | JU33: 49542994.83 | JV33: 56544987.2 | JW33: 75353147.86 | JX33: 56509996.99 | JY33: 48534937.47 | JZ33: 58961691.41 | KA33: 51684852.43 | KB33: 48847508.01 | KC33: 64655923.48 | KD33: 71019795.31 | KE33: 79558280.11 | KF33: 81213590.41 | KG33: 59152171.73 | KH33: 63840867.79 | KI33: 78506459.14 | KJ33: 68308578.36 | KK33: 50580360.64 | KL33: 59157268.53 | KM33: 49319782.68 | KN33: 56134086.38 | KO33: 63379789.94 | KP33: 72879485.57 | KQ33: 69442959.08 | KR33: 87040084.32 | KS33: 52804445.14 | KT33: 62773144.84 | KU33: 83479848.36 | KV33: 68962328.98 | KW33: 49998497.47 | KX33: 62005067.26 | KY33: 50422507.47 | KZ33: 61917367.07 | LA33: 118858593.5 | LB33: 144624401.8 | LC33: 74526948.98 | LD33: 95424432.29 | LE33: 59869717.68 | LF33: 71956920.45 | LG33: 81771662.75 | LH33: 75335639.87 | LI33: 58034574.76 | LJ33: 65935929.81 | LK33: 55335578.77 | LL33: 62536795.17 | LM33: 64629071.22 | LN33: 86137912.68 | LO33: 79043614.16 | LP33: 104686857.9 | LQ33: 69903632.56 | LR33: 73446037.83 | LS33: 90108187.73 | LT33: 85209967.06 | LU33: 57367084.07 | LV33: 72490473.47 | LW33: 54586436.88 | LX33: 61725759.55 | LY33: 78150481.24 | LZ33: 97502911.1 | MA33: 94569164.4 | MB33: 104199593.7 | MC33: 77072154.45 | MD33: 76479562.92 | ME33: 97553616.44 | MF33: 77431393.52 | MG33: 63010378.49 | MH33: 75856396.63 | MI33: 66679518.49 | MJ33: 63287534.23 | MK33: 83995319.61 | ML33: 98942432.84 | MM33: 87334342.05 | MN33: 127363153.1 | MO33: 73806779.63 | MP33: 72394231.94 | MQ33: 75693245.23 | MR33: 61502813.83 | MS33: 63273728.97 | MT33: 67382595.89 | MU33: 54262859.2 | MV33: 73342437 | MW33: 97872677.95 | MX33: 102829455.1 | MY33: 105380341.3 | MZ33: 136973686.2 | NA33: 92135683.93 | NB33: 96320862.95 | NC33: 115980805.5 | ND33: 100005389.4 | NE33: 86930095.37 | NF33: 108680764.2 | NG33: 85520009.64 | NH33: 95340570.28 | NI33: 123354921.2 | NJ33: 128123864.3 | NK33: 131936093.3 | NL33: 192871965.8 | NM33: 113837079.8 | NN33: 136983251 | NO33: 149827563 | NP33: 141817844.5 | NQ33: 124209733.8 | NR33: 141273265.7 | NS33: 117487371.1 | NT33: 122740933.1 | NU33: 156591582.6 | NV33: 166145735.9 | NW33: 141907748.5 | NX33: 184422857 | NY33: 115090093.2 | NZ33: 130565062 | OA33: 146941600.8 | OB33: 135949273.5 | OC33: 101170526 | OD33: 116377462.6 | OE33: 100632928.7 | OF33: 110158779.9 | OG33: 140588165.8 | OH33: 155299069.1 | OI33: ='[1]EST - FPE'!C35 -> 161885740.9 | OJ33: ='[1]EST - FPE'!D35 -> 217012639.8 | OK33: ='[1]EST - FPE'!E35 -> 136171646.2 | OL33: ='[1]EST - FPE'!F35 -> 143017344.7 | OM33: ='[1]EST - FPE'!G35 -> 166794947.7 | ON33: ='[1]EST - FPE'!H35 -> 177303498.8 | OO33: ='[1]EST - FPE'!I35 -> 115580782 | OP33: ='[1]EST - FPE'!J35 -> 150379411.4 | OQ33: ='[1]EST - FPE'!K35 -> 122970998.4 | OR33: ='[1]EST - FPE'!L35 -> 131472651.9 | OS33: ='[1]EST - FPE'!M35 -> 167352443.5 | OT33: ='[1]EST - FPE'!N35 -> 187994114.2 | OU33: ='[2]EST - FPE'!C35 -> 180871834.8 | OV33: ='[2]EST - FPE'!D35 -> 252504827.8 | OW33: ='[2]EST - FPE'!E35 -> 164306546.3 | OX33: ='[2]EST - FPE'!F35 -> 165647564.6 | OY33: ='[2]EST - FPE'!G35 -> 212539573.6 | OZ33: ='[2]EST - FPE'!H35 -> 222985172.3 | PA33: ='[2]EST - FPE'!I35 -> 134201771.8 | PB33: ='[2]EST - FPE'!J35 -> 179382052.2 | PC33: ='[2]EST - FPE'!K35 -> 144332578.1 | PD33: ='[2]EST - FPE'!L35 -> 150671766.1 | PE33: ='[2]EST - FPE'!M35 -> 209588322 | PF33: ='[2]EST - FPE'!N35 -> 236333884.4 | PG33: ='[3]EST - FPE'!C35 -> 192137361.9 | PH33: ='[3]EST - FPE'!D35 -> 238545031.2 | PI33: ='[3]EST - FPE'!E35 -> 145936894.1 | PJ33: ='[3]EST - FPE'!F35 -> 170877382.8 | PK33: ='[3]EST - FPE'!G35 -> 206978870.5 | PL33: ='[3]EST - FPE'!H35 -> 215835597.1 | PM33: ='[3]EST - FPE'!I35 -> 0 | PN33: ='[3]EST - FPE'!J35 -> 0 | PO33: ='[3]EST - FPE'!K35 -> 0 | PP33: ='[3]EST - FPE'!L35 -> 0 | PQ33: ='[3]EST - FPE'!M35 -> 0 | PR33: ='[3]EST - FPE'!N35 -> 0
A34: Sergipe | B34: SE | C34: 2308774744 | D34: 2710619896 | E34: 3246923470 | F34: 3582733078 | G34: 5984063830 | H34: 4919242253 | I34: 5357547176 | J34: 6010504141 | K34: 7279202933 | L34: 5778501623 | M34: 8544494864 | N34: 1.418624622e+10 | O34: 1.144049173e+10 | P34: 1.387425772e+10 | Q34: 1.938236777e+10 | R34: 2.299093935e+10 | S34: 4.237134073e+10 | T34: 4.539028625e+10 | U34: 5.407802778e+10 | V34: 6.622275758e+10 | W34: 7.865845403e+10 | X34: 1.067365115e+11 | Y34: 1.295682465e+11 | Z34: 1.720545298e+11 | AA34: 236550228.6 | AB34: 296209734.7 | AC34: 349398689.5 | AD34: 444735960.8 | AE34: 583597351.3 | AF34: 1046924768 | AG34: 1053418039 | AH34: 1276710790 | AI34: 1560550456 | AJ34: 2288635035 | AK34: 3904540765 | AL34: 5621326648 | AM34: 2598218.52 | AN34: 3434019.67 | AO34: 4295219.12 | AP34: 5505746.86 | AQ34: 10059659.27 | AR34: 13520136.48 | AS34: 17379032.01 | AT34: 17591372.43 | AU34: 18185681.8 | AV34: 19053399.23 | AW34: 21402661.42 | AX34: 22662243.32 | AY34: 26075361.04 | AZ34: 28645671.71 | BA34: 22519316.47 | BB34: 25293591.02 | BC34: 25769882.13 | BD34: 34223516.81 | BE34: 28410141.24 | BF34: 24988771.65 | BG34: 25436253.28 | BH34: 25712376.56 | BI34: 26332229.07 | BJ34: 27457175.3 | BK34: 29339728.07 | BL34: 29817798.97 | BM34: 25909141.88 | BN34: 45646096.23 | BO34: 29364181.74 | BP34: 28060827.75 | BQ34: 28933268.85 | BR34: 26594490.06 | BS34: 28080712.25 | BT34: 26093133.78 | BU34: 27876960.3 | BV34: 37289796.38 | BW34: 42509366.35 | BX34: 31697268.84 | BY34: 28909329.75 | BZ34: 36253023.18 | CA34: 36997369.01 | CB34: 28735518.81 | CC34: 30857596.09 | CD34: 32440486.59 | CE34: 33416496.88 | CF34: 34154336.21 | CG34: 37991833.18 | CH34: 33440160.54 | CI34: 40513089.5 | CJ34: 33323018.31 | CK34: 31163859.53 | CL34: 37120519.71 | CM34: 35306932.61 | CN34: 25018287.32 | CO34: 26336622.58 | CP34: 34383055.13 | CQ34: 33274839.97 | CR34: 28311371.86 | CS34: 30453174.69 | CT34: 30502603.91 | CU34: 39527782.43 | CV34: 40131363.03 | CW34: 41029267.04 | CX34: 37248969.81 | CY34: 40226175.08 | CZ34: 26872502.94 | DA34: 26727831.17 | DB34: 33337673.6 | DC34: 31108354.55 | DD34: 37059947.37 | DE34: 35213748.46 | DF34: 38701427.6 | DG34: 43693380.12 | DH34: 41445904.08 | DI34: 45149224.05 | DJ34: 46829416.61 | DK34: 44791609.82 | DL34: 36331926.36 | DM34: 34565650.66 | DN34: 38539066.12 | DO34: 38860189.38 | DP34: 41087266.22 | DQ34: 44595431.37 | DR34: 50328634.68 | DS34: 58446681.15 | DT34: 47621974.83 | DU34: 41759560.54 | DV34: 49115886.8 | DW34: 55223601.25 | DX34: 47914768.86 | DY34: 43586831.34 | DZ34: 45889516.04 | EA34: 49635041.46 | EB34: 47435275.66 | EC34: 49301734.77 | ED34: 59793624.2 | EE34: 64724144.04 | EF34: 75620614.13 | EG34: 57871245.58 | EH34: 60442112.63 | EI34: 69273608.94 | EJ34: 48770277.34 | EK34: 53326736.51 | EL34: 50493533.84 | EM34: 55744586.35 | EN34: 73456601.28 | EO34: 64430278.42 | EP34: 63105330.11 | EQ34: 68747979.04 | ER34: 72388466.42 | ES34: 62787201.48 | ET34: 59781322.42 | EU34: 83850597.23 | EV34: 58884834.79 | EW34: 49372120.38 | EX34: 64771944.79 | EY34: 56201432.05 | EZ34: 58065169.46 | FA34: 64682467.44 | FB34: 67439625.53 | FC34: 74021116.89 | FD34: 80838527.36 | FE34: 65422371.44 | FF34: 72064491.02 | FG34: 83930218.48 | FH34: 54483123.4 | FI34: 56659243.49 | FJ34: 73712356.73 | FK34: 63831476.37 | FL34: 68309951.03 | FM34: 68097107.88 | FN34: 84048755.69 | FO34: 94505113.35 | FP34: 82729157.24 | FQ34: 79341988.55 | FR34: 86143005.62 | FS34: 97231795.75 | FT34: 94202094.74 | FU34: 77355411.93 | FV34: 79586393.48 | FW34: 66479396.16 | FX34: 76982965.67 | FY34: 93058681.71 | FZ34: 130468891 | GA34: 107096726.5 | GB34: 92111339.38 | GC34: 87022291.1 | GD34: 97972092.06 | GE34: 107522635.6 | GF34: 104638834.7 | GG34: 93761591.2 | GH34: 94863786.06 | GI34: 88138983.97 | GJ34: 79871618.26 | GK34: 98372357.39 | GL34: 119629117.9 | GM34: 106434332.7 | GN34: 114386496 | GO34: 93033387.47 | GP34: 111232711.7 | GQ34: 119256023.5 | GR34: 121828636.9 | GS34: 94744364.08 | GT34: 99970775.7 | GU34: 102952603.3 | GV34: 97417082.01 | GW34: 114219493.8 | GX34: 154622975.2 | GY34: 136285898.6 | GZ34: 149788675.3 | HA34: 117981615.6 | HB34: 136755963.2 | HC34: 143889740.9 | HD34: 124055018.4 | HE34: 112378738.8 | HF34: 137268045 | HG34: 120884885.5 | HH34: 115049712.1 | HI34: 145792213.3 | HJ34: 153447503.6 | HK34: 140006128.5 | HL34: 130521856 | HM34: 104341429.8 | HN34: 124189728.3 | HO34: 147908089.4 | HP34: 127662379.3 | HQ34: 97954819.15 | HR34: 113953741.3 | HS34: 100873652.7 | HT34: 116038150.4 | HU34: 144846063.9 | HV34: 156188973.6 | HW34: 120277738.2 | HX34: 146850453.1 | HY34: 109088759.8 | HZ34: 130704700.6 | IA34: 160924106.9 | IB34: 139661653.7 | IC34: 102698589.8 | ID34: 137636616.8 | IE34: 114894494.9 | IF34: 123682581.6 | IG34: 148266285.9 | IH34: 186882304.6 | II34: 181353408.9 | IJ34: 195381713.4 | IK34: 127549151.1 | IL34: 169065993.1 | IM34: 194052383.4 | IN34: 175145945.6 | IO34: 148992418.7 | IP34: 153688343.6 | IQ34: 122694261.3 | IR34: 161272942.1 | IS34: 170365693.7 | IT34: 197898453.8 | IU34: 180472009.4 | IV34: 218308311.5 | IW34: 148266207 | IX34: 186864050.1 | IY34: 208994218.2 | IZ34: 178344992.4 | JA34: 133182078 | JB34: 146963628.1 | JC34: 128591016.3 | JD34: 136505167.8 | JE34: 184509157.1 | JF34: 208552243.1 | JG34: 192824922 | JH34: 259425309.2 | JI34: 149409711.5 | JJ34: 160313251.9 | JK34: 230348352.7 | JL34: 192177917.1 | JM34: 136855201.9 | JN34: 178935992.3 | JO34: 148093011.6 | JP34: 148095286.6 | JQ34: 205997536.3 | JR34: 212471614.3 | JS34: 253941238.7 | JT34: 271172100.9 | JU34: 160857951.5 | JV34: 183592268.5 | JW34: 244659271.1 | JX34: 183478661.1 | JY34: 157584955.1 | JZ34: 191438909.4 | KA34: 167812210.6 | KB34: 158599820.2 | KC34: 209927143.9 | KD34: 230589588.6 | KE34: 258312643.6 | KF34: 263687163.8 | KG34: 192057367.7 | KH34: 207280792.1 | KI34: 254897554 | KJ34: 221786713.2 | KK34: 164226107.6 | KL34: 192073916.1 | KM34: 160133218.4 | KN34: 182258141.1 | KO34: 205783748.3 | KP34: 236627696.7 | KQ34: 225469860.8 | KR34: 281978944.5 | KS34: 171447344 | KT34: 203814071.5 | KU34: 271006234.7 | KV34: 223909333.9 | KW34: 162336893.8 | KX34: 201320250.1 | KY34: 163713584.4 | KZ34: 196904793.8 | LA34: 344090616.2 | LB34: 413693928.9 | LC34: 241976739.4 | LD34: 309116149.5 | LE34: 194387121.3 | LF34: 232657975.1 | LG34: 265218966.5 | LH34: 244152622 | LI34: 187256063.6 | LJ34: 213405606.1 | LK34: 178939374.5 | LL34: 201258868.9 | LM34: 209693665.8 | LN34: 277804015.4 | LO34: 256641608 | LP34: 330888207.2 | LQ34: 224839499 | LR34: 235209180.2 | LS34: 288754342.8 | LT34: 267574189.4 | LU34: 183457279.7 | LV34: 231036978.5 | LW34: 174542051.9 | LX34: 199249839.2 | LY34: 248176949.9 | LZ34: 297709407.2 | MA34: 309620330.5 | MB34: 340525797.2 | MC34: 253709066.1 | MD34: 249230817.3 | ME34: 319054587.4 | MF34: 252100430.8 | MG34: 206448210.4 | MH34: 249736674.7 | MI34: 221181622.2 | MJ34: 206150560.9 | MK34: 277258905.4 | ML34: 329430181.7 | MM34: 283414293.2 | MN34: 404617402.7 | MO34: 239384755 | MP34: 234451846.7 | MQ34: 244707212.1 | MR34: 199689515.8 | MS34: 203940534.8 | MT34: 218532835.1 | MU34: 176090595.2 | MV34: 235577073.4 | MW34: 309459012.5 | MX34: 323294593.5 | MY34: 341841146.6 | MZ34: 438143534.2 | NA34: 296475906.8 | NB34: 309942982.1 | NC34: 374370844.6 | ND34: 321191149.6 | NE34: 277700484.3 | NF34: 345970962.6 | NG34: 273157678.2 | NH34: 304756595.3 | NI34: 391781958.8 | NJ34: 407388440.1 | NK34: 413735133.7 | NL34: 554752272.7 | NM34: 344362449.5 | NN34: 402531580.6 | NO34: 454587857.5 | NP34: 421015901.7 | NQ34: 354183376 | NR34: 404798073.2 | NS34: 335962671.7 | NT34: 357534149.8 | NU34: 443141601.8 | NV34: 478120247 | NW34: 465113401.9 | NX34: 612878000.5 | NY34: 379447059.8 | NZ34: 431797211.1 | OA34: 483592125.7 | OB34: 449096008.8 | OC34: 334428469.9 | OD34: 384475678.1 | OE34: 333366189.9 | OF34: 363963839.8 | OG34: 467571716 | OH34: 515676912 | OI34: ='[1]EST - FPE'!C36 -> 520735100.9 | OJ34: ='[1]EST - FPE'!D36 -> 689092554.9 | OK34: ='[1]EST - FPE'!E36 -> 434955026.2 | OL34: ='[1]EST - FPE'!F36 -> 457382517.4 | OM34: ='[1]EST - FPE'!G36 -> 534622022.7 | ON34: ='[1]EST - FPE'!H36 -> 563077556.8 | OO34: ='[1]EST - FPE'!I36 -> 369034019.2 | OP34: ='[1]EST - FPE'!J36 -> 477825218.8 | OQ34: ='[1]EST - FPE'!K36 -> 391009105.6 | OR34: ='[1]EST - FPE'!L36 -> 419151751.2 | OS34: ='[1]EST - FPE'!M36 -> 530809280.9 | OT34: ='[1]EST - FPE'!N36 -> 596708700.2 | OU34: ='[2]EST - FPE'!C36 -> 562480984.7 | OV34: ='[2]EST - FPE'!D36 -> 750337345.6 | OW34: ='[2]EST - FPE'!E36 -> 495030340.7 | OX34: ='[2]EST - FPE'!F36 -> 503632718.1 | OY34: ='[2]EST - FPE'!G36 -> 641895340.3 | OZ34: ='[2]EST - FPE'!H36 -> 657191004.7 | PA34: ='[2]EST - FPE'!I36 -> 404643442.2 | PB34: ='[2]EST - FPE'!J36 -> 532811402.1 | PC34: ='[2]EST - FPE'!K36 -> 430418647 | PD34: ='[2]EST - FPE'!L36 -> 454383953.2 | PE34: ='[2]EST - FPE'!M36 -> 615494703.4 | PF34: ='[2]EST - FPE'!N36 -> 694828050.9 | PG34: ='[3]EST - FPE'!C36 -> 623330762 | PH34: ='[3]EST - FPE'!D36 -> 773491744.9 | PI34: ='[3]EST - FPE'!E36 -> 473401810.9 | PJ34: ='[3]EST - FPE'!F36 -> 554181873.9 | PK34: ='[3]EST - FPE'!G36 -> 671285995.4 | PL34: ='[3]EST - FPE'!H36 -> 699717438.8 | PM34: ='[3]EST - FPE'!I36 -> 0 | PN34: ='[3]EST - FPE'!J36 -> 0 | PO34: ='[3]EST - FPE'!K36 -> 0 | PP34: ='[3]EST - FPE'!L36 -> 0 | PQ34: ='[3]EST - FPE'!M36 -> 0 | PR34: ='[3]EST - FPE'!N36 -> 0
A35: São Paulo | B35: SP | C35: 555621674.5 | D35: 652328326.7 | E35: 781393273.6 | F35: 862208042.3 | G35: 1440103923 | H35: 1183847677 | I35: 1289328611 | J35: 1446466956 | K35: 1751787580 | L35: 1390634039 | M35: 2056288322 | N35: 3414012520 | O35: 2753228823 | P35: 3338930455 | Q35: 4664493002 | R35: 5532919248 | S35: 1.019693903e+10 | T35: 1.092346792e+10 | U35: 1.301422949e+10 | V35: 1.593693778e+10 | W35: 1.892966911e+10 | X35: 2.568683646e+10 | Y35: 3.118144214e+10 | Z35: 4.140604284e+10 | AA35: 56927352.69 | AB35: 71284801.27 | AC35: 84085069.54 | AD35: 107028604.6 | AE35: 140446502.4 | AF35: 251949261.9 | AG35: 253511909.7 | AH35: 307248764.3 | AI35: 375556627.9 | AJ35: 550774922.4 | AK35: 939653157.4 | AL35: 1352808858 | AM35: 625278.2 | AN35: 826419.19 | AO35: 1033672.44 | AP35: 1324993.83 | AQ35: 2420922.5 | AR35: 3253708.87 | AS35: 4182377.2 | AT35: 4233478.32 | AU35: 4376502.72 | AV35: 4585324.58 | AW35: 5150689.82 | AX35: 5453816.42 | AY35: 6275205.41 | AZ35: 6893767.41 | BA35: 5419420.12 | BB35: 6087067.36 | BC35: 6201689.93 | BD35: 8236112.15 | BE35: 6837085.47 | BF35: 6013710.59 | BG35: 6121399.97 | BH35: 6187850.83 | BI35: 6337022.37 | BJ35: 6607748.02 | BK35: 7060796.59 | BL35: 7175847.45 | BM35: 6235203.68 | BN35: 10985030.26 | BO35: 7066681.53 | BP35: 6753020.9 | BQ35: 6962979.52 | BR35: 6400137.2 | BS35: 6757806.24 | BT35: 6279482.53 | BU35: 6708772.01 | BV35: 8974032.29 | BW35: 10230155.79 | BX35: 7628154.13 | BY35: 6957218.43 | BZ35: 8724526.08 | CA35: 8903657.75 | CB35: 6915389.69 | CC35: 7426081.41 | CD35: 7807014.31 | CE35: 8041897.56 | CF35: 8219463.38 | CG35: 9142982.02 | CH35: 8047592.35 | CI35: 9749738.78 | CJ35: 8019401.34 | CK35: 7499785.72 | CL35: 8933294.77 | CM35: 8496843.23 | CN35: 6020813.77 | CO35: 6338079.73 | CP35: 8274506.1 | CQ35: 8007806.92 | CR35: 6813315.98 | CS35: 7328754.8 | CT35: 7340650.27 | CU35: 9512618.21 | CV35: 9657873.83 | CW35: 9873960.26 | CX35: 8964207.13 | CY35: 9680690.96 | CZ35: 6467042.81 | DA35: 6432226.62 | DB35: 8022928.23 | DC35: 7486428.1 | DD35: 8918717.65 | DE35: 8474417.85 | DF35: 9313750.56 | DG35: 10515096.44 | DH35: 9974226.7 | DI35: 10865454.77 | DJ35: 11269804.02 | DK35: 10779392.55 | DL35: 8743514.68 | DM35: 8318448.92 | DN35: 9274677.21 | DO35: 9351957.62 | DP35: 9887918.16 | DQ35: 10732180.95 | DR35: 12111913.66 | DS35: 14065574.38 | DT35: 11460538.32 | DU35: 10049710.16 | DV35: 11820057.96 | DW35: 13289919.22 | DX35: 11531001.12 | DY35: 10489454.77 | DZ35: 11043610.85 | EA35: 11944995.91 | EB35: 11415607.97 | EC35: 11864783.49 | ED35: 14389725.01 | EE35: 15576286.73 | EF35: 18198593.17 | EG35: 13927092.08 | EH35: 14545787.96 | EI35: 16671145.06 | EJ35: 11736884.8 | EK35: 12833426.36 | EL35: 12151597.69 | EM35: 13415297.69 | EN35: 17677809.4 | EO35: 15505566.02 | EP35: 15186708.58 | EQ35: 16544648.8 | ER35: 17420755.78 | ES35: 15110148.87 | ET35: 14386764.49 | EU35: 20179192.2 | EV35: 14171018.91 | EW35: 11881722.25 | EX35: 15587790.26 | EY35: 13525240.55 | EZ35: 13973761.12 | FA35: 15566256.95 | FB35: 16229785.01 | FC35: 17813663.76 | FD35: 19454317.97 | FE35: 15744319.67 | FF35: 17342789.01 | FG35: 20198353.57 | FH35: 13111718.41 | FI35: 13635415.86 | FJ35: 17739358.6 | FK35: 15361460.4 | FL35: 16439234.49 | FM35: 16388012.41 | FN35: 20226880.32 | FO35: 22743270.85 | FP35: 19909310.35 | FQ35: 19094166.16 | FR35: 20730875.19 | FS35: 23399464.74 | FT35: 22670347.48 | FU35: 18616083.58 | FV35: 19152983.8 | FW35: 15998699.57 | FX35: 18526451.94 | FY35: 22395177.66 | FZ35: 31398188.14 | GA35: 25773524.54 | GB35: 22167193.59 | GC35: 20942480.98 | GD35: 23577621.87 | GE35: 25876022.35 | GF35: 25182016.88 | GG35: 22564337.45 | GH35: 22829587.8 | GI35: 21211220.38 | GJ35: 19221624.99 | GK35: 23673948.32 | GL35: 28789526.14 | GM35: 25614115.17 | GN35: 27527855.05 | GO35: 22389090.47 | GP35: 26768876.31 | GQ35: 28699738.55 | GR35: 29318854.72 | GS35: 22800848.11 | GT35: 24058618.09 | GU35: 24776214.34 | GV35: 23444055.08 | GW35: 27487664.87 | GX35: 37211025.79 | GY35: 32798088.88 | GZ35: 36047620.01 | HA35: 28393043.99 | HB35: 32911212.98 | HC35: 34628003.04 | HD35: 29854647.93 | HE35: 27044675.2 | HF35: 33034448.79 | HG35: 29091734.78 | HH35: 27687462.34 | HI35: 35085845.41 | HJ35: 36928140.86 | HK35: 33693386.41 | HL35: 31410934.5 | HM35: 25110444.45 | HN35: 29887066.73 | HO35: 35595044.78 | HP35: 30722782.81 | HQ35: 23573465.02 | HR35: 27423709.8 | HS35: 24275901.33 | HT35: 27925336.48 | HU35: 34858148.39 | HV35: 37587893.44 | HW35: 28945620.83 | HX35: 35340517.7 | HY35: 26252920.32 | HZ35: 31454937.24 | IA35: 38727434.11 | IB35: 33610486.32 | IC35: 24715084.32 | ID35: 33123148 | IE35: 27650108.28 | IF35: 29765018.58 | IG35: 35681247.08 | IH35: 44974443.42 | II35: 43643878.66 | IJ35: 47019881.47 | IK35: 30695533.69 | IL35: 40686832.04 | IM35: 46699969.55 | IN35: 42150012.19 | IO35: 35855995.66 | IP35: 36986100.58 | IQ35: 29527172.88 | IR35: 38811383.6 | IS35: 40999613.46 | IT35: 47625551.43 | IU35: 43431764.12 | IV35: 52537316.6 | IW35: 35681228.08 | IX35: 44970050.36 | IY35: 50295819.38 | IZ35: 42919883.62 | JA35: 32051134.23 | JB35: 35367753.99 | JC35: 30946265.35 | JD35: 32850857.45 | JE35: 44403330.01 | JF35: 50189455.18 | JG35: 46404572.98 | JH35: 62432389.79 | JI35: 35956419.89 | JJ35: 38580427.87 | JK35: 55434830.87 | JL35: 46248867.02 | JM35: 32935095.42 | JN35: 43062111.6 | JO35: 35639547.49 | JP35: 35640094.98 | JQ35: 49574648.38 | JR35: 51132677.39 | JS35: 61112612.52 | JT35: 65259331.69 | JU35: 38711513.39 | JV35: 44182674.8 | JW35: 58878846.58 | JX35: 44155334.43 | JY35: 37923845.49 | JZ35: 46071020.03 | KA35: 40385101.14 | KB35: 38168079.4 | KC35: 50520334.02 | KD35: 55492885.86 | KE35: 62164619.58 | KF35: 63458032.84 | KG35: 46219856.03 | KH35: 49883472.25 | KI35: 61342756.03 | KJ35: 53374416.58 | KK35: 39522082.08 | KL35: 46223838.52 | KM35: 38537101.65 | KN35: 43861608.36 | KO35: 49523198.89 | KP35: 56945995.89 | KQ35: 54260790.02 | KR35: 67805380.78 | KS35: 41259919.65 | KT35: 49049183.36 | KU35: 65215998.79 | KV35: 53885239.08 | KW35: 39067430.44 | KX35: 48449028.95 | KY35: 39398740 | KZ35: 47025490.96 | LA35: 79153211.6 | LB35: 94675700.58 | LC35: 58233277.84 | LD35: 74779467.69 | LE35: 46780526.39 | LF35: 56523031.11 | LG35: 63979758.17 | LH35: 59002697.54 | LI35: 45705144.66 | LJ35: 51727648.91 | LK35: 43459701.36 | LL35: 49411145.45 | LM35: 50544082.82 | LN35: 67878021.99 | LO35: 61762473.95 | LP35: 78062665.51 | LQ35: 53739264.85 | LR35: 56037902.58 | LS35: 68827511.96 | LT35: 62812557.03 | LU35: 43662410.13 | LV35: 54847775.58 | LW35: 41536571.61 | LX35: 47748377.58 | LY35: 58757425.81 | LZ35: 68363962.1 | MA35: 74150366.03 | MB35: 81639064.81 | MC35: 60568443.28 | MD35: 59850307.82 | ME35: 76456788.73 | MF35: 60571986.87 | MG35: 49420706.22 | MH35: 59615984.58 | MI35: 52569349.17 | MJ35: 49517664.77 | MK35: 66085023.56 | ML35: 78127871.67 | MM35: 68143065.25 | MN35: 93562513.91 | MO35: 57500970.4 | MP35: 56165571.24 | MQ35: 58438536.04 | MR35: 48056582.13 | MS35: 48438461.71 | MT35: 52485535.31 | MU35: 42338002.72 | MV35: 55600751.74 | MW35: 70915405.69 | MX35: 73279024.56 | MY35: 82214013.59 | MZ35: 104336342.1 | NA35: 70900093.4 | NB35: 74120636.13 | NC35: 89725539.72 | ND35: 76707583 | NE35: 66067147.44 | NF35: 82102358.59 | NG35: 64979852.2 | NH35: 72536191.53 | NI35: 92819295.36 | NJ35: 96595660.43 | NK35: 103126509.9 | NL35: 150877248.3 | NM35: 89011812.3 | NN35: 107151195.4 | NO35: 117158869.5 | NP35: 110921135.7 | NQ35: 97189259.08 | NR35: 110535412.6 | NS35: 91926662.07 | NT35: 96019216.81 | NU35: 122536093.9 | NV35: 129990542.3 | NW35: 112439405.7 | NX35: 149129830.9 | NY35: 91986620.01 | NZ35: 104829651.3 | OA35: 117134445.3 | OB35: 108971474.8 | OC35: 81173046.65 | OD35: 93295401.6 | OE35: 80996781.41 | OF35: 88321821.84 | OG35: 113814431.3 | OH35: 125430915.8 | OI35: ='[1]EST - FPE'!C37 -> 131114987.5 | OJ35: ='[1]EST - FPE'!D37 -> 184255473.1 | OK35: ='[1]EST - FPE'!E37 -> 113191682.5 | OL35: ='[1]EST - FPE'!F37 -> 118350742.4 | OM35: ='[1]EST - FPE'!G37 -> 136894350.8 | ON35: ='[1]EST - FPE'!H37 -> 150468592.4 | OO35: ='[1]EST - FPE'!I37 -> 96218032.84 | OP35: ='[1]EST - FPE'!J37 -> 127380154.3 | OQ35: ='[1]EST - FPE'!K37 -> 103904992 | OR35: ='[1]EST - FPE'!L37 -> 110037410 | OS35: ='[1]EST - FPE'!M37 -> 142654138.7 | OT35: ='[1]EST - FPE'!N37 -> 159844126.7 | OU35: ='[2]EST - FPE'!C37 -> 141257196.3 | OV35: ='[2]EST - FPE'!D37 -> 197101060.9 | OW35: ='[2]EST - FPE'!E37 -> 128274382.7 | OX35: ='[2]EST - FPE'!F37 -> 129334390.5 | OY35: ='[2]EST - FPE'!G37 -> 165934415 | OZ35: ='[2]EST - FPE'!H37 -> 174042960.2 | PA35: ='[2]EST - FPE'!I37 -> 104772437.4 | PB35: ='[2]EST - FPE'!J37 -> 140021964.4 | PC35: ='[2]EST - FPE'!K37 -> 112667970.5 | PD35: ='[2]EST - FPE'!L37 -> 117630929.1 | PE35: ='[2]EST - FPE'!M37 -> 163580196.3 | PF35: ='[2]EST - FPE'!N37 -> 184456926.5 | PG35: ='[3]EST - FPE'!C37 -> 172414641.2 | PH35: ='[3]EST - FPE'!D37 -> 231374895.8 | PI35: ='[3]EST - FPE'!E37 -> 132962632.9 | PJ35: ='[3]EST - FPE'!F37 -> 161124570 | PK35: ='[3]EST - FPE'!G37 -> 194226435.2 | PL35: ='[3]EST - FPE'!H37 -> 215408692.9 | PM35: ='[3]EST - FPE'!I37 -> 0 | PN35: ='[3]EST - FPE'!J37 -> 0 | PO35: ='[3]EST - FPE'!K37 -> 0 | PP35: ='[3]EST - FPE'!L37 -> 0 | PQ35: ='[3]EST - FPE'!M37 -> 0 | PR35: ='[3]EST - FPE'!N37 -> 0
A36: Tocantins | B36: TO | C36: 2411398067 | D36: 2831104938 | E36: 3391246807 | F36: 3741982904 | G36: 6250051024 | H36: 5137898919 | I36: 5595686171 | J36: 6277666588 | K36: 7602758099 | L36: 6035351730 | M36: 8924291317 | N36: 1.481681434e+10 | O36: 1.194901309e+10 | P36: 1.449095817e+10 | Q36: 2.024389963e+10 | R36: 2.401286953e+10 | S36: 4.425471537e+10 | T36: 4.740785077e+10 | U36: 5.648175597e+10 | V36: 6.916630999e+10 | W36: 8.215476392e+10 | X36: 1.114808702e+11 | Y36: 1.353274589e+11 | Z36: 1.797022259e+11 | AA36: 247064710.7 | AB36: 309376037.5 | AC36: 364929201.8 | AD36: 464504144.1 | AE36: 609537820.3 | AF36: 1093459797 | AG36: 1100241688 | AH36: 1333459637 | AI36: 1629915765 | AJ36: 2390363163 | AK36: 4078094703 | AL36: 5871190445 | AM36: 2713707.41 | AN36: 3586659.3 | AO36: 4486138.42 | AP36: 5750473.22 | AQ36: 10506803.65 | AR36: 14121096.51 | AS36: 18151517.07 | AT36: 18373295.88 | AU36: 18994021.86 | AV36: 19900308.67 | AW36: 22353993.83 | AX36: 23669563.21 | AY36: 27234391.48 | AZ36: 29918950.58 | BA36: 23520283.36 | BB36: 26417872.38 | BC36: 26915334.26 | BD36: 35744726.74 | BE36: 29672950.94 | BF36: 26099504.01 | BG36: 26566875.86 | BH36: 26855272.61 | BI36: 27502677.12 | BJ36: 28677626.38 | BK36: 30643857.21 | BL36: 31143177.98 | BM36: 27060784.01 | BN36: 47675031.33 | BO36: 30669397.81 | BP36: 29308110.72 | BQ36: 30219331.16 | BR36: 27776595.39 | BS36: 29328879.06 | BT36: 27252954.2 | BU36: 29116070.48 | BV36: 38947300.13 | BW36: 44398876.14 | BX36: 33106188.92 | BY36: 30194328 | BZ36: 37864443.15 | CA36: 38641874.61 | CB36: 30012791.29 | CC36: 32229193.34 | CD36: 33882442.14 | CE36: 34901835.36 | CF36: 35672471.09 | CG36: 39680541.95 | CH36: 34926550.85 | CI36: 42313866.25 | CJ36: 34804201.73 | CK36: 32549069.94 | CL36: 38770499.22 | CM36: 36876299.56 | CN36: 26130331.62 | CO36: 27507265.89 | CP36: 35911356.41 | CQ36: 34753881.9 | CR36: 29569791.3 | CS36: 31806795.69 | CT36: 31858422.02 | CU36: 41284762.99 | CV36: 41915172.32 | CW36: 42852987.48 | CX36: 38904658.88 | CY36: 42014198.71 | CZ36: 28066965.75 | DA36: 27915863.4 | DB36: 34819508.45 | DC36: 32491097.81 | DD36: 38707234.5 | DE36: 36778973.45 | DF36: 40421677.31 | DG36: 45635518.44 | DH36: 43288143.74 | DI36: 47156073.52 | DJ36: 48910949.39 | DK36: 46782563.62 | DL36: 37946853.54 | DM36: 36102068.18 | DN36: 40252098.98 | DO36: 40587495.95 | DP36: 42913564.71 | DQ36: 46577665.21 | DR36: 52565705.13 | DS36: 61044592.73 | DT36: 49738736.26 | DU36: 43615742.02 | DV36: 51299051.48 | DW36: 57678249.33 | DX36: 50044544.77 | DY36: 45524233.64 | DZ36: 47929270.96 | EA36: 51841282.21 | EB36: 49543738.43 | EC36: 51493160.26 | ED36: 62451406.43 | EE36: 67601084.2 | EF36: 78981894.28 | EG36: 60443579.48 | EH36: 63128719.65 | EI36: 72352769.43 | EJ36: 50938079.94 | EK36: 55697070.35 | EL36: 52737933.92 | EM36: 58222391.86 | EN36: 76721692.68 | EO36: 67294156.46 | EP36: 65910315.17 | EQ36: 71803775.67 | ER36: 75606080 | ES36: 65578045.97 | ET36: 62438557.82 | EU36: 87577694.04 | EV36: 61502221.96 | EW36: 51566674.48 | EX36: 67651009.64 | EY36: 58699543.97 | EZ36: 60646123.13 | FA36: 67557555.09 | FB36: 70437266.83 | FC36: 77311300.59 | FD36: 84431739.87 | FE36: 68330347.28 | FF36: 75267704.14 | FG36: 87660854.38 | FH36: 56904857.79 | FI36: 59177704.8 | FJ36: 76988816.25 | FK36: 66668738.12 | FL36: 71346277.63 | FM36: 71123973.79 | FN36: 87784660.46 | FO36: 98705795.48 | FP36: 86406406.83 | FQ36: 82868681.05 | FR36: 89971998.27 | FS36: 101553676.9 | FT36: 98389307.92 | FU36: 80793802.58 | FV36: 83123949.57 | FW36: 69434355.97 | FX36: 80404801.36 | FY36: 97195070.99 | FZ36: 136268136.4 | GA36: 111857096.5 | GB36: 96205620.03 | GC36: 90890367.31 | GD36: 102326878.8 | GE36: 112301936.9 | GF36: 109289953.2 | GG36: 97929224.31 | GH36: 99080410.92 | GI36: 92056696.36 | GJ36: 83421852.38 | GK36: 102744935.6 | GL36: 124946543.3 | GM36: 111165259.8 | GN36: 119470890.8 | GO36: 97168652.47 | GP36: 116176923.1 | GQ36: 124556865.2 | GR36: 127243829.4 | GS36: 98955680.74 | GT36: 104414402.4 | GU36: 107528770 | GV36: 101747199 | GW36: 119296465.5 | GX36: 161495851.7 | GY36: 142343705.6 | GZ36: 156446670.7 | HA36: 123225810.8 | HB36: 142834664.2 | HC36: 150285533 | HD36: 129569171.9 | HE36: 117373890.3 | HF36: 143369507.6 | HG36: 126258128.9 | HH36: 120163586.4 | HI36: 152272568.9 | HJ36: 160268131.2 | HK36: 146229296.9 | HL36: 136323455.6 | HM36: 108979328.9 | HN36: 129709869.5 | HO36: 154482494.2 | HP36: 133336877.2 | HQ36: 102308838.1 | HR36: 119018900.5 | HS36: 105357411.7 | HT36: 121195960.1 | HU36: 151284363.9 | HV36: 163131457.5 | HW36: 125623994.3 | HX36: 153377846.7 | HY36: 113937674.2 | HZ36: 136514427.5 | IA36: 168077064 | IB36: 145869510.5 | IC36: 107263465.9 | ID36: 143754462.2 | IE36: 120001469.8 | IF36: 129180180.6 | IG36: 154856612.3 | IH36: 195189084.3 | II36: 189414433.3 | IJ36: 204066285.5 | IK36: 133218616.1 | IL36: 176580851 | IM36: 202677867.8 | IN36: 182931052.8 | IO36: 155615021.1 | IP36: 160519676.4 | IQ36: 128147930.2 | IR36: 168441404.7 | IS36: 177938322.3 | IT36: 206694893.1 | IU36: 188493856.2 | IV36: 228011953.9 | IW36: 154856529.8 | IX36: 195170018.4 | IY36: 218283856 | IZ36: 186272294.9 | JA36: 139101922.4 | JB36: 153496052.2 | JC36: 134306791.6 | JD36: 142572721.2 | JE36: 192710452.1 | JF36: 217822235.4 | JG36: 201395846.7 | JH36: 270956571.6 | JI36: 156050862.2 | JJ36: 167439056.9 | JK36: 240587165.9 | JL36: 200720082.8 | JM36: 142938314 | JN36: 186889564.3 | JO36: 154675636.1 | JP36: 154678012.2 | JQ36: 215153973.8 | JR36: 221915819.8 | JS36: 265228738.2 | JT36: 283225499.5 | JU36: 168007968 | JV36: 191752808.5 | JW36: 255534194.1 | JX36: 191634151.3 | JY36: 164589489.4 | JZ36: 199948226.8 | KA36: 175271338.8 | KB36: 165649464.5 | KC36: 219258249.5 | KD36: 240839124.6 | KE36: 269794448.8 | KF36: 275407862.4 | KG36: 200594175.1 | KH36: 216494269.5 | KI36: 266227561 | KJ36: 231644967.9 | KK36: 171525836.2 | KL36: 200611459.1 | KM36: 167251021.1 | KN36: 190359380.1 | KO36: 214930683.1 | KP36: 247145622.2 | KQ36: 235491828.7 | KR36: 294406575.4 | KS36: 179068051.2 | KT36: 212873455.7 | KU36: 283045631.6 | KV36: 233861937.6 | KW36: 169552648.2 | KX36: 210268785.7 | KY36: 170990531.7 | KZ36: 204956672.2 | LA36: 352293661 | LB36: 422607820.5 | LC36: 252732425.8 | LD36: 321980517 | LE36: 203027484.5 | LF36: 241800038 | LG36: 276662855.7 | LH36: 254451296.9 | LI36: 194135872.9 | LJ36: 222057285.4 | LK36: 185999182.3 | LL36: 208003799.5 | LM36: 218834300.2 | LN36: 287848161.5 | LO36: 268049136.9 | LP36: 344731486 | LQ36: 234629525 | LR36: 245351562.8 | LS36: 301223622.4 | LT36: 278595940.8 | LU36: 191342856.3 | LV36: 240891315.8 | LW36: 182042198.9 | LX36: 207994745.9 | LY36: 258674486.6 | LZ36: 309132800.9 | MA36: 320130726.6 | MB36: 352869220.1 | MC36: 260597045.9 | MD36: 259151981 | ME36: 330307993 | MF36: 262428590.2 | MG36: 213266015.3 | MH36: 256479753.9 | MI36: 225085318.1 | MJ36: 214470559.3 | MK36: 283837767.3 | ML36: 333721164.3 | MM36: 295829493.2 | MN36: 411469681.2 | MO36: 249708218.8 | MP36: 244122976.6 | MQ36: 254264435 | MR36: 208565566.5 | MS36: 211132747.2 | MT36: 227937377.6 | MU36: 183802764.6 | MV36: 242857424.7 | MW36: 312821679.2 | MX36: 324450579.4 | MY36: 356589544.7 | MZ36: 448182301.8 | NA36: 305824330.9 | NB36: 319715944.7 | NC36: 387860277.5 | ND36: 330440034.2 | NE36: 283530284.8 | NF36: 351468504.3 | NG36: 278836421.6 | NH36: 311429015.2 | NI36: 396689218.1 | NJ36: 413164884.9 | NK36: 428981760.5 | NL36: 564063474.8 | NM36: 354251146.7 | NN36: 411384452.3 | NO36: 467970613 | NP36: 431286980.9 | NQ36: 359415690.2 | NR36: 411255357 | NS36: 341156882.6 | NT36: 364653415.8 | NU36: 448864678.2 | NV36: 486245275.5 | NW36: 475836304.2 | NX36: 607984670.8 | NY36: 383154470.3 | NZ36: 433028646.1 | OA36: 490266976 | OB36: 451513473.5 | OC36: 335733459.6 | OD36: 386470500.3 | OE36: 333065458.1 | OF36: 365778716.4 | OG36: 463022598.3 | OH36: 512487447.5 | OI36: ='[1]EST - FPE'!C38 -> 522002414.8 | OJ36: ='[1]EST - FPE'!D38 -> 650194727 | OK36: ='[1]EST - FPE'!E38 -> 422142282.5 | OL36: ='[1]EST - FPE'!F38 -> 446465951.5 | OM36: ='[1]EST - FPE'!G38 -> 527306963.4 | ON36: ='[1]EST - FPE'!H38 -> 531639916.5 | OO36: ='[1]EST - FPE'!I38 -> 357478177.6 | OP36: ='[1]EST - FPE'!J38 -> 452305553.1 | OQ36: ='[1]EST - FPE'!K38 -> 371377127.4 | OR36: ='[1]EST - FPE'!L38 -> 403187406.6 | OS36: ='[1]EST - FPE'!M38 -> 498121843.4 | OT36: ='[1]EST - FPE'!N38 -> 561927247.6 | OU36: ='[2]EST - FPE'!C38 -> 552266229.3 | OV36: ='[2]EST - FPE'!D38 -> 684912213.9 | OW36: ='[2]EST - FPE'!E38 -> 462395982.9 | OX36: ='[2]EST - FPE'!F38 -> 477418282.4 | OY36: ='[2]EST - FPE'!G38 -> 601947294.5 | OZ36: ='[2]EST - FPE'!H38 -> 591461487.4 | PA36: ='[2]EST - FPE'!I38 -> 378448886.1 | PB36: ='[2]EST - FPE'!J38 -> 485986763.3 | PC36: ='[2]EST - FPE'!K38 -> 395254129.3 | PD36: ='[2]EST - FPE'!L38 -> 425092485.8 | PE36: ='[2]EST - FPE'!M38 -> 550471430.5 | PF36: ='[2]EST - FPE'!N38 -> 622665109.2 | PG36: ='[3]EST - FPE'!C38 -> 608224904 | PH36: ='[3]EST - FPE'!D38 -> 721451196 | PI36: ='[3]EST - FPE'!E38 -> 458072171.5 | PJ36: ='[3]EST - FPE'!F38 -> 525777835.8 | PK36: ='[3]EST - FPE'!G38 -> 638686240.7 | PL36: ='[3]EST - FPE'!H38 -> 640981123.8 | PM36: ='[3]EST - FPE'!I38 -> 0 | PN36: ='[3]EST - FPE'!J38 -> 0 | PO36: ='[3]EST - FPE'!K38 -> 0 | PP36: ='[3]EST - FPE'!L38 -> 0 | PQ36: ='[3]EST - FPE'!M38 -> 0 | PR36: ='[3]EST - FPE'!N38 -> 0
A38: Repasse Total | C38: =SUM(C10:C36) -> 5.556216745e+10 | D38: =SUM(D10:D36) -> 6.523283267e+10 | E38: 7.813932736e+10 | F38: 8.622080423e+10 | G38: 1.440103923e+11 | H38: 1.183847677e+11 | I38: 1.289328611e+11 | J38: 1.446466956e+11 | K38: 1.75178758e+11 | L38: 1.390634039e+11 | M38: 2.056288322e+11 | N38: 3.41401252e+11 | O38: 2.753228823e+11 | P38: =SUM(P10:P36) -> 3.338930455e+11 | Q38: 4.664493002e+11 | R38: 5.532919248e+11 | S38: 1.019693903e+12 | T38: 1.092346792e+12 | U38: 1.301422949e+12 | V38: 1.593693778e+12 | W38: 1.892966911e+12 | X38: 2.568683646e+12 | Y38: 3.118144214e+12 | Z38: 4.140604284e+12 | AA38: 5692735269 | AB38: 7128480127 | AC38: 8408506954 | AD38: 1.070286046e+10 | AE38: 1.404465024e+10 | AF38: 2.519492619e+10 | AG38: 2.535119097e+10 | AH38: 3.072487643e+10 | AI38: 3.755566279e+10 | AJ38: 5.507749224e+10 | AK38: 9.396531574e+10 | AL38: 1.352808858e+11 | AM38: 62527820.41 | AN38: 82641919.29 | AO38: 103367244.7 | AP38: 132499383 | AQ38: 242092250 | AR38: 325370887.4 | AS38: 418237720.8 | AT38: 423347831.3 | AU38: 437650273 | AV38: 458532458.6 | AW38: 515068982.4 | AX38: 545381640.9 | AY38: 627520540.9 | AZ38: 689376741.1 | BA38: 541942012.8 | BB38: 608706736.7 | BC38: 620168992.3 | BD38: 823611215.1 | BE38: 683708546.8 | BF38: 601371060.1 | BG38: 612139996.8 | BH38: 618785083.2 | BI38: 633702237.5 | BJ38: 660774801.2 | BK38: 706079659 | BL38: 717584746.3 | BM38: 623520368.9 | BN38: 1098503026 | BO38: 706668152.5 | BP38: 675302090.1 | BQ38: 696297953.2 | BR38: 640013718.6 | BS38: 675780623.6 | BT38: 627948253.4 | BU38: 670877200 | BV38: 897403229 | BW38: 1023015579 | BX38: 762815412.7 | BY38: 695721843.4 | BZ38: 872452607.1 | CA38: 890365774.3 | CB38: =SUM(CB10:CB36) -> 691538969.8 | CC38: 739241835.2 | CD38: 773543961 | CE38: 796816943.3 | CF38: 814410734.6 | CG38: 905915915.8 | CH38: 797381203.5 | CI38: 974973876.9 | CJ38: 801940132.3 | CK38: 749978570 | CL38: 893329475.5 | CM38: 849684321.6 | CN38: 602081373.9 | CO38: 633807970.1 | CP38: 827450608.4 | CQ38: 800780689.1 | CR38: 681331597.1 | CS38: 732875477.1 | CT38: 734065023.3 | CU38: 951261820.3 | CV38: 965787381 | CW38: 987396025.1 | CX38: 896420711.6 | CY38: 968069094.5 | CZ38: 646704280 | DA38: 643222659.4 | DB38: 802292821.4 | DC38: 748642806.7 | DD38: 891871763.1 | DE38: 847441784.4 | DF38: 931375053.3 | DG38: 1051509641 | DH38: 997422667 | DI38: 1086545473 | DJ38: 1126980401 | DK38: 1077939254 | DL38: 874351463.9 | DM38: 831844889 | DN38: 927467718.7 | DO38: 935195759.2 | DP38: 988791813.5 | DQ38: 1073218093 | DR38: 1211191363 | DS38: 1406557436 | DT38: 1146053831 | DU38: 1004971014 | DV38: 1182005795 | DW38: 1328991920 | DX38: 1153100110 | DY38: 1048945476 | DZ38: 1104361082 | EA38: 1194499590 | EB38: 1141560793 | EC38: 1186478347 | ED38: 1438972498 | EE38: 1557628668 | EF38: 1819859315 | EG38: 1392709205 | EH38: 1454578794 | EI38: 1667114503 | EJ38: 1173688478 | EK38: 1283342635 | EL38: 1215159768 | EM38: 1341529766 | EN38: =SUM(EN10:EN36) -> 1767780937 | EO38: 1550556601 | EP38: 1518670857 | EQ38: 1654464877 | ER38: 1742075576 | ES38: 1511014884 | ET38: 1438676447 | EU38: 2017919217 | EV38: 1417101889 | EW38: 1188172223 | EX38: 1558779024 | EY38: 1352524055 | EZ38: 1397376109 | FA38: 1556625694 | FB38: 1622978499 | FC38: 1781366373 | FD38: 1945431794 | FE38: 1574431965 | FF38: 1734278897 | FG38: 2019835354 | FH38: 1311171839 | FI38: 1363541585 | FJ38: 1773935859 | FK38: 1536146040 | FL38: 1643923448 | FM38: 1638801239 | FN38: 2022688029 | FO38: 2274327085 | FP38: 1990931033 | FQ38: 1909416614 | FR38: 2073087518 | FS38: 2339946472 | FT38: 2267034745 | FU38: 1861608354 | FV38: 1915298377 | FW38: 1599869953 | FX38: 1852645192 | FY38: 2239517765 | FZ38: 3139818811 | GA38: 2577352453 | GB38: 2216719355 | GC38: 2094248095 | GD38: 2357762185 | GE38: 2587602233 | GF38: 2518201686 | GG38: 2256433740 | GH38: 2282958777 | GI38: 2121122036 | GJ38: 1922162497 | GK38: 2367394831 | GL38: 2878952612 | GM38: 2561411516 | GN38: 2752785503 | GO38: 2238909043 | GP38: 2676887629 | GQ38: 2869973852 | GR38: 2931885469 | GS38: 2280084810 | GT38: 2405861808 | GU38: 2477621430 | GV38: 2344405507 | GW38: 2748766487 | GX38: 3721102574 | GY38: 3279808885 | GZ38: =SUM(GZ10:GZ36) -> 3604761998 | HA38: 2839304397 | HB38: 3291121295 | HC38: 3462800301 | HD38: 2985464791 | HE38: 2704467518 | HF38: 3303444877 | HG38: 2909173476 | HH38: 2768746231 | HI38: 3508584538 | HJ38: 3692814083 | HK38: 3369338639 | HL38: 3141093448 | HM38: 2511044444 | HN38: 2988706672 | HO38: 3559504474 | HP38: 3072278278 | HQ38: 2357346501 | HR38: 2742370979 | HS38: 2427590131 | HT38: 2792533642 | HU38: 3485814837 | HV38: 3758789343 | HW38: 2894562081 | HX38: 3534051767 | HY38: 2625292031 | HZ38: 3145493721 | IA38: 3872743410 | IB38: 3361048630 | IC38: 2471508430 | ID38: 3312314797 | IE38: 2765010826 | IF38: 2976501856 | IG38: 3568124706 | IH38: 4497444338 | II38: 4364387864 | IJ38: 4701988145 | IK38: 3069553367 | IL38: 4068683202 | IM38: 4669996954 | IN38: 4215001217 | IO38: 3585599564 | IP38: 3698610056 | IQ38: 2952717285 | IR38: 3881138357 | IS38: 4099961344 | IT38: 4762555141 | IU38: 4343176410 | IV38: 5253731657 | IW38: 3568122806 | IX38: 4497005032 | IY38: 5029581936 | IZ38: 4291988361 | JA38: 3205113420 | JB38: 3536775397 | JC38: 3094626533 | JD38: 3285085741 | JE38: 4440332998 | JF38: 5018945517 | JG38: 4640457296 | JH38: 6243238978 | JI38: 3595641987 | JJ38: 3858042786 | JK38: 5543483086 | JL38: =SUM(JL10:JL36) -> 4624886701 | JM38: 3293509540 | JN38: 4306211159 | JO38: 3563954748 | JP38: 3564009496 | JQ38: 4957464835 | JR38: 5113267737 | JS38: 6111261249 | JT38: 6525933168 | JU38: 3871151337 | JV38: 4418267478 | JW38: 5887884656 | JX38: 4415533441 | JY38: 3792384548 | JZ38: 4607102000 | KA38: 4038510111 | KB38: 3816807938 | KC38: 5052033400 | KD38: 5549288585 | KE38: =SUM(KE10:KE36) -> 6216461954 | KF38: 6345803282 | KG38: =SUM(KG10:KG36) -> 4621985601 | KH38: 4988347223 | KI38: 6134275599 | KJ38: 5337441657 | KK38: 3952208207 | KL38: 4622383851 | KM38: 3853710164 | KN38: 4386160833 | KO38: 4952319888 | KP38: 5694599589 | KQ38: 5426079004 | KR38: =SUM(KR10:KR36) -> 6792666411 | KS38: 4125991963 | KT38: 4904918334 | KU38: 6522357473 | KV38: 5388523909 | KW38: 3906743046 | KX38: 4844902897 | KY38: 3939874003 | KZ38: 4782593362 | LA38: 8725774312 | LB38: =SUM(LB10:LB36) -> 1.05503601e+10 | LC38: 5823327784 | LD38: 7466233280 | LE38: 4678052640 | LF38: 5636258067 | LG38: 6393361984 | LH38: 5892862301 | LI38: 4551203023 | LJ38: 5161607560 | LK38: 4334011855 | LL38: 4911672464 | LM38: 5051999096 | LN38: 6756980111 | LO38: =SUM(LO10:LO36) -> 6176247394 | LP38: 8074286966 | LQ38: 5437151750 | LR38: 5700676479 | LS38: 6996115008 | LT38: 6551529005 | LU38: 4449631746 | LV38: 5613472540 | LW38: 4233685262 | LX38: 4809438990 | LY38: 6041227422 | LZ38: 7397443931 | MA38: =SUM(MA10:MA36) -> 7494029399 | MB38: 8231742588 | MC38: 6163460386 | MD38: 6013133996 | ME38: 7716809704 | MF38: 6078514071 | MG38: 4999363877 | MH38: =SUM(MH10:MH36) -> 6067445255 | MI38: 5400921085 | MJ38: 4972249258 | MK38: 6748053740 | ML38: 8064241538 | MM38: 6822529353 | MN38: 9858250383 | MO38: 5764391830 | MP38: 5650380089 | MQ38: 5903368006 | MR38: 4805658214 | MS38: 4928294973 | MT38: 5262490691 | MU38: 4238982606 | MV38: 5703959501 | MW38: 7560166295 | MX38: 7923763803 | MY38: =SUM(MY10:MY36) -> 8238667970 | MZ38: 1.079880481e+10 | NA38: 7238211976 | NB38: 7567002159 | NC38: 9094494637 | ND38: 7865325702 | NE38: 6858785889 | NF38: =SUM(NF10:NF36) -> 8592597081 | NG38: 6748087894 | NH38: 7519621805 | NI38: 9765933237 | NJ38: 1.013677865e+10 | NK38: =SUM(NK10:NK36) -> 1.011411104e+10 | NL38: =SUM(NL10:NL36) -> 1.411844616e+10 | NM38: 8559174918 | NN38: 1.014565308e+10 | NO38: 1.12860266e+10 | NP38: 1.056023161e+10 | NQ38: 9056756088 | NR38: 1.032680952e+10 | NS38: 8579118263 | NT38: 9049244130 | NU38: =SUM(NU10:NU36) -> 1.137325261e+10 | NV38: 1.217206838e+10 | NW38: 1.135984295e+10 | NX38: =SUM(NX10:NX36) -> 1.528727128e+10 | NY38: 9351925140 | NZ38: 1.06921689e+10 | OA38: 1.188606228e+10 | OB38: 1.110149305e+10 | OC38: 8275242755 | OD38: 9505353636 | OE38: 8275768535 | OF38: 8999472305 | OG38: 1.167649539e+10 | OH38: 1.284721224e+10 | OI38: =SUM(OI10:OI36) -> 1.278303289e+10 | OJ38: 1.738174137e+10 | OK38: 1.083656245e+10 | OL38: 1.13659694e+10 | OM38: 1.322285641e+10 | ON38: 1.419914312e+10 | OO38: 9202056941 | OP38: 1.203603475e+10 | OQ38: 9834842802 | OR38: 1.048436637e+10 | OS38: 1.342046767e+10 | OT38: =SUM(OT10:OT36) -> 1.506405396e+10 | OU38: 1.360962731e+10 | OV38: 1.826254833e+10 | OW38: 1.202672825e+10 | OX38: 1.222120813e+10 | OY38: 1.558988379e+10 | OZ38: 16012952602 | PA38: 9829785255 | PB38: 1.296892037e+10 | PC38: 1.047109578e+10 | PD38: 1.103784912e+10 | PE38: 1.500418683e+10 | PF38: 1.693555213e+10 | PG38: =SUM(PG10:PG36) -> 1.53239784e+10 | PH38: 1.926683157e+10 | PI38: 1.166723267e+10 | PJ38: 1.373703308e+10 | PK38: 1.662617135e+10 | PL38: 1.751719056e+10 | PM38: 0 | PN38: 0 | PO38: 0 | PP38: 0 | PQ38: 0 | PR38: 0
A39: Obs: os valores já estão deduzidos Da retenção para o FUNDEF/FUNDEB
A40: Dados extraídos do SIAFI

Sheet FPM
A1: MINISTÉRIO DA FAZENDA - MF
A2: SECRETARIA DO TESOURO NACIONAL - STN
A3: COORDENAÇÃO-GERAL DE ANÁLISE E INFORMAÇÕES DAS TRANSFERÊNCIAS FINANCEIRAS INTERGOVERNAMENTAIS
